Workbook

Sheet Caratula Resumen
D12: FORMATOS ENTREGADOS PARA DAR CUMPLIMIENTO AL ARTICULO 73 DE "LA LEY GENERAL DE CONTABILIDAD GUBERNAMENTAL"
C21: Entidad Federativa : | D21: GUANAJUATO
C22: Fondo : | D22: Fondo de Aportaciones para la Educación Tecnológica y de Adultos/Instituto Nacional para la Educación de los Adultos (FAETA/INEA)
C23: Periodo : | D23: 4to. Trimestre
H32: TOTAL REGISTROS | J32: Num. de Paginas | L32: TOTAL PERSONAS | N32: TOTAL PLAZAS | P32: Total Pto. Federal | R32: Total Ppto. Otras Fuentes
B35: 1 | C35: A Y II D3 | D35: Personal Comisionado | H35: 0 | J35: 1 | L35: 0 | N35: 0 | P35: 0 | R35: 0
B36: 2 | C36: A Y II D4 | D36: Personal con Licencia | H36: 0 | J36: 1 | L36: 0 | N36: 0 | P36: 0 | R36: 0
B37: 3 | C37: B) | D37: Registro Federal de Contribuyentes de Trabajadores con Pagos Retroactivos con un Periodo Mayor a 45 días | H37: 0 | J37: 1 | L37: 0 | N37: 0 | P37: N/A | R37: N/A
B38: 4 | C38: II B) Y 1 | D38: Plaza / Función | H38: 270 | J38: 6 | L38: 270 | N38: N/A | P38: N/A | R38: N/A
B39: 5 | C39: II C y 1_ | D39: Personal Federalizado por Registro Federal de Contribuyentes | H39: 7 | J39: 7
B40: 6 | C40: II D) 2 | D40: Movimientos de Plazas | H40: 189 | J40: 6 | L40: 189 | N40: 189 | P40: N/A | R40: N/A
B41: 7 | C41: II D) 4 | D41: Trabajadores Jubilados en el Periodo | H41: 0 | J41: 1 | L41: 0 | N41: 0 | P41: N/A | R41: N/A
B42: 8 | C42: II D) 4 A | D42: Trabajadores que Tramitaron Licencia Prejubilatoria en el Periodo | H42: 0 | J42: 1 | L42: 0 | N42: 0 | P42: 0 | R42: 0
B43: 9 | C43: II D) 6 | D43: Trabajadores Contratados por Honorarios en el Periodo | H43: 11 | J43: 1 | L43: 11 | N43: N/A | P43: N/A | R43: N/A
B44: 10 | C44: II D) 7 1 | D44: Analítico de Categorías / Plazas Autorizadas con su Tabulador | H44: 17 | J44: 1 | L44: N/A | N44: N/A | P44: N/A | R44: N/A
B45: 11 | C45: II D) 7 2 | D45: Catálogo de Categorías y Tabuladores | H45: 191 | J45: 6 | L45: N/A | N45: N/A | P45: N/A | R45: N/A
B46: 12 | C46: II D) 7 3 | D46: Catálogo de Percepciones y Deducciones | H46: 220 | J46: 7 | L46: N/A | N46: N/A | P46: N/A | R46: N/A
B47: 13 | C47: E) | D47: Trabajadores que Cobran con RFC / CURP con Formato Incorrecto | H47: 0 | J47: 1 | L47: 0 | N47: N/A | P47: N/A | R47: N/A
B48: 14 | C48: F) 1 | D48: Trabajadores con Doble Asignación Salarial en Municipios no Colindantes Geográficamente | H48: 0 | J48: 1 | L48: 0 | N48: N/A | P48: N/A | R48: N/A
B49: 15 | C49: F) 2 | D49: Trabajadores Ocupando Plazas que Superan el Número de Horas de Compatibilidad Autorizadas | H49: 1 | J49: 1 | L49: 1 | N49: 1 | P49: N/A | R49: N/A
B50: 16 | C50: G) | D50: Trabajadores Cuyo Salario Básico Supere los Ingresos Promedio de un Docente en la Categoría más Alta del Tabulador Salarial Correspondiente a Cada Entidad | H50: 0 | J50: 1 | L50: 1 | N50: N/A | P50: N/A | R50: N/A
C63: C.P. ESMERALDA HERNANDEZ ESCOGIDO
C64: Nombre del Responsable
C66: ENCARGADA DE LA OFICINA DE RECURSOS HUMANOS
C67: Cargo
C70: Firma
C72: 19 DE ENERO DE 2016
C73: Fecha

Sheet A Y II D3
B9: Formato: Personal Comisionado
B10: =IF('Caratula Resumen'!D22="Elige el Periodo…","",'Caratula Resumen'!D22) -> Fondo de Aportaciones para la Educación Tecnológica y de Adultos/Instituto Nacional para la Educación de los Adultos (FAETA/INEA) | X10: =IF('Caratula Resumen'!D23="Elige el Periodo…","",'Caratula Resumen'!D23) -> 4to. Trimestre
B13: Entidad Federativa | C13: R.F.C. | D13: CURP | E13: Nombre | F13: Clave integrada | G13: Clave Presupuestal | N13: Fecha Comisión | P13: Percepciones pagadas en el Periodo de Comisión con Presupuesto Federal* | Q13: Percepciones pagadas en el Periodo de Comisión con Presupuesto de otra fuente* | R13: Clave CT Origen | S13: CT Destino dentro del sector | U13: Lugar de la comisión fuera del sector educativo | V13: Tipo de Comisión | W13: Función Específica | X13: Objeto de la comision | Y13: No. Oficio
G14: Partida Presupuestal | H14: Código de Pago | I14: Clave de Unidad | J14: Clave de Sub Unidad | K14: Clave de Categoría | L14: Horas Semana Mes | M14: Número de Plaza | N14: Inicio | O14: Conclusión | S14: Clave | T14: Turno
B16: Entidad Federativa | C16: R.F.C. | D16: CURP | E16: Nombre | F16: Clave integrada | G16: Partida Presupuestal | H16: Código de Pago | I16: Clave de Unidad | J16: Clave de Sub Unidad | K16: Clave de Categoría | L16: Horas Semana Mes | M16: Número de Plaza | N16: Fecha Comisión Inicio | O16: Fecha Comisión Conclusión | P16: Percepciones pagadas en el Periodo de Comisión con Presupuesto Federal* | Q16: Percepciones pagadas en el Periodo de Comisión con Presupuesto de otra fuente* | R16: Clave CT Origen | S16: Clave | T16: Turno | U16: Lugar de la comisión fuera del sector educativo | V16: Tipo de Comisión | W16: Función Específica | X16: Objeto de la comision | Y16: No. Oficio
B22: Total Personas : | K22: Total Plazas : | N22: Total Pto. Federal
M24: Total Ppto. Otras Fuentes
B26: *Total de Percepciones reportadas por la Entidad Federativa como pagadas al trabajador durante la comisión.
B27: Fuente : Información proporcionada por las Entidades Federativas.

Sheet A Y II D4
B9: Formato: Personal con Licencia
B10: =IF('Caratula Resumen'!D22="Elige el Periodo…","",'Caratula Resumen'!D22) -> Fondo de Aportaciones para la Educación Tecnológica y de Adultos/Instituto Nacional para la Educación de los Adultos (FAETA/INEA) | U10: =IF('Caratula Resumen'!D23="Elige el Periodo…","",'Caratula Resumen'!D23) -> 4to. Trimestre
B13: Entidad Federativa | C13: R.F.C. | D13: CURP | E13: NOMBRE | F13: Clave integrada | G13: Clave Presupuestal | N13: Periodo Licencia | P13: Percepciones pagadas en el Periodo de la Licencia con Presupuesto Federal* | Q13: Percepciones pagadas en el Periodo de la Licencia con Presupuesto de otra fuente* | R13: Clave CT Origen | S13: Licencia | U13: Descripción de la Licencia
G14: Partida Presupuestal | H14: Código de Pago | I14: Clave de Unidad | J14: Clave de Sub Unidad | K14: Clave de Categoría | L14: Horas Semana Mes | M14: Número de Plaza | N14: Inicio | O14: Conclusión | S14: Clave | T14: Tipo
B16: Entidad Federativa | C16: R.F.C. | D16: CURP | E16: NOMBRE | F16: Clave integrada | G16: Partida Presupuestal | H16: Código de Pago | I16: Clave de Unidad | J16: Clave de Sub Unidad | K16: Clave de Categoría | L16: Horas Semana Mes | M16: Número de Plaza | N16: Periodo Licencia Inicio | O16: Periodo Licencia Conclusión | P16: Percepciones pagadas en el Periodo de la Licencia con Presupuesto Federal* | Q16: Percepciones pagadas en el Periodo de la Licencia con Presupuesto de otra fuente* | R16: Clave CT Origen | S16: Licencia Clave | T16: Licencia Tipo | U16: Descripción de la Licencia
B22: Total Personas : | K22: Total Plazas : | N22: Total Pto. Federal
N24: Total Ppto. Otras Fuentes
B26: *Total de Percepciones reportadas por la Entidad Federativa como pagadas al trabajador durante la Licencia.
B27: Fuente : Información proporcionada por las Entidades Federativas.

Sheet B)
B9: Formato: Registro Federal de Contribuyentes de Trabajadores con Pagos Retroactivos con un Periodo Mayor a 45 días
B10: =IF('Caratula Resumen'!D22="Elige el Periodo…","",'Caratula Resumen'!D22) -> Fondo de Aportaciones para la Educación Tecnológica y de Adultos/Instituto Nacional para la Educación de los Adultos (FAETA/INEA) | R10: =IF('Caratula Resumen'!D23="Elige el Periodo…","",'Caratula Resumen'!D23) -> 4to. Trimestre
B13: Entidad Federativa | C13: RFC | D13: CURP | E13: Nombre | F13: Clave Presupuestal | M13: Clave de Centro de Trabajo | N13: Fecha de emisión de pago | O13: Motivo del Pago Retroactivo | P13: Periodo pagado | R13: Días transcurridos para el pago | S13: Percepciones pagadas en el periodo reportado *
F14: Partida Presupuestal | G14: Código de Pago | H14: Clave de Unidad | I14: Clave de Sub Unidad | J14: Clave de Categoría | K14: Horas Semana Mes | L14: Número de Plaza | P14: Desde | Q14: Hasta
B16: Entidad Federativa | C16: RFC | D16: CURP | E16: Nombre | F16: Partida Presupuestal | G16: Código de Pago | H16: Clave de Unidad | I16: Clave de Sub Unidad | J16: Clave de Categoría | K16: Horas semana mes | L16: Número de plaza | M16: Clave de Centro de Trabajo | N16: Fecha de emisión de pago | O16: Motivo del Pago Retroactivo | P16: Periodo pagado Desde | Q16: Periodo pagado Hasta | R16: Días transcurridos para el pago | S16: Percepciones pagadas en el periodo reportado *
B22: Total Personas : | K22: Total Plazas : | P22: Total Percepciones Pagadas:
B26: *Total de Percepciones reportadas por la Entidad Federativa como pagadas en el periodo
B27: Fuente : Información proporcionada por las Entidades Federativas

Sheet II B) Y 1
B9: Formato: Plaza / Función
B10: =IF('Caratula Resumen'!D22="Elige el Periodo…","",'Caratula Resumen'!D22) -> Fondo de Aportaciones para la Educación Tecnológica y de Adultos/Instituto Nacional para la Educación de los Adultos (FAETA/INEA) | X10: =IF('Caratula Resumen'!D23="Elige el Periodo…","",'Caratula Resumen'!D23) -> 4to. Trimestre
B13: Entidad Federativa | C13: RFC | D13: CURP | E13: Nombre | F13: Centros de Trabajo | G13: Plazas por tipo de función | V13: Total plazas Jornada | W13: Total HSM | X13: Total de Honorarios | Y13: Total de recursos presupuestales ejercidos en servicios personales en el periodo (2)
G14: Apoyo a la labor educativa | J14: Administrativo y de servicio | M14: Docente y Apoyo Técnico Pedagógico | P14: Directivos y Supervisión | S14: Mandos medios y superiores
G15: Jornada | H15: HSM | I15: Honorarios | J15: Jornada | K15: HSM | L15: Honorarios | M15: Jornada | N15: HSM | O15: Honorarios | P15: Jornada | Q15: HSM | R15: Honorarios | S15: Jornada | T15: HSM | U15: Honorarios
B17: Entidad Federativa | C17: RFC | D17: CURP | E17: Nombre | F17: Centros de Trabajo | G17: Jornada | H17: HSM | I17: Honorarios | J17: Jornada2 | K17: HSM3 | L17: Honorarios4 | M17: Jornada5 | N17: HSM6 | O17: Honorarios7 | P17: Jornada8 | Q17: HSM9 | R17: Honorarios10 | S17: Jornada11 | T17: HSM12 | U17: Honorarios13 | V17: Total plazas Jornada | W17: Total HSM | X17: Total de Honorarios | Y17: Total de recursos presupuestales ejercidos en servicios personales en el periodo (2)
B18: GUANAJUATO | C18: COPC760616J13 | D18: COPC760616HGTRTR05 | E18: CARLOS ALBERTO CORDOBA PATIﾑO | F18: 1 | G18: 0 | H18: 0 | I18: 0 | J18: 0 | K18: 0 | L18: 0 | M18: 7 | N18: 35 | O18: 0 | P18: 0 | Q18: 0 | R18: 0 | S18: 0 | T18: 0 | U18: 0 | V18: 1 | W18: 35 | X18: 0 | Y18: 42555
B19: GUANAJUATO | C19: TOMG850829D80 | D19: TOMG850829HGTRRD08 | E19: JOSE GUADALUPE DE LA TORRE MARQUEZ | F19: 1 | G19: 0 | H19: 0 | I19: 0 | J19: 0 | K19: 0 | L19: 0 | M19: 7 | N19: 35 | O19: 0 | P19: 0 | Q19: 0 | R19: 0 | S19: 0 | T19: 0 | U19: 0 | V19: 1 | W19: 35 | X19: 0 | Y19: 45334
B20: GUANAJUATO | C20: TEMY831012PC7 | D20: TEMY831012MGTRDD05 | E20: YADIRA ELISA TERAN MEDINA | F20: 1 | G20: 0 | H20: 0 | I20: 0 | J20: 0 | K20: 0 | L20: 0 | M20: 7 | N20: 35 | O20: 0 | P20: 0 | Q20: 0 | R20: 0 | S20: 0 | T20: 0 | U20: 0 | V20: 1 | W20: 35 | X20: 0 | Y20: 46589
B21: GUANAJUATO | C21: SACM760716KV0 | D21: SACM760716MJCNSN08 | E21: MONICA DEL CARMEN SANDOVAL CASTELLON | F21: 1 | G21: 0 | H21: 0 | I21: 0 | J21: 0 | K21: 0 | L21: 0 | M21: 7 | N21: 35 | O21: 0 | P21: 0 | Q21: 0 | R21: 0 | S21: 0 | T21: 0 | U21: 0 | V21: 1 | W21: 35 | X21: 0 | Y21: 45907
B22: GUANAJUATO | C22: COSY800415BF0 | D22: COSY800415MGTRVN04 | E22: YUNERY CORTES SAAVEDRA | F22: 1 | G22: 0 | H22: 0 | I22: 0 | J22: 0 | K22: 0 | L22: 0 | M22: 7 | N22: 35 | O22: 0 | P22: 0 | Q22: 0 | R22: 0 | S22: 0 | T22: 0 | U22: 0 | V22: 1 | W22: 35 | X22: 0 | Y22: 42027
B23: GUANAJUATO | C23: AAPR490907F72 | D23: AAPR490907MDFLLS06 | E23: MA. DEL ROSARIO ROCIO ALMAGRO PALATO | F23: 1 | G23: 0 | H23: 0 | I23: 0 | J23: 0 | K23: 0 | L23: 0 | M23: 7 | N23: 35 | O23: 0 | P23: 0 | Q23: 0 | R23: 0 | S23: 0 | T23: 0 | U23: 0 | V23: 1 | W23: 35 | X23: 0 | Y23: 42322
B24: GUANAJUATO | C24: MADT730323NL2 | D24: MADT730323MGTTVR17 | E24: TERESITA DE JESUS MATA DAVALOS | F24: 1 | G24: 0 | H24: 0 | I24: 0 | J24: 0 | K24: 0 | L24: 0 | M24: 7 | N24: 35 | O24: 0 | P24: 0 | Q24: 0 | R24: 0 | S24: 0 | T24: 0 | U24: 0 | V24: 1 | W24: 35 | X24: 0 | Y24: 48615
B25: GUANAJUATO | C25: GOAA581209FLA | D25: GOAA581209MGTNGL08 | E25: ALICIA GONZALEZ AGUIRRE | F25: 1 | G25: 0 | H25: 0 | I25: 0 | J25: 0 | K25: 0 | L25: 0 | M25: 7 | N25: 35 | O25: 0 | P25: 0 | Q25: 0 | R25: 0 | S25: 0 | T25: 0 | U25: 0 | V25: 1 | W25: 35 | X25: 0 | Y25: 46665
B26: GUANAJUATO | C26: MAAC750527A26 | D26: MAAC750527MGTRGR07 | E26: CAROLINA MARTINEZ AGREDA | F26: 1 | G26: 0 | H26: 0 | I26: 0 | J26: 0 | K26: 0 | L26: 0 | M26: 7 | N26: 35 | O26: 0 | P26: 0 | Q26: 0 | R26: 0 | S26: 0 | T26: 0 | U26: 0 | V26: 1 | W26: 35 | X26: 0 | Y26: 40450
B27: GUANAJUATO | C27: PECA660503AR0 | D27: PECA660503MGTRBN07 | E27: ANTONIA PEREZ CABELLO | F27: 1 | G27: 0 | H27: 0 | I27: 0 | J27: 0 | K27: 0 | L27: 0 | M27: 7 | N27: 35 | O27: 0 | P27: 0 | Q27: 0 | R27: 0 | S27: 0 | T27: 0 | U27: 0 | V27: 1 | W27: 35 | X27: 0 | Y27: 45933
B28: GUANAJUATO | C28: CASR640104TEA | D28: CASR640104MGTBNS05 | E28: ROSA MARIA CABRERA SANCHEZ | F28: 1 | G28: 0 | H28: 0 | I28: 0 | J28: 0 | K28: 0 | L28: 0 | M28: 7 | N28: 35 | O28: 0 | P28: 0 | Q28: 0 | R28: 0 | S28: 0 | T28: 0 | U28: 0 | V28: 1 | W28: 35 | X28: 0 | Y28: 44677
B29: GUANAJUATO | C29: GALA740123JB8 | D29: GALA740123MGTLPL08 | E29: ALMA ROSA GALINDO LOPEZ | F29: 1 | G29: 0 | H29: 0 | I29: 0 | J29: 0 | K29: 0 | L29: 0 | M29: 7 | N29: 35 | O29: 0 | P29: 0 | Q29: 0 | R29: 0 | S29: 0 | T29: 0 | U29: 0 | V29: 1 | W29: 35 | X29: 0 | Y29: 39789
B30: GUANAJUATO | C30: COBA780319BUA | D30: COBA780319HGTRTN00 | E30: JOSE ANTONIO CORDOBA BAUTISTA | F30: 1 | G30: 0 | H30: 0 | I30: 0 | J30: 0 | K30: 0 | L30: 0 | M30: 7 | N30: 35 | O30: 0 | P30: 0 | Q30: 0 | R30: 0 | S30: 0 | T30: 0 | U30: 0 | V30: 1 | W30: 35 | X30: 0 | Y30: 40362
B31: GUANAJUATO | C31: GOGE831013479 | D31: GOGE831013MGTNRL03 | E31: ELIA JUDITH GONZALEZ GUERRA | F31: 1 | G31: 0 | H31: 0 | I31: 0 | J31: 0 | K31: 0 | L31: 0 | M31: 7 | N31: 35 | O31: 0 | P31: 0 | Q31: 0 | R31: 0 | S31: 0 | T31: 0 | U31: 0 | V31: 1 | W31: 35 | X31: 0 | Y31: 37879
B32: GUANAJUATO | C32: PAGG860302DX9 | D32: PAGG860302MDFDRB08 | E32: GABRIELA PADILLA GUERRERO | F32: 1 | G32: 0 | H32: 0 | I32: 0 | J32: 0 | K32: 0 | L32: 0 | M32: 7 | N32: 35 | O32: 0 | P32: 0 | Q32: 0 | R32: 0 | S32: 0 | T32: 0 | U32: 0 | V32: 1 | W32: 35 | X32: 0 | Y32: 37497
B33: GUANAJUATO | C33: SAAP650303N74 | D33: SAAP650303MGTNLT02 | E33: PATRICIA SANCHEZ ALVARADO | F33: 1 | G33: 0 | H33: 0 | I33: 0 | J33: 0 | K33: 0 | L33: 0 | M33: 7 | N33: 35 | O33: 0 | P33: 0 | Q33: 0 | R33: 0 | S33: 0 | T33: 0 | U33: 0 | V33: 1 | W33: 35 | X33: 0 | Y33: 45193
B34: GUANAJUATO | C34: CAOD910826S90 | D34: CAOD910826MSPNRL03 | E34: DULCE VIRIDIANA CANO ORTA | F34: 1 | G34: 0 | H34: 0 | I34: 0 | J34: 0 | K34: 0 | L34: 0 | M34: 7 | N34: 35 | O34: 0 | P34: 0 | Q34: 0 | R34: 0 | S34: 0 | T34: 0 | U34: 0 | V34: 1 | W34: 35 | X34: 0 | Y34: 37456
B35: GUANAJUATO | C35: GOTJ781129KP5 | D35: GOTJ781129MGTMPC08 | E35: JACQUELINE GOMEZ TAPIA | F35: 1 | G35: 0 | H35: 0 | I35: 0 | J35: 0 | K35: 0 | L35: 0 | M35: 7 | N35: 35 | O35: 0 | P35: 0 | Q35: 0 | R35: 0 | S35: 0 | T35: 0 | U35: 0 | V35: 1 | W35: 35 | X35: 0 | Y35: 44333
B36: GUANAJUATO | C36: SACA4609287F8 | D36: SACA460928MGTNRL03 | E36: MA. ALEJANDRINA CARMEN SANCHEZ CARRASCO | F36: 1 | G36: 0 | H36: 0 | I36: 0 | J36: 0 | K36: 0 | L36: 0 | M36: 7 | N36: 35 | O36: 0 | P36: 0 | Q36: 0 | R36: 0 | S36: 0 | T36: 0 | U36: 0 | V36: 1 | W36: 35 | X36: 0 | Y36: 48042
B37: GUANAJUATO | C37: CUPS720728BN7 | D37: CUPS720728MGTVSL06 | E37: SILVIA CUEVAS PESCADOR | F37: 1 | G37: 0 | H37: 0 | I37: 0 | J37: 0 | K37: 0 | L37: 0 | M37: 7 | N37: 35 | O37: 0 | P37: 0 | Q37: 0 | R37: 0 | S37: 0 | T37: 0 | U37: 0 | V37: 1 | W37: 35 | X37: 0 | Y37: 43888
B38: GUANAJUATO | C38: ZAGJ830623IG5 | D38: ZAGJ830623MGTVLN06 | E38: JUANA ZAVALA GALLEGOS | F38: 1 | G38: 0 | H38: 0 | I38: 0 | J38: 0 | K38: 0 | L38: 0 | M38: 7 | N38: 35 | O38: 0 | P38: 0 | Q38: 0 | R38: 0 | S38: 0 | T38: 0 | U38: 0 | V38: 1 | W38: 35 | X38: 0 | Y38: 40813
B39: GUANAJUATO | C39: SEER810904RN6 | D39: SEER810904HGTRSF07 | E39: RAFAEL SERRATO ESPINOSA | F39: 1 | G39: 0 | H39: 0 | I39: 0 | J39: 0 | K39: 0 | L39: 0 | M39: 7 | N39: 35 | O39: 0 | P39: 0 | Q39: 0 | R39: 0 | S39: 0 | T39: 0 | U39: 0 | V39: 1 | W39: 35 | X39: 0 | Y39: 43843
B40: GUANAJUATO | C40: UORV800303CD1 | D40: UORV800303MGTLNR08 | E40: VERONICA ULLOA RANGEL | F40: 1 | G40: 0 | H40: 0 | I40: 0 | J40: 0 | K40: 0 | L40: 0 | M40: 7 | N40: 35 | O40: 0 | P40: 0 | Q40: 0 | R40: 0 | S40: 0 | T40: 0 | U40: 0 | V40: 1 | W40: 35 | X40: 0 | Y40: 41955
B41: GUANAJUATO | C41: RIRJ650926ED3 | D41: RIRJ650926HGTCMX07 | E41: J.JESUS RICO RAMIREZ | F41: 1 | G41: 0 | H41: 0 | I41: 0 | J41: 0 | K41: 0 | L41: 0 | M41: 7 | N41: 35 | O41: 0 | P41: 0 | Q41: 0 | R41: 0 | S41: 0 | T41: 0 | U41: 0 | V41: 1 | W41: 35 | X41: 0 | Y41: 45535
B42: GUANAJUATO | C42: GARR860218GD7 | D42: GARR860218HGTRJL03 | E42: JOSE RAUL GRANADOS ROJAS | F42: 1 | G42: 0 | H42: 0 | I42: 0 | J42: 0 | K42: 0 | L42: 0 | M42: 7 | N42: 35 | O42: 0 | P42: 0 | Q42: 0 | R42: 0 | S42: 0 | T42: 0 | U42: 0 | V42: 1 | W42: 35 | X42: 0 | Y42: 37647
B43: GUANAJUATO | C43: GOPS8011178I3 | D43: GOPS801117MGTMRN09 | E43: MARIA SANDRA GOMEZ PEREZ | F43: 1 | G43: 0 | H43: 0 | I43: 0 | J43: 0 | K43: 0 | L43: 0 | M43: 7 | N43: 35 | O43: 0 | P43: 0 | Q43: 0 | R43: 0 | S43: 0 | T43: 0 | U43: 0 | V43: 1 | W43: 35 | X43: 0 | Y43: 38186
B44: GUANAJUATO | C44: LOCJ8109121HA | D44: LOCJ810912HDFPRN00 | E44: JUAN CARLOS LOPEZ CRUZ | F44: 1 | G44: 0 | H44: 0 | I44: 0 | J44: 0 | K44: 0 | L44: 0 | M44: 7 | N44: 35 | O44: 0 | P44: 0 | Q44: 0 | R44: 0 | S44: 0 | T44: 0 | U44: 0 | V44: 1 | W44: 35 | X44: 0 | Y44: 45907
B45: GUANAJUATO | C45: ROPE881009G46 | D45: ROPE881009MGTDRV05 | E45: EVELIN GUADALUPE RODRIGUEZ PEREZ | F45: 1 | G45: 0 | H45: 0 | I45: 0 | J45: 0 | K45: 0 | L45: 0 | M45: 7 | N45: 35 | O45: 0 | P45: 0 | Q45: 0 | R45: 0 | S45: 0 | T45: 0 | U45: 0 | V45: 1 | W45: 35 | X45: 0 | Y45: 37647
B46: GUANAJUATO | C46: MAAC750325Q52 | D46: MAAC750325MGTLLR02 | E46: MA. DEL CARMEN MALDONADO ALMANZA | F46: 1 | G46: 0 | H46: 0 | I46: 0 | J46: 0 | K46: 0 | L46: 0 | M46: 7 | N46: 35 | O46: 0 | P46: 0 | Q46: 0 | R46: 0 | S46: 0 | T46: 0 | U46: 0 | V46: 1 | W46: 35 | X46: 0 | Y46: 42112
B47: GUANAJUATO | C47: GURV740105E98 | D47: GURV740105MGTRDR07 | E47: VERONICA GUERRERO RODRIGUEZ | F47: 1 | G47: 0 | H47: 0 | I47: 0 | J47: 0 | K47: 0 | L47: 0 | M47: 7 | N47: 35 | O47: 0 | P47: 0 | Q47: 0 | R47: 0 | S47: 0 | T47: 0 | U47: 0 | V47: 1 | W47: 35 | X47: 0 | Y47: 45731
B48: GUANAJUATO | C48: CALM860815G43 | D48: CALM860815MJCHNY02 | E48: MAYRA CAROLINA CHAVEZ DE LEﾓN | F48: 1 | G48: 0 | H48: 0 | I48: 0 | J48: 0 | K48: 0 | L48: 0 | M48: 7 | N48: 35 | O48: 0 | P48: 0 | Q48: 0 | R48: 0 | S48: 0 | T48: 0 | U48: 0 | V48: 1 | W48: 35 | X48: 0 | Y48: 39216
B49: GUANAJUATO | C49: MEGG6409203P0 | D49: MEGG640920HGTDLR04 | E49: GERARDO MEDINA GALVAN | F49: 1 | G49: 0 | H49: 0 | I49: 0 | J49: 0 | K49: 0 | L49: 0 | M49: 7 | N49: 35 | O49: 0 | P49: 0 | Q49: 0 | R49: 0 | S49: 0 | T49: 0 | U49: 0 | V49: 1 | W49: 35 | X49: 0 | Y49: 44503
B50: GUANAJUATO | C50: GOMM610218KG4 | D50: GOMM610218MGTNRR05 | E50: MARTA PATRICIA GONZALEZ MORENO | F50: 1 | G50: 0 | H50: 0 | I50: 0 | J50: 0 | K50: 0 | L50: 0 | M50: 7 | N50: 35 | O50: 0 | P50: 0 | Q50: 0 | R50: 0 | S50: 0 | T50: 0 | U50: 0 | V50: 1 | W50: 35 | X50: 0 | Y50: 45370
B51: GUANAJUATO | C51: HECG7209202C4 | D51: HECG720920MGTRRR07 | E51: GRISELDA HERRERA CERVANTES | F51: 1 | G51: 0 | H51: 0 | I51: 0 | J51: 0 | K51: 0 | L51: 0 | M51: 7 | N51: 35 | O51: 0 | P51: 0 | Q51: 0 | R51: 0 | S51: 0 | T51: 0 | U51: 0 | V51: 1 | W51: 35 | X51: 0 | Y51: 46848
B52: GUANAJUATO | C52: EASG700512IU9 | D52: EASG700512MCMSNR00 | E52: GRACIELA ESCAMILLA SANCHEZ | F52: 1 | G52: 0 | H52: 0 | I52: 0 | J52: 0 | K52: 0 | L52: 0 | M52: 7 | N52: 35 | O52: 0 | P52: 0 | Q52: 0 | R52: 0 | S52: 0 | T52: 0 | U52: 0 | V52: 1 | W52: 35 | X52: 0 | Y52: 47592
B53: GUANAJUATO | C53: TAML5306213J5 | D53: TAML530621HGTPRS02 | E53: JOSE LUIS TAPIA MARTINEZ | F53: 1 | G53: 0 | H53: 0 | I53: 0 | J53: 0 | K53: 0 | L53: 0 | M53: 7 | N53: 35 | O53: 0 | P53: 0 | Q53: 0 | R53: 0 | S53: 0 | T53: 0 | U53: 0 | V53: 1 | W53: 35 | X53: 0 | Y53: 44416
B54: GUANAJUATO | C54: PACP681127IL7 | D54: PACP681127MGTRHT00 | E54: PATRICIA PRADO CHAVEZ | F54: 1 | G54: 0 | H54: 0 | I54: 0 | J54: 0 | K54: 0 | L54: 0 | M54: 7 | N54: 35 | O54: 0 | P54: 0 | Q54: 0 | R54: 0 | S54: 0 | T54: 0 | U54: 0 | V54: 1 | W54: 35 | X54: 0 | Y54: 48557
B55: GUANAJUATO | C55: CAGR690302HRA | D55: CAGR690302MGTMMS03 | E55: MA. DEL ROSARIO CAMPOS GOMEZ | F55: 1 | G55: 0 | H55: 0 | I55: 0 | J55: 0 | K55: 0 | L55: 0 | M55: 7 | N55: 35 | O55: 0 | P55: 0 | Q55: 0 | R55: 0 | S55: 0 | T55: 0 | U55: 0 | V55: 1 | W55: 35 | X55: 0 | Y55: 47019
B56: GUANAJUATO | C56: GOND6504247RA | D56: GOND650424MGTNXL03 | E56: DALIA SONIA GONZALEZ NIﾑO | F56: 1 | G56: 0 | H56: 0 | I56: 0 | J56: 0 | K56: 0 | L56: 0 | M56: 7 | N56: 35 | O56: 0 | P56: 0 | Q56: 0 | R56: 0 | S56: 0 | T56: 0 | U56: 0 | V56: 1 | W56: 35 | X56: 0 | Y56: 44677
B57: GUANAJUATO | C57: GUOA740914U2A | D57: GUOA740914MMNDRN06 | E57: MA. DE LOS ANGELES GUDIﾑO ORDAZ | F57: 1 | G57: 0 | H57: 0 | I57: 0 | J57: 0 | K57: 0 | L57: 0 | M57: 7 | N57: 35 | O57: 0 | P57: 0 | Q57: 0 | R57: 0 | S57: 0 | T57: 0 | U57: 0 | V57: 1 | W57: 35 | X57: 0 | Y57: 44855
B58: GUANAJUATO | C58: OAGM681221I42 | D58: OAGM681221MGTRRR09 | E58: MARICRUZ ORDAZ GRANADOS | F58: 1 | G58: 0 | H58: 0 | I58: 0 | J58: 0 | K58: 0 | L58: 0 | M58: 7 | N58: 35 | O58: 0 | P58: 0 | Q58: 0 | R58: 0 | S58: 0 | T58: 0 | U58: 0 | V58: 1 | W58: 35 | X58: 0 | Y58: 34580
B59: GUANAJUATO | C59: MAAL680513MP3 | D59: MAAL680513MMNRNZ01 | E59: MARIA DE LA LUZ MARTINEZ ANDRADE | F59: 1 | G59: 0 | H59: 0 | I59: 0 | J59: 0 | K59: 0 | L59: 0 | M59: 7 | N59: 35 | O59: 0 | P59: 0 | Q59: 0 | R59: 0 | S59: 0 | T59: 0 | U59: 0 | V59: 1 | W59: 35 | X59: 0 | Y59: 48702
B60: GUANAJUATO | C60: LERF661028KV3 | D60: LERF661028HGTNZR04 | E60: FERNANDO LEON RUIZ | F60: 1 | G60: 0 | H60: 0 | I60: 0 | J60: 0 | K60: 0 | L60: 0 | M60: 7 | N60: 35 | O60: 0 | P60: 0 | Q60: 0 | R60: 0 | S60: 0 | T60: 0 | U60: 0 | V60: 1 | W60: 35 | X60: 0 | Y60: 43756
B61: GUANAJUATO | C61: CACP630616HG8 | D61: CACP630616MGTLHT16 | E61: MA. PATRICIA DOLORES CALDERON CHAVEZ | F61: 1 | G61: 0 | H61: 0 | I61: 0 | J61: 0 | K61: 0 | L61: 0 | M61: 7 | N61: 35 | O61: 0 | P61: 0 | Q61: 0 | R61: 0 | S61: 0 | T61: 0 | U61: 0 | V61: 1 | W61: 35 | X61: 0 | Y61: 46135
B62: GUANAJUATO | C62: RAJC810331LAA | D62: RAJC810331MGTMRL02 | E62: CLAUDIA JACQUELINE RAMIREZ JARAMILLO | F62: 1 | G62: 0 | H62: 0 | I62: 0 | J62: 0 | K62: 0 | L62: 0 | M62: 7 | N62: 35 | O62: 0 | P62: 0 | Q62: 0 | R62: 0 | S62: 0 | T62: 0 | U62: 0 | V62: 1 | W62: 35 | X62: 0 | Y62: 47003
B63: GUANAJUATO | C63: CAVA651011TB7 | D63: CAVA651011HGTLRL04 | E63: JOSE ALFREDO CALDERON VARELA | F63: 1 | G63: 0 | H63: 0 | I63: 0 | J63: 0 | K63: 0 | L63: 0 | M63: 7 | N63: 35 | O63: 0 | P63: 0 | Q63: 0 | R63: 0 | S63: 0 | T63: 0 | U63: 0 | V63: 1 | W63: 35 | X63: 0 | Y63: 49140
B64: GUANAJUATO | C64: FONO7308067J5 | D64: FOXN730806MGTLXR04 | E64: NORMA LILIA FLORES | F64: 1 | G64: 0 | H64: 0 | I64: 0 | J64: 0 | K64: 0 | L64: 0 | M64: 7 | N64: 35 | O64: 0 | P64: 0 | Q64: 0 | R64: 0 | S64: 0 | T64: 0 | U64: 0 | V64: 1 | W64: 35 | X64: 0 | Y64: 46707
B65: GUANAJUATO | C65: HECS730303TG6 | D65: HECS730303MGTRNS05 | E65: SUSANA TERESA HERNANDEZ CANTERO | F65: 1 | G65: 0 | H65: 0 | I65: 0 | J65: 0 | K65: 0 | L65: 0 | M65: 7 | N65: 35 | O65: 0 | P65: 0 | Q65: 0 | R65: 0 | S65: 0 | T65: 0 | U65: 0 | V65: 1 | W65: 35 | X65: 0 | Y65: 47592
B66: GUANAJUATO | C66: HECA7404077F6 | D66: HECA740407MGTRND08 | E66: ADRIANA HERNANDEZ CANTERO | F66: 1 | G66: 0 | H66: 0 | I66: 0 | J66: 0 | K66: 0 | L66: 0 | M66: 7 | N66: 35 | O66: 0 | P66: 0 | Q66: 0 | R66: 0 | S66: 0 | T66: 0 | U66: 0 | V66: 1 | W66: 35 | X66: 0 | Y66: 47060
B67: GUANAJUATO | C67: COOS660919CRA | D67: COOS660919MGTNLS08 | E67: SUSANA ISABEL CONTRERAS OLMOS | F67: 1 | G67: 0 | H67: 0 | I67: 0 | J67: 0 | K67: 0 | L67: 0 | M67: 7 | N67: 35 | O67: 0 | P67: 0 | Q67: 0 | R67: 0 | S67: 0 | T67: 0 | U67: 0 | V67: 1 | W67: 35 | X67: 0 | Y67: 44097
B68: GUANAJUATO | C68: CAGY820417182 | D68: CAGY820417MGTRTJ03 | E68: YAJAHIRA CARDENAS GUTIERREZ | F68: 1 | G68: 0 | H68: 0 | I68: 0 | J68: 0 | K68: 0 | L68: 0 | M68: 7 | N68: 35 | O68: 0 | P68: 0 | Q68: 0 | R68: 0 | S68: 0 | T68: 0 | U68: 0 | V68: 1 | W68: 35 | X68: 0 | Y68: 37647
B69: GUANAJUATO | C69: BABM6804276E6 | D69: BABM680427MMCXLR01 | E69: MARGARITA BAﾑOS BAILON | F69: 1 | G69: 0 | H69: 0 | I69: 0 | J69: 0 | K69: 0 | L69: 0 | M69: 7 | N69: 35 | O69: 0 | P69: 0 | Q69: 0 | R69: 0 | S69: 0 | T69: 0 | U69: 0 | V69: 1 | W69: 35 | X69: 0 | Y69: 45761
B70: GUANAJUATO | C70: CARA730215VE3 | D70: CARA730215MGTHJL00 | E70: ALMA DELIA CHAVEZ ROJAS | F70: 1 | G70: 0 | H70: 0 | I70: 0 | J70: 0 | K70: 0 | L70: 0 | M70: 7 | N70: 35 | O70: 0 | P70: 0 | Q70: 0 | R70: 0 | S70: 0 | T70: 0 | U70: 0 | V70: 1 | W70: 35 | X70: 0 | Y70: 46452
B71: GUANAJUATO | C71: HEDM871214861 | D71: HEDM871214HGTRLN04 | E71: JOSE MANUEL HERNANDEZ DELGADO | F71: 1 | G71: 0 | H71: 0 | I71: 0 | J71: 0 | K71: 0 | L71: 0 | M71: 7 | N71: 35 | O71: 0 | P71: 0 | Q71: 0 | R71: 0 | S71: 0 | T71: 0 | U71: 0 | V71: 1 | W71: 35 | X71: 0 | Y71: 40362
B72: GUANAJUATO | C72: VARL750211VB2 | D72: VARL750211MGTRMR07 | E72: MARIA LOURDES VARGAS RAMIREZ | F72: 1 | G72: 0 | H72: 0 | I72: 0 | J72: 0 | K72: 0 | L72: 0 | M72: 7 | N72: 35 | O72: 0 | P72: 0 | Q72: 0 | R72: 0 | S72: 0 | T72: 0 | U72: 0 | V72: 1 | W72: 35 | X72: 0 | Y72: 46625
B73: GUANAJUATO | C73: PECC830605V49 | D73: PECC830605MNEXSN04 | E73: CINTHYA PEﾑALOZA CISNEROS | F73: 1 | G73: 0 | H73: 0 | I73: 0 | J73: 0 | K73: 0 | L73: 0 | M73: 7 | N73: 35 | O73: 0 | P73: 0 | Q73: 0 | R73: 0 | S73: 0 | T73: 0 | U73: 0 | V73: 1 | W73: 35 | X73: 0 | Y73: 42528
B74: GUANAJUATO | C74: CAOE780824GY2 | D74: CAOE780824MGTSRM07 | E74: EMILIA CASTELLANO ORTEGA | F74: 1 | G74: 0 | H74: 0 | I74: 0 | J74: 0 | K74: 0 | L74: 0 | M74: 7 | N74: 35 | O74: 0 | P74: 0 | Q74: 0 | R74: 0 | S74: 0 | T74: 0 | U74: 0 | V74: 1 | W74: 35 | X74: 0 | Y74: 46192
B75: GUANAJUATO | C75: FOQL7110275I8 | D75: FOQL711027MGTLVN02 | E75: LEONOR FLORES QUEVEDO | F75: 1 | G75: 0 | H75: 0 | I75: 0 | J75: 0 | K75: 0 | L75: 0 | M75: 7 | N75: 35 | O75: 0 | P75: 0 | Q75: 0 | R75: 0 | S75: 0 | T75: 0 | U75: 0 | V75: 1 | W75: 35 | X75: 0 | Y75: 39663
B76: GUANAJUATO | C76: MIYA600511Q72 | D76: MIYA600511MGTRRN01 | E76: MA. ANTONIA MIRANDA YERENA | F76: 1 | G76: 0 | H76: 0 | I76: 0 | J76: 0 | K76: 0 | L76: 0 | M76: 7 | N76: 35 | O76: 0 | P76: 0 | Q76: 0 | R76: 0 | S76: 0 | T76: 0 | U76: 0 | V76: 1 | W76: 35 | X76: 0 | Y76: 44024
B77: GUANAJUATO | C77: HERA790725FQ8 | D77: HERA790725MGTRDL08 | E77: ALEJANDRA HERNANDEZ RODRIGUEZ | F77: 1 | G77: 0 | H77: 0 | I77: 0 | J77: 0 | K77: 0 | L77: 0 | M77: 7 | N77: 35 | O77: 0 | P77: 0 | Q77: 0 | R77: 0 | S77: 0 | T77: 0 | U77: 0 | V77: 1 | W77: 35 | X77: 0 | Y77: 44043
B78: GUANAJUATO | C78: AURM640517UH3 | D78: AURM640517HGTGCR01 | E78: MARTIN AGUIRRE RICO | F78: 1 | G78: 0 | H78: 0 | I78: 0 | J78: 0 | K78: 0 | L78: 0 | M78: 7 | N78: 35 | O78: 0 | P78: 0 | Q78: 0 | R78: 0 | S78: 0 | T78: 0 | U78: 0 | V78: 1 | W78: 35 | X78: 0 | Y78: 48427
B79: GUANAJUATO | C79: NAHL730801RV8 | D79: NAHL730801MGTVRR01 | E79: MARIA DE LOURDES NAVARRO HERNANDEZ | F79: 1 | G79: 0 | H79: 0 | I79: 0 | J79: 0 | K79: 0 | L79: 0 | M79: 7 | N79: 35 | O79: 0 | P79: 0 | Q79: 0 | R79: 0 | S79: 0 | T79: 0 | U79: 0 | V79: 1 | W79: 35 | X79: 0 | Y79: 45907
B80: GUANAJUATO | C80: PEAR630107AT2 | D80: PEAR630107HMCXRY08 | E80: JOSE REY PEﾑA ARRIAGA | F80: 1 | G80: 0 | H80: 0 | I80: 0 | J80: 0 | K80: 0 | L80: 0 | M80: 7 | N80: 35 | O80: 0 | P80: 0 | Q80: 0 | R80: 0 | S80: 0 | T80: 0 | U80: 0 | V80: 1 | W80: 35 | X80: 0 | Y80: 45170
B81: GUANAJUATO | C81: AUGA6812277W5 | D81: AUGA681227MGTGRN03 | E81: ANA MARIA AGUILAR GARCIA | F81: 1 | G81: 0 | H81: 0 | I81: 0 | J81: 0 | K81: 0 | L81: 0 | M81: 7 | N81: 35 | O81: 0 | P81: 0 | Q81: 0 | R81: 0 | S81: 0 | T81: 0 | U81: 0 | V81: 1 | W81: 35 | X81: 0 | Y81: 41444
B82: GUANAJUATO | C82: HEAE670513TV7 | D82: HEAE670513HGTRGD08 | E82: EDUARDO HERNANDEZ AGUADO | F82: 1 | G82: 0 | H82: 0 | I82: 0 | J82: 0 | K82: 0 | L82: 0 | M82: 7 | N82: 35 | O82: 0 | P82: 0 | Q82: 0 | R82: 0 | S82: 0 | T82: 0 | U82: 0 | V82: 1 | W82: 35 | X82: 0 | Y82: 47425
B83: GUANAJUATO | C83: GOMI721001DE2 | D83: GOMI721001MDFNJN03 | E83: INES ROSARIO GONZALEZ MUJICA | F83: 1 | G83: 0 | H83: 0 | I83: 0 | J83: 0 | K83: 0 | L83: 0 | M83: 7 | N83: 35 | O83: 0 | P83: 0 | Q83: 0 | R83: 0 | S83: 0 | T83: 0 | U83: 0 | V83: 1 | W83: 35 | X83: 0 | Y83: 45619
B84: GUANAJUATO | C84: MISR800307LH4 | D84: MISR800307MGTRLS07 | E84: ROSAURA MIRANDA SALAZAR | F84: 1 | G84: 0 | H84: 0 | I84: 0 | J84: 0 | K84: 0 | L84: 0 | M84: 7 | N84: 35 | O84: 0 | P84: 0 | Q84: 0 | R84: 0 | S84: 0 | T84: 0 | U84: 0 | V84: 1 | W84: 35 | X84: 0 | Y84: 49602
B85: GUANAJUATO | C85: PACL700401SI9 | D85: PACL700401MGTRHR04 | E85: LAURA PRADO CHAVEZ | F85: 1 | G85: 0 | H85: 0 | I85: 0 | J85: 0 | K85: 0 | L85: 0 | M85: 7 | N85: 35 | O85: 0 | P85: 0 | Q85: 0 | R85: 0 | S85: 0 | T85: 0 | U85: 0 | V85: 1 | W85: 35 | X85: 0 | Y85: 49620
B86: GUANAJUATO | C86: MAGE751103B16 | D86: MAGE751103MGTYTR08 | E86: ERIKA GUADALUPE MAYCOTTE GUTIERREZ | F86: 1 | G86: 0 | H86: 0 | I86: 0 | J86: 0 | K86: 0 | L86: 0 | M86: 7 | N86: 35 | O86: 0 | P86: 0 | Q86: 0 | R86: 0 | S86: 0 | T86: 0 | U86: 0 | V86: 1 | W86: 35 | X86: 0 | Y86: 48427
B87: GUANAJUATO | C87: SOSM750119S26 | D87: SOSM750119MGTRTR02 | E87: MARTHA SORIA SOTO | F87: 1 | G87: 0 | H87: 0 | I87: 0 | J87: 0 | K87: 0 | L87: 0 | M87: 7 | N87: 35 | O87: 0 | P87: 0 | Q87: 0 | R87: 0 | S87: 0 | T87: 0 | U87: 0 | V87: 1 | W87: 35 | X87: 0 | Y87: 45538
B88: GUANAJUATO | C88: VIRM731126CL3 | D88: VIRM731126MGTLMN06 | E88: MARIA MONICA VILLANUEVA RAMIREZ | F88: 1 | G88: 0 | H88: 0 | I88: 0 | J88: 0 | K88: 0 | L88: 0 | M88: 7 | N88: 35 | O88: 0 | P88: 0 | Q88: 0 | R88: 0 | S88: 0 | T88: 0 | U88: 0 | V88: 1 | W88: 35 | X88: 0 | Y88: 47022
B89: GUANAJUATO | C89: FEET711003EB8 | D89: FEET711003MGTLSR05 | E89: TERESA FELIX ESTRELLA | F89: 1 | G89: 0 | H89: 0 | I89: 0 | J89: 0 | K89: 0 | L89: 0 | M89: 7 | N89: 35 | O89: 0 | P89: 0 | Q89: 0 | R89: 0 | S89: 0 | T89: 0 | U89: 0 | V89: 1 | W89: 35 | X89: 0 | Y89: 49838
B90: GUANAJUATO | C90: LOSS570105T33 | D90: LOSS570105MTSZLS00 | E90: SUSANA ENRIQUETA LOZANO SALCEDO | F90: 1 | G90: 0 | H90: 0 | I90: 0 | J90: 0 | K90: 0 | L90: 0 | M90: 7 | N90: 35 | O90: 0 | P90: 0 | Q90: 0 | R90: 0 | S90: 0 | T90: 0 | U90: 0 | V90: 1 | W90: 35 | X90: 0 | Y90: 44349
B91: GUANAJUATO | C91: RAOM680518SX1 | D91: RAOM680518MMNNCR06 | E91: MARIBEL RANGEL OCHOA | F91: 1 | G91: 0 | H91: 0 | I91: 0 | J91: 0 | K91: 0 | L91: 0 | M91: 7 | N91: 35 | O91: 0 | P91: 0 | Q91: 0 | R91: 0 | S91: 0 | T91: 0 | U91: 0 | V91: 1 | W91: 35 | X91: 0 | Y91: 49072
B92: GUANAJUATO | C92: HECR621219RI5 | D92: HECR621219MGTRRS02 | E92: MARIA DEL ROSARIO HERNANDEZ CARDENAS | F92: 1 | G92: 0 | H92: 0 | I92: 0 | J92: 0 | K92: 0 | L92: 0 | M92: 7 | N92: 35 | O92: 0 | P92: 0 | Q92: 0 | R92: 0 | S92: 0 | T92: 0 | U92: 0 | V92: 1 | W92: 35 | X92: 0 | Y92: 51747
B93: GUANAJUATO | C93: HECE750420552 | D93: HECE750420MGTRRM01 | E93: MA. EMILIA HERNANDEZ CARDENAS | F93: 1 | G93: 0 | H93: 0 | I93: 0 | J93: 0 | K93: 0 | L93: 0 | M93: 7 | N93: 35 | O93: 0 | P93: 0 | Q93: 0 | R93: 0 | S93: 0 | T93: 0 | U93: 0 | V93: 1 | W93: 35 | X93: 0 | Y93: 51293
B94: GUANAJUATO | C94: BINL4906195XA | D94: BINL490619HDFRGS05 | E94: JOSE LUIS BRIBIESCA NEGRETE | F94: 1 | G94: 0 | H94: 0 | I94: 0 | J94: 0 | K94: 0 | L94: 0 | M94: 7 | N94: 35 | O94: 0 | P94: 0 | Q94: 0 | R94: 0 | S94: 0 | T94: 0 | U94: 0 | V94: 1 | W94: 35 | X94: 0 | Y94: 50765
B95: GUANAJUATO | C95: CAJU6804082V6 | D95: CAXJ680408MGTMXN08 | E95: JUANA MARIA CAMACHO | F95: 1 | G95: 0 | H95: 0 | I95: 0 | J95: 0 | K95: 0 | L95: 0 | M95: 7 | N95: 35 | O95: 0 | P95: 0 | Q95: 0 | R95: 0 | S95: 0 | T95: 0 | U95: 0 | V95: 1 | W95: 35 | X95: 0 | Y95: 52409
B96: GUANAJUATO | C96: COOD541119637 | D96: COOD541119MGTNRL00 | E96: DULCE MARIA ELIZABETH CONTRERAS ORDUﾑA | F96: 1 | G96: 0 | H96: 0 | I96: 0 | J96: 0 | K96: 0 | L96: 0 | M96: 7 | N96: 35 | O96: 0 | P96: 0 | Q96: 0 | R96: 0 | S96: 0 | T96: 0 | U96: 0 | V96: 1 | W96: 35 | X96: 0 | Y96: 50368
B97: GUANAJUATO | C97: LOVE3907178K6 | D97: LOVE390717MGTPZS07 | E97: MA. ESTELA LOPEZ VAZQUEZ | F97: 1 | G97: 0 | H97: 0 | I97: 0 | J97: 0 | K97: 0 | L97: 0 | M97: 7 | N97: 35 | O97: 0 | P97: 0 | Q97: 0 | R97: 0 | S97: 0 | T97: 0 | U97: 0 | V97: 1 | W97: 35 | X97: 0 | Y97: 51137
B98: GUANAJUATO | C98: TEMM661201D47 | D98: TEMG661201MGTRRD06 | E98: MA. GUADALUPE TREJO MARTINEZ | F98: 1 | G98: 0 | H98: 0 | I98: 0 | J98: 0 | K98: 0 | L98: 0 | M98: 7 | N98: 35 | O98: 0 | P98: 0 | Q98: 0 | R98: 0 | S98: 0 | T98: 0 | U98: 0 | V98: 1 | W98: 35 | X98: 0 | Y98: 50176
B99: GUANAJUATO | C99: MAOL731125E39 | D99: MAOL731125MGTLRC03 | E99: LUCINA MALDONADO ORDUﾑO | F99: 1 | G99: 0 | H99: 0 | I99: 0 | J99: 0 | K99: 0 | L99: 0 | M99: 7 | N99: 35 | O99: 0 | P99: 0 | Q99: 0 | R99: 0 | S99: 0 | T99: 0 | U99: 0 | V99: 1 | W99: 35 | X99: 0 | Y99: 51210
B100: GUANAJUATO | C100: VAPR690730J94 | D100: VAPR690730MGTZNS03 | E100: ROSA LAURA VAZQUEZ PONCE | F100: 1 | G100: 0 | H100: 0 | I100: 0 | J100: 0 | K100: 0 | L100: 0 | M100: 7 | N100: 35 | O100: 0 | P100: 0 | Q100: 0 | R100: 0 | S100: 0 | T100: 0 | U100: 0 | V100: 1 | W100: 35 | X100: 0 | Y100: 52769
B101: GUANAJUATO | C101: VIMG771213D20 | D101: VIMG771213MGTLNB08 | E101: GABRIELA VILLANUEVA MENDOZA | F101: 1 | G101: 0 | H101: 0 | I101: 0 | J101: 0 | K101: 0 | L101: 0 | M101: 7 | N101: 35 | O101: 0 | P101: 0 | Q101: 0 | R101: 0 | S101: 0 | T101: 0 | U101: 0 | V101: 1 | W101: 35 | X101: 0 | Y101: 47262
B102: GUANAJUATO | C102: BARA6501175H5 | D102: BARA650117MGTRDN02 | E102: ANTONIA BARRERA RODRIGUEZ | F102: 1 | G102: 0 | H102: 0 | I102: 0 | J102: 0 | K102: 0 | L102: 0 | M102: 7 | N102: 35 | O102: 0 | P102: 0 | Q102: 0 | R102: 0 | S102: 0 | T102: 0 | U102: 0 | V102: 1 | W102: 35 | X102: 0 | Y102: 53781
B103: GUANAJUATO | C103: AOMM651230U5A | D103: AOMM651230MGTBSY06 | E103: MA. MAYELA ABOYTES MOSQUEDA | F103: 1 | G103: 0 | H103: 0 | I103: 0 | J103: 0 | K103: 0 | L103: 0 | M103: 7 | N103: 35 | O103: 0 | P103: 0 | Q103: 0 | R103: 0 | S103: 0 | T103: 0 | U103: 0 | V103: 1 | W103: 35 | X103: 0 | Y103: 54711
B104: GUANAJUATO | C104: AILP690120TW9 | D104: AILP690120MSPRNT09 | E104: PATRICIA DE JESUS ARCIGA LEON | F104: 1 | G104: 0 | H104: 0 | I104: 0 | J104: 0 | K104: 0 | L104: 0 | M104: 7 | N104: 35 | O104: 0 | P104: 0 | Q104: 0 | R104: 0 | S104: 0 | T104: 0 | U104: 0 | V104: 1 | W104: 35 | X104: 0 | Y104: 48917
B105: GUANAJUATO | C105: HESF670102636 | D105: HESF670102HGTRLR07 | E105: FERMIN HERNANDEZ SILVA | F105: 1 | G105: 0 | H105: 0 | I105: 0 | J105: 0 | K105: 0 | L105: 0 | M105: 7 | N105: 35 | O105: 0 | P105: 0 | Q105: 0 | R105: 0 | S105: 0 | T105: 0 | U105: 0 | V105: 1 | W105: 35 | X105: 0 | Y105: 53153
B106: GUANAJUATO | C106: GUAA541207PD5 | D106: GUAA541207MGTTVL07 | E106: ALMA ROSA GUTIERREZ AVILES | F106: 1 | G106: 0 | H106: 0 | I106: 0 | J106: 0 | K106: 0 | L106: 0 | M106: 7 | N106: 35 | O106: 0 | P106: 0 | Q106: 0 | R106: 0 | S106: 0 | T106: 0 | U106: 0 | V106: 1 | W106: 35 | X106: 0 | Y106: 45229
B107: GUANAJUATO | C107: VAQE630516EZ8 | D107: VAQE630516MGTRVS07 | E107: ESTHELA VARGAS QUEVEDO | F107: 1 | G107: 0 | H107: 0 | I107: 0 | J107: 0 | K107: 0 | L107: 0 | M107: 7 | N107: 35 | O107: 0 | P107: 0 | Q107: 0 | R107: 0 | S107: 0 | T107: 0 | U107: 0 | V107: 1 | W107: 35 | X107: 0 | Y107: 51510
B108: GUANAJUATO | C108: COCB750608U65 | D108: COCB750608MGTRRL08 | E108: BLANCA RAQUEL CORONEL CARBAJAL | F108: 1 | G108: 0 | H108: 0 | I108: 0 | J108: 0 | K108: 0 | L108: 0 | M108: 7 | N108: 35 | O108: 0 | P108: 0 | Q108: 0 | R108: 0 | S108: 0 | T108: 0 | U108: 0 | V108: 1 | W108: 35 | X108: 0 | Y108: 53768
B109: GUANAJUATO | C109: VALF830903IU4 | D109: VALF830903HGTLNR07 | E109: FRANCISCO JAVIER VALDEZ LANDIN | F109: 1 | G109: 0 | H109: 0 | I109: 0 | J109: 0 | K109: 0 | L109: 0 | M109: 7 | N109: 35 | O109: 0 | P109: 0 | Q109: 0 | R109: 0 | S109: 0 | T109: 0 | U109: 0 | V109: 1 | W109: 35 | X109: 0 | Y109: 44267
B110: GUANAJUATO | C110: ROJJ671130GY1 | D110: ROJJ671130HGTDMS06 | E110: JOSE RODRIGUEZ JIMENEZ | F110: 1 | G110: 0 | H110: 0 | I110: 0 | J110: 0 | K110: 0 | L110: 0 | M110: 7 | N110: 35 | O110: 0 | P110: 0 | Q110: 0 | R110: 0 | S110: 0 | T110: 0 | U110: 0 | V110: 1 | W110: 35 | X110: 0 | Y110: 55265
B111: GUANAJUATO | C111: CATE6508044X6 | D111: CATE650804MGTRRS04 | E111: ESPERANZA CARRILLO TORRES | F111: 1 | G111: 0 | H111: 0 | I111: 0 | J111: 0 | K111: 0 | L111: 0 | M111: 7 | N111: 35 | O111: 0 | P111: 0 | Q111: 0 | R111: 0 | S111: 0 | T111: 0 | U111: 0 | V111: 1 | W111: 35 | X111: 0 | Y111: 55243
B112: GUANAJUATO | C112: HERL8008128A5 | D112: HERL800812MGTRSR15 | E112: LAURA ELENA HERRERA RIOS | F112: 1 | G112: 0 | H112: 0 | I112: 0 | J112: 0 | K112: 0 | L112: 0 | M112: 7 | N112: 35 | O112: 0 | P112: 0 | Q112: 0 | R112: 0 | S112: 0 | T112: 0 | U112: 0 | V112: 1 | W112: 35 | X112: 0 | Y112: 46453
B113: GUANAJUATO | C113: REPC540808QI9 | D113: REPC540808MGTNRN06 | E113: MARIA CONCEPCION RENTERIA PEREZ | F113: 1 | G113: 0 | H113: 0 | I113: 0 | J113: 0 | K113: 0 | L113: 0 | M113: 7 | N113: 35 | O113: 0 | P113: 0 | Q113: 0 | R113: 0 | S113: 0 | T113: 0 | U113: 0 | V113: 1 | W113: 35 | X113: 0 | Y113: 61295
B114: GUANAJUATO | C114: CARJ550620A19 | D114: CARJ550620HGTSDM09 | E114: JAIME CASTILLO RODRIGUEZ | F114: 1 | G114: 0 | H114: 0 | I114: 0 | J114: 0 | K114: 0 | L114: 0 | M114: 7 | N114: 35 | O114: 0 | P114: 0 | Q114: 0 | R114: 0 | S114: 0 | T114: 0 | U114: 0 | V114: 1 | W114: 35 | X114: 0 | Y114: 59667
B115: GUANAJUATO | C115: ROSR7704116C6 | D115: ROSR770411MGTDLS01 | E115: MARIA DEL ROSARIO RODRIGUEZ SALGADO | F115: 1 | G115: 0 | H115: 0 | I115: 0 | J115: 0 | K115: 0 | L115: 0 | M115: 7 | N115: 35 | O115: 0 | P115: 0 | Q115: 0 | R115: 0 | S115: 0 | T115: 0 | U115: 0 | V115: 1 | W115: 35 | X115: 0 | Y115: 54016
B116: GUANAJUATO | C116: GOGL670809V8A | D116: GOGL670809HGTNRS00 | E116: LUIS ALBERTO GONZALEZ GARCIA | F116: 1 | G116: 0 | H116: 0 | I116: 0 | J116: 0 | K116: 0 | L116: 0 | M116: 7 | N116: 35 | O116: 0 | P116: 0 | Q116: 0 | R116: 0 | S116: 0 | T116: 0 | U116: 0 | V116: 1 | W116: 35 | X116: 0 | Y116: 57890
B117: GUANAJUATO | C117: PEEM590530399 | D117: PEEM590530HDFRSN06 | E117: MANUEL ANGEL PEREZ ESCAMILLA | F117: 1 | G117: 0 | H117: 0 | I117: 0 | J117: 0 | K117: 0 | L117: 0 | M117: 7 | N117: 35 | O117: 0 | P117: 0 | Q117: 0 | R117: 0 | S117: 0 | T117: 0 | U117: 0 | V117: 1 | W117: 35 | X117: 0 | Y117: 56462
B118: GUANAJUATO | C118: CAVJ620328P75 | D118: CAVG620328HGTHRD03 | E118: J. GUADALUPE CHAVEZ VARGAZ | F118: 1 | G118: 0 | H118: 0 | I118: 0 | J118: 0 | K118: 0 | L118: 0 | M118: 7 | N118: 35 | O118: 0 | P118: 0 | Q118: 0 | R118: 0 | S118: 0 | T118: 0 | U118: 0 | V118: 1 | W118: 35 | X118: 0 | Y118: 57012
B119: GUANAJUATO | C119: JUON6804281K2 | D119: JUON680428HGTRRX00 | E119: NOE JUAREZ ORTEGA | F119: 1 | G119: 0 | H119: 0 | I119: 0 | J119: 0 | K119: 0 | L119: 0 | M119: 7 | N119: 35 | O119: 0 | P119: 0 | Q119: 0 | R119: 0 | S119: 0 | T119: 0 | U119: 0 | V119: 1 | W119: 35 | X119: 0 | Y119: 56654
B120: GUANAJUATO | C120: RORC700828A28 | D120: RORC700828MGTMML06 | E120: CLAUDIA IMELDA ROMERO RAMOS | F120: 1 | G120: 0 | H120: 0 | I120: 0 | J120: 0 | K120: 0 | L120: 0 | M120: 7 | N120: 35 | O120: 0 | P120: 0 | Q120: 0 | R120: 0 | S120: 0 | T120: 0 | U120: 0 | V120: 1 | W120: 35 | X120: 0 | Y120: 58282
B121: GUANAJUATO | C121: COMM660914G87 | D121: COMR660914MGTNDC09 | E121: MA. DEL ROCIO CONCHA MEDINA | F121: 1 | G121: 0 | H121: 0 | I121: 0 | J121: 0 | K121: 0 | L121: 0 | M121: 7 | N121: 35 | O121: 0 | P121: 0 | Q121: 0 | R121: 0 | S121: 0 | T121: 0 | U121: 0 | V121: 1 | W121: 35 | X121: 0 | Y121: 49142
B122: GUANAJUATO | C122: VEPE671201NI6 | D122: VEPE671201MGTGRG04 | E122: MARIA EUGENIA VEGA PAREDES | F122: 1 | G122: 0 | H122: 0 | I122: 0 | J122: 0 | K122: 0 | L122: 0 | M122: 7 | N122: 35 | O122: 0 | P122: 0 | Q122: 0 | R122: 0 | S122: 0 | T122: 0 | U122: 0 | V122: 1 | W122: 35 | X122: 0 | Y122: 53340
B123: GUANAJUATO | C123: VILR670220CZ3 | D123: VILR670220MGTLNM04 | E123: RAMONA VILLANUEVA LUNA | F123: 1 | G123: 0 | H123: 0 | I123: 0 | J123: 0 | K123: 0 | L123: 0 | M123: 7 | N123: 35 | O123: 0 | P123: 0 | Q123: 0 | R123: 0 | S123: 0 | T123: 0 | U123: 0 | V123: 1 | W123: 35 | X123: 0 | Y123: 59370
B124: GUANAJUATO | C124: PAGT5911092P8 | D124: PAGT591109HGTLRD01 | E124: TEODORO PALMERIN GARCIA | F124: 1 | G124: 0 | H124: 0 | I124: 0 | J124: 0 | K124: 0 | L124: 0 | M124: 7 | N124: 35 | O124: 0 | P124: 0 | Q124: 0 | R124: 0 | S124: 0 | T124: 0 | U124: 0 | V124: 1 | W124: 35 | X124: 0 | Y124: 56632
B125: GUANAJUATO | C125: BAVG670930HU0 | D125: BAVG670930MGTRZD05 | E125: MA. GUADALUPE BARCENAS VAZQUEZ | F125: 1 | G125: 0 | H125: 0 | I125: 0 | J125: 0 | K125: 0 | L125: 0 | M125: 7 | N125: 35 | O125: 0 | P125: 0 | Q125: 0 | R125: 0 | S125: 0 | T125: 0 | U125: 0 | V125: 1 | W125: 35 | X125: 0 | Y125: 61649
B126: GUANAJUATO | C126: RATR611023E56 | D126: RATR611023MGTMRS03 | E126: ROSA MAGDALENA RAMIREZ TRONCOSO | F126: 1 | G126: 0 | H126: 0 | I126: 0 | J126: 0 | K126: 0 | L126: 0 | M126: 7 | N126: 35 | O126: 0 | P126: 0 | Q126: 0 | R126: 0 | S126: 0 | T126: 0 | U126: 0 | V126: 1 | W126: 35 | X126: 0 | Y126: 58637
B127: GUANAJUATO | C127: LUOE610116R96 | D127: LUOE610116HDGNLM05 | E127: EMILIO LUNA OLAGUE | F127: 1 | G127: 0 | H127: 0 | I127: 0 | J127: 0 | K127: 0 | L127: 0 | M127: 7 | N127: 35 | O127: 0 | P127: 0 | Q127: 0 | R127: 0 | S127: 0 | T127: 0 | U127: 0 | V127: 1 | W127: 35 | X127: 0 | Y127: 56610
B128: GUANAJUATO | C128: CUPM810513D93 | D128: CUPM810513HGTRRR00 | E128: MARTIN ANTONIO CRUZ PEREZ | F128: 1 | G128: 0 | H128: 0 | I128: 0 | J128: 0 | K128: 0 | L128: 0 | M128: 7 | N128: 35 | O128: 0 | P128: 0 | Q128: 0 | R128: 0 | S128: 0 | T128: 0 | U128: 0 | V128: 1 | W128: 35 | X128: 0 | Y128: 53250
B129: GUANAJUATO | C129: MAGE550714NZ1 | D129: MAGE550714HGTRNS03 | E129: ESTEBAN MARTINEZ GONZALEZ | F129: 1 | G129: 0 | H129: 0 | I129: 0 | J129: 0 | K129: 0 | L129: 0 | M129: 7 | N129: 35 | O129: 0 | P129: 0 | Q129: 0 | R129: 0 | S129: 0 | T129: 0 | U129: 0 | V129: 1 | W129: 35 | X129: 0 | Y129: 57209
B130: GUANAJUATO | C130: GOAS751103PH7 | D130: GOAS751103MGTNRL01 | E130: SILVIA SANTOS GONZALEZ ARANDA | F130: 1 | G130: 0 | H130: 0 | I130: 0 | J130: 0 | K130: 0 | L130: 0 | M130: 7 | N130: 35 | O130: 0 | P130: 0 | Q130: 0 | R130: 0 | S130: 0 | T130: 0 | U130: 0 | V130: 1 | W130: 35 | X130: 0 | Y130: 52650
B131: GUANAJUATO | C131: LERM7308264B5 | D131: LERM730826MGTDSN09 | E131: MONICA LEDESMA ROSALES | F131: 1 | G131: 0 | H131: 0 | I131: 0 | J131: 0 | K131: 0 | L131: 0 | M131: 7 | N131: 35 | O131: 0 | P131: 0 | Q131: 0 | R131: 0 | S131: 0 | T131: 0 | U131: 0 | V131: 1 | W131: 35 | X131: 0 | Y131: 52313
B132: GUANAJUATO | C132: PELL620125LZ0 | D132: PELL620125MVZRLR03 | E132: MARIA DE LOURDES PEREZ LLANOS | F132: 1 | G132: 0 | H132: 0 | I132: 0 | J132: 0 | K132: 0 | L132: 0 | M132: 7 | N132: 35 | O132: 0 | P132: 0 | Q132: 0 | R132: 0 | S132: 0 | T132: 0 | U132: 0 | V132: 1 | W132: 35 | X132: 0 | Y132: 54680
B133: GUANAJUATO | C133: CABF530212GK8 | D133: CABF530212HGTNRR05 | E133: FRANCISCO JAVIER CANO BARRON | F133: 1 | G133: 0 | H133: 0 | I133: 0 | J133: 0 | K133: 0 | L133: 0 | M133: 7 | N133: 35 | O133: 0 | P133: 0 | Q133: 0 | R133: 0 | S133: 0 | T133: 0 | U133: 0 | V133: 1 | W133: 35 | X133: 0 | Y133: 52160
B134: GUANAJUATO | C134: CIVM630826EF1 | D134: CIVR630826MGTSRS09 | E134: MA. DEL ROSARIO CISNEROS VERDIN | F134: 1 | G134: 0 | H134: 0 | I134: 0 | J134: 0 | K134: 0 | L134: 0 | M134: 7 | N134: 35 | O134: 0 | P134: 0 | Q134: 0 | R134: 0 | S134: 0 | T134: 0 | U134: 0 | V134: 1 | W134: 35 | X134: 0 | Y134: 51855
B135: GUANAJUATO | C135: NEGM641224M74 | D135: NEGM641224MGTGVR06 | E135: MARTINA NEGRETE GOVEA | F135: 1 | G135: 0 | H135: 0 | I135: 0 | J135: 0 | K135: 0 | L135: 0 | M135: 7 | N135: 35 | O135: 0 | P135: 0 | Q135: 0 | R135: 0 | S135: 0 | T135: 0 | U135: 0 | V135: 1 | W135: 35 | X135: 0 | Y135: 48078
B136: GUANAJUATO | C136: PEDM7406101Q5 | D136: PEDM740610MDFRMR01 | E136: MARGARITA PERALTA DOMINGUEZ | F136: 1 | G136: 0 | H136: 0 | I136: 0 | J136: 0 | K136: 0 | L136: 0 | M136: 7 | N136: 35 | O136: 0 | P136: 0 | Q136: 0 | R136: 0 | S136: 0 | T136: 0 | U136: 0 | V136: 1 | W136: 35 | X136: 0 | Y136: 52331
B137: GUANAJUATO | C137: FOMJ7811187W8 | D137: FOMJ781118HGTLDN07 | E137: JUAN PABLO FLORES MEDINA | F137: 1 | G137: 0 | H137: 0 | I137: 0 | J137: 0 | K137: 0 | L137: 0 | M137: 7 | N137: 35 | O137: 0 | P137: 0 | Q137: 0 | R137: 0 | S137: 0 | T137: 0 | U137: 0 | V137: 1 | W137: 35 | X137: 0 | Y137: 51636
B138: GUANAJUATO | C138: DOVR6304095Y7 | D138: DOVR630409MBCMZS05 | E138: MARIA DEL ROSARIO DOMINGUEZ VAZQUEZ | F138: 1 | G138: 0 | H138: 0 | I138: 0 | J138: 0 | K138: 0 | L138: 0 | M138: 7 | N138: 35 | O138: 0 | P138: 0 | Q138: 0 | R138: 0 | S138: 0 | T138: 0 | U138: 0 | V138: 1 | W138: 35 | X138: 0 | Y138: 56518
B139: GUANAJUATO | C139: VIGO710314HSA | D139: VIGO710314HGTLNS05 | E139: OSCAR JACOBO VILLICAﾑA GONZALEZ | F139: 1 | G139: 0 | H139: 0 | I139: 0 | J139: 0 | K139: 0 | L139: 0 | M139: 7 | N139: 35 | O139: 0 | P139: 0 | Q139: 0 | R139: 0 | S139: 0 | T139: 0 | U139: 0 | V139: 1 | W139: 35 | X139: 0 | Y139: 49842
B140: GUANAJUATO | C140: SAAL700325CX2 | D140: SAAL700325MGTNGT00 | E140: LETICIA SANDOVAL AGUAYO | F140: 1 | G140: 0 | H140: 0 | I140: 0 | J140: 0 | K140: 0 | L140: 0 | M140: 7 | N140: 35 | O140: 0 | P140: 0 | Q140: 0 | R140: 0 | S140: 0 | T140: 0 | U140: 0 | V140: 1 | W140: 35 | X140: 0 | Y140: 53614
B141: GUANAJUATO | C141: RALE870501NL5 | D141: RALE870501MGTMYL02 | E141: MARIA ELENA RAMOS LOYOLA | F141: 1 | G141: 0 | H141: 0 | I141: 0 | J141: 0 | K141: 0 | L141: 0 | M141: 7 | N141: 35 | O141: 0 | P141: 0 | Q141: 0 | R141: 0 | S141: 0 | T141: 0 | U141: 0 | V141: 1 | W141: 35 | X141: 0 | Y141: 46033
B142: GUANAJUATO | C142: RAML6801057F2 | D142: RAML680105MMNMCN00 | E142: LINDA RAMIREZ MACEDO | F142: 1 | G142: 0 | H142: 0 | I142: 0 | J142: 0 | K142: 0 | L142: 0 | M142: 7 | N142: 35 | O142: 0 | P142: 0 | Q142: 0 | R142: 0 | S142: 0 | T142: 0 | U142: 0 | V142: 1 | W142: 35 | X142: 0 | Y142: 51842
B143: GUANAJUATO | C143: MOSR650129V62 | D143: MOSR650129MGTRNF09 | E143: MA. DEL REFUGIO MORONES SANCHEZ | F143: 1 | G143: 0 | H143: 0 | I143: 0 | J143: 0 | K143: 0 | L143: 0 | M143: 7 | N143: 35 | O143: 0 | P143: 0 | Q143: 0 | R143: 0 | S143: 0 | T143: 0 | U143: 0 | V143: 1 | W143: 35 | X143: 0 | Y143: 56549
B144: GUANAJUATO | C144: AEAJ851118LC0 | D144: AEAJ851118HGTRCN00 | E144: JUAN CARLOS ARMENTA ACEVEDO | F144: 1 | G144: 0 | H144: 0 | I144: 0 | J144: 0 | K144: 0 | L144: 0 | M144: 7 | N144: 35 | O144: 0 | P144: 0 | Q144: 0 | R144: 0 | S144: 0 | T144: 0 | U144: 0 | V144: 1 | W144: 35 | X144: 0 | Y144: 51842
B145: GUANAJUATO | C145: OEMJ730208CX6 | D145: OEMM730208HGTJDR00 | E145: J. MERCED OJEDA MEDINA | F145: 1 | G145: 0 | H145: 0 | I145: 0 | J145: 0 | K145: 0 | L145: 0 | M145: 7 | N145: 35 | O145: 0 | P145: 0 | Q145: 0 | R145: 0 | S145: 0 | T145: 0 | U145: 0 | V145: 1 | W145: 35 | X145: 0 | Y145: 52270
B146: GUANAJUATO | C146: MALA730704I26 | D146: MALA730704HGTRPR02 | E146: ARNULFO MARQUEZ LOPEZ | F146: 1 | G146: 0 | H146: 0 | I146: 0 | J146: 0 | K146: 0 | L146: 0 | M146: 7 | N146: 35 | O146: 0 | P146: 0 | Q146: 0 | R146: 0 | S146: 0 | T146: 0 | U146: 0 | V146: 1 | W146: 35 | X146: 0 | Y146: 53767
B147: GUANAJUATO | C147: MOCK900306NE6 | D147: MOCK900306MDFRSR15 | E147: KAREN ANEL MORENO CASTILLO | F147: 1 | G147: 0 | H147: 0 | I147: 0 | J147: 0 | K147: 0 | L147: 0 | M147: 7 | N147: 35 | O147: 0 | P147: 0 | Q147: 0 | R147: 0 | S147: 0 | T147: 0 | U147: 0 | V147: 1 | W147: 35 | X147: 0 | Y147: 46675
B148: GUANAJUATO | C148: LUMR751129U75 | D148: LUMR751129HGTGTC02 | E148: RICARDO ERNESTO LUGO MATA | F148: 1 | G148: 0 | H148: 0 | I148: 0 | J148: 0 | K148: 0 | L148: 0 | M148: 7 | N148: 35 | O148: 0 | P148: 0 | Q148: 0 | R148: 0 | S148: 0 | T148: 0 | U148: 0 | V148: 1 | W148: 35 | X148: 0 | Y148: 47745
B149: GUANAJUATO | C149: ZAGB700228KX3 | D149: ZAGB700228MGTVMT03 | E149: BEATRIZ ZAVALA GOMEZ | F149: 1 | G149: 0 | H149: 0 | I149: 0 | J149: 0 | K149: 0 | L149: 0 | M149: 7 | N149: 35 | O149: 0 | P149: 0 | Q149: 0 | R149: 0 | S149: 0 | T149: 0 | U149: 0 | V149: 1 | W149: 35 | X149: 0 | Y149: 53960
B150: GUANAJUATO | C150: ROLA760606566 | D150: ROLA760606HGTJPN03 | E150: JOSE ANTONIO ROJAS LOPEZ | F150: 1 | G150: 0 | H150: 0 | I150: 0 | J150: 0 | K150: 0 | L150: 0 | M150: 7 | N150: 35 | O150: 0 | P150: 0 | Q150: 0 | R150: 0 | S150: 0 | T150: 0 | U150: 0 | V150: 1 | W150: 35 | X150: 0 | Y150: 53746
B151: GUANAJUATO | C151: CAAB610110HC5 | D151: CAAB610110MGTRRR07 | E151: BERTHA ANGELICA CARPIO ARAGON | F151: 1 | G151: 0 | H151: 0 | I151: 0 | J151: 0 | K151: 0 | L151: 0 | M151: 7 | N151: 35 | O151: 0 | P151: 0 | Q151: 0 | R151: 0 | S151: 0 | T151: 0 | U151: 0 | V151: 1 | W151: 35 | X151: 0 | Y151: 35544
B152: GUANAJUATO | C152: GAPE660401EX7 | D152: GAPE660401HDFRRD03 | E152: EDUARDO GARCIA PEREZ | F152: 1 | G152: 0 | H152: 0 | I152: 0 | J152: 0 | K152: 0 | L152: 0 | M152: 7 | N152: 35 | O152: 0 | P152: 0 | Q152: 0 | R152: 0 | S152: 0 | T152: 0 | U152: 0 | V152: 1 | W152: 35 | X152: 0 | Y152: 48300
B153: GUANAJUATO | C153: SAMM750910419 | D153: SAMM750910MGTCRR00 | E153: MERCEDES ELENA SAUCEDO MORENO | F153: 1 | G153: 0 | H153: 0 | I153: 0 | J153: 0 | K153: 0 | L153: 0 | M153: 7 | N153: 35 | O153: 0 | P153: 0 | Q153: 0 | R153: 0 | S153: 0 | T153: 0 | U153: 0 | V153: 1 | W153: 35 | X153: 0 | Y153: 54126
B154: GUANAJUATO | C154: LAMZ780504N49 | D154: LAMZ780504MSLRNN01 | E154: ZINTIA DENISE LARA MENDIVIL | F154: 1 | G154: 0 | H154: 0 | I154: 0 | J154: 0 | K154: 0 | L154: 0 | M154: 7 | N154: 35 | O154: 0 | P154: 0 | Q154: 0 | R154: 0 | S154: 0 | T154: 0 | U154: 0 | V154: 1 | W154: 35 | X154: 0 | Y154: 48313
B155: GUANAJUATO | C155: HELM750417G75 | D155: HELM750417MGTRZG00 | E155: MARIA MAGDALENA HERNANDEZ LAZO | F155: 1 | G155: 0 | H155: 0 | I155: 0 | J155: 0 | K155: 0 | L155: 0 | M155: 7 | N155: 35 | O155: 0 | P155: 0 | Q155: 0 | R155: 0 | S155: 0 | T155: 0 | U155: 0 | V155: 1 | W155: 35 | X155: 0 | Y155: 46799
B156: GUANAJUATO | C156: LOLB681130LWA | D156: LOLB681130MGTPLT03 | E156: BEATRIZ LOPEZ LLANOS | F156: 1 | G156: 0 | H156: 0 | I156: 0 | J156: 0 | K156: 0 | L156: 0 | M156: 7 | N156: 35 | O156: 0 | P156: 0 | Q156: 0 | R156: 0 | S156: 0 | T156: 0 | U156: 0 | V156: 1 | W156: 35 | X156: 0 | Y156: 50158
B157: GUANAJUATO | C157: GACC7402201D0 | D157: GACC740220MVZRYL09 | E157: CLAUDIA GARCIA CAYETANO | F157: 1 | G157: 0 | H157: 0 | I157: 0 | J157: 0 | K157: 0 | L157: 0 | M157: 7 | N157: 35 | O157: 0 | P157: 0 | Q157: 0 | R157: 0 | S157: 0 | T157: 0 | U157: 0 | V157: 1 | W157: 35 | X157: 0 | Y157: 46675
B158: GUANAJUATO | C158: GORE840602N47 | D158: GORE840602HGTNDM00 | E158: EMMANUEL GONZALEZ RODRIGUEZ | F158: 1 | G158: 0 | H158: 0 | I158: 0 | J158: 0 | K158: 0 | L158: 0 | M158: 7 | N158: 35 | O158: 0 | P158: 0 | Q158: 0 | R158: 0 | S158: 0 | T158: 0 | U158: 0 | V158: 1 | W158: 35 | X158: 0 | Y158: 50226
B159: GUANAJUATO | C159: CAPJ840105CE0 | D159: CAPJ840105HGTMRL00 | E159: JULIO CESAR CAMACHO PRADO | F159: 1 | G159: 0 | H159: 0 | I159: 0 | J159: 0 | K159: 0 | L159: 0 | M159: 7 | N159: 35 | O159: 0 | P159: 0 | Q159: 0 | R159: 0 | S159: 0 | T159: 0 | U159: 0 | V159: 1 | W159: 35 | X159: 0 | Y159: 46675
B160: GUANAJUATO | C160: GUGJ8305032WA | D160: GUGJ830503HGTTVN06 | E160: JUAN JESUS GUTIERREZ GUEVARA | F160: 1 | G160: 0 | H160: 0 | I160: 0 | J160: 0 | K160: 0 | L160: 0 | M160: 7 | N160: 35 | O160: 0 | P160: 0 | Q160: 0 | R160: 0 | S160: 0 | T160: 0 | U160: 0 | V160: 1 | W160: 35 | X160: 0 | Y160: 45819
B161: GUANAJUATO | C161: LOGC850904FK8 | D161: LOGC850904HGTPRR05 | E161: CARLOS ALBERTO LOPEZ GARCIA | F161: 1 | G161: 0 | H161: 0 | I161: 0 | J161: 0 | K161: 0 | L161: 0 | M161: 7 | N161: 35 | O161: 0 | P161: 0 | Q161: 0 | R161: 0 | S161: 0 | T161: 0 | U161: 0 | V161: 1 | W161: 35 | X161: 0 | Y161: 46247
B162: GUANAJUATO | C162: GOGR650725KF1 | D162: GOGR650725HGTNRB02 | E162: ROBERTO GONZALEZ GARCIA | F162: 1 | G162: 0 | H162: 0 | I162: 0 | J162: 0 | K162: 0 | L162: 0 | M162: 7 | N162: 35 | O162: 0 | P162: 0 | Q162: 0 | R162: 0 | S162: 0 | T162: 0 | U162: 0 | V162: 1 | W162: 35 | X162: 0 | Y162: 56632
B163: GUANAJUATO | C163: NIMU831228318 | D163: NIMU831228MGTXRR02 | E163: URSULA MACARENA NIﾑO MARTINEZ | F163: 1 | G163: 0 | H163: 0 | I163: 0 | J163: 0 | K163: 0 | L163: 0 | M163: 7 | N163: 35 | O163: 0 | P163: 0 | Q163: 0 | R163: 0 | S163: 0 | T163: 0 | U163: 0 | V163: 1 | W163: 35 | X163: 0 | Y163: 48728
B164: GUANAJUATO | C164: MORM7609166F8 | D164: MORC760916MMCNZR07 | E164: MA. DEL CARMEN MONTES DE OCA REZA | F164: 1 | G164: 0 | H164: 0 | I164: 0 | J164: 0 | K164: 0 | L164: 0 | M164: 7 | N164: 35 | O164: 0 | P164: 0 | Q164: 0 | R164: 0 | S164: 0 | T164: 0 | U164: 0 | V164: 1 | W164: 35 | X164: 0 | Y164: 46461
B165: GUANAJUATO | C165: SAME750520NR8 | D165: SAME750520MGTNJR05 | E165: ERIKA SANCHEZ MEJIA | F165: 1 | G165: 0 | H165: 0 | I165: 0 | J165: 0 | K165: 0 | L165: 0 | M165: 7 | N165: 35 | O165: 0 | P165: 0 | Q165: 0 | R165: 0 | S165: 0 | T165: 0 | U165: 0 | V165: 1 | W165: 35 | X165: 0 | Y165: 48942
B166: GUANAJUATO | C166: LAOJ8212131K9 | D166: LAOJ821213HGTRLS09 | E166: JESUS SAMUEL LARA OLMOS | F166: 1 | G166: 0 | H166: 0 | I166: 0 | J166: 0 | K166: 0 | L166: 0 | M166: 7 | N166: 35 | O166: 0 | P166: 0 | Q166: 0 | R166: 0 | S166: 0 | T166: 0 | U166: 0 | V166: 1 | W166: 35 | X166: 0 | Y166: 51296
B167: GUANAJUATO | C167: LURF6001292T1 | D167: LURF600129HGTNMR01 | E167: FRANCISCO JAVIER LUNA RAMIREZ | F167: 1 | G167: 0 | H167: 0 | I167: 0 | J167: 0 | K167: 0 | L167: 0 | M167: 7 | N167: 35 | O167: 0 | P167: 0 | Q167: 0 | R167: 0 | S167: 0 | T167: 0 | U167: 0 | V167: 1 | W167: 35 | X167: 0 | Y167: 56666
B168: GUANAJUATO | C168: ZACR521017I51 | D168: ZACR521017HGTMRG01 | E168: ROGELIO ARTURO ZAMARRIPA CRUZ | F168: 1 | G168: 0 | H168: 0 | I168: 0 | J168: 0 | K168: 0 | L168: 0 | M168: 7 | N168: 35 | O168: 0 | P168: 0 | Q168: 0 | R168: 0 | S168: 0 | T168: 0 | U168: 0 | V168: 1 | W168: 35 | X168: 0 | Y168: 57974
B169: GUANAJUATO | C169: VAGL591217DU7 | D169: VAGL591217MGTRRL06 | E169: LILIA VARGAS GARCIDUEﾑAS | F169: 1 | G169: 0 | H169: 0 | I169: 0 | J169: 0 | K169: 0 | L169: 0 | M169: 7 | N169: 35 | O169: 0 | P169: 0 | Q169: 0 | R169: 0 | S169: 0 | T169: 0 | U169: 0 | V169: 1 | W169: 35 | X169: 0 | Y169: 57401
B170: GUANAJUATO | C170: RATM581224UF9 | D170: RATM581224HGTMRN03 | E170: JOSE MANUEL RAMOS TORRES | F170: 1 | G170: 0 | H170: 0 | I170: 0 | J170: 0 | K170: 0 | L170: 0 | M170: 7 | N170: 35 | O170: 0 | P170: 0 | Q170: 0 | R170: 0 | S170: 0 | T170: 0 | U170: 0 | V170: 1 | W170: 35 | X170: 0 | Y170: 50986
B171: GUANAJUATO | C171: AERS660208UT4 | D171: AERS660208HGTRYR01 | E171: SERGIO ARREDONDO RAYA | F171: 1 | G171: 0 | H171: 0 | I171: 0 | J171: 0 | K171: 0 | L171: 0 | M171: 7 | N171: 35 | O171: 0 | P171: 0 | Q171: 0 | R171: 0 | S171: 0 | T171: 0 | U171: 0 | V171: 1 | W171: 35 | X171: 0 | Y171: 57092
B172: GUANAJUATO | C172: CAEJ651225BV9 | D172: CAEJ651225HVZHSS03 | E172: JESUS CHAGALA ESPEJO | F172: 1 | G172: 0 | H172: 0 | I172: 0 | J172: 0 | K172: 0 | L172: 0 | M172: 7 | N172: 35 | O172: 0 | P172: 0 | Q172: 0 | R172: 0 | S172: 0 | T172: 0 | U172: 0 | V172: 1 | W172: 35 | X172: 0 | Y172: 49829
B173: GUANAJUATO | C173: MENC680926QE2 | D173: MENC680926MGTDVR02 | E173: MARIA DEL CARMEN MEDEL NAVARRETE | F173: 1 | G173: 0 | H173: 0 | I173: 0 | J173: 0 | K173: 0 | L173: 0 | M173: 7 | N173: 35 | O173: 0 | P173: 0 | Q173: 0 | R173: 0 | S173: 0 | T173: 0 | U173: 0 | V173: 1 | W173: 35 | X173: 0 | Y173: 54898
B174: GUANAJUATO | C174: HUED670420517 | D174: HUED670420HDFRSV00 | E174: DAVID HUERTA ESTRADA | F174: 1 | G174: 0 | H174: 0 | I174: 0 | J174: 0 | K174: 0 | L174: 0 | M174: 7 | N174: 35 | O174: 0 | P174: 0 | Q174: 0 | R174: 0 | S174: 0 | T174: 0 | U174: 0 | V174: 1 | W174: 35 | X174: 0 | Y174: 56160
B175: GUANAJUATO | C175: VARA71012288A | D175: VARA710122MGTRMN01 | E175: MARIA DE LOS ANGELES VARGAS RAMIREZ | F175: 1 | G175: 0 | H175: 0 | I175: 0 | J175: 0 | K175: 0 | L175: 0 | M175: 7 | N175: 35 | O175: 0 | P175: 0 | Q175: 0 | R175: 0 | S175: 0 | T175: 0 | U175: 0 | V175: 1 | W175: 35 | X175: 0 | Y175: 60012
B176: GUANAJUATO | C176: NEAC740715LD9 | D176: NEAC740715HGTGRR02 | E176: CRISTOBAL NEGRETE ARIAS | F176: 1 | G176: 0 | H176: 0 | I176: 0 | J176: 0 | K176: 0 | L176: 0 | M176: 7 | N176: 35 | O176: 0 | P176: 0 | Q176: 0 | R176: 0 | S176: 0 | T176: 0 | U176: 0 | V176: 1 | W176: 35 | X176: 0 | Y176: 57612
B177: GUANAJUATO | C177: FAHI7401088Z2 | D177: FAHI740108HGTBRV04 | E177: IVAN FABELA HERNANDEZ | F177: 1 | G177: 0 | H177: 0 | I177: 0 | J177: 0 | K177: 0 | L177: 0 | M177: 7 | N177: 35 | O177: 0 | P177: 0 | Q177: 0 | R177: 0 | S177: 0 | T177: 0 | U177: 0 | V177: 1 | W177: 35 | X177: 0 | Y177: 54449
B178: GUANAJUATO | C178: MEVG630915G81 | D178: MEVG630915MGTRRD08 | E178: MA. GUADALUPE MERCADO VARELA | F178: 1 | G178: 0 | H178: 0 | I178: 0 | J178: 0 | K178: 0 | L178: 0 | M178: 7 | N178: 35 | O178: 0 | P178: 0 | Q178: 0 | R178: 0 | S178: 0 | T178: 0 | U178: 0 | V178: 1 | W178: 35 | X178: 0 | Y178: 58121
B179: GUANAJUATO | C179: MELR640522PX9 | D179: MELR640522MGTNNT06 | E179: RITA MENDEZ LEON | F179: 1 | G179: 0 | H179: 0 | I179: 0 | J179: 0 | K179: 0 | L179: 0 | M179: 7 | N179: 35 | O179: 0 | P179: 0 | Q179: 0 | R179: 0 | S179: 0 | T179: 0 | U179: 0 | V179: 1 | W179: 35 | X179: 0 | Y179: 54750
B180: GUANAJUATO | C180: RICR7705149U3 | D180: RICR770514HGTVRB05 | E180: ROBERTO CARLOS RIVERA CORONILLA | F180: 1 | G180: 0 | H180: 0 | I180: 0 | J180: 0 | K180: 0 | L180: 0 | M180: 7 | N180: 35 | O180: 0 | P180: 0 | Q180: 0 | R180: 0 | S180: 0 | T180: 0 | U180: 0 | V180: 1 | W180: 35 | X180: 0 | Y180: 55798
B181: GUANAJUATO | C181: COOM721217SVA | D181: COOM721217MGTNLN02 | E181: MA. MANUELA CONTRERAS OLMOS | F181: 1 | G181: 0 | H181: 0 | I181: 0 | J181: 0 | K181: 0 | L181: 0 | M181: 7 | N181: 35 | O181: 0 | P181: 0 | Q181: 0 | R181: 0 | S181: 0 | T181: 0 | U181: 0 | V181: 1 | W181: 35 | X181: 0 | Y181: 56012
B182: GUANAJUATO | C182: GUMA6701215Q1 | D182: GUMA670121MGTTRN09 | E182: ANA GUTIERREZ MORENO | F182: 1 | G182: 0 | H182: 0 | I182: 0 | J182: 0 | K182: 0 | L182: 0 | M182: 7 | N182: 35 | O182: 0 | P182: 0 | Q182: 0 | R182: 0 | S182: 0 | T182: 0 | U182: 0 | V182: 1 | W182: 35 | X182: 0 | Y182: 55768
B183: GUANAJUATO | C183: EIRJ6812089I5 | D183: EIRC681208HGTNMR05 | E183: J. CARLOS ENRIQUEZ RAMIREZ | F183: 1 | G183: 0 | H183: 0 | I183: 0 | J183: 0 | K183: 0 | L183: 0 | M183: 7 | N183: 35 | O183: 0 | P183: 0 | Q183: 0 | R183: 0 | S183: 0 | T183: 0 | U183: 0 | V183: 1 | W183: 35 | X183: 0 | Y183: 55925
B184: GUANAJUATO | C184: RAMD681211IP3 | D184: RAMD681211HMCMRN05 | E184: DANIEL RAMIREZ MARTINEZ | F184: 1 | G184: 0 | H184: 0 | I184: 0 | J184: 0 | K184: 0 | L184: 0 | M184: 7 | N184: 35 | O184: 0 | P184: 0 | Q184: 0 | R184: 0 | S184: 0 | T184: 0 | U184: 0 | V184: 1 | W184: 35 | X184: 0 | Y184: 56353
B185: GUANAJUATO | C185: YEPV780203IU0 | D185: YEPV780203MGTBVR00 | E185: VERONICA ADRIANA YEBRA PAVON | F185: 1 | G185: 0 | H185: 0 | I185: 0 | J185: 0 | K185: 0 | L185: 0 | M185: 7 | N185: 35 | O185: 0 | P185: 0 | Q185: 0 | R185: 0 | S185: 0 | T185: 0 | U185: 0 | V185: 1 | W185: 35 | X185: 0 | Y185: 48084
B186: GUANAJUATO | C186: VANR620916TF0 | D186: VANR620916HGTRGG03 | E186: ROGELIO VARGAS NEGRETE | F186: 1 | G186: 0 | H186: 0 | I186: 0 | J186: 0 | K186: 0 | L186: 0 | M186: 7 | N186: 35 | O186: 0 | P186: 0 | Q186: 0 | R186: 0 | S186: 0 | T186: 0 | U186: 0 | V186: 1 | W186: 35 | X186: 0 | Y186: 55582
B187: GUANAJUATO | C187: MAGM6404092N1 | D187: MAGM640409MGTNNR08 | E187: MARTA MANDUJANO GONZALEZ | F187: 1 | G187: 0 | H187: 0 | I187: 0 | J187: 0 | K187: 0 | L187: 0 | M187: 7 | N187: 35 | O187: 0 | P187: 0 | Q187: 0 | R187: 0 | S187: 0 | T187: 0 | U187: 0 | V187: 1 | W187: 35 | X187: 0 | Y187: 60785
B188: GUANAJUATO | C188: GOGA680110DL7 | D188: GOGA680110MGTNYN00 | E188: ANA BERTHA GONZALEZ GAYTAN | F188: 1 | G188: 0 | H188: 0 | I188: 0 | J188: 0 | K188: 0 | L188: 0 | M188: 7 | N188: 35 | O188: 0 | P188: 0 | Q188: 0 | R188: 0 | S188: 0 | T188: 0 | U188: 0 | V188: 1 | W188: 35 | X188: 0 | Y188: 56864
B189: GUANAJUATO | C189: HEPC690801P80 | D189: HEPC690801MGTRRR08 | E189: MA. DEL CARMEN HERNANDEZ PEREZ | F189: 1 | G189: 0 | H189: 0 | I189: 0 | J189: 0 | K189: 0 | L189: 0 | M189: 7 | N189: 35 | O189: 0 | P189: 0 | Q189: 0 | R189: 0 | S189: 0 | T189: 0 | U189: 0 | V189: 1 | W189: 35 | X189: 0 | Y189: 55907
B190: GUANAJUATO | C190: CACF6710055H4 | D190: CACF671005HGTLDR06 | E190: FRANCISCO CALDERON CAUDILLO | F190: 1 | G190: 0 | H190: 0 | I190: 0 | J190: 0 | K190: 0 | L190: 0 | M190: 7 | N190: 35 | O190: 0 | P190: 0 | Q190: 0 | R190: 0 | S190: 0 | T190: 0 | U190: 0 | V190: 1 | W190: 35 | X190: 0 | Y190: 55056
B191: GUANAJUATO | C191: GURR6007275B3 | D191: GURR600727HSPLMD06 | E191: RODOLFO GUEL RAMIREZ | F191: 1 | G191: 0 | H191: 0 | I191: 0 | J191: 0 | K191: 0 | L191: 0 | M191: 7 | N191: 35 | O191: 0 | P191: 0 | Q191: 0 | R191: 0 | S191: 0 | T191: 0 | U191: 0 | V191: 1 | W191: 35 | X191: 0 | Y191: 54920
B192: GUANAJUATO | C192: ROCR541120D22 | D192: ROCR541120HGTSVC07 | E192: RICARDO FEDERICO ROSALES COVARRUBIAS | F192: 1 | G192: 0 | H192: 0 | I192: 0 | J192: 0 | K192: 0 | L192: 0 | M192: 7 | N192: 35 | O192: 0 | P192: 0 | Q192: 0 | R192: 0 | S192: 0 | T192: 0 | U192: 0 | V192: 1 | W192: 35 | X192: 0 | Y192: 54130
B193: GUANAJUATO | C193: BEBL7508072M7 | D193: BEBL750807HQTRRS05 | E193: J. LUIS BERRA BORTOLINI | F193: 1 | G193: 0 | H193: 0 | I193: 0 | J193: 0 | K193: 0 | L193: 0 | M193: 7 | N193: 35 | O193: 0 | P193: 0 | Q193: 0 | R193: 0 | S193: 0 | T193: 0 | U193: 0 | V193: 1 | W193: 35 | X193: 0 | Y193: 53820
B194: GUANAJUATO | C194: RACR700730AH9 | D194: RACR700730MGTZNB06 | E194: REBECA RAZO CANO | F194: 1 | G194: 0 | H194: 0 | I194: 0 | J194: 0 | K194: 0 | L194: 0 | M194: 7 | N194: 35 | O194: 0 | P194: 0 | Q194: 0 | R194: 0 | S194: 0 | T194: 0 | U194: 0 | V194: 1 | W194: 35 | X194: 0 | Y194: 53060
B195: GUANAJUATO | C195: MAGE551119NR4 | D195: MAGE551119MGTYRD05 | E195: EDITH MAYCOTTE GRANADOS | F195: 1 | G195: 0 | H195: 0 | I195: 0 | J195: 0 | K195: 0 | L195: 0 | M195: 7 | N195: 35 | O195: 0 | P195: 0 | Q195: 0 | R195: 0 | S195: 0 | T195: 0 | U195: 0 | V195: 1 | W195: 35 | X195: 0 | Y195: 55947
B196: GUANAJUATO | C196: RABA570323E11 | D196: RABA570323MDFVSN07 | E196: ANA MARIA RAVELO BUSTAMANTE | F196: 1 | G196: 0 | H196: 0 | I196: 0 | J196: 0 | K196: 0 | L196: 0 | M196: 7 | N196: 35 | O196: 0 | P196: 0 | Q196: 0 | R196: 0 | S196: 0 | T196: 0 | U196: 0 | V196: 1 | W196: 35 | X196: 0 | Y196: 54060
B197: GUANAJUATO | C197: GAML720417UE8 | D197: GAML720417HGTRRS07 | E197: LUIS ALBERTO GARCIA MARTINEZ | F197: 1 | G197: 0 | H197: 0 | I197: 0 | J197: 0 | K197: 0 | L197: 0 | M197: 7 | N197: 35 | O197: 0 | P197: 0 | Q197: 0 | R197: 0 | S197: 0 | T197: 0 | U197: 0 | V197: 1 | W197: 35 | X197: 0 | Y197: 55842
B198: GUANAJUATO | C198: FICJ7603185H9 | D198: FICT760318HGTRSR03 | E198: J. TRINIDAD FRIAS CASTAﾑEDA | F198: 1 | G198: 0 | H198: 0 | I198: 0 | J198: 0 | K198: 0 | L198: 0 | M198: 7 | N198: 35 | O198: 0 | P198: 0 | Q198: 0 | R198: 0 | S198: 0 | T198: 0 | U198: 0 | V198: 1 | W198: 35 | X198: 0 | Y198: 40261
B199: GUANAJUATO | C199: GAMJ711118AJ8 | D199: GAMJ711118HGTRCC07 | E199: JACOBO GARCIA MICHACA | F199: 1 | G199: 0 | H199: 0 | I199: 0 | J199: 0 | K199: 0 | L199: 0 | M199: 7 | N199: 35 | O199: 0 | P199: 0 | Q199: 0 | R199: 0 | S199: 0 | T199: 0 | U199: 0 | V199: 1 | W199: 35 | X199: 0 | Y199: 54470
B200: GUANAJUATO | C200: ROSJ600516BL3 | D200: ROSJ600516MGTBNN05 | E200: JUANA ROBLES SANTANA | F200: 1 | G200: 0 | H200: 0 | I200: 0 | J200: 0 | K200: 0 | L200: 0 | M200: 7 | N200: 35 | O200: 0 | P200: 0 | Q200: 0 | R200: 0 | S200: 0 | T200: 0 | U200: 0 | V200: 1 | W200: 35 | X200: 0 | Y200: 53872
B201: GUANAJUATO | C201: OELM6606116J8 | D201: OELM660611MGTRRR05 | E201: MARTINA ORNELAS LARA | F201: 1 | G201: 0 | H201: 0 | I201: 0 | J201: 0 | K201: 0 | L201: 0 | M201: 7 | N201: 35 | O201: 0 | P201: 0 | Q201: 0 | R201: 0 | S201: 0 | T201: 0 | U201: 0 | V201: 1 | W201: 35 | X201: 0 | Y201: 52252
B202: GUANAJUATO | C202: RARC7011229A3 | D202: RARC701122MGTNDR00 | E202: MA. CARLOTA PATRICIA RANGEL RODRIGUEZ | F202: 1 | G202: 0 | H202: 0 | I202: 0 | J202: 0 | K202: 0 | L202: 0 | M202: 7 | N202: 35 | O202: 0 | P202: 0 | Q202: 0 | R202: 0 | S202: 0 | T202: 0 | U202: 0 | V202: 1 | W202: 35 | X202: 0 | Y202: 54938
B203: GUANAJUATO | C203: HEMM781102T78 | D203: HEMM781102MGTRNR07 | E203: MARISELA HERNANDEZ MONTOYA | F203: 1 | G203: 0 | H203: 0 | I203: 0 | J203: 0 | K203: 0 | L203: 0 | M203: 7 | N203: 35 | O203: 0 | P203: 0 | Q203: 0 | R203: 0 | S203: 0 | T203: 0 | U203: 0 | V203: 1 | W203: 35 | X203: 0 | Y203: 53724
B204: GUANAJUATO | C204: AAGH700108U53 | D204: AAGH700108MGTLRR09 | E204: HORTENCIA ALMANZA GARCIA | F204: 1 | G204: 0 | H204: 0 | I204: 0 | J204: 0 | K204: 0 | L204: 0 | M204: 7 | N204: 35 | O204: 0 | P204: 0 | Q204: 0 | R204: 0 | S204: 0 | T204: 0 | U204: 0 | V204: 1 | W204: 35 | X204: 0 | Y204: 55008
B205: GUANAJUATO | C205: RAAG660220BC0 | D205: RAAG660220MGTMVD07 | E205: MA. GUADALUPE RUTH RAMOS AVILA | F205: 1 | G205: 0 | H205: 0 | I205: 0 | J205: 0 | K205: 0 | L205: 0 | M205: 7 | N205: 35 | O205: 0 | P205: 0 | Q205: 0 | R205: 0 | S205: 0 | T205: 0 | U205: 0 | V205: 1 | W205: 35 | X205: 0 | Y205: 57291
B206: GUANAJUATO | C206: DUVE540209Q63 | D206: DUVE540209HGTRLR06 | E206: ERNESTO DURAN VALDIVIA | F206: 1 | G206: 0 | H206: 0 | I206: 0 | J206: 0 | K206: 0 | L206: 0 | M206: 7 | N206: 35 | O206: 0 | P206: 0 | Q206: 0 | R206: 0 | S206: 0 | T206: 0 | U206: 0 | V206: 1 | W206: 35 | X206: 0 | Y206: 62130
B207: GUANAJUATO | C207: AUTC7502082I3 | D207: AUTC750208MGTGRN15 | E207: MA. CONSUELO AGUILAR TIRADO | F207: 1 | G207: 0 | H207: 0 | I207: 0 | J207: 0 | K207: 0 | L207: 0 | M207: 7 | N207: 35 | O207: 0 | P207: 0 | Q207: 0 | R207: 0 | S207: 0 | T207: 0 | U207: 0 | V207: 1 | W207: 35 | X207: 0 | Y207: 55222
B208: GUANAJUATO | C208: FOMO6906162N2 | D208: FOMO690616HGTNDS05 | E208: OSCAR FONSECA MEDRANO | F208: 1 | G208: 0 | H208: 0 | I208: 0 | J208: 0 | K208: 0 | L208: 0 | M208: 7 | N208: 35 | O208: 0 | P208: 0 | Q208: 0 | R208: 0 | S208: 0 | T208: 0 | U208: 0 | V208: 1 | W208: 35 | X208: 0 | Y208: 54084
B209: GUANAJUATO | C209: DULR740520184 | D209: DULR740520HGTRPY01 | E209: JOSE REYES DURAN LOPEZ | F209: 1 | G209: 0 | H209: 0 | I209: 0 | J209: 0 | K209: 0 | L209: 0 | M209: 7 | N209: 35 | O209: 0 | P209: 0 | Q209: 0 | R209: 0 | S209: 0 | T209: 0 | U209: 0 | V209: 1 | W209: 35 | X209: 0 | Y209: 54366
B210: GUANAJUATO | C210: DOVL720318BXA | D210: DOVL720318HGTMLS06 | E210: JOSE LUIS DOMINGUEZ VALDES | F210: 1 | G210: 0 | H210: 0 | I210: 0 | J210: 0 | K210: 0 | L210: 0 | M210: 7 | N210: 35 | O210: 0 | P210: 0 | Q210: 0 | R210: 0 | S210: 0 | T210: 0 | U210: 0 | V210: 1 | W210: 35 | X210: 0 | Y210: 53724
B211: GUANAJUATO | C211: TOAN630405S63 | D211: TOXA630405HGTLXN01 | E211: JOSE ANTONIO TOLENTINO | F211: 1 | G211: 0 | H211: 0 | I211: 0 | J211: 0 | K211: 0 | L211: 0 | M211: 7 | N211: 35 | O211: 0 | P211: 0 | Q211: 0 | R211: 0 | S211: 0 | T211: 0 | U211: 0 | V211: 1 | W211: 35 | X211: 0 | Y211: 55488
... 78 more rows

Sheet II C y 1_
B8: Formato: Personal Federalizado por Registro Federal de Contribuyentes
B9: =IF('Caratula Resumen'!D22="Elige el Periodo…","",'Caratula Resumen'!D22) -> Fondo de Aportaciones para la Educación Tecnológica y de Adultos/Instituto Nacional para la Educación de los Adultos (FAETA/INEA) | U9: =IF('Caratula Resumen'!D23="Elige el Periodo…","",'Caratula Resumen'!D23) -> 4to. Trimestre
B12: Entidad Federativa | C12: Clave CT | D12: Turno | E12: RFC | F12: CURP | G12: Nombre | H12: Funcion Real | I12: Horas que labora en el Centro de Trabajo | J12: Clave Presupuestal | Q12: Tipo de Categoría | R12: Identificador de Contrato de Honorarios | S12: Periodo de efecto de pago en el trimestre | U12: Percepciones pagadas en el Periodo de Comisión con Presupuesto Federal* | V12: Percepciones pagadas en el Periodo de Comisión con Presupuesto de otra fuente*
J13: Partida Presupuestal | K13: Código de Pago | L13: Clave de Unidad | M13: Clave de Sub Unidad | N13: Clave de Categoría | O13: Horas Semana Mes | P13: Número de Plaza | S13: Inicial | T13: Termino
B15: Entidad Federativa | C15: Clave CT | D15: Turno | E15: RFC | F15: CURP | G15: Nombre | H15: Funcion Real | I15: Horas que labora en el Centro de Trabajo | J15: Partida Presupuestal | K15: Código de Pago | L15: Clave de Unidad | M15: Clave de Sub Unidad | N15: Clave de Categoría | O15: Horas semana mes | P15: Número de plaza | Q15: Tipo de Categoría | R15: Identificador de Contrato de Honorarios | S15: Periodo de efecto de pago en el trimestre Inicial | T15: Periodo de efecto de pago en el trimestre Termino | U15: Percepciones pagadas en el Periodo de Comisión con Presupuesto Federal* | V15: Percepciones pagadas en el Periodo de Comisión con Presupuesto de otra fuente*
B16: GUANAJUATO | C16: 11EBS0027E | D16: 100 | E16: AAGH700108U53 | F16: AAGH700108MGTLRR09 | G16: HORTENCIA ALMANZA GARCIA | H16: TECNICO DOCENTE | I16: 35 | J16: 83101 | K16: 1 | L16: 7 | M16: 17 | N16: T03820 | O16: 0 | P16: 1943 | Q16: 2 | U16: 55008 | V16: 0
B17: GUANAJUATO | C17: 11EBS0027E | D17: 100 | E17: AAPR490907F72 | F17: AAPR490907MDFLLS06 | G17: MA. DEL ROSARIO ROCIO ALMAGRO PALATO | H17: ADMINISTRATIVO ESPECIALIZADO | I17: 35 | J17: 83101 | K17: 1 | L17: 7 | M17: 15 | N17: A01803 | O17: 0 | P17: 30 | Q17: 2 | U17: 42322 | V17: 0
B18: GUANAJUATO | C18: 11EBS0027E | D18: 100 | E18: AEAJ851118LC0 | F18: AEAJ851118HGTRCN00 | G18: JUAN CARLOS ARMENTA ACEVEDO | H18: TECNICO DOCENTE | I18: 35 | J18: 83101 | K18: 1 | L18: 7 | M18: 23 | N18: T03820 | O18: 0 | P18: 1280 | Q18: 2 | U18: 51842 | V18: 0
B19: GUANAJUATO | C19: 11EBS0027E | D19: 100 | E19: AELM6906275A6 | F19: AELR690627MGTRPS15 | G19: MA ROSARIO ARREGUIN LOPEZ | H19: TECNICO DOCENTE | I19: 35 | J19: 83101 | K19: 1 | L19: 7 | M19: 25 | N19: T03820 | O19: 0 | P19: 2195 | Q19: 2 | U19: 53916 | V19: 0
B20: GUANAJUATO | C20: 11EBS0027E | D20: 100 | E20: AEPB811216AUA | F20: AEPB811216MGTRLL03 | G20: BLANCA BERENICE ARREGUIN PALMA | H20: PROFESIONAL DICTAMINADOR DE SERVICIOS ESPECIALIZADOS | I20: 35 | J20: 83101 | K20: 1 | L20: 2 | M20: 4 | N20: CF21865 | O20: 0 | P20: 8 | Q20: 2 | U20: 73104 | V20: 0
B21: GUANAJUATO | C21: 11EBS0027E | D21: 100 | E21: AERS660208UT4 | F21: AERS660208HGTRYR01 | G21: SERGIO ARREDONDO RAYA | H21: TECNICO DOCENTE | I21: 35 | J21: 83101 | K21: 1 | L21: 7 | M21: 13 | N21: T03820 | O21: 0 | P21: 2241 | Q21: 2 | U21: 57092 | V21: 0
B22: GUANAJUATO | C22: 11EBS0027E | D22: 100 | E22: AILP690120TW9 | F22: AILP690120MSPRNT09 | G22: PATRICIA DE JESUS ARCIGA LEON | H22: JEFE DE OFICINA | I22: 35 | J22: 83101 | K22: 1 | L22: 7 | M22: 21 | N22: A01807 | O22: 0 | P22: 169 | Q22: 2 | U22: 48917 | V22: 0
B23: GUANAJUATO | C23: 11EBS0027E | D23: 100 | E23: AOMM651230U5A | F23: AOMM651230MGTBSY06 | G23: MA. MAYELA ABOYTES MOSQUEDA | H23: JEFE DE OFICINA | I23: 35 | J23: 83101 | K23: 1 | L23: 9 | M23: 50 | N23: A01807 | O23: 0 | P23: 297 | Q23: 2 | U23: 54711 | V23: 0
B24: GUANAJUATO | C24: 11EBS0027E | D24: 100 | E24: AUGA6812277W5 | F24: AUGA681227MGTGRN03 | G24: ANA MARIA AGUILAR GARCIA | H24: ANALISTA ADMINISTRATIVO | I24: 35 | J24: 83101 | K24: 1 | L24: 7 | M24: 19 | N24: A01806 | O24: 0 | P24: 450 | Q24: 2 | U24: 41444 | V24: 0
B25: GUANAJUATO | C25: 11EBS0027E | D25: 100 | E25: AUGF640316LK3 | F25: AUGF640316HGTGRR05 | G25: FRANCISCO JAVIER AGUIRRE GUERRERO | H25: COORDINADOR DE ZONA | I25: 40 | J25: 83101 | K25: 1 | L25: 7 | M25: 19 | N25: CF36014 | O25: 0 | P25: 522 | Q25: 5 | U25: 49319 | V25: 0
B26: GUANAJUATO | C26: 11EBS0027E | D26: 100 | E26: AURA5705038S9 | F26: AURA570503HGTGND03 | G26: JOSE ADOLFO AGUILERA RENDON | H26: TECNICO DOCENTE | I26: 35 | J26: 83101 | K26: 1 | L26: 7 | M26: 36 | N26: T03820 | O26: 0 | P26: 362 | Q26: 2 | U26: 59342 | V26: 0
B27: GUANAJUATO | C27: 11EBS0027E | D27: 100 | E27: AURM640517UH3 | F27: AURM640517HGTGCR01 | G27: MARTIN AGUIRRE RICO | H27: ANALISTA ADMINISTRATIVO | I27: 35 | J27: 83101 | K27: 1 | L27: 7 | M27: 40 | N27: A01806 | O27: 0 | P27: 117 | Q27: 2 | U27: 48427 | V27: 0
B28: GUANAJUATO | C28: 11EBS0027E | D28: 100 | E28: AUTC7502082I3 | F28: AUTC750208MGTGRN15 | G28: MA. CONSUELO AGUILAR TIRADO | H28: TECNICO DOCENTE | I28: 35 | J28: 83101 | K28: 1 | L28: 7 | M28: 16 | N28: T03820 | O28: 0 | P28: 1623 | Q28: 2 | U28: 55222 | V28: 0
B29: GUANAJUATO | C29: 11EBS0027E | D29: 100 | E29: BABM6804276E6 | F29: BABM680427MMCXLR01 | G29: MARGARITA BAÑOS BAILON | H29: TECNICO MEDIO | I29: 35 | J29: 83101 | K29: 1 | L29: 7 | M29: 23 | N29: T03803 | O29: 0 | P29: 92 | Q29: 2 | U29: 45761 | V29: 0
B30: GUANAJUATO | C30: 11EBS0027E | D30: 100 | E30: BACA640430UIA | F30: BACA640430HGTLRN06 | G30: ANTONIO BALTAZAR CORTES | H30: TECNICO DOCENTE | I30: 35 | J30: 83101 | K30: 1 | L30: 7 | M30: 16 | N30: T03820 | O30: 0 | P30: 1739 | Q30: 2 | U30: 55947 | V30: 0
B31: GUANAJUATO | C31: 11EBS0027E | D31: 100 | E31: BAGJ5610276T2 | F31: BAGC561027HGTLLR02 | G31: J. CARMEN BALDERAS GALLEGOS | H31: TECNICO DOCENTE | I31: 35 | J31: 83101 | K31: 1 | L31: 7 | M31: 19 | N31: T03820 | O31: 0 | P31: 658 | Q31: 2 | U31: 50964 | V31: 0
B32: GUANAJUATO | C32: 11EBS0027E | D32: 100 | E32: BARA6501175H5 | F32: BARA650117MGTRDN02 | G32: ANTONIA BARRERA RODRIGUEZ | H32: JEFE DE OFICINA | I32: 35 | J32: 83101 | K32: 1 | L32: 7 | M32: 16 | N32: A01807 | O32: 0 | P32: 231 | Q32: 2 | U32: 53781 | V32: 0
B33: GUANAJUATO | C33: 11EBS0027E | D33: 100 | E33: BAVG670930HU0 | F33: BAVG670930MGTRZD05 | G33: MA. GUADALUPE BARCENAS VAZQUEZ | H33: TECNICO DOCENTE | I33: 35 | J33: 83101 | K33: 1 | L33: 7 | M33: 35 | N33: T03820 | O33: 0 | P33: 664 | Q33: 2 | U33: 61649 | V33: 0
B34: GUANAJUATO | C34: 11EBS0027E | D34: 100 | E34: BEBL7508072M7 | F34: BEBL750807HQTRRS05 | G34: J. LUIS BERRA BORTOLINI | H34: TECNICO DOCENTE | I34: 35 | J34: 83101 | K34: 1 | L34: 7 | M34: 28 | N34: T03820 | O34: 0 | P34: 125 | Q34: 2 | U34: 53820 | V34: 0
B35: GUANAJUATO | C35: 11EBS0027E | D35: 100 | E35: BEMS700226KJ6 | F35: BEMS700226HGTCNL00 | G35: SALVADOR BECERRA MANDUJANO | H35: TECNICO DOCENTE | I35: 35 | J35: 83101 | K35: 1 | L35: 7 | M35: 23 | N35: T03820 | O35: 0 | P35: 2892 | Q35: 2 | U35: 56226 | V35: 0
B36: GUANAJUATO | C36: 11EBS0027E | D36: 100 | E36: BINL4906195XA | F36: BINL490619HDFRGS05 | G36: JOSE LUIS BRIBIESCA NEGRETE | H36: JEFE DE OFICINA | I36: 35 | J36: 83101 | K36: 1 | L36: 7 | M36: 21 | N36: A01807 | O36: 0 | P36: 132 | Q36: 2 | U36: 50765 | V36: 0
B37: GUANAJUATO | C37: 11EBS0027E | D37: 100 | E37: BIRL710430QF2 | F37: BIRL710430HGTRZB03 | G37: LIBRADO BRICEÑO RUIZ | H37: TECNICO DOCENTE | I37: 35 | J37: 83101 | K37: 1 | L37: 7 | M37: 21 | N37: T03820 | O37: 0 | P37: 1590 | Q37: 2 | U37: 55925 | V37: 0
B38: GUANAJUATO | C38: 11EBS0027E | D38: 100 | E38: CAAB610110HC5 | F38: CAAB610110MGTRRR07 | G38: BERTHA ANGELICA CARPIO ARAGON | H38: TECNICO DOCENTE | I38: 35 | J38: 83101 | K38: 1 | L38: 7 | M38: 23 | N38: T03820 | O38: 0 | P38: 2463 | Q38: 2 | U38: 35544 | V38: 0
B39: GUANAJUATO | C39: 11EBS0027E | D39: 100 | E39: CABF530212GK8 | F39: CABF530212HGTNRR05 | G39: FRANCISCO JAVIER CANO BARRON | H39: TECNICO DOCENTE | I39: 35 | J39: 83101 | K39: 1 | L39: 7 | M39: 33 | N39: T03820 | O39: 0 | P39: 686 | Q39: 2 | U39: 52160 | V39: 0
B40: GUANAJUATO | C40: 11EBS0027E | D40: 100 | E40: CACF6710055H4 | F40: CACF671005HGTLDR06 | G40: FRANCISCO CALDERON CAUDILLO | H40: TECNICO DOCENTE | I40: 35 | J40: 83101 | K40: 1 | L40: 7 | M40: 38 | N40: T03820 | O40: 0 | P40: 1102 | Q40: 2 | U40: 55056 | V40: 0
B41: GUANAJUATO | C41: 11EBS0027E | D41: 100 | E41: CACP630616HG8 | F41: CACP630616MGTLHT16 | G41: MA. PATRICIA DOLORES CALDERON CHAVEZ | H41: TECNICO MEDIO | I41: 35 | J41: 83101 | K41: 1 | L41: 7 | M41: 14 | N41: T03803 | O41: 0 | P41: 178 | Q41: 2 | U41: 46135 | V41: 0
B42: GUANAJUATO | C42: 11EBS0027E | D42: 100 | E42: CAEJ651225BV9 | F42: CAEJ651225HVZHSS03 | G42: JESUS CHAGALA ESPEJO | H42: TECNICO DOCENTE | I42: 35 | J42: 83101 | K42: 1 | L42: 7 | M42: 26 | N42: T03820 | O42: 0 | P42: 2946 | Q42: 2 | U42: 49829 | V42: 0
B43: GUANAJUATO | C43: 11EBS0027E | D43: 100 | E43: CAGR650930FB6 | F43: CAGR650930HGTLYB04 | G43: RUBEN CALDERON GAYTAN | H43: TECNICO DOCENTE | I43: 35 | J43: 83101 | K43: 1 | L43: 7 | M43: 25 | N43: T03820 | O43: 0 | P43: 1269 | Q43: 2 | U43: 55290 | V43: 0
B44: GUANAJUATO | C44: 11EBS0027E | D44: 100 | E44: CAGR690302HRA | F44: CAGR690302MGTMMS03 | G44: MA. DEL ROSARIO CAMPOS GOMEZ | H44: SECRETARIA C | I44: 35 | J44: 83101 | K44: 1 | L44: 7 | M44: 23 | N44: A03804 | O44: 0 | P44: 300 | Q44: 2 | U44: 47019 | V44: 0
B45: GUANAJUATO | C45: 11EBS0027E | D45: 100 | E45: CAGY820417182 | F45: CAGY820417MGTRTJ03 | G45: YAJAHIRA CARDENAS GUTIERREZ | H45: TECNICO MEDIO | I45: 35 | J45: 83101 | K45: 1 | L45: 7 | M45: 24 | N45: T03803 | O45: 0 | P45: 32 | Q45: 2 | U45: 37647 | V45: 0
B46: GUANAJUATO | C46: 11EBS0027E | D46: 100 | E46: CAJU6804082V6 | F46: CAXJ680408MGTMXN08 | G46: JUANA MARIA CAMACHO | H46: JEFE DE OFICINA | I46: 35 | J46: 83101 | K46: 1 | L46: 7 | M46: 18 | N46: A01807 | O46: 0 | P46: 2681 | Q46: 2 | U46: 52409 | V46: 0
B47: GUANAJUATO | C47: 11EBS0027E | D47: 100 | E47: CALM860815G43 | F47: CALM860815MJCHNY02 | G47: MAYRA CAROLINA CHAVEZ DE LEÓN | H47: SECRETARIA C | I47: 35 | J47: 83101 | K47: 1 | L47: 7 | M47: 23 | N47: A03804 | O47: 0 | P47: 171 | Q47: 2 | U47: 39216 | V47: 0
B48: GUANAJUATO | C48: 11EBS0027E | D48: 100 | E48: CALR730329AHA | F48: CALR730329HGTRZB02 | G48: RUBEN DARIO CARDENAS LAZARO | H48: COORD. DE SERVICIOS ESP. | I48: 35 | J48: 83101 | K48: 1 | L48: 8 | M48: 47 | N48: CF33849 | O48: 0 | P48: 230 | Q48: 2 | U48: 52075 | V48: 0
B49: GUANAJUATO | C49: 11EBS0027E | D49: 100 | E49: CAOD910826S90 | F49: CAOD910826MSPNRL03 | G49: DULCE VIRIDIANA CANO ORTA | H49: ESPECIALISTA EN PROYECTOS TECNICOS | I49: 35 | J49: 83101 | K49: 1 | L49: 7 | M49: 29 | N49: T03810 | O49: 0 | P49: 201 | Q49: 2 | U49: 37456 | V49: 0
B50: GUANAJUATO | C50: 11EBS0027E | D50: 100 | E50: CAOE780824GY2 | F50: CAOE780824MGTSRM07 | G50: EMILIA CASTELLANO ORTEGA | H50: TECNICO MEDIO | I50: 35 | J50: 83101 | K50: 1 | L50: 7 | M50: 21 | N50: T03803 | O50: 0 | P50: 3742 | Q50: 2 | U50: 46192 | V50: 0
B51: GUANAJUATO | C51: 11EBS0027E | D51: 100 | E51: CAPJ840105CE0 | F51: CAPJ840105HGTMRL00 | G51: JULIO CESAR CAMACHO PRADO | H51: TECNICO DOCENTE | I51: 35 | J51: 83101 | K51: 1 | L51: 7 | M51: 27 | N51: T03820 | O51: 0 | P51: 1116 | Q51: 2 | U51: 46675 | V51: 0
B52: GUANAJUATO | C52: 11EBS0027E | D52: 100 | E52: CARA730215VE3 | F52: CARA730215MGTHJL00 | G52: ALMA DELIA CHAVEZ ROJAS | H52: TECNICO MEDIO | I52: 35 | J52: 83101 | K52: 1 | L52: 7 | M52: 24 | N52: T03803 | O52: 0 | P52: 7 | Q52: 2 | U52: 46452 | V52: 0
B53: GUANAJUATO | C53: 11EBS0027E | D53: 100 | E53: CARJ550620A19 | F53: CARJ550620HGTSDM09 | G53: JAIME CASTILLO RODRIGUEZ | H53: TECNICO DOCENTE | I53: 35 | J53: 83101 | K53: 1 | L53: 7 | M53: 17 | N53: T03820 | O53: 0 | P53: 794 | Q53: 2 | U53: 59667 | V53: 0
B54: GUANAJUATO | C54: 11EBS0027E | D54: 100 | E54: CASR640104TEA | F54: CASR640104MGTBNS05 | G54: ROSA MARIA CABRERA SANCHEZ | H54: ESPECIALISTA EN PROYECTOS TECNICOS | I54: 35 | J54: 83101 | K54: 1 | L54: 8 | M54: 44 | N54: T03810 | O54: 0 | P54: 2212 | Q54: 2 | U54: 44677 | V54: 0
B55: GUANAJUATO | C55: 11EBS0027E | D55: 100 | E55: CATE6508044X6 | F55: CATE650804MGTRRS04 | G55: ESPERANZA CARRILLO TORRES | H55: TECNICO DOCENTE | I55: 35 | J55: 83101 | K55: 1 | L55: 7 | M55: 16 | N55: T03820 | O55: 0 | P55: 622 | Q55: 2 | U55: 55243 | V55: 0
B56: GUANAJUATO | C56: 11EBS0027E | D56: 100 | E56: CAVA651011TB7 | F56: CAVA651011HGTLRL04 | G56: JOSE ALFREDO CALDERON VARELA | H56: TECNICO MEDIO | I56: 35 | J56: 83101 | K56: 1 | L56: 7 | M56: 15 | N56: T03803 | O56: 0 | P56: 20 | Q56: 2 | U56: 49140 | V56: 0
B57: GUANAJUATO | C57: 11EBS0027E | D57: 100 | E57: CAVJ620328P75 | F57: CAVG620328HGTHRD03 | G57: J. GUADALUPE CHAVEZ VARGAZ | H57: TECNICO DOCENTE | I57: 35 | J57: 83101 | K57: 1 | L57: 7 | M57: 15 | N57: T03820 | O57: 0 | P57: 2591 | Q57: 2 | U57: 57012 | V57: 0
B58: GUANAJUATO | C58: 11EBS0027E | D58: 100 | E58: CAVS681207JX2 | F58: CAVS681207HGTNRL04 | G58: SALVADOR CANO VARGAS | H58: COORDINADOR DE ZONA | I58: 40 | J58: 83101 | K58: 1 | L58: 7 | M58: 15 | N58: CF36014 | O58: 0 | P58: 45 | Q58: 5 | U58: 106808 | V58: 0
B59: GUANAJUATO | C59: 11EBS0027E | D59: 100 | E59: CEAE800524DE1 | F59: CEAE800524MDFCSL07 | G59: ELSA CECEÑA ASCOBERETA | H59: COORDINADOR DE ZONA | I59: 40 | J59: 83101 | K59: 1 | L59: 2 | M59: 4 | N59: CF36014 | O59: 0 | P59: 349 | Q59: 5 | U59: 87336 | V59: 0
B60: GUANAJUATO | C60: 11EBS0027E | D60: 100 | E60: CEGF8505052A9 | F60: CEGF850505HGTLTR01 | G60: FERNANDO CELEDON GUTIERREZ | H60: JEFE DE DEPARTAMENTO | I60: 40 | J60: 83101 | K60: 1 | L60: 8 | M60: 46 | N60: CF01059 | O60: 0 | P60: 361 | Q60: 5 | U60: 121206 | V60: 0
B61: GUANAJUATO | C61: 11EBS0027E | D61: 100 | E61: CIVM630826EF1 | F61: CIVR630826MGTSRS09 | G61: MA. DEL ROSARIO CISNEROS VERDIN | H61: TECNICO DOCENTE | I61: 35 | J61: 83101 | K61: 1 | L61: 7 | M61: 23 | N61: T03820 | O61: 0 | P61: 1959 | Q61: 2 | U61: 51855 | V61: 0
B62: GUANAJUATO | C62: 11EBS0027E | D62: 100 | E62: COBA780319BUA | F62: COBA780319HGTRTN00 | G62: JOSE ANTONIO CORDOBA BAUTISTA | H62: ESPECIALISTA EN PROYECTOS TECNICOS | I62: 35 | J62: 83101 | K62: 1 | L62: 7 | M62: 16 | N62: T03810 | O62: 0 | P62: 3572 | Q62: 2 | U62: 40362 | V62: 0
B63: GUANAJUATO | C63: 11EBS0027E | D63: 100 | E63: COCB750608U65 | F63: COCB750608MGTRRL08 | G63: BLANCA RAQUEL CORONEL CARBAJAL | H63: TECNICO DOCENTE | I63: 35 | J63: 83101 | K63: 1 | L63: 7 | M63: 38 | N63: T03820 | O63: 0 | P63: 1867 | Q63: 2 | U63: 53768 | V63: 0
B64: GUANAJUATO | C64: 11EBS0027E | D64: 100 | E64: COJP700317TZ9 | F64: COJP700317HMNRMD06 | G64: PEDRO CORTES JIMENEZ | H64: PROFESIONAL DICTAMINADOR DE SERVICIOS ESPECIALIZADOS | I64: 35 | J64: 83101 | K64: 1 | L64: 1 | M64: 3 | N64: CF21865 | O64: 0 | P64: 2 | Q64: 2 | U64: 31831 | V64: 0
B65: GUANAJUATO | C65: 11EBS0027E | D65: 100 | E65: COMM660914G87 | F65: COMR660914MGTNDC09 | G65: MA. DEL ROCIO CONCHA MEDINA | H65: TECNICO DOCENTE | I65: 35 | J65: 83101 | K65: 1 | L65: 5 | M65: 12 | N65: T03820 | O65: 0 | P65: 151 | Q65: 2 | U65: 49142 | V65: 0
B66: GUANAJUATO | C66: 11EBS0027E | D66: 100 | E66: COOD541119637 | F66: COOD541119MGTNRL00 | G66: DULCE MARIA ELIZABETH CONTRERAS ORDUÑA | H66: JEFE DE OFICINA | I66: 35 | J66: 83101 | K66: 1 | L66: 9 | M66: 52 | N66: A01807 | O66: 0 | P66: 578 | Q66: 2 | U66: 50368 | V66: 0
B67: GUANAJUATO | C67: 11EBS0027E | D67: 100 | E67: COOM721217SVA | F67: COOM721217MGTNLN02 | G67: MA. MANUELA CONTRERAS OLMOS | H67: TECNICO DOCENTE | I67: 35 | J67: 83101 | K67: 1 | L67: 7 | M67: 22 | N67: T03820 | O67: 0 | P67: 207 | Q67: 2 | U67: 56012 | V67: 0
B68: GUANAJUATO | C68: 11EBS0027E | D68: 100 | E68: COOS660919CRA | F68: COOS660919MGTNLS08 | G68: SUSANA ISABEL CONTRERAS OLMOS | H68: TECNICO MEDIO | I68: 35 | J68: 83101 | K68: 1 | L68: 7 | M68: 22 | N68: T03803 | O68: 0 | P68: 1631 | Q68: 2 | U68: 44097 | V68: 0
B69: GUANAJUATO | C69: 11EBS0027E | D69: 100 | E69: COPC760616J13 | F69: COPC760616HGTRTR05 | G69: CARLOS ALBERTO CORDOBA PATIÑO | H69: OFICIAL DE SERVICIOS Y MANTEN. | I69: 35 | J69: 83101 | K69: 1 | L69: 2 | M69: 5 | N69: S01803 | O69: 0 | P69: 117 | Q69: 2 | U69: 42555 | V69: 0
B70: GUANAJUATO | C70: 11EBS0027E | D70: 100 | E70: COPG660114BC1 | F70: COPG660114HGTNLR03 | G70: GERARDO LUIS CONTRERAS PALACIOS | H70: TECNICO DOCENTE | I70: 35 | J70: 83101 | K70: 1 | L70: 7 | M70: 19 | N70: T03820 | O70: 0 | P70: 281 | Q70: 2 | U70: 56654 | V70: 0
B71: GUANAJUATO | C71: 11EBS0027E | D71: 100 | E71: COSY800415BF0 | F71: COSY800415MGTRVN04 | G71: YUNERY CORTES SAAVEDRA | H71: ADMINISTRATIVO ESPECIALIZADO | I71: 35 | J71: 83101 | K71: 1 | L71: 7 | M71: 15 | N71: A01803 | O71: 0 | P71: 152 | Q71: 2 | U71: 42027 | V71: 0
B72: GUANAJUATO | C72: 11EBS0027E | D72: 100 | E72: CUPM810513D93 | F72: CUPM810513HGTRRR00 | G72: MARTIN ANTONIO CRUZ PEREZ | H72: TECNICO DOCENTE | I72: 35 | J72: 83101 | K72: 1 | L72: 7 | M72: 25 | N72: T03820 | O72: 0 | P72: 942 | Q72: 2 | U72: 53250 | V72: 0
B73: GUANAJUATO | C73: 11EBS0027E | D73: 100 | E73: CUPS720728BN7 | F73: CUPS720728MGTVSL06 | G73: SILVIA CUEVAS PESCADOR | H73: ESPECIALISTA EN PROYECTOS TECNICOS | I73: 35 | J73: 83101 | K73: 1 | L73: 7 | M73: 14 | N73: T03810 | O73: 0 | P73: 2482 | Q73: 2 | U73: 43888 | V73: 0
B74: GUANAJUATO | C74: 11EBS0027E | D74: 100 | E74: DOOM7502039N2 | F74: DOOM750203HGTMLN08 | G74: MANUEL DOMINGUEZ OLVERA | H74: JEFE DE DEPARTAMENTO | I74: 40 | J74: 83101 | K74: 1 | L74: 2 | M74: 4 | N74: CF01059 | O74: 0 | P74: 133 | Q74: 5 | U74: 98228 | V74: 0
B75: GUANAJUATO | C75: 11EBS0027E | D75: 100 | E75: DOVL720318BXA | F75: DOVL720318HGTMLS06 | G75: JOSE LUIS DOMINGUEZ VALDES | H75: TECNICO DOCENTE | I75: 35 | J75: 83101 | K75: 1 | L75: 7 | M75: 38 | N75: T03820 | O75: 0 | P75: 1701 | Q75: 2 | U75: 53724 | V75: 0
B76: GUANAJUATO | C76: 11EBS0027E | D76: 100 | E76: DOVR6304095Y7 | F76: DOVR630409MBCMZS05 | G76: MARIA DEL ROSARIO DOMINGUEZ VAZQUEZ | H76: TECNICO DOCENTE | I76: 35 | J76: 83101 | K76: 1 | L76: 7 | M76: 27 | N76: T03820 | O76: 0 | P76: 1449 | Q76: 2 | U76: 56518 | V76: 0
B77: GUANAJUATO | C77: 11EBS0027E | D77: 100 | E77: DULR740520184 | F77: DULR740520HGTRPY01 | G77: JOSE REYES DURAN LOPEZ | H77: TECNICO DOCENTE | I77: 35 | J77: 83101 | K77: 1 | L77: 7 | M77: 27 | N77: T03820 | O77: 0 | P77: 4511 | Q77: 2 | U77: 54366 | V77: 0
B78: GUANAJUATO | C78: 11EBS0027E | D78: 100 | E78: DUVE540209Q63 | F78: DUVE540209HGTRLR06 | G78: ERNESTO DURAN VALDIVIA | H78: TECNICO DOCENTE | I78: 35 | J78: 83101 | K78: 1 | L78: 7 | M78: 27 | N78: T03820 | O78: 0 | P78: 1242 | Q78: 2 | U78: 62130 | V78: 0
B79: GUANAJUATO | C79: 11EBS0027E | D79: 100 | E79: EASG700512IU9 | F79: EASG700512MCMSNR00 | G79: GRACIELA ESCAMILLA SANCHEZ | H79: SECRETARIA C | I79: 35 | J79: 83101 | K79: 1 | L79: 7 | M79: 21 | N79: A03804 | O79: 0 | P79: 3741 | Q79: 2 | U79: 47592 | V79: 0
B80: GUANAJUATO | C80: 11EBS0027E | D80: 100 | E80: EIRJ6812089I5 | F80: EIRC681208HGTNMR05 | G80: J. CARLOS ENRIQUEZ RAMIREZ | H80: TECNICO DOCENTE | I80: 35 | J80: 83101 | K80: 1 | L80: 7 | M80: 18 | N80: T03820 | O80: 0 | P80: 1561 | Q80: 2 | U80: 55925 | V80: 0
B81: GUANAJUATO | C81: 11EBS0027E | D81: 100 | E81: FAHI7401088Z2 | F81: FAHI740108HGTBRV04 | G81: IVAN FABELA HERNANDEZ | H81: TECNICO DOCENTE | I81: 35 | J81: 83101 | K81: 1 | L81: 7 | M81: 33 | N81: T03820 | O81: 0 | P81: 1793 | Q81: 2 | U81: 54449 | V81: 0
B82: GUANAJUATO | C82: 11EBS0027E | D82: 100 | E82: FEET711003EB8 | F82: FEET711003MGTLSR05 | G82: TERESA FELIX ESTRELLA | H82: ANALISTA ADMINISTRATIVO | I82: 35 | J82: 83101 | K82: 1 | L82: 7 | M82: 22 | N82: A01806 | O82: 0 | P82: 283 | Q82: 2 | U82: 49838 | V82: 0
B83: GUANAJUATO | C83: 11EBS0027E | D83: 100 | E83: FICJ7603185H9 | F83: FICT760318HGTRSR03 | G83: J. TRINIDAD FRIAS CASTAÑEDA | H83: TECNICO DOCENTE | I83: 35 | J83: 83101 | K83: 1 | L83: 7 | M83: 40 | N83: T03820 | O83: 0 | P83: 2114 | Q83: 2 | U83: 40261 | V83: 0
B84: GUANAJUATO | C84: 11EBS0027E | D84: 100 | E84: FOGF6810217L0 | F84: FOGF681021HGTLRR06 | G84: JOSE FERNANDO FLORES GARCIA | H84: TECNICO DOCENTE | I84: 35 | J84: 83101 | K84: 1 | L84: 7 | M84: 16 | N84: T03820 | O84: 0 | P84: 703 | Q84: 2 | U84: 61143 | V84: 0
B85: GUANAJUATO | C85: 11EBS0027E | D85: 100 | E85: FOMJ7811187W8 | F85: FOMJ781118HGTLDN07 | G85: JUAN PABLO FLORES MEDINA | H85: TECNICO DOCENTE | I85: 35 | J85: 83101 | K85: 1 | L85: 7 | M85: 28 | N85: T03820 | O85: 0 | P85: 128 | Q85: 2 | U85: 51636 | V85: 0
B86: GUANAJUATO | C86: 11EBS0027E | D86: 100 | E86: FOMO6906162N2 | F86: FOMO690616HGTNDS05 | G86: OSCAR FONSECA MEDRANO | H86: TECNICO DOCENTE | I86: 35 | J86: 83101 | K86: 1 | L86: 7 | M86: 27 | N86: T03820 | O86: 0 | P86: 65 | Q86: 2 | U86: 54084 | V86: 0
B87: GUANAJUATO | C87: 11EBS0027E | D87: 100 | E87: FONO7308067J5 | F87: FOXN730806MGTLXR04 | G87: NORMA LILIA FLORES | H87: TECNICO MEDIO | I87: 35 | J87: 83101 | K87: 1 | L87: 7 | M87: 19 | N87: T03803 | O87: 0 | P87: 24 | Q87: 2 | U87: 46707 | V87: 0
B88: GUANAJUATO | C88: 11EBS0027E | D88: 100 | E88: FOQL7110275I8 | F88: FOQL711027MGTLVN02 | G88: LEONOR FLORES QUEVEDO | H88: TECNICO MEDIO | I88: 35 | J88: 83101 | K88: 1 | L88: 7 | M88: 41 | N88: T03803 | O88: 0 | P88: 22 | Q88: 2 | U88: 39663 | V88: 0
B89: GUANAJUATO | C89: 11EBS0027E | D89: 100 | E89: FOQP690616QU0 | F89: FOQP690616MGTLVT01 | G89: PETRA FLORES QUEVEDO | H89: COORDINADOR DE ZONA | I89: 40 | J89: 83101 | K89: 1 | L89: 7 | M89: 22 | N89: CF36014 | O89: 0 | P89: 44 | Q89: 5 | U89: 91154 | V89: 0
B90: GUANAJUATO | C90: 11EBS0027E | D90: 100 | E90: GACC7402201D0 | F90: GACC740220MVZRYL09 | G90: CLAUDIA GARCIA CAYETANO | H90: TECNICO DOCENTE | I90: 35 | J90: 83101 | K90: 1 | L90: 7 | M90: 27 | N90: T03820 | O90: 0 | P90: 142 | Q90: 2 | U90: 46675 | V90: 0
B91: GUANAJUATO | C91: 11EBS0027E | D91: 100 | E91: GAEG840418L85 | F91: GAEG840418HGTLSS02 | G91: GUSTAVO ANTONIO GALLEGOS ESPINOSA | H91: COORDINADOR DE ZONA | I91: 40 | J91: 83101 | K91: 1 | L91: 7 | M91: 27 | N91: CF36014 | O91: 0 | P91: 46 | Q91: 5 | U91: 91627 | V91: 0
B92: GUANAJUATO | C92: 11EBS0027E | D92: 100 | E92: GAHJ611031AR1 | F92: GAHJ611031HGTRRV01 | G92: JAVIER GRANADOS HERNANDEZ | H92: TECNICO DOCENTE | I92: 35 | J92: 83101 | K92: 1 | L92: 7 | M92: 40 | N92: T03820 | O92: 0 | P92: 2447 | Q92: 2 | U92: 54210 | V92: 0
B93: GUANAJUATO | C93: 11EBS0027E | D93: 100 | E93: GALA740123JB8 | F93: GALA740123MGTLPL08 | G93: ALMA ROSA GALINDO LOPEZ | H93: ESPECIALISTA EN PROYECTOS TECNICOS | I93: 35 | J93: 83101 | K93: 1 | L93: 7 | M93: 23 | N93: T03810 | O93: 0 | P93: 187 | Q93: 2 | U93: 39789 | V93: 0
B94: GUANAJUATO | C94: 11EBS0027E | D94: 100 | E94: GAMJ711118AJ8 | F94: GAMJ711118HGTRCC07 | G94: JACOBO GARCIA MICHACA | H94: TECNICO DOCENTE | I94: 35 | J94: 83101 | K94: 1 | L94: 7 | M94: 18 | N94: T03820 | O94: 0 | P94: 1932 | Q94: 2 | U94: 54470 | V94: 0
B95: GUANAJUATO | C95: 11EBS0027E | D95: 100 | E95: GAML720417UE8 | F95: GAML720417HGTRRS07 | G95: LUIS ALBERTO GARCIA MARTINEZ | H95: TECNICO DOCENTE | I95: 35 | J95: 83101 | K95: 1 | L95: 7 | M95: 35 | N95: T03820 | O95: 0 | P95: 2754 | Q95: 2 | U95: 55842 | V95: 0
B96: GUANAJUATO | C96: 11EBS0027E | D96: 100 | E96: GAPE660401EX7 | F96: GAPE660401HDFRRD03 | G96: EDUARDO GARCIA PEREZ | H96: TECNICO DOCENTE | I96: 35 | J96: 83101 | K96: 1 | L96: 7 | M96: 14 | N96: T03820 | O96: 0 | P96: 1431 | Q96: 2 | U96: 48300 | V96: 0
B97: GUANAJUATO | C97: 11EBS0027E | D97: 100 | E97: GARM751031J11 | F97: GARM751031HGTRMS07 | G97: MOISES GRANADOS RAMOS | H97: PROFESIONAL DICTAMINADOR DE SERVICIOS ESPECIALIZADOS | I97: 35 | J97: 83101 | K97: 1 | L97: 8 | M97: 47 | N97: CF21865 | O97: 0 | P97: 5 | Q97: 2 | U97: 73329 | V97: 0
B98: GUANAJUATO | C98: 11EBS0027E | D98: 100 | E98: GARR860218GD7 | F98: GARR860218HGTRJL03 | G98: JOSE RAUL GRANADOS ROJAS | H98: SECRETARIA C | I98: 35 | J98: 83101 | K98: 1 | L98: 9 | M98: 51 | N98: A03804 | O98: 0 | P98: 602 | Q98: 2 | U98: 37647 | V98: 0
B99: GUANAJUATO | C99: 11EBS0027E | D99: 100 | E99: GOAA581209FLA | F99: GOAA581209MGTNGL08 | G99: ALICIA GONZALEZ AGUIRRE | H99: ESPECIALISTA EN PROYECTOS TECNICOS | I99: 35 | J99: 83101 | K99: 1 | L99: 7 | M99: 22 | N99: T03810 | O99: 0 | P99: 201 | Q99: 2 | U99: 46665 | V99: 0
B100: GUANAJUATO | C100: 11EBS0027E | D100: 100 | E100: GOAS751103PH7 | F100: GOAS751103MGTNRL01 | G100: SILVIA SANTOS GONZALEZ ARANDA | H100: TECNICO DOCENTE | I100: 35 | J100: 83101 | K100: 1 | L100: 7 | M100: 13 | N100: T03820 | O100: 0 | P100: 1656 | Q100: 2 | U100: 52650 | V100: 0
B101: GUANAJUATO | C101: 11EBS0027E | D101: 100 | E101: GOGA680110DL7 | F101: GOGA680110MGTNYN00 | G101: ANA BERTHA GONZALEZ GAYTAN | H101: TECNICO DOCENTE | I101: 35 | J101: 83101 | K101: 1 | L101: 7 | M101: 25 | N101: T03820 | O101: 0 | P101: 757 | Q101: 2 | U101: 56864 | V101: 0
B102: GUANAJUATO | C102: 11EBS0027E | D102: 100 | E102: GOGE831013479 | F102: GOGE831013MGTNRL03 | G102: ELIA JUDITH GONZALEZ GUERRA | H102: ESPECIALISTA EN PROYECTOS TECNICOS | I102: 35 | J102: 83101 | K102: 1 | L102: 9 | M102: 50 | N102: T03810 | O102: 0 | P102: 198 | Q102: 2 | U102: 37879 | V102: 0
B103: GUANAJUATO | C103: 11EBS0027E | D103: 100 | E103: GOGL670809V8A | F103: GOGL670809HGTNRS00 | G103: LUIS ALBERTO GONZALEZ GARCIA | H103: TECNICO DOCENTE | I103: 35 | J103: 83101 | K103: 1 | L103: 7 | M103: 25 | N103: T03820 | O103: 0 | P103: 383 | Q103: 2 | U103: 57890 | V103: 0
B104: GUANAJUATO | C104: 11EBS0027E | D104: 100 | E104: GOGR650725KF1 | F104: GOGR650725HGTNRB02 | G104: ROBERTO GONZALEZ GARCIA | H104: TECNICO DOCENTE | I104: 35 | J104: 83101 | K104: 1 | L104: 7 | M104: 21 | N104: T03820 | O104: 0 | P104: 235 | Q104: 2 | U104: 56632 | V104: 0
B105: GUANAJUATO | C105: 11EBS0027E | D105: 100 | E105: GOMI721001DE2 | F105: GOMI721001MDFNJN03 | G105: INES ROSARIO GONZALEZ MUJICA | H105: ANALISTA ADMINISTRATIVO | I105: 35 | J105: 83101 | K105: 1 | L105: 7 | M105: 15 | N105: A01806 | O105: 0 | P105: 420 | Q105: 2 | U105: 45619 | V105: 0
B106: GUANAJUATO | C106: 11EBS0027E | D106: 100 | E106: GOMM610218KG4 | F106: GOMM610218MGTNRR05 | G106: MARTA PATRICIA GONZALEZ MORENO | H106: SECRETARIA C | I106: 35 | J106: 83101 | K106: 1 | L106: 7 | M106: 23 | N106: A03804 | O106: 0 | P106: 4412 | Q106: 2 | U106: 45370 | V106: 0
B107: GUANAJUATO | C107: 11EBS0027E | D107: 100 | E107: GOND6504247RA | F107: GOND650424MGTNXL03 | G107: DALIA SONIA GONZALEZ NIÑO | H107: SECRETARIA C | I107: 35 | J107: 83101 | K107: 1 | L107: 7 | M107: 17 | N107: A03804 | O107: 0 | P107: 135 | Q107: 2 | U107: 44677 | V107: 0
B108: GUANAJUATO | C108: 11EBS0027E | D108: 100 | E108: GOPS8011178I3 | F108: GOPS801117MGTMRN09 | G108: MARIA SANDRA GOMEZ PEREZ | H108: SECRETARIA C | I108: 35 | J108: 83101 | K108: 1 | L108: 7 | M108: 20 | N108: A03804 | O108: 0 | P108: 2221 | Q108: 2 | U108: 38186 | V108: 0
B109: GUANAJUATO | C109: 11EBS0027E | D109: 100 | E109: GORE840602N47 | F109: GORE840602HGTNDM00 | G109: EMMANUEL GONZALEZ RODRIGUEZ | H109: TECNICO DOCENTE | I109: 35 | J109: 83101 | K109: 1 | L109: 7 | M109: 27 | N109: T03820 | O109: 0 | P109: 2520 | Q109: 2 | U109: 50226 | V109: 0
B110: GUANAJUATO | C110: 11EBS0027E | D110: 100 | E110: GOSL721116725 | F110: GOSL721116HGTRSS06 | G110: LUIS JAVIER GORDILLO SOSA | H110: TECNICO DOCENTE | I110: 35 | J110: 83101 | K110: 1 | L110: 7 | M110: 28 | N110: T03820 | O110: 0 | P110: 3037 | Q110: 2 | U110: 53894 | V110: 0
B111: GUANAJUATO | C111: 11EBS0027E | D111: 100 | E111: GOTJ781129KP5 | F111: GOTJ781129MGTMPC08 | G111: JACQUELINE GOMEZ TAPIA | H111: ESPECIALISTA EN PROYECTOS TECNICOS | I111: 35 | J111: 83101 | K111: 1 | L111: 7 | M111: 17 | N111: T03810 | O111: 0 | P111: 3702 | Q111: 2 | U111: 44333 | V111: 0
B112: GUANAJUATO | C112: 11EBS0027E | D112: 100 | E112: GUAA541207PD5 | F112: GUAA541207MGTTVL07 | G112: ALMA ROSA GUTIERREZ AVILES | H112: JEFE DE OFICINA | I112: 35 | J112: 83101 | K112: 1 | L112: 7 | M112: 19 | N112: A01807 | O112: 0 | P112: 4231 | Q112: 2 | U112: 45229 | V112: 0
B113: GUANAJUATO | C113: 11EBS0027E | D113: 100 | E113: GUGJ8305032WA | F113: GUGJ830503HGTTVN06 | G113: JUAN JESUS GUTIERREZ GUEVARA | H113: TECNICO DOCENTE | I113: 35 | J113: 83101 | K113: 1 | L113: 7 | M113: 20 | N113: T03820 | O113: 0 | P113: 263 | Q113: 2 | U113: 45819 | V113: 0
B114: GUANAJUATO | C114: 11EBS0027E | D114: 100 | E114: GUHA770213FQ8 | F114: GUHA770213MGTVRL02 | G114: ALMA ROSA GUEVARA HERNANDEZ | H114: TECNICO DOCENTE | I114: 35 | J114: 83101 | K114: 1 | L114: 7 | M114: 23 | N114: T03820 | O114: 0 | P114: 2046 | Q114: 2 | U114: 56436 | V114: 0
B115: GUANAJUATO | C115: 11EBS0027E | D115: 100 | E115: GUMA6701215Q1 | F115: GUMA670121MGTTRN09 | G115: ANA GUTIERREZ MORENO | H115: TECNICO DOCENTE | I115: 35 | J115: 83101 | K115: 1 | L115: 7 | M115: 24 | N115: T03820 | O115: 0 | P115: 700 | Q115: 2 | U115: 55768 | V115: 0
B116: GUANAJUATO | C116: 11EBS0027E | D116: 100 | E116: GUMC6804029G4 | F116: GUMC680402MGTZNR09 | G116: MARIA DEL CARMEN GUZMAN MANZANILLA | H116: TECNICO DOCENTE | I116: 35 | J116: 83101 | K116: 1 | L116: 7 | M116: 38 | N116: T03820 | O116: 0 | P116: 1911 | Q116: 2 | U116: 57126 | V116: 0
B117: GUANAJUATO | C117: 11EBS0027E | D117: 100 | E117: GUOA740914U2A | F117: GUOA740914MMNDRN06 | G117: MA. DE LOS ANGELES GUDIÑO ORDAZ | H117: SECRETARIA C | I117: 35 | J117: 83101 | K117: 1 | L117: 9 | M117: 49 | N117: A03804 | O117: 0 | P117: 16 | Q117: 2 | U117: 44855 | V117: 0
B118: GUANAJUATO | C118: 11EBS0027E | D118: 100 | E118: GURR6007275B3 | F118: GURR600727HSPLMD06 | G118: RODOLFO GUEL RAMIREZ | H118: TECNICO DOCENTE | I118: 35 | J118: 83101 | K118: 1 | L118: 7 | M118: 30 | N118: T03820 | O118: 0 | P118: 2478 | Q118: 2 | U118: 54920 | V118: 0
B119: GUANAJUATO | C119: 11EBS0027E | D119: 100 | E119: GURV740105E98 | F119: GURV740105MGTRDR07 | G119: VERONICA GUERRERO RODRIGUEZ | H119: SECRETARIA C | I119: 35 | J119: 83101 | K119: 1 | L119: 7 | M119: 23 | N119: A03804 | O119: 0 | P119: 393 | Q119: 2 | U119: 45731 | V119: 0
B120: GUANAJUATO | C120: 11EBS0027E | D120: 100 | E120: GUSS6608135L6 | F120: GUSS660813MGTRNF04 | G120: SOFIA GUERRERO SANDOVAL | H120: TECNICO DOCENTE | I120: 35 | J120: 83101 | K120: 1 | L120: 7 | M120: 23 | N120: T03820 | O120: 0 | P120: 590 | Q120: 2 | U120: 55200 | V120: 0
B121: GUANAJUATO | C121: 11EBS0027E | D121: 100 | E121: HEAD9302028F6 | F121: HEAD930202HGTRLN05 | G121: DANIEL HERNANDEZ ALDACO | H121: JEFE DE DEPARTAMENTO | I121: 40 | J121: 83101 | K121: 1 | L121: 8 | M121: 46 | N121: CF01059 | O121: 0 | P121: 21 | Q121: 5 | U121: 28446 | V121: 0
B122: GUANAJUATO | C122: 11EBS0027E | D122: 100 | E122: HEAE670513TV7 | F122: HEAE670513HGTRGD08 | G122: EDUARDO HERNANDEZ AGUADO | H122: ANALISTA ADMINISTRATIVO | I122: 35 | J122: 83101 | K122: 1 | L122: 3 | M122: 7 | N122: A01806 | O122: 0 | P122: 552 | Q122: 2 | U122: 47425 | V122: 0
B123: GUANAJUATO | C123: 11EBS0027E | D123: 100 | E123: HECA7404077F6 | F123: HECA740407MGTRND08 | G123: ADRIANA HERNANDEZ CANTERO | H123: TECNICO MEDIO | I123: 35 | J123: 83101 | K123: 1 | L123: 7 | M123: 26 | N123: T03803 | O123: 0 | P123: 311 | Q123: 2 | U123: 47060 | V123: 0
B124: GUANAJUATO | C124: 11EBS0027E | D124: 100 | E124: HECE750420552 | F124: HECE750420MGTRRM01 | G124: MA. EMILIA HERNANDEZ CARDENAS | H124: JEFE DE OFICINA | I124: 35 | J124: 83101 | K124: 1 | L124: 7 | M124: 18 | N124: A01807 | O124: 0 | P124: 410 | Q124: 2 | U124: 51293 | V124: 0
B125: GUANAJUATO | C125: 11EBS0027E | D125: 100 | E125: HECG7209202C4 | F125: HECG720920MGTRRR07 | G125: GRISELDA HERRERA CERVANTES | H125: SECRETARIA C | I125: 35 | J125: 83101 | K125: 1 | L125: 7 | M125: 24 | N125: A03804 | O125: 0 | P125: 80 | Q125: 2 | U125: 46848 | V125: 0
B126: GUANAJUATO | C126: 11EBS0027E | D126: 100 | E126: HECR621219RI5 | F126: HECR621219MGTRRS02 | G126: MARIA DEL ROSARIO HERNANDEZ CARDENAS | H126: JEFE DE OFICINA | I126: 35 | J126: 83101 | K126: 1 | L126: 7 | M126: 18 | N126: A01807 | O126: 0 | P126: 2481 | Q126: 2 | U126: 51747 | V126: 0
B127: GUANAJUATO | C127: 11EBS0027E | D127: 100 | E127: HECS730303TG6 | F127: HECS730303MGTRNS05 | G127: SUSANA TERESA HERNANDEZ CANTERO | H127: TECNICO MEDIO | I127: 35 | J127: 83101 | K127: 1 | L127: 7 | M127: 14 | N127: T03803 | O127: 0 | P127: 1921 | Q127: 2 | U127: 47592 | V127: 0
B128: GUANAJUATO | C128: 11EBS0027E | D128: 100 | E128: HEDM871214861 | F128: HEDM871214HGTRLN04 | G128: JOSE MANUEL HERNANDEZ DELGADO | H128: TECNICO MEDIO | I128: 35 | J128: 83101 | K128: 1 | L128: 9 | M128: 51 | N128: T03803 | O128: 0 | P128: 512 | Q128: 2 | U128: 40362 | V128: 0
B129: GUANAJUATO | C129: 11EBS0027E | D129: 100 | E129: HEEE731209HI1 | F129: HEEE731209MGTRSS09 | G129: ESMERALDA HERNANDEZ ESCOGIDO | H129: PROFESIONAL DICTAMINADOR DE SERVICIOS ESPECIALIZADOS | I129: 35 | J129: 83101 | K129: 1 | L129: 9 | M129: 52 | N129: CF21865 | O129: 0 | P129: 6 | Q129: 2 | U129: 73179 | V129: 0
B130: GUANAJUATO | C130: 11EBS0027E | D130: 100 | E130: HELM750417G75 | F130: HELM750417MGTRZG00 | G130: MARIA MAGDALENA HERNANDEZ LAZO | H130: TECNICO DOCENTE | I130: 35 | J130: 83101 | K130: 1 | L130: 7 | M130: 19 | N130: T03820 | O130: 0 | P130: 122 | Q130: 2 | U130: 46799 | V130: 0
B131: GUANAJUATO | C131: 11EBS0027E | D131: 100 | E131: HEMM781102T78 | F131: HEMM781102MGTRNR07 | G131: MARISELA HERNANDEZ MONTOYA | H131: TECNICO DOCENTE | I131: 35 | J131: 83101 | K131: 1 | L131: 7 | M131: 35 | N131: T03820 | O131: 0 | P131: 1999 | Q131: 2 | U131: 53724 | V131: 0
B132: GUANAJUATO | C132: 11EBS0027E | D132: 100 | E132: HEPC690801P80 | F132: HEPC690801MGTRRR08 | G132: MA. DEL CARMEN HERNANDEZ PEREZ | H132: TECNICO DOCENTE | I132: 35 | J132: 83101 | K132: 1 | L132: 7 | M132: 27 | N132: T03820 | O132: 0 | P132: 1221 | Q132: 2 | U132: 55907 | V132: 0
B133: GUANAJUATO | C133: 11EBS0027E | D133: 100 | E133: HERA790725FQ8 | F133: HERA790725MGTRDL08 | G133: ALEJANDRA HERNANDEZ RODRIGUEZ | H133: ANALISTA ADMINISTRATIVO | I133: 35 | J133: 83101 | K133: 1 | L133: 7 | M133: 15 | N133: A01806 | O133: 0 | P133: 1523 | Q133: 2 | U133: 44043 | V133: 0
B134: GUANAJUATO | C134: 11EBS0027E | D134: 100 | E134: HERG571023MS0 | F134: HERG571023MGTRPD07 | G134: MA. GUADALUPE JUDITH HERNANDEZ RIPALDA | H134: PROFESIONAL DICTAMINADOR DE SERVICIOS ESPECIALIZADOS | I134: 35 | J134: 83101 | K134: 1 | L134: 1 | M134: 1 | N134: CF21865 | O134: 0 | P134: 1 | Q134: 2 | U134: 73404 | V134: 0
B135: GUANAJUATO | C135: 11EBS0027E | D135: 100 | E135: HERL8008128A5 | F135: HERL800812MGTRSR15 | G135: LAURA ELENA HERRERA RIOS | H135: TECNICO DOCENTE | I135: 35 | J135: 83101 | K135: 1 | L135: 7 | M135: 20 | N135: T03820 | O135: 0 | P135: 4411 | Q135: 2 | U135: 46453 | V135: 0
B136: GUANAJUATO | C136: 11EBS0027E | D136: 100 | E136: HESF670102636 | F136: HESF670102HGTRLR07 | G136: FERMIN HERNANDEZ SILVA | H136: JEFE DE OFICINA | I136: 35 | J136: 83101 | K136: 1 | L136: 7 | M136: 35 | N136: A01807 | O136: 0 | P136: 405 | Q136: 2 | U136: 53153 | V136: 0
B137: GUANAJUATO | C137: 11EBS0027E | D137: 100 | E137: HOHL860601124 | F137: HOHL860601MGTRRZ09 | G137: LUZ ANGELICA HORTA HERNANDEZ | H137: PROFESIONAL DICTAMINADOR DE SERVICIOS ESPECIALIZADOS | I137: 35 | J137: 83101 | K137: 1 | L137: 2 | M137: 4 | N137: CF21865 | O137: 0 | P137: 4 | Q137: 2 | U137: 59306 | V137: 0
B138: GUANAJUATO | C138: 11EBS0027E | D138: 100 | E138: HUED670420517 | F138: HUED670420HDFRSV00 | G138: DAVID HUERTA ESTRADA | H138: TECNICO DOCENTE | I138: 35 | J138: 83101 | K138: 1 | L138: 7 | M138: 14 | N138: T03820 | O138: 0 | P138: 699 | Q138: 2 | U138: 56160 | V138: 0
B139: GUANAJUATO | C139: 11EBS0027E | D139: 100 | E139: HUOR660813PR3 | F139: HUOR660813MGTRLS01 | G139: ROSA ALICIA HUERTA OLIVARES | H139: PROFESIONAL DICTAMINADOR DE SERVICIOS ESPECIALIZADOS | I139: 35 | J139: 83101 | K139: 1 | L139: 9 | M139: 51 | N139: CF21865 | O139: 0 | P139: 3 | Q139: 2 | U139: 53441 | V139: 0
B140: GUANAJUATO | C140: 11EBS0027E | D140: 100 | E140: JIAR5906097A6 | F140: JIAR590609HVZMNB07 | G140: ROBERTO JIMENEZ DEL ANGEL | H140: DELEGADO | I140: 40 | J140: 83101 | K140: 1 | L140: 5 | M140: 12 | N140: CF14070 | O140: 0 | P140: 32 | Q140: 5 | U140: 362736 | V140: 0
B141: GUANAJUATO | C141: 11EBS0027E | D141: 100 | E141: JUAA750702KJ9 | F141: JUAA750702HGTRRN04 | G141: JOSE ANDRES JUAREZ ARROYO | H141: TECNICO DOCENTE | I141: 35 | J141: 83101 | K141: 1 | L141: 7 | M141: 19 | N141: T03820 | O141: 0 | P141: 3033 | Q141: 2 | U141: 56868 | V141: 0
B142: GUANAJUATO | C142: 11EBS0027E | D142: 100 | E142: JUON6804281K2 | F142: JUON680428HGTRRX00 | G142: NOE JUAREZ ORTEGA | H142: TECNICO DOCENTE | I142: 35 | J142: 83101 | K142: 1 | L142: 7 | M142: 41 | N142: T03820 | O142: 0 | P142: 2582 | Q142: 2 | U142: 56654 | V142: 0
B143: GUANAJUATO | C143: 11EBS0027E | D143: 100 | E143: LAMZ780504N49 | F143: LAMZ780504MSLRNN01 | G143: ZINTIA DENISE LARA MENDIVIL | H143: TECNICO DOCENTE | I143: 35 | J143: 83101 | K143: 1 | L143: 7 | M143: 24 | N143: T03820 | O143: 0 | P143: 2744 | Q143: 2 | U143: 48313 | V143: 0
B144: GUANAJUATO | C144: 11EBS0027E | D144: 100 | E144: LAOJ8212131K9 | F144: LAOJ821213HGTRLS09 | G144: JESUS SAMUEL LARA OLMOS | H144: TECNICO DOCENTE | I144: 35 | J144: 83101 | K144: 1 | L144: 7 | M144: 22 | N144: T03820 | O144: 0 | P144: 1573 | Q144: 2 | U144: 51296 | V144: 0
B145: GUANAJUATO | C145: 11EBS0027E | D145: 100 | E145: LERF661028KV3 | F145: LERF661028HGTNZR04 | G145: FERNANDO LEON RUIZ | H145: TECNICO MEDIO | I145: 35 | J145: 83101 | K145: 1 | L145: 8 | M145: 44 | N145: T03803 | O145: 0 | P145: 184 | Q145: 2 | U145: 43756 | V145: 0
B146: GUANAJUATO | C146: 11EBS0027E | D146: 100 | E146: LERM7308264B5 | F146: LERM730826MGTDSN09 | G146: MONICA LEDESMA ROSALES | H146: TECNICO DOCENTE | I146: 35 | J146: 83101 | K146: 1 | L146: 7 | M146: 13 | N146: T03820 | O146: 0 | P146: 1757 | Q146: 2 | U146: 52313 | V146: 0
B147: GUANAJUATO | C147: 11EBS0027E | D147: 100 | E147: LIAR601225KG4 | F147: LIAR601225HDGCRN09 | G147: RENATO LICON ARANDA | H147: COORDINADOR DE ZONA | I147: 40 | J147: 83101 | K147: 1 | L147: 7 | M147: 14 | N147: CF36014 | O147: 0 | P147: 2581 | Q147: 5 | U147: 106280 | V147: 0
B148: GUANAJUATO | C148: 11EBS0027E | D148: 100 | E148: LOCJ8109121HA | F148: LOCJ810912HDFPRN00 | G148: JUAN CARLOS LOPEZ CRUZ | H148: SECRETARIA C | I148: 35 | J148: 83101 | K148: 1 | L148: 7 | M148: 27 | N148: A03804 | O148: 0 | P148: 2592 | Q148: 2 | U148: 45907 | V148: 0
B149: GUANAJUATO | C149: 11EBS0027E | D149: 100 | E149: LOGC850904FK8 | F149: LOGC850904HGTPRR05 | G149: CARLOS ALBERTO LOPEZ GARCIA | H149: TECNICO DOCENTE | I149: 35 | J149: 83101 | K149: 1 | L149: 7 | M149: 24 | N149: T03820 | O149: 0 | P149: 67 | Q149: 2 | U149: 46247 | V149: 0
B150: GUANAJUATO | C150: 11EBS0027E | D150: 100 | E150: LOLA751009LC7 | F150: LOLA751009MGTPNN06 | G150: MA. DE LOS ANGELES LOPEZ LUNA | H150: TECNICO DOCENTE | I150: 35 | J150: 83101 | K150: 1 | L150: 7 | M150: 25 | N150: T03820 | O150: 0 | P150: 1951 | Q150: 2 | U150: 54806 | V150: 0
B151: GUANAJUATO | C151: 11EBS0027E | D151: 100 | E151: LOLB681130LWA | F151: LOLB681130MGTPLT03 | G151: BEATRIZ LOPEZ LLANOS | H151: TECNICO DOCENTE | I151: 35 | J151: 83101 | K151: 1 | L151: 7 | M151: 36 | N151: T03820 | O151: 0 | P151: 282 | Q151: 2 | U151: 50158 | V151: 0
B152: GUANAJUATO | C152: 11EBS0027E | D152: 100 | E152: LOPG651225LA9 | F152: LOPG651225MDFPRB01 | G152: GABRIELA DE JESUS LOPEZ PERERA | H152: COORDINADOR DE ZONA | I152: 40 | J152: 83101 | K152: 1 | L152: 7 | M152: 38 | N152: CF36014 | O152: 0 | P152: 378 | Q152: 5 | U152: 106310 | V152: 0
B153: GUANAJUATO | C153: 11EBS0027E | D153: 100 | E153: LOSS570105T33 | F153: LOSS570105MTSZLS00 | G153: SUSANA ENRIQUETA LOZANO SALCEDO | H153: ANALISTA ADMINISTRATIVO | I153: 35 | J153: 83101 | K153: 1 | L153: 9 | M153: 52 | N153: A01806 | O153: 0 | P153: 116 | Q153: 2 | U153: 44349 | V153: 0
B154: GUANAJUATO | C154: 11EBS0027E | D154: 100 | E154: LOVE3907178K6 | F154: LOVE390717MGTPZS07 | G154: MA. ESTELA LOPEZ VAZQUEZ | H154: JEFE DE OFICINA | I154: 35 | J154: 83101 | K154: 1 | L154: 7 | M154: 20 | N154: A01807 | O154: 0 | P154: 340 | Q154: 2 | U154: 51137 | V154: 0
B155: GUANAJUATO | C155: 11EBS0027E | D155: 100 | E155: LOVH74031691A | F155: LOVH740316HDFPNG06 | G155: HUGO LOPEZ VENEGAS | H155: TECNICO DOCENTE | I155: 35 | J155: 83101 | K155: 1 | L155: 7 | M155: 19 | N155: T03820 | O155: 0 | P155: 2029 | Q155: 2 | U155: 54536 | V155: 0
B156: GUANAJUATO | C156: 11EBS0027E | D156: 100 | E156: LUMR751129U75 | F156: LUMR751129HGTGTC02 | G156: RICARDO ERNESTO LUGO MATA | H156: TECNICO DOCENTE | I156: 35 | J156: 83101 | K156: 1 | L156: 7 | M156: 30 | N156: T03820 | O156: 0 | P156: 109 | Q156: 2 | U156: 47745 | V156: 0
B157: GUANAJUATO | C157: 11EBS0027E | D157: 100 | E157: LUOE610116R96 | F157: LUOE610116HDGNLM05 | G157: EMILIO LUNA OLAGUE | H157: TECNICO DOCENTE | I157: 35 | J157: 83101 | K157: 1 | L157: 7 | M157: 14 | N157: T03820 | O157: 0 | P157: 1922 | Q157: 2 | U157: 56610 | V157: 0
B158: GUANAJUATO | C158: 11EBS0027E | D158: 100 | E158: LUPI741127IZ3 | F158: LUPI741127MDFNRS02 | G158: MARIA ISABEL LUNA PEREZ | H158: PROFESIONAL DICTAMINADOR DE SERVICIOS ESPECIALIZADOS | I158: 35 | J158: 83101 | K158: 1 | L158: 3 | M158: 10 | N158: CF21865 | O158: 0 | P158: 9 | Q158: 2 | U158: 73104 | V158: 0
B159: GUANAJUATO | C159: 11EBS0027E | D159: 100 | E159: LURF6001292T1 | F159: LURF600129HGTNMR01 | G159: FRANCISCO JAVIER LUNA RAMIREZ | H159: TECNICO DOCENTE | I159: 35 | J159: 83101 | K159: 1 | L159: 7 | M159: 26 | N159: T03820 | O159: 0 | P159: 200 | Q159: 2 | U159: 56666 | V159: 0
B160: GUANAJUATO | C160: 11EBS0027E | D160: 100 | E160: MAAC750325Q52 | F160: MAAC750325MGTLLR02 | G160: MA. DEL CARMEN MALDONADO ALMANZA | H160: SECRETARIA C | I160: 35 | J160: 83101 | K160: 1 | L160: 1 | M160: 1 | N160: A03804 | O160: 0 | P160: 1522 | Q160: 2 | U160: 42112 | V160: 0
B161: GUANAJUATO | C161: 11EBS0027E | D161: 100 | E161: MAAC750527A26 | F161: MAAC750527MGTRGR07 | G161: CAROLINA MARTINEZ AGREDA | H161: ESPECIALISTA EN PROYECTOS TECNICOS | I161: 35 | J161: 83101 | K161: 1 | L161: 8 | M161: 44 | N161: T03810 | O161: 0 | P161: 266 | Q161: 2 | U161: 40450 | V161: 0
B162: GUANAJUATO | C162: 11EBS0027E | D162: 100 | E162: MAAL680513MP3 | F162: MAAL680513MMNRNZ01 | G162: MARIA DE LA LUZ MARTINEZ ANDRADE | H162: TECNICO MEDIO | I162: 35 | J162: 83101 | K162: 1 | L162: 7 | M162: 13 | N162: T03803 | O162: 0 | P162: 53 | Q162: 2 | U162: 48702 | V162: 0
B163: GUANAJUATO | C163: 11EBS0027E | D163: 100 | E163: MACE770912412 | F163: MACE770912HQTRHC07 | G163: ECTOR JAVIER MARTINEZ CHAVEZ | H163: COORDINADOR DE ZONA | I163: 40 | J163: 83101 | K163: 1 | L163: 7 | M163: 28 | N163: CF36014 | O163: 0 | P163: 351 | Q163: 5 | U163: 106688 | V163: 0
B164: GUANAJUATO | C164: 11EBS0027E | D164: 100 | E164: MADT730323NL2 | F164: MADT730323MGTTVR17 | G164: TERESITA DE JESUS MATA DAVALOS | H164: ESPECIALISTA EN PROYECTOS TECNICOS | I164: 35 | J164: 83101 | K164: 1 | L164: 7 | M164: 21 | N164: T03810 | O164: 0 | P164: 466 | Q164: 2 | U164: 48615 | V164: 0
B165: GUANAJUATO | C165: 11EBS0027E | D165: 100 | E165: MAGE550714NZ1 | F165: MAGE550714HGTRNS03 | G165: ESTEBAN MARTINEZ GONZALEZ | H165: TECNICO DOCENTE | I165: 35 | J165: 83101 | K165: 1 | L165: 7 | M165: 30 | N165: T03820 | O165: 0 | P165: 127 | Q165: 2 | U165: 57209 | V165: 0
B166: GUANAJUATO | C166: 11EBS0027E | D166: 100 | E166: MAGE551119NR4 | F166: MAGE551119MGTYRD05 | G166: EDITH MAYCOTTE GRANADOS | H166: TECNICO DOCENTE | I166: 35 | J166: 83101 | K166: 1 | L166: 7 | M166: 16 | N166: T03820 | O166: 0 | P166: 1630 | Q166: 2 | U166: 55947 | V166: 0
B167: GUANAJUATO | C167: 11EBS0027E | D167: 100 | E167: MAGE751103B16 | F167: MAGE751103MGTYTR08 | G167: ERIKA GUADALUPE MAYCOTTE GUTIERREZ | H167: ANALISTA ADMINISTRATIVO | I167: 35 | J167: 83101 | K167: 1 | L167: 7 | M167: 16 | N167: A01806 | O167: 0 | P167: 534 | Q167: 2 | U167: 48427 | V167: 0
B168: GUANAJUATO | C168: 11EBS0027E | D168: 100 | E168: MAGM6404092N1 | F168: MAGM640409MGTNNR08 | G168: MARTA MANDUJANO GONZALEZ | H168: TECNICO DOCENTE | I168: 35 | J168: 83101 | K168: 1 | L168: 7 | M168: 37 | N168: T03820 | O168: 0 | P168: 749 | Q168: 2 | U168: 60785 | V168: 0
B169: GUANAJUATO | C169: 11EBS0027E | D169: 100 | E169: MALA730704I26 | F169: MALA730704HGTRPR02 | G169: ARNULFO MARQUEZ LOPEZ | H169: TECNICO DOCENTE | I169: 35 | J169: 83101 | K169: 1 | L169: 7 | M169: 27 | N169: T03820 | O169: 0 | P169: 832 | Q169: 2 | U169: 53767 | V169: 0
B170: GUANAJUATO | C170: 11EBS0027E | D170: 100 | E170: MAOL731125E39 | F170: MAOL731125MGTLRC03 | G170: LUCINA MALDONADO ORDUÑO | H170: JEFE DE OFICINA | I170: 35 | J170: 83101 | K170: 1 | L170: 9 | M170: 49 | N170: A01807 | O170: 0 | P170: 598 | Q170: 2 | U170: 51210 | V170: 0
B171: GUANAJUATO | C171: 11EBS0027E | D171: 100 | E171: MARC601223340 | F171: MARC601223MGTRLC03 | G171: CECILIA MARTINEZ RUELAS | H171: TECNICO DOCENTE | I171: 35 | J171: 83101 | K171: 1 | L171: 7 | M171: 33 | N171: T03820 | O171: 0 | P171: 475 | Q171: 2 | U171: 50942 | V171: 0
B172: GUANAJUATO | C172: 11EBS0027E | D172: 100 | E172: MASV810101DZ8 | F172: MASV810101MGTRRR01 | G172: VERONICA MARTINEZ SARABIA | H172: TECNICO DOCENTE | I172: 35 | J172: 83101 | K172: 1 | L172: 7 | M172: 21 | N172: T03820 | O172: 0 | P172: 269 | Q172: 2 | U172: 56484 | V172: 0
B173: GUANAJUATO | C173: 11EBS0027E | D173: 100 | E173: MEGG6409203P0 | F173: MEGG640920HGTDLR04 | G173: GERARDO MEDINA GALVAN | H173: SECRETARIA C | I173: 35 | J173: 83101 | K173: 1 | L173: 9 | M173: 51 | N173: A03804 | O173: 0 | P173: 2171 | Q173: 2 | U173: 44503 | V173: 0
B174: GUANAJUATO | C174: 11EBS0027E | D174: 100 | E174: MELR640522PX9 | F174: MELR640522MGTNNT06 | G174: RITA MENDEZ LEON | H174: TECNICO DOCENTE | I174: 35 | J174: 83101 | K174: 1 | L174: 7 | M174: 24 | N174: T03820 | O174: 0 | P174: 456 | Q174: 2 | U174: 54750 | V174: 0
B175: GUANAJUATO | C175: 11EBS0027E | D175: 100 | E175: MENC680926QE2 | F175: MENC680926MGTDVR02 | G175: MARIA DEL CARMEN MEDEL NAVARRETE | H175: TECNICO DOCENTE | I175: 35 | J175: 83101 | K175: 1 | L175: 7 | M175: 20 | N175: T03820 | O175: 0 | P175: 1929 | Q175: 2 | U175: 54898 | V175: 0
B176: GUANAJUATO | C176: 11EBS0027E | D176: 100 | E176: METC6212134V3 | F176: METC621213HGTRPS06 | G176: CESAR MARTIN MERINO TAPIA | H176: TECNICO DOCENTE | I176: 35 | J176: 83101 | K176: 1 | L176: 7 | M176: 15 | N176: T03820 | O176: 0 | P176: 2186 | Q176: 2 | U176: 54492 | V176: 0
B177: GUANAJUATO | C177: 11EBS0027E | D177: 100 | E177: MEVG630915G81 | F177: MEVG630915MGTRRD08 | G177: MA. GUADALUPE MERCADO VARELA | H177: TECNICO DOCENTE | I177: 35 | J177: 83101 | K177: 1 | L177: 7 | M177: 37 | N177: T03820 | O177: 0 | P177: 951 | Q177: 2 | U177: 58121 | V177: 0
B178: GUANAJUATO | C178: 11EBS0027E | D178: 100 | E178: MISR800307LH4 | F178: MISR800307MGTRLS07 | G178: ROSAURA MIRANDA SALAZAR | H178: ANALISTA ADMINISTRATIVO | I178: 35 | J178: 83101 | K178: 1 | L178: 7 | M178: 15 | N178: A01806 | O178: 0 | P178: 4232 | Q178: 2 | U178: 49602 | V178: 0
B179: GUANAJUATO | C179: 11EBS0027E | D179: 100 | E179: MIYA600511Q72 | F179: MIYA600511MGTRRN01 | G179: MA. ANTONIA MIRANDA YERENA | H179: ANALISTA ADMINISTRATIVO | I179: 35 | J179: 83101 | K179: 1 | L179: 7 | M179: 26 | N179: A01806 | O179: 0 | P179: 298 | Q179: 2 | U179: 44024 | V179: 0
B180: GUANAJUATO | C180: 11EBS0027E | D180: 100 | E180: MOCK900306NE6 | F180: MOCK900306MDFRSR15 | G180: KAREN ANEL MORENO CASTILLO | H180: TECNICO DOCENTE | I180: 35 | J180: 83101 | K180: 1 | L180: 7 | M180: 27 | N180: T03820 | O180: 0 | P180: 1228 | Q180: 2 | U180: 46675 | V180: 0
B181: GUANAJUATO | C181: 11EBS0027E | D181: 100 | E181: MOGC720409SJ9 | F181: MOGC720409MGTJZL04 | G181: CLAUDIA ELISA MOJICA GUZMAN | H181: TECNICO DOCENTE | I181: 35 | J181: 83101 | K181: 1 | L181: 7 | M181: 13 | N181: T03820 | O181: 0 | P181: 2819 | Q181: 2 | U181: 52262 | V181: 0
B182: GUANAJUATO | C182: 11EBS0027E | D182: 100 | E182: MOMR770326563 | F182: MOMR770326HGTRRB08 | G182: ROBERTO CARLOS MORALES MURO | H182: PROFESIONAL DICTAMINADOR DE SERVICIOS ESPECIALIZADOS | I182: 35 | J182: 83101 | K182: 1 | L182: 9 | M182: 51 | N182: CF21865 | O182: 0 | P182: 13 | Q182: 2 | U182: 72510 | V182: 0
B183: GUANAJUATO | C183: 11EBS0027E | D183: 100 | E183: MORM7609166F8 | F183: MORC760916MMCNZR07 | G183: MA. DEL CARMEN MONTES DE OCA REZA | H183: TECNICO DOCENTE | I183: 35 | J183: 83101 | K183: 1 | L183: 7 | M183: 16 | N183: T03820 | O183: 0 | P183: 2525 | Q183: 2 | U183: 46461 | V183: 0
B184: GUANAJUATO | C184: 11EBS0027E | D184: 100 | E184: MOSR650129V62 | F184: MOSR650129MGTRNF09 | G184: MA. DEL REFUGIO MORONES SANCHEZ | H184: TECNICO DOCENTE | I184: 35 | J184: 83101 | K184: 1 | L184: 7 | M184: 27 | N184: T03820 | O184: 0 | P184: 914 | Q184: 2 | U184: 56549 | V184: 0
B185: GUANAJUATO | C185: 11EBS0027E | D185: 100 | E185: MOTE6904283LA | F185: MOTE690428MGTRRL09 | G185: ELVIRA MORALES TORRES | H185: TECNICO DOCENTE | I185: 35 | J185: 83101 | K185: 1 | L185: 7 | M185: 24 | N185: T03820 | O185: 0 | P185: 1715 | Q185: 2 | U185: 54322 | V185: 0
B186: GUANAJUATO | C186: 11EBS0027E | D186: 100 | E186: MUHD640208LB9 | F186: MUHD640208MDFXRL08 | G186: MARIA DOLORES MUÑOZ HERRERA | H186: TECNICO DOCENTE | I186: 35 | J186: 83101 | K186: 1 | L186: 7 | M186: 13 | N186: T03820 | O186: 0 | P186: 3030 | Q186: 2 | U186: 56798 | V186: 0
B187: GUANAJUATO | C187: 11EBS0027E | D187: 100 | E187: MURE780503RL7 | F187: MURE780503MGTXVS02 | G187: MARIA ESMERALDA MUÑOZ RIVERA | H187: PROFESIONAL DICTAMINADOR DE SERVICIOS ESPECIALIZADOS | I187: 35 | J187: 83101 | K187: 1 | L187: 8 | M187: 44 | N187: CF21865 | O187: 0 | P187: 11 | Q187: 2 | U187: 73104 | V187: 0
B188: GUANAJUATO | C188: 11EBS0027E | D188: 100 | E188: MURM820910149 | F188: MURM820910HGTRDR08 | G188: MAURICIO ALEJANDRO MURILLO RODRIGUEZ | H188: COORDINADOR DE ZONA | I188: 40 | J188: 83101 | K188: 1 | L188: 7 | M188: 21 | N188: CF36014 | O188: 0 | P188: 2222 | Q188: 5 | U188: 101453 | V188: 0
B189: GUANAJUATO | C189: 11EBS0027E | D189: 100 | E189: NAHL730801RV8 | F189: NAHL730801MGTVRR01 | G189: MARIA DE LOURDES NAVARRO HERNANDEZ | H189: ANALISTA ADMINISTRATIVO | I189: 35 | J189: 83101 | K189: 1 | L189: 7 | M189: 26 | N189: A01806 | O189: 0 | P189: 490 | Q189: 2 | U189: 45907 | V189: 0
B190: GUANAJUATO | C190: 11EBS0027E | D190: 100 | E190: NAMS5306098W6 | F190: NAMS530609MGTRRL00 | G190: SILVIA LAURA NARVAEZ MORA | H190: TECNICO DOCENTE | I190: 35 | J190: 83101 | K190: 1 | L190: 7 | M190: 16 | N190: T03820 | O190: 0 | P190: 1619 | Q190: 2 | U190: 60243 | V190: 0
B191: GUANAJUATO | C191: 11EBS0027E | D191: 100 | E191: NEAC740715LD9 | F191: NEAC740715HGTGRR02 | G191: CRISTOBAL NEGRETE ARIAS | H191: TECNICO DOCENTE | I191: 35 | J191: 83101 | K191: 1 | L191: 7 | M191: 20 | N191: T03820 | O191: 0 | P191: 1990 | Q191: 2 | U191: 57612 | V191: 0
B192: GUANAJUATO | C192: 11EBS0027E | D192: 100 | E192: NEGM641224M74 | F192: NEGM641224MGTGVR06 | G192: MARTINA NEGRETE GOVEA | H192: TECNICO DOCENTE | I192: 35 | J192: 83101 | K192: 1 | L192: 7 | M192: 23 | N192: T03820 | O192: 0 | P192: 2894 | Q192: 2 | U192: 48078 | V192: 0
B193: GUANAJUATO | C193: 11EBS0027E | D193: 100 | E193: NEPR690831KW1 | F193: NEPR690831HGTGDM08 | G193: RAMON GUILLERMO NEGRETE PADRON | H193: TECNICO DOCENTE | I193: 35 | J193: 83101 | K193: 1 | L193: 7 | M193: 23 | N193: T03820 | O193: 0 | P193: 264 | Q193: 2 | U193: 51851 | V193: 0
B194: GUANAJUATO | C194: 11EBS0027E | D194: 100 | E194: NIMU831228318 | F194: NIMU831228MGTXRR02 | G194: URSULA MACARENA NIÑO MARTINEZ | H194: TECNICO DOCENTE | I194: 35 | J194: 83101 | K194: 1 | L194: 7 | M194: 33 | N194: T03820 | O194: 0 | P194: 570 | Q194: 2 | U194: 48728 | V194: 0
B195: GUANAJUATO | C195: 11EBS0027E | D195: 100 | E195: NOSV840205QG9 | F195: NOSV840205HGTRLC08 | G195: VICTOR ALFONSO NORIEGA SILVA | H195: ANALISTA ADMINISTRATIVO | I195: 35 | J195: 83101 | K195: 1 | L195: 1 | M195: 3 | N195: CF34810 | O195: 0 | P195: 31 | Q195: 2 | U195: 39860 | V195: 0
B196: GUANAJUATO | C196: 11EBS0027E | D196: 100 | E196: OAGM681221I42 | F196: OAGM681221MGTRRR09 | G196: MARICRUZ ORDAZ GRANADOS | H196: TECNICO MEDIO | I196: 35 | J196: 83101 | K196: 1 | L196: 7 | M196: 17 | N196: T03803 | O196: 0 | P196: 42 | Q196: 2 | U196: 34580 | V196: 0
B197: GUANAJUATO | C197: 11EBS0027E | D197: 100 | E197: OEGL8003134Z8 | F197: OEGL800313MGTRMR09 | G197: LAURA AMERICA ORTEGA GAMIÑO | H197: PROFESIONAL DICTAMINADOR DE SERVICIOS ESPECIALIZADOS | I197: 35 | J197: 83101 | K197: 1 | L197: 9 | M197: 50 | N197: CF21865 | O197: 0 | P197: 12 | Q197: 2 | U197: 72804 | V197: 0
B198: GUANAJUATO | C198: 11EBS0027E | D198: 100 | E198: OELM6606116J8 | F198: OELM660611MGTRRR05 | G198: MARTINA ORNELAS LARA | H198: TECNICO DOCENTE | I198: 35 | J198: 83101 | K198: 1 | L198: 7 | M198: 23 | N198: T03820 | O198: 0 | P198: 1746 | Q198: 2 | U198: 52252 | V198: 0
B199: GUANAJUATO | C199: 11EBS0027E | D199: 100 | E199: OEMJ730208CX6 | F199: OEMM730208HGTJDR00 | G199: J. MERCED OJEDA MEDINA | H199: TECNICO DOCENTE | I199: 35 | J199: 83101 | K199: 1 | L199: 7 | M199: 27 | N199: T03820 | O199: 0 | P199: 299 | Q199: 2 | U199: 52270 | V199: 0
B200: GUANAJUATO | C200: 11EBS0027E | D200: 100 | E200: OOPM650124AG1 | F200: OOPM650124HGTRRG05 | G200: MIGUEL OROZCO PEREZ | H200: TECNICO DOCENTE | I200: 35 | J200: 83101 | K200: 1 | L200: 7 | M200: 16 | N200: T03820 | O200: 0 | P200: 413 | Q200: 2 | U200: 57340 | V200: 0
B201: GUANAJUATO | C201: 11EBS0027E | D201: 100 | E201: PACL700401SI9 | F201: PACL700401MGTRHR04 | G201: LAURA PRADO CHAVEZ | H201: ANALISTA ADMINISTRATIVO | I201: 35 | J201: 83101 | K201: 1 | L201: 7 | M201: 23 | N201: A01806 | O201: 0 | P201: 388 | Q201: 2 | U201: 49620 | V201: 0
B202: GUANAJUATO | C202: 11EBS0027E | D202: 100 | E202: PACP681127IL7 | F202: PACP681127MGTRHT00 | G202: PATRICIA PRADO CHAVEZ | H202: SECRETARIA C | I202: 35 | J202: 83101 | K202: 1 | L202: 7 | M202: 13 | N202: A03804 | O202: 0 | P202: 25 | Q202: 2 | U202: 48557 | V202: 0
B203: GUANAJUATO | C203: 11EBS0027E | D203: 100 | E203: PAGG860302DX9 | F203: PAGG860302MDFDRB08 | G203: GABRIELA PADILLA GUERRERO | H203: ESPECIALISTA EN PROYECTOS TECNICOS | I203: 35 | J203: 83101 | K203: 1 | L203: 9 | M203: 52 | N203: T03810 | O203: 0 | P203: 369 | Q203: 2 | U203: 37497 | V203: 0
B204: GUANAJUATO | C204: 11EBS0027E | D204: 100 | E204: PAGT5911092P8 | F204: PAGT591109HGTLRD01 | G204: TEODORO PALMERIN GARCIA | H204: TECNICO DOCENTE | I204: 35 | J204: 83101 | K204: 1 | L204: 7 | M204: 16 | N204: T03820 | O204: 0 | P204: 2211 | Q204: 2 | U204: 56632 | V204: 0
B205: GUANAJUATO | C205: 11EBS0027E | D205: 100 | E205: PAQF701109SJ2 | F205: PAQF701109HGTRNL00 | G205: FILEMON PAREDON QUINTERO | H205: TECNICO DOCENTE | I205: 35 | J205: 83101 | K205: 1 | L205: 7 | M205: 19 | N205: T03820 | O205: 0 | P205: 2780 | Q205: 2 | U205: 56092 | V205: 0
B206: GUANAJUATO | C206: 11EBS0027E | D206: 100 | E206: PEAR630107AT2 | F206: PEAR630107HMCXRY08 | G206: JOSE REY PEÑA ARRIAGA | H206: ANALISTA ADMINISTRATIVO | I206: 35 | J206: 83101 | K206: 1 | L206: 9 | M206: 51 | N206: A01806 | O206: 0 | P206: 115 | Q206: 2 | U206: 45170 | V206: 0
B207: GUANAJUATO | C207: 11EBS0027E | D207: 100 | E207: PECA660503AR0 | F207: PECA660503MGTRBN07 | G207: ANTONIA PEREZ CABELLO | H207: ESPECIALISTA EN PROYECTOS TECNICOS | I207: 35 | J207: 83101 | K207: 1 | L207: 7 | M207: 20 | N207: T03810 | O207: 0 | P207: 129 | Q207: 2 | U207: 45933 | V207: 0
B208: GUANAJUATO | C208: 11EBS0027E | D208: 100 | E208: PECC830605V49 | F208: PECC830605MNEXSN04 | G208: CINTHYA PEÑALOZA CISNEROS | H208: TECNICO MEDIO | I208: 35 | J208: 83101 | K208: 1 | L208: 7 | M208: 27 | N208: T03803 | O208: 0 | P208: 114 | Q208: 2 | U208: 42528 | V208: 0
B209: GUANAJUATO | C209: 11EBS0027E | D209: 100 | E209: PEDM7406101Q5 | F209: PEDM740610MDFRMR01 | G209: MARGARITA PERALTA DOMINGUEZ | H209: TECNICO DOCENTE | I209: 35 | J209: 83101 | K209: 1 | L209: 7 | M209: 26 | N209: T03820 | O209: 0 | P209: 2562 | Q209: 2 | U209: 52331 | V209: 0
B210: GUANAJUATO | C210: 11EBS0027E | D210: 100 | E210: PEEM590530399 | F210: PEEM590530HDFRSN06 | G210: MANUEL ANGEL PEREZ ESCAMILLA | H210: TECNICO DOCENTE | I210: 35 | J210: 83101 | K210: 1 | L210: 7 | M210: 29 | N210: T03820 | O210: 0 | P210: 3292 | Q210: 2 | U210: 56462 | V210: 0
... 79 more rows

Sheet II D) 2
B8: Formato: Movimientos de Plazas
B9: =IF('Caratula Resumen'!D22="Elige el Periodo…","",'Caratula Resumen'!D22) -> Fondo de Aportaciones para la Educación Tecnológica y de Adultos/Instituto Nacional para la Educación de los Adultos (FAETA/INEA) | R9: =IF('Caratula Resumen'!D23="Elige el Periodo…","",'Caratula Resumen'!D23) -> 4to. Trimestre
B12: Entidad Federativa | C12: RFC | D12: CURP | E12: Nombre | F12: Origen Presupuestal de la plazas | G12: Clave Presupuestal | N12: Clave de nivel de puesto | O12: Clave de nivel de sueldo | P12: Zona Económica | Q12: Tipo de movimiento | R12: Quincena Inicial | S12: Quincena Final
G13: Partida Presupuestal | H13: Código de Pago | I13: Clave de Unidad | J13: Clave de Sub Unidad | K13: Clave de Categoría | L13: Horas Semana Mes | M13: Número de Plaza
B15: Entidad Federativa | C15: RFC | D15: CURP | E15: Nombbre | F15: Origen Presupuestal de la plazas | G15: Partida Presupuestal | H15: Código de Pago | I15: Clave de Unidad | J15: Clave de Sub Unidad | K15: Clave de Categoría | L15: Horas semana mes | M15: Número de plaza | N15: Clave de nivel de puesto | O15: Clave de nivel de sueldo | P15: Zona Económica | Q15: Tipo de movimiento | R15: Quincena Inicial | S15: Quincena Final
B16: GUANAJUATO | C16: EALA490401P51 | D16: EALA490401HGTSGL06 | E16: ALFREDO ESPAÑA LAGUNAS | F16: 1 | G16: 831011726T0382000.0000531 | H16: 83101 | I16: 7 | J16: 26 | K16: T03820 | L16: 0 | M16: 531 | N16: 82 | O16: 7 | P16: B | Q16: 3 | R16: 201502 | S16: 201502
B17: GUANAJUATO | C17: LURF6001292T1 | D17: LURF600129HGTNMR01 | E17: FRANCISCO JAVIER LUNA RAMIREZ | F17: 1 | G17: 831011726T0382000.000200 | H17: 83101 | I17: 7 | J17: 26 | K17: T03820 | L17: 0 | M17: 200 | N17: 82 | O17: 7 | P17: B | Q17: 3 | R17: 201502 | S17: 201502
B18: GUANAJUATO | C18: OOPM650124AG1 | D18: OOPM650124HGTRRG05 | E18: MIGUEL OROZCO PEREZ | F18: 1 | G18: 831011716T0382000.000413 | H18: 83101 | I18: 7 | J18: 16 | K18: T03820 | L18: 0 | M18: 413 | N18: 82 | O18: 7 | P18: B | Q18: 3 | R18: 201502 | S18: 201502
B19: GUANAJUATO | C19: GOGA680110DL7 | D19: GOGA680110MGTNYN00 | E19: ANA BERTHA GONZALEZ GAYTAN | F19: 1 | G19: 831011725T0382000.000757 | H19: 83101 | I19: 7 | J19: 25 | K19: T03820 | L19: 0 | M19: 757 | N19: 82 | O19: 7 | P19: B | Q19: 3 | R19: 201502 | S19: 201502
B20: GUANAJUATO | C20: LOSS570105T33 | D20: LOSS570105MTSZLS00 | E20: SUSANA ENRIQUETA LOZANO SALCEDO | F20: 1 | G20: 831011952A0180600.0000116 | H20: 83101 | I20: 9 | J20: 52 | K20: A01806 | L20: 0 | M20: 116 | N20: 70 | O20: 3 | P20: B | Q20: 3 | R20: 201502 | S20: 201502
B21: GUANAJUATO | C21: RATM581224UF9 | D21: RATM581224HGTMRN03 | E21: JOSE MANUEL RAMOS TORRES | F21: 1 | G21: 831011716T0382000.000972 | H21: 83101 | I21: 7 | J21: 16 | K21: T03820 | L21: 0 | M21: 972 | N21: 82 | O21: 7 | P21: B | Q21: 3 | R21: 201502 | S21: 201502
B22: GUANAJUATO | C22: ROSJ600516BL3 | D22: ROSJ600516MGTBNN05 | E22: JUANA ROBLES SANTANA | F22: 1 | G22: 831011728T0382000.0001952 | H22: 83101 | I22: 7 | J22: 28 | K22: T03820 | L22: 0 | M22: 1952 | N22: 82 | O22: 7 | P22: B | Q22: 3 | R22: 201502 | S22: 201502
B23: GUANAJUATO | C23: GOSL721116725 | D23: GOSL721116HGTRSS06 | E23: LUIS JAVIER GORDILLO SOSA | F23: 1 | G23: 831011728T0382000.003037 | H23: 83101 | I23: 7 | J23: 28 | K23: T03820 | L23: 0 | M23: 3037 | N23: 82 | O23: 7 | P23: B | Q23: 3 | R23: 201502 | S23: 201502
B24: GUANAJUATO | C24: RIHM750221AD5 | D24: RIHM750221HGTSRG01 | E24: MIGUEL DAMICIO RIOS HERNANDEZ | F24: 1 | G24: 831011718T0382000.002174 | H24: 83101 | I24: 7 | J24: 18 | K24: T03820 | L24: 0 | M24: 2174 | N24: 82 | O24: 7 | P24: B | Q24: 3 | R24: 201502 | S24: 201502
B25: GUANAJUATO | C25: BAAL701128HC5 | D25: BAAL701128HTSRLN01 | E25: LEANDRO BARRON ALONSO | F25: 1 | G25: 831011718T0382000.002887 | H25: 83101 | I25: 7 | J25: 18 | K25: T03820 | L25: 0 | M25: 2887 | N25: 82 | O25: 7 | P25: B | Q25: 3 | R25: 201502 | S25: 201502
B26: GUANAJUATO | C26: SOSM750119S26 | D26: SOSM750119MGTRTR02 | E26: MARTHA SORIA SOTO | F26: 1 | G26: 831011719A0180600.0003701 | H26: 83101 | I26: 7 | J26: 19 | K26: A01806 | L26: 0 | M26: 3701 | N26: 70 | O26: 3 | P26: B | Q26: 3 | R26: 201502 | S26: 201502
B27: GUANAJUATO | C27: CAGR650930FB6 | D27: CAGR650930HGTLYB04 | E27: RUBEN CALDERON GAYTAN | F27: 1 | G27: 831011725T0382000.001269 | H27: 83101 | I27: 7 | J27: 25 | K27: T03820 | L27: 0 | M27: 1269 | N27: 82 | O27: 7 | P27: B | Q27: 3 | R27: 201502 | S27: 201502
B28: GUANAJUATO | C28: QULJ710417B39 | D28: QULJ710417HDFRPN08 | E28: JUAN BERNARDO QUIROZ LOPEZ | F28: 1 | G28: 831011742T0382000.001530 | H28: 83101 | I28: 7 | J28: 42 | K28: T03820 | L28: 0 | M28: 1530 | N28: 82 | O28: 7 | P28: B | Q28: 3 | R28: 201502 | S28: 201502
B29: GUANAJUATO | C29: AELM6906275A6 | D29: AELR690627MGTRPS15 | E29: MA ROSARIO ARREGUIN LOPEZ | F29: 1 | G29: 831011725T0382000.002195 | H29: 83101 | I29: 7 | J29: 25 | K29: T03820 | L29: 0 | M29: 2195 | N29: 82 | O29: 7 | P29: B | Q29: 3 | R29: 201502 | S29: 201502
B30: GUANAJUATO | C30: RABA570323E11 | D30: RABA570323MDFVSN07 | E30: ANA MARIA RAVELO BUSTAMANTE | F30: 1 | G30: 831011716T0382000.001638 | H30: 83101 | I30: 7 | J30: 16 | K30: T03820 | L30: 0 | M30: 1638 | N30: 82 | O30: 7 | P30: B | Q30: 3 | R30: 201502 | S30: 201502
B31: GUANAJUATO | C31: AUTC7502082I3 | D31: AUTC750208MGTGRN15 | E31: MA. CONSUELO AGUILAR TIRADO | F31: 1 | G31: 831011716T0382000.001623 | H31: 83101 | I31: 7 | J31: 16 | K31: T03820 | L31: 0 | M31: 1623 | N31: 82 | O31: 7 | P31: B | Q31: 3 | R31: 201502 | S31: 201502
B32: GUANAJUATO | C32: FOGE730721216 | D32: FOGE730721HGTLRS04 | E32: ESTEBAN FLORES GARCIA | F32: 1 | G32: 831011725T0382000.000149 | H32: 83101 | I32: 7 | J32: 25 | K32: T03820 | L32: 0 | M32: 149 | N32: 82 | O32: 7 | P32: B | Q32: 3 | R32: 201502 | S32: 201502
B33: GUANAJUATO | C33: CATE6508044X6 | D33: CATE650804MGTRRS04 | E33: ESPERANZA CARRILLO TORRES | F33: 1 | G33: 831011716T0382000.000622 | H33: 83101 | I33: 7 | J33: 16 | K33: T03820 | L33: 0 | M33: 622 | N33: 82 | O33: 7 | P33: B | Q33: 3 | R33: 201502 | S33: 201502
B34: GUANAJUATO | C34: CUPM810513D93 | D34: CUPM810513HGTRRR00 | E34: MARTIN ANTONIO CRUZ PEREZ | F34: 1 | G34: 831011725T0382000.0000942 | H34: 83101 | I34: 7 | J34: 25 | K34: T03820 | L34: 0 | M34: 942 | N34: 82 | O34: 7 | P34: B | Q34: 3 | R34: 201502 | S34: 201502
B35: GUANAJUATO | C35: VEPE671201NI6 | D35: VEPE671201MGTGRG04 | E35: MARIA EUGENIA VEGA PAREDES | F35: 1 | G35: 831011716T0382000.0001632 | H35: 83101 | I35: 7 | J35: 16 | K35: T03820 | L35: 0 | M35: 1632 | N35: 82 | O35: 7 | P35: B | Q35: 3 | R35: 201502 | S35: 201502
B36: GUANAJUATO | C36: AAOA620408HW1 | D36: AAOA620408HGTRLL09 | E36: ALBERTO ARANA OLIVARES | F36: 1 | G36: 831011728T0382000.001202 | H36: 83101 | I36: 7 | J36: 28 | K36: T03820 | L36: 0 | M36: 1202 | N36: 82 | O36: 7 | P36: B | Q36: 3 | R36: 201502 | S36: 201502
B37: GUANAJUATO | C37: GOAS751103PH7 | D37: GOAS751103MGTNRL01 | E37: SILVIA SANTOS GONZALEZ ARANDA | F37: 1 | G37: 831011713T0382000.001656 | H37: 83101 | I37: 7 | J37: 13 | K37: T03820 | L37: 0 | M37: 1656 | N37: 82 | O37: 7 | P37: B | Q37: 3 | R37: 201502 | S37: 201502
B38: GUANAJUATO | C38: GOAS751103PH7 | D38: GOAS751103MGTNRL01 | E38: SILVIA SANTOS GONZALEZ ARANDA | F38: 1 | G38: 831011713T0382000.001656 | H38: 83101 | I38: 7 | J38: 13 | K38: T03820 | L38: 0 | M38: 1656 | N38: 82 | O38: 7 | P38: B | Q38: 3 | R38: 201502 | S38: 201502
B39: GUANAJUATO | C39: FOMJ7811187W8 | D39: FOMJ781118HGTLDN07 | E39: JUAN PABLO FLORES MEDINA | F39: 1 | G39: 831011728T0382000.000128 | H39: 83101 | I39: 7 | J39: 28 | K39: T03820 | L39: 0 | M39: 128 | N39: 82 | O39: 7 | P39: B | Q39: 3 | R39: 201502 | S39: 201502
B40: GUANAJUATO | C40: RACS650614RH2 | D40: RACS650614MZSMLS05 | E40: SUSANA RAMIREZ CALDERON | F40: 1 | G40: 831011713CF3601400.000349 | H40: 83101 | I40: 7 | J40: 13 | K40: CF36014 | L40: 0 | M40: 349 | N40: 92 | O40: OA1 | P40: A | Q40: 3 | R40: 201502 | S40: 201502
B41: GUANAJUATO | C41: LEGA720906CE8 | D41: LEGA720906MCLLNR04 | E41: ARIADNE LEAL GONZALEZ | F41: 1 | G41: 831011727CF3601400.0003701 | H41: 83101 | I41: 7 | J41: 27 | K41: CF36014 | L41: 0 | M41: 3701 | N41: 92 | O41: OA1 | P41: B | Q41: 3 | R41: 201502 | S41: 201502
B42: GUANAJUATO | C42: RUCE791216KR2 | D42: RUCE791216HGTLRD00 | E42: EDUARDO RUELAS CORNEJO | F42: 1 | G42: 831011726CF3601400.0003701 | H42: 83101 | I42: 7 | J42: 26 | K42: CF36014 | L42: 0 | M42: 3701 | N42: 92 | O42: OA1 | P42: A | Q42: 3 | R42: 201502 | S42: 201502
B43: GUANAJUATO | C43: MURM820910149 | D43: MURM820910HGTRDR08 | E43: MAURICIO ALEJANDRO MURILLO RODRIGUEZ | F43: 1 | G43: 831011721CF3601400.0002222 | H43: 83101 | I43: 7 | J43: 21 | K43: CF36014 | L43: 0 | M43: 2222 | N43: 92 | O43: OA1 | P43: A | Q43: 2 | R43: 201502 | S43: 201502
B44: GUANAJUATO | C44: ROMG6809143N6 | D44: ROMG680914MGTJLR05 | E44: GEORGINA ROJAS MELGOZA | F44: 1 | G44: 831011728T0382000.000176 | H44: 83101 | I44: 7 | J44: 28 | K44: T03820 | L44: 0 | M44: 176 | N44: 82 | O44: 7 | P44: B | Q44: 3 | R44: 201502 | S44: 201502
B45: GUANAJUATO | C45: PAPM8010185P8 | D45: PAPM801018MGTRNR06 | E45: MARIBEL PRADO PANTOJA | F45: 1 | G45: 831011735T0382000.001735 | H45: 83101 | I45: 7 | J45: 35 | K45: T03820 | L45: 0 | M45: 1735 | N45: 82 | O45: 7 | P45: B | Q45: 3 | R45: 201502 | S45: 201502
B46: GUANAJUATO | C46: CUME820306JF6 | D46: CUME820306HPLRRS07 | E46: ESTEBAN DE LA CRUZ MORALES | F46: 1 | G46: 831011718A0380400.0003701 | H46: 83101 | I46: 7 | J46: 18 | K46: A03804 | L46: 0 | M46: 3701 | N46: 43 | O46: 2 | P46: B | Q46: 3 | R46: 201502 | S46: 201502
B47: GUANAJUATO | C47: LUMR751129U75 | D47: LUMR751129HGTGTC02 | E47: RICARDO ERNESTO LUGO MATA | F47: 1 | G47: 831011730T0382000.000109 | H47: 83101 | I47: 7 | J47: 30 | K47: T03820 | L47: 0 | M47: 109 | N47: 82 | O47: 7 | P47: B | Q47: 3 | R47: 201502 | S47: 201502
B48: GUANAJUATO | C48: RALE870501NL5 | D48: RALE870501MGTMYL02 | E48: MARIA ELENA RAMOS LOYOLA | F48: 1 | G48: 831011730T0382000.0000118 | H48: 83101 | I48: 7 | J48: 30 | K48: T03820 | L48: 0 | M48: 118 | N48: 82 | O48: 7 | P48: B | Q48: 3 | R48: 201502 | S48: 201502
B49: GUANAJUATO | C49: AECI701001637 | D49: AECI701001MGTRNM05 | E49: IMELDA AREVALO CONSTANTINO | F49: 1 | G49: 831011713CF3601400.0002222 | H49: 83101 | I49: 7 | J49: 13 | K49: CF36014 | L49: 0 | M49: 2222 | N49: 92 | O49: OA1 | P49: A | Q49: 1 | R49: 201502 | S49: 201502
B50: GUANAJUATO | C50: CAGY820417182 | D50: CAGY820417MGTRTJ03 | E50: YAJAHIRA CARDENAS GUTIERREZ | F50: 1 | G50: 831011724T0380300.0000032 | H50: 83101 | I50: 7 | J50: 24 | K50: T03803 | L50: 0 | M50: 32 | N50: 47 | O50: 2 | P50: B | Q50: 1 | R50: 201502 | S50: 201502
B51: GUANAJUATO | C51: ROPE881009G46 | D51: ROPE881009MGTDRV05 | E51: EVELIN GUADALUPE RODRIGUEZ PEREZ | F51: 1 | G51: 83101124A0380400.0000112 | H51: 83101 | I51: 2 | J51: 4 | K51: A03804 | L51: 0 | M51: 112 | N51: 43 | O51: 2 | P51: B | Q51: 1 | R51: 201502 | S51: 201502
B52: GUANAJUATO | C52: CAOD910826S90 | D52: CAOD910826MSPNRL03 | E52: DULCE VIRIDIANA CANO ORTA | F52: 1 | G52: 831011729T0381000.0000201 | H52: 83101 | I52: 7 | J52: 29 | K52: T03810 | L52: 0 | M52: 201 | N52: 39 | O52: 2 | P52: B | Q52: 1 | R52: 201502 | S52: 201502
B53: GUANAJUATO | C53: GARR860218GD7 | D53: GARR860218HGTRJL03 | E53: JOSE RAUL GRANADOS ROJAS | F53: 1 | G53: 831011951A0380400.0000602 | H53: 83101 | I53: 9 | J53: 51 | K53: A03804 | L53: 0 | M53: 602 | N53: 43 | O53: 2 | P53: B | Q53: 1 | R53: 201502 | S53: 201502
B54: GUANAJUATO | C54: HEMR630129LH6 | D54: HEMR630129MGTRRY04 | E54: MA. DEL RAYO HERNANDEZ MORALES | F54: 1 | G54: 83101137T0381000.0004512 | H54: 83101 | I54: 3 | J54: 7 | K54: T03810 | L54: 0 | M54: 4512 | N54: 39 | O54: 2 | P54: B | Q54: 3 | R54: 201503 | S54: 201503
B55: GUANAJUATO | C55: MUFS691006FC3 | D55: MUFS691006HGTRLR09 | E55: SERGIO ALEJANDRO MURILLO FLORES | F55: 1 | G55: 831011844T0381000.000151 | H55: 83101 | I55: 8 | J55: 44 | K55: T03810 | L55: 0 | M55: 151 | N55: 39 | O55: 2 | P55: B | Q55: 3 | R55: 201503 | S55: 201503
B56: GUANAJUATO | C56: HEAE670513TV7 | D56: HEAE670513HGTRGD08 | E56: EDUARDO HERNANDEZ AGUADO | F56: 1 | G56: 83101137A0180600.000552 | H56: 83101 | I56: 3 | J56: 7 | K56: A01806 | L56: 0 | M56: 552 | N56: 70 | O56: 3 | P56: B | Q56: 3 | R56: 201503 | S56: 201503
B57: GUANAJUATO | C57: HECF8509083P5 | D57: HECF850908MGTRLT09 | E57: FATIMA ADRIANA HERNANDEZ CALDERON | F57: 1 | G57: 831011722A0180300.000041 | H57: 83101 | I57: 7 | J57: 22 | K57: A01803 | L57: 0 | M57: 41 | N57: 29 | O57: 2 | P57: B | Q57: 2 | R57: 201503 | S57: 201503
B58: GUANAJUATO | C58: PEAJ870606KY9 | D58: PEAJ870606HGTSRS04 | E58: JOSUE DAVIDPESCADOR ARREDONDO | F58: 1 | G58: 831011717T0382000.000617 | H58: 83101 | I58: 7 | J58: 17 | K58: T03820 | L58: 0 | M58: 617 | N58: 82 | O58: 7 | P58: B | Q58: 2 | R58: 201503 | S58: 201503
B59: GUANAJUATO | C59: AILP690120TW9 | D59: AILP690120MSPRNT09 | E59: PATRICIA DE JESUS ARCIGA LEON | F59: 1 | G59: 831011721A0180700.000169 | H59: 83101 | I59: 7 | J59: 21 | K59: A01807 | L59: 0 | M59: 169 | N59: 81 | O59: 5 | P59: B | Q59: 1 | R59: 201504 | S59: 201504
B60: GUANAJUATO | C60: HEMA700108F11 | D60: HEMA700108HVZRRR01 | E60: ARTURO HERNANDEZ MARTINEZ | F60: 1 | G60: 831011742T0382000.001686 | H60: 83101 | I60: 7 | J60: 42 | K60: T03820 | L60: 0 | M60: 1686 | N60: 82 | O60: 7 | P60: B | Q60: 2 | R60: 201504 | S60: 201504
B61: GUANAJUATO | C61: VINM871130FV5 | D61: VINM871130MGTLVN04 | E61: MARIA MONTSERRAT VILLAFAÑA NAVA | F61: 1 | G61: 831011950CF3384900.000122 | H61: 83101 | I61: 9 | J61: 50 | K61: CF33849 | L61: 0 | M61: 122 | N61: 88 | O61: 8 | P61: B | Q61: 3 | R61: 201504 | S61: 201504
B62: GUANAJUATO | C62: SAMM8709097V3 | D62: SAMM870909HGTNNR04 | E62: MARIO OSCAR SANCHEZ MANDUJANO | F62: 1 | G62: 831011951T0381000.000219 | H62: 83101 | I62: 9 | J62: 51 | K62: T03810 | L62: 0 | M62: 219 | N62: 39 | O62: 2 | P62: B | Q62: 3 | R62: 201504 | S62: 201504
B63: GUANAJUATO | C63: POML751010N61 | D63: POML751010MMCNRZ08 | E63: LUZ ALICIA PONCE DE LEON MIRELES | F63: 1 | G63: 831011512CF3384900.0002701 | H63: 83101 | I63: 5 | J63: 12 | K63: CF33849 | L63: 0 | M63: 2701 | N63: 88 | O63: 8 | P63: B | Q63: 3 | R63: 201504 | S63: 201504
B64: GUANAJUATO | C64: GARR860218GD7 | D64: GARR860218HGTRJL03 | E64: JOSE RAUL GRANADOS ROJAS | F64: 1 | G64: 831011951A0380400.0000602 | H64: 83101 | I64: 9 | J64: 51 | K64: A03804 | L64: 0 | M64: 602 | N64: 43 | O64: 2 | P64: B | Q64: 3 | R64: 201504 | S64: 201504
B65: GUANAJUATO | C65: CAPS760203A30 | D65: CAPS760203HGTRXB01 | E65: SEBASTIAN CARRANCO PIÑON | F65: 1 | G65: 831011729T0382000.002462 | H65: 83101 | I65: 7 | J65: 29 | K65: T03820 | L65: 0 | M65: 2462 | N65: 82 | O65: 7 | P65: B | Q65: 2 | R65: 201505 | S65: 201505
B66: GUANAJUATO | C66: CALM860815G43 | D66: CALM860815MJCHNY02 | E66: MAYRA CAROLINA CHAVEZ DE LEON | F66: 1 | G66: 831011723A0380400.000171 | H66: 83101 | I66: 7 | J66: 23 | K66: A03804 | L66: 0 | M66: 171 | N66: 43 | O66: 2 | P66: B | Q66: 3 | R66: 201506 | S66: 201506
B67: GUANAJUATO | C67: HERL8008128A5 | D67: HERL800812MGTRSR15 | E67: LAURA ELENA HERRERA RIOS | F67: 1 | G67: 831011720T0382000.0004411 | H67: 83101 | I67: 7 | J67: 20 | K67: T03820 | L67: 0 | M67: 4411 | N67: 82 | O67: 7 | P67: B | Q67: 2 | R67: 201507 | S67: 201507
B68: GUANAJUATO | C68: MURM820910149 | D68: MURM820910HGTRDR08 | E68: MAURICIO ALEJANDRO MURILLO RODRIGUEZ | F68: 1 | G68: 831011721CF3601400.0002222 | H68: 83101 | I68: 7 | J68: 21 | K68: CF36014 | L68: 0 | M68: 2222 | N68: 92 | O68: OA1 | P68: A | Q68: 1 | R68: 201507 | S68: 201507
B69: GUANAJUATO | C69: MURM820910149 | D69: MURM820910HGTRDR08 | E69: MAURICIO ALEJANDRO MURILLO RODRIGUEZ | F69: 1 | G69: 831011721CF3601400.0002222 | H69: 83101 | I69: 7 | J69: 21 | K69: CF36014 | L69: 0 | M69: 2222 | N69: 92 | O69: OA1 | P69: A | Q69: 3 | R69: 201507 | S69: 201507
B70: GUANAJUATO | C70: AECI701001637 | D70: AECI701001MGTRNM05 | E70: IMELDA AREVALO CONSTANTINO | F70: 1 | G70: 831011713CF3601400.0002222 | H70: 83101 | I70: 7 | J70: 13 | K70: CF36014 | L70: 0 | M70: 2222 | N70: 92 | O70: OA1 | P70: A | Q70: 2 | R70: 201507 | S70: 201507
B71: GUANAJUATO | C71: LUVF490323PD9 | D71: LUVF490323HHGCRD03 | E71: FIDEL DE LUCIO VARGAS | F71: 1 | G71: 83101137CF0105900.000021 | H71: 83101 | I71: 3 | J71: 7 | K71: CF01059 | L71: 0 | M71: 21 | N71: 93 | O71: OA1 | P71: A | Q71: 2 | R71: 201508 | S71: 201508
B72: GUANAJUATO | C72: REMI5703035I8 | D72: REMI590303HDFYNG07 | E72: JOSE IGNACIO REYES MANCILLA | F72: 1 | G72: 83101124CF0105900.000133 | H72: 83101 | I72: 2 | J72: 4 | K72: CF01059 | L72: 0 | M72: 133 | N72: 93 | O72: OA1 | P72: A | Q72: 2 | R72: 201508 | S72: 201508
B73: GUANAJUATO | C73: ROHC730108AV9 | D73: ROHC730108MGTJRL01 | E73: CLAUDIA PATRICIA ROJANO HERNANDEZ | F73: 1 | G73: 831011848CF2186500.00003 | H73: 83101 | I73: 8 | J73: 48 | K73: CF21865 | L73: 0 | M73: 3 | N73: 1 | O73: QB | P73: B | Q73: 2 | R73: 201508 | S73: 201508
B74: GUANAJUATO | C74: GOMG670522TLA | D74: GOMG670522MGTNRB09 | E74: MARIA GABRIELA GONZALEZ MARTINEZ | F74: 1 | G74: 83101112CF2186500.00002 | H74: 83101 | I74: 1 | J74: 2 | K74: CF21865 | L74: 0 | M74: 2 | N74: 1 | O74: QB | P74: B | Q74: 2 | R74: 201508 | S74: 201508
B75: GUANAJUATO | C75: ROVC730623LQA | D75: ROVC730623MGTSLC06 | E75: CECILIA FELIPA ROSALES VELAZQUEZ | F75: 1 | G75: 831011949CF0105900.0000052 | H75: 83101 | I75: 9 | J75: 49 | K75: CF01059 | L75: 0 | M75: 52 | N75: 93 | O75: OA1 | P75: A | Q75: 2 | R75: 201508 | S75: 201508
B76: GUANAJUATO | C76: NIAC730506CK6 | D76: NIAC730506MGTTGL09 | E76: CLAUDIA JUDITH NIETO AGUILERA | F76: 1 | G76: 83101125CF2186500.00004 | H76: 83101 | I76: 2 | J76: 5 | K76: CF21865 | L76: 0 | M76: 4 | N76: 1 | O76: QB | P76: B | Q76: 2 | R76: 201508 | S76: 201508
B77: GUANAJUATO | C77: SETG700331TM7 | D77: SETG700331MGTRRD01 | E77: MA. GUADALUPE SERRANO TREJO | F77: 1 | G77: 83101124CF3384900.000296 | H77: 83101 | I77: 2 | J77: 4 | K77: CF33849 | L77: 0 | M77: 296 | N77: 88 | O77: 8 | P77: B | Q77: 2 | R77: 201508 | S77: 201508
B78: GUANAJUATO | C78: GACN720401359 | D78: GACN720401MTCRMR08 | E78: NURY GARCIA CAMACHO | F78: 1 | G78: 831011843CF0105900.000241 | H78: 83101 | I78: 8 | J78: 43 | K78: CF01059 | L78: 0 | M78: 241 | N78: 93 | O78: OA1 | P78: A | Q78: 2 | R78: 201508 | S78: 201508
B79: GUANAJUATO | C79: HECE710503NQ5 | D79: HECE710503HGTRLS02 | E79: ESTEBAN HERNANDEZ CUELLAR | F79: 1 | G79: 831011951CF2186500.00007 | H79: 83101 | I79: 9 | J79: 51 | K79: CF21865 | L79: 0 | M79: 7 | N79: 1 | O79: QB | P79: B | Q79: 2 | R79: 201508 | S79: 201508
B80: GUANAJUATO | C80: RULS870916391 | D80: RULS870916HGTZPR06 | E80: SERGIO ISMAEL RUIZ LOPEZ | F80: 1 | G80: 83101111CF3601400.000032 | H80: 83101 | I80: 1 | J80: 1 | K80: CF36014 | L80: 0 | M80: 32 | N80: 95 | O80: OA1 | P80: A | Q80: 3 | R80: 201508 | S80: 201508
B81: GUANAJUATO | C81: NISN8002155D7 | D81: NISN800215MGTVNN03 | E81: NANCY GABRIELA NIEVES SAENZ | F81: 1 | G81: 83101137CF2186500.00010 | H81: 83101 | I81: 3 | J81: 7 | K81: CF21865 | L81: 0 | M81: 10 | N81: 1 | O81: QB | P81: B | Q81: 2 | R81: 201508 | S81: 201508
B82: GUANAJUATO | C82: JIAR5906097A6 | D82: JIAR590609HVZMNB07 | E82: ROBERTO JIMENEZ DEL ANGEL | F82: 1 | G82: 831011512CF1407000.000032 | H82: 83101 | I82: 5 | J82: 12 | K82: CF14070 | L82: 0 | M82: 32 | N82: 97 | O82: MB2 | P82: A | Q82: 2 | R82: 201508 | S82: 201508
B83: GUANAJUATO | C83: RIMA61053132A | D83: RIMA610531MGTVNL04 | E83: ALEJANDRA RIVERA MENDOZA | F83: 1 | G83: 831011713T0381000.000083 | H83: 83101 | I83: 7 | J83: 13 | K83: T03810 | L83: 0 | M83: 83 | N83: 39 | O83: 2 | P83: B | Q83: 2 | R83: 201509 | S83: 201509
B84: GUANAJUATO | C84: LEGA720906CE8 | D84: LEGA720906MCLLNR04 | E84: ARIADNE LEAL GONZALEZ | F84: 1 | G84: 831011727CF3601400.000046 | H84: 83101 | I84: 7 | J84: 27 | K84: CF36014 | L84: 0 | M84: 46 | N84: 92 | O84: OA1 | P84: B | Q84: 2 | R84: 201509 | S84: 201509
B85: GUANAJUATO | C85: VALF830903IU4 | D85: VALF830903HGTLNR07 | E85: FRANCISCO JAVIER VALDEZ LANDIN | F85: 1 | G85: 831011723T0382000.000766 | H85: 83101 | I85: 7 | J85: 23 | K85: T03820 | L85: 0 | M85: 766 | N85: 82 | O85: 7 | P85: B | Q85: 2 | R85: 201510 | S85: 201510
B86: GUANAJUATO | C86: PAPM8010185P8 | D86: PAPM801018MGTRNR06 | E86: MARIBEL PRADO PANTOJA | F86: 1 | G86: 831011735T0382000.001735 | H86: 83101 | I86: 7 | J86: 35 | K86: T03820 | L86: 0 | M86: 1735 | N86: 82 | O86: 7 | P86: B | Q86: 2 | R86: 201510 | S86: 201510
B87: GUANAJUATO | C87: FOGJ601017FG2 | D87: FOGJ601017HGTLRN01 | E87: JUAN MANUEL FLORES GARCIA | F87: 1 | G87: 831011716CF3601400.000082 | H87: 83101 | I87: 7 | J87: 16 | K87: CF36014 | L87: 0 | M87: 82 | N87: 92 | O87: OA1 | P87: A | Q87: 3 | R87: 201511 | S87: 201511
B88: GUANAJUATO | C88: MASV810101DZ8 | D88: MASV810101MGTRRR01 | E88: VERONICA MARTINEZ SARABIA | F88: 1 | G88: 831011721T0382000.000269 | H88: 83101 | I88: 7 | J88: 21 | K88: T03820 | L88: 0 | M88: 269 | N88: 82 | O88: 7 | P88: B | Q88: 3 | R88: 201511 | S88: 201511
B89: GUANAJUATO | C89: SEER810904RN6 | D89: SEER810904HGTRSF07 | E89: RAFAEL SERRATO ESPINOZA | F89: 1 | G89: 831011725T0381000.000220 | H89: 83101 | I89: 7 | J89: 25 | K89: T03810 | L89: 0 | M89: 220 | N89: 39 | O89: 2 | P89: B | Q89: 2 | R89: 201511 | S89: 201511
B90: GUANAJUATO | C90: RACS650614RH2 | D90: RACS650614MZSMLS05 | E90: SUSANA RAMIREZ CALDERON | F90: 1 | G90: 831011713CF3601400.000349 | H90: 83101 | I90: 7 | J90: 13 | K90: CF36014 | L90: 0 | M90: 349 | N90: 92 | O90: OA1 | P90: A | Q90: 3 | R90: 201511 | S90: 201511
B91: GUANAJUATO | C91: RUCE791216KR2 | D91: RUCE791216HGTLRD00 | E91: EDUARDO RUELAS CORNEJO | F91: 1 | G91: 831011726CF3601400.000048 | H91: 83101 | I91: 7 | J91: 26 | K91: CF36014 | L91: 0 | M91: 48 | N91: 92 | O91: OA1 | P91: A | Q91: 3 | R91: 201511 | S91: 201511
B92: GUANAJUATO | C92: EAMS8812032H4 | D92: EAMS881203MGTSRN00 | E92: SANDRA JUDITH ESTRADA MIRANDA | F92: 1 | G92: 831011733CF3601400.000044 | H92: 83101 | I92: 7 | J92: 33 | K92: CF36014 | L92: 0 | M92: 44 | N92: 92 | O92: OA1 | P92: A | Q92: 3 | R92: 201511 | S92: 201511
B93: GUANAJUATO | C93: CUME820306JF6 | D93: CUME820306HPLRRS07 | E93: ESTEBAN DE LA CRUZ MORALES | F93: 1 | G93: 831011718A0380400.000143 | H93: 83101 | I93: 7 | J93: 18 | K93: A03804 | L93: 0 | M93: 143 | N93: 43 | O93: 2 | P93: B | Q93: 3 | R93: 201511 | S93: 201511
B94: GUANAJUATO | C94: MAAC750325Q52 | D94: MAAC750325MGTLLR02 | E94: MA. DEL CARMEN MALDONADO ALMANZA | F94: 1 | G94: 83101111A0380400.0001522 | H94: 83101 | I94: 1 | J94: 1 | K94: A03804 | L94: 0 | M94: 1522 | N94: 43 | O94: 2 | P94: B | Q94: 3 | R94: 201511 | S94: 201511
B95: GUANAJUATO | C95: GAEG840418L85 | D95: GAEG840418HGTLSS02 | E95: GUSTAVO ANTONIO GALLEGOS ESPINOZA | F95: 1 | G95: 831011727CF3601400.000046 | H95: 83101 | I95: 7 | J95: 27 | K95: CF36014 | L95: 0 | M95: 46 | N95: 92 | O95: OA1 | P95: B | Q95: 1 | R95: 201511 | S95: 201511
B96: GUANAJUATO | C96: CEAE800524DE1 | D96: CEAE800524MDFCSL07 | E96: ELSA CECEÑA ASCOBERETA | F96: 1 | G96: 83101124CF3601400.00002 | H96: 83101 | I96: 2 | J96: 4 | K96: CF36014 | L96: 0 | M96: 2 | N96: 92 | O96: OA1 | P96: A | Q96: 1 | R96: 201511 | S96: 201511
B97: GUANAJUATO | C97: VALF830903IU4 | D97: VALF830903HGTLNR07 | E97: FRANCISCO JAVIER VALDEZ LANDIN | F97: 1 | G97: 831011723T0382000.000766 | H97: 83101 | I97: 7 | J97: 23 | K97: T03820 | L97: 0 | M97: 766 | N97: 82 | O97: 7 | P97: B | Q97: 1 | R97: 201512 | S97: 201512
B98: GUANAJUATO | C98: CAOC891124C87 | D98: CAOC891124HGTSRR07 | E98: CRISTOPHER ISRAEL CASTRO OROZCO | F98: 1 | G98: 831011724T0382000.000062 | H98: 83101 | I98: 7 | J98: 24 | K98: T03820 | L98: 0 | M98: 62 | N98: 82 | O98: 7 | P98: B | Q98: 2 | R98: 201512 | S98: 201512
B99: GUANAJUATO | C99: OOFL740119GS6 | D99: OOFL740119HGTRRS01 | E99: LUIS GABRIEL OROPEZA FERRER | F99: 1 | G99: 831011715T0382000.002880 | H99: 83101 | I99: 7 | J99: 15 | K99: T03820 | L99: 0 | M99: 2880 | N99: 82 | O99: 7 | P99: B | Q99: 2 | R99: 201512 | S99: 201512
B100: GUANAJUATO | C100: RASG830326T84 | D100: RASG830326MGTMNB01 | E100: GABRIELA SARAI RAMIREZ SANTIAGO | F100: 1 | G100: 831011724T0382000.0001101 | H100: 83101 | I100: 7 | J100: 24 | K100: T03820 | L100: 0 | M100: 1101 | N100: 82 | O100: 7 | P100: B | Q100: 2 | R100: 201512 | S100: 201512
B101: GUANAJUATO | C101: OIMP891018RY1 | D101: OIMP891018MGTRNT17 | E101: PATSY ORTIZ MENDEZ | F101: 1 | G101: 831011724T0382000.000708 | H101: 83101 | I101: 7 | J101: 24 | K101: T03820 | L101: 0 | M101: 708 | N101: 82 | O101: 7 | P101: B | Q101: 2 | R101: 201512 | S101: 201512
B102: GUANAJUATO | C102: HOHL860601124 | D102: HOHL860601MGTRRZ09 | E102: LUZ ANGELICA HORTA HERNANDEZ | F102: 1 | G102: 83101124CF2186500.00004 | H102: 83101 | I102: 2 | J102: 4 | K102: CF21865 | L102: 0 | M102: 4 | N102: 1 | O102: QB | P102: B | Q102: 1 | R102: 201512 | S102: 201512
B103: GUANAJUATO | C103: POLH650106FW2 | D103: POLH650106HDFZPG03 | E103: HUGO POZADA LOPEZ | F103: 1 | G103: 831011719CF2186500.00007 | H103: 83101 | I103: 7 | J103: 19 | K103: CF21865 | L103: 0 | M103: 7 | N103: 1 | O103: QB | P103: B | Q103: 1 | R103: 201512 | S103: 201512
B104: GUANAJUATO | C104: SEER810904RN6 | D104: SEER810904HGTRSF07 | E104: RAFAEL SERRATO ESPINOZA | F104: 1 | G104: 831011725T0381000.000220 | H104: 83101 | I104: 7 | J104: 25 | K104: T03810 | L104: 0 | M104: 220 | N104: 39 | O104: 2 | P104: B | Q104: 1 | R104: 201513 | S104: 201513
B105: GUANAJUATO | C105: RULS870916391 | D105: RULS870916HGTZPR06 | E105: SERGIO ISMAEL RUIZ LOPEZ | F105: 1 | G105: 83101111CF3601400.0000021 | H105: 83101 | I105: 1 | J105: 1 | K105: CF36014 | L105: 0 | M105: 21 | N105: 95 | O105: OA1 | P105: A | Q105: 3 | R105: 201513 | S105: 201513
B106: GUANAJUATO | C106: RACS650614RH2 | D106: RACS650614MZSMLS05 | E106: SUSANA RAMIREZ CALDERON | F106: 1 | G106: 831011713CF3601400.000349 | H106: 83101 | I106: 7 | J106: 13 | K106: CF36014 | L106: 0 | M106: 349 | N106: 92 | O106: OA1 | P106: A | Q106: 2 | R106: 201513 | S106: 201513
B107: GUANAJUATO | C107: EAMS8812032H4 | D107: EAMS881203MGTSRN00 | E107: SANDRA JUDITH ESTRADA MIRANDA | F107: 1 | G107: 831011733CF3601400.000044 | H107: 83101 | I107: 7 | J107: 33 | K107: CF36014 | L107: 0 | M107: 44 | N107: 92 | O107: OA1 | P107: A | Q107: 2 | R107: 201513 | S107: 201513
B108: GUANAJUATO | C108: JIAR5906097A6 | D108: JIAR590609HVZMNB07 | E108: ROBERTO JIMENEZ DEL ANGEL | F108: 1 | G108: 831011512CF1407000.000032 | H108: 83101 | I108: 5 | J108: 12 | K108: CF14070 | L108: 0 | M108: 32 | N108: 97 | O108: MB2 | P108: A | Q108: 1 | R108: 201513 | S108: 201513
B109: GUANAJUATO | C109: ROBA860619I59 | D109: RXBA860619MDFDRR07 | E109: ARIANA RODRIGUEZ BRITO | F109: 1 | G109: 831011512CF0105900.000241 | H109: 83101 | I109: 5 | J109: 12 | K109: CF01059 | L109: 0 | M109: 241 | N109: 93 | O109: OA1 | P109: A | Q109: 1 | R109: 201513 | S109: 201513
B110: GUANAJUATO | C110: DOOM7502039N2 | D110: DOOM750203HGTMLN08 | E110: MANUEL DOMINGUEZ OLVERA | F110: 1 | G110: 83101124CF0105900.000133 | H110: 83101 | I110: 2 | J110: 4 | K110: CF01059 | L110: 0 | M110: 133 | N110: 93 | O110: OA1 | P110: A | Q110: 1 | R110: 201513 | S110: 201513
B111: GUANAJUATO | C111: GAAJ7304176P5 | D111: GAAG730417HGTRVD03 | E111: J. GUADALUPE GARCIA AVALOS | F111: 1 | G111: 831011725T0381000.0001102 | H111: 83101 | I111: 7 | J111: 25 | K111: T03810 | L111: 0 | M111: 1102 | N111: 39 | O111: 2 | P111: B | Q111: 2 | R111: 201514 | S111: 201514
B112: GUANAJUATO | C112: RERM7802175Q8 | D112: RERM780217MGTYJR00 | E112: MARIANA REYES ROJAS | F112: 1 | G112: 831011512CF0105900.0000052 | H112: 83101 | I112: 5 | J112: 12 | K112: CF01059 | L112: 0 | M112: 52 | N112: 93 | O112: OA1 | P112: A | Q112: 1 | R112: 201514 | S112: 201514
B113: GUANAJUATO | C113: PERA560115384 | D113: PEXR560115HGTRXL09 | E113: RAUL PEREZ | F113: 1 | G113: 831011844A0180600.0000153 | H113: 83101 | I113: 8 | J113: 44 | K113: A01806 | L113: 0 | M113: 153 | N113: 70 | O113: 3 | P113: B | Q113: 2 | R113: 201515 | S113: 201515
B114: GUANAJUATO | C114: CUSG780213V57 | D114: CUSG780213HGTRVL03 | E114: GUILIBALDO CRUZ SAAVEDRA | F114: 1 | G114: 831011742T0382000.000675 | H114: 83101 | I114: 7 | J114: 42 | K114: T03820 | L114: 0 | M114: 675 | N114: 82 | O114: 7 | P114: B | Q114: 2 | R114: 201515 | S114: 201515
B115: GUANAJUATO | C115: HECF8509083P5 | D115: HECF850908MGTRLT09 | E115: FATIMA ADRIANA HERNANDEZ CALDERON | F115: 1 | G115: 831011722A0180300.000041 | H115: 83101 | I115: 7 | J115: 22 | K115: A01803 | L115: 0 | M115: 41 | N115: 29 | O115: 2 | P115: B | Q115: 1 | R115: 201515 | S115: 201515
B116: GUANAJUATO | C116: CEAE800524DE1 | D116: CEAE800524MDFCSL07 | E116: ELSA CECEÑA ASCOBERETA | F116: 1 | G116: 83101124CF3601400.000349 | H116: 83101 | I116: 2 | J116: 4 | K116: CF36014 | L116: 0 | M116: 349 | N116: 92 | O116: OA1 | P116: A | Q116: 3 | R116: 201515 | S116: 201515
B117: GUANAJUATO | C117: MEGT6910136Q3 | D117: MEGT691013MGTLMR05 | E117: MARIA TERESA MELECIO GOMEZ | F117: 1 | G117: 831011846A0180700.000526 | H117: 83101 | I117: 8 | J117: 46 | K117: A01807 | L117: 0 | M117: 526 | N117: 81 | O117: 5 | P117: B | Q117: 2 | R117: 201516 | S117: 201516
B118: GUANAJUATO | C118: FOQP690616QU0 | D118: FOQP690616MGTLVT01 | E118: PETRA FLORES QUEVEDO | F118: 1 | G118: 831011722CF3601400.000044 | H118: 83101 | I118: 7 | J118: 22 | K118: CF36014 | L118: 0 | M118: 44 | N118: 92 | O118: OA1 | P118: A | Q118: 3 | R118: 201516 | S118: 201516
B119: GUANAJUATO | C119: CAPS760203A30 | D119: CAPS760203HGTRXB01 | E119: SEBASTIAN CARRANCO PIÑON | F119: 1 | G119: 831011729T0382000.002462 | H119: 83101 | I119: 7 | J119: 29 | K119: T03820 | L119: 0 | M119: 2462 | N119: 82 | O119: 7 | P119: B | Q119: 1 | R119: 201516 | S119: 201516
B120: GUANAJUATO | C120: ROSJ720103RL1 | D120: ROSJ720103HGTCGS19 | E120: J. JESUS ROCHA SEGURA | F120: 1 | G120: 831011729T0382000.001171 | H120: 83101 | I120: 7 | J120: 29 | K120: T03820 | L120: 0 | M120: 1171 | N120: 82 | O120: 7 | P120: B | Q120: 2 | R120: 201516 | S120: 201516
B121: GUANAJUATO | C121: HERL8008128A5 | D121: HERL800812MGTRSR15 | E121: LAURA ELENA HERRERA RIOS | F121: 1 | G121: 831011720T0382000.0004411 | H121: 83101 | I121: 7 | J121: 20 | K121: T03820 | L121: 0 | M121: 4411 | N121: 82 | O121: 7 | P121: B | Q121: 1 | R121: 201516 | S121: 201516
B122: GUANAJUATO | C122: HECF8509083P5 | D122: HECF850908MGTRLT09 | E122: FATIMA ADRIANA HERNANDEZ CALDERON | F122: 1 | G122: 831011722A0180300.000041 | H122: 83101 | I122: 7 | J122: 22 | K122: A01803 | L122: 0 | M122: 41 | N122: 29 | O122: 2 | P122: B | Q122: 2 | R122: 201516 | S122: 201516
B123: GUANAJUATO | C123: REGJ781111QG6 | D123: REGJ781111HGTYRN09 | E123: JUAN MANUEL REYES GUERRERO | F123: 1 | G123: 831011713CF3601400.000276 | H123: 83101 | I123: 7 | J123: 13 | K123: CF36014 | L123: 0 | M123: 276 | N123: 92 | O123: OA1 | P123: A | Q123: 2 | R123: 201516 | S123: 201516
B124: GUANAJUATO | C124: ROBC900904U49 | D124: ROBC900904MDFCZT03 | E124: CITLALLIN MARGARITA ROCHA BAEZA | F124: 1 | G124: 83101113CF3384900.000296 | H124: 83101 | I124: 1 | J124: 3 | K124: CF33849 | L124: 0 | M124: 296 | N124: 88 | O124: 8 | P124: B | Q124: 3 | R124: 201516 | S124: 201516
B125: GUANAJUATO | C125: MURM820910149 | D125: MURM820910HGTRDR08 | E125: MAURICIO ALEJANDRO MURILLO RODRIGUEZ | F125: 1 | G125: 831011721CF3601400.0002222 | H125: 83101 | I125: 7 | J125: 21 | K125: CF36014 | L125: 0 | M125: 2222 | N125: 92 | O125: OA1 | P125: A | Q125: 3 | R125: 201516 | S125: 201516
B126: GUANAJUATO | C126: HUOR660813PR3 | D126: HUOR660813MGTRLS01 | E126: ROSA ALICIA HUERTA OLIVARES | F126: 1 | G126: 831011951CF2186500.00003 | H126: 83101 | I126: 9 | J126: 51 | K126: CF21865 | L126: 0 | M126: 3 | N126: 1 | O126: QB | P126: B | Q126: 1 | R126: 201516 | S126: 201516
B127: GUANAJUATO | C127: QUZL8105122Y1 | D127: QUZL810512MGTRVL09 | E127: LILIANA QUIROZ ZAVALA | F127: 1 | G127: 831011952CF0105900.000021 | H127: 83101 | I127: 9 | J127: 52 | K127: CF01059 | L127: 0 | M127: 21 | N127: 93 | O127: OA1 | P127: A | Q127: 1 | R127: 201517 | S127: 201517
B128: GUANAJUATO | C128: YEPV780203IU0 | D128: YEPV780203MGTBVR00 | E128: VERONICA ADRIANA YEBRA PAVON | F128: 1 | G128: 831011721T0382000.001985 | H128: 83101 | I128: 7 | J128: 21 | K128: T03820 | L128: 0 | M128: 1985 | N128: 82 | O128: 7 | P128: B | Q128: 2 | R128: 201518 | S128: 201518
B129: GUANAJUATO | C129: QUZL8105122Y1 | D129: QUZL810512MGTRVL09 | E129: LILIANA QUIROZ ZAVALA | F129: 1 | G129: 831011952CF0105900.000021 | H129: 83101 | I129: 9 | J129: 52 | K129: CF01059 | L129: 0 | M129: 21 | N129: 93 | O129: OA1 | P129: A | Q129: 2 | R129: 201518 | S129: 201518
B130: GUANAJUATO | C130: JAMC611108NJ3 | D130: JAMC611108MGTRNR00 | E130: MARIA CARMEN JARALEÑO MANCERA | F130: 1 | G130: 831011310T0382300.000410 | H130: 83101 | I130: 3 | J130: 10 | K130: T03823 | L130: 0 | M130: 410 | N130: 85 | O130: 7 | P130: B | Q130: 2 | R130: 201519 | S130: 201519
B131: GUANAJUATO | C131: FOGJ601017FG2 | D131: FOGJ601017HGTLRN01 | E131: JUAN MANUEL FLORES GARCIA | F131: 1 | G131: 831011716CF3601400.000082 | H131: 83101 | I131: 7 | J131: 16 | K131: CF36014 | L131: 0 | M131: 82 | N131: 92 | O131: OA1 | P131: A | Q131: 2 | R131: 201519 | S131: 201519
B132: GUANAJUATO | C132: MAOG7603243PA | D132: MAOG760324MGTRCL00 | E132: GLORIA MARTINEZ OCHOA | F132: 1 | G132: 831011512CF2186500.00010 | H132: 83101 | I132: 5 | J132: 12 | K132: CF21865 | L132: 0 | M132: 10 | N132: 1 | O132: QB | P132: B | Q132: 1 | R132: 201519 | S132: 201519
B133: GUANAJUATO | C133: YEPV780203IU0 | D133: YEPV780203MGTBVR00 | E133: VERONICA ADRIANA YEBRA PAVON | F133: 1 | G133: 831011721T0382000.001985 | H133: 83101 | I133: 7 | J133: 21 | K133: T03820 | L133: 0 | M133: 1985 | N133: 82 | O133: 7 | P133: B | Q133: 1 | R133: 201520 | S133: 201520
B134: GUANAJUATO | C134: MASE530517JN0 | D134: MASE530517HGTRNR09 | E134: ERNESTO MARTINEZ SANCHEZ | F134: 1 | G134: 831011738T0382000.001779 | H134: 83101 | I134: 7 | J134: 38 | K134: T03820 | L134: 0 | M134: 1779 | N134: 82 | O134: 7 | P134: B | Q134: 2 | R134: 201520 | S134: 201520
B135: GUANAJUATO | C135: CICC580720PX4 | D135: CICC580720HGTHNR06 | E135: CARLOS CHIMAL CONTRERAS | F135: 1 | G135: 831011733T0382000.000704 | H135: 83101 | I135: 7 | J135: 33 | K135: T03820 | L135: 0 | M135: 704 | N135: 82 | O135: 7 | P135: B | Q135: 2 | R135: 201520 | S135: 201520
B136: GUANAJUATO | C136: HECF8509083P5 | D136: HECF850908MGTRLT09 | E136: FATIMA ADRIANA HERNANDEZ CALDERON | F136: 1 | G136: 831011722A0180300.000041 | H136: 83101 | I136: 7 | J136: 22 | K136: A01803 | L136: 0 | M136: 41 | N136: 29 | O136: 2 | P136: B | Q136: 2 | R136: 201520 | S136: 201520
B137: GUANAJUATO | C137: OEMS820902SDA | D137: OEMS820902HGTLNR01 | E137: SERGIO EDUARDO OLVERA MENDEZ | F137: 1 | G137: 831011719CF3601400.0000522 | H137: 83101 | I137: 7 | J137: 19 | K137: CF36014 | L137: 0 | M137: 522 | N137: 92 | O137: OA1 | P137: A | Q137: 2 | R137: 201520 | S137: 201520
B138: GUANAJUATO | C138: CAAB610110HC5 | D138: CAAB610110MGTRRR07 | E138: BERTHA ANGELICA CARPIO ARAGON | F138: 1 | G138: 831011723T0382000.002463 | H138: 83101 | I138: 7 | J138: 23 | K138: T03820 | L138: 0 | M138: 2463 | N138: 82 | O138: 7 | P138: B | Q138: 2 | R138: 201520 | S138: 201520
B139: GUANAJUATO | C139: CAAB610110HC5 | D139: CAAB610110MGTRRR07 | E139: BERTHA ANGELICA CARPIO ARAGON | F139: 1 | G139: 831011723T0382000.002463 | H139: 83101 | I139: 7 | J139: 23 | K139: T03820 | L139: 0 | M139: 2463 | N139: 82 | O139: 7 | P139: B | Q139: 1 | R139: 201520 | S139: 201520
B140: GUANAJUATO | C140: PERC861007CU1 | D140: PERC861007HGTDZH03 | E140: CHRISTIAN EMMANUEL PEDROZA RUIZ | F140: 1 | G140: 831011721T0380300.0002172 | H140: 83101 | I140: 7 | J140: 21 | K140: T03803 | L140: 0 | M140: 2172 | N140: 47 | O140: 2 | P140: B | Q140: 2 | R140: 201520 | S140: 201520
B141: GUANAJUATO | C141: JUPL550226Q12 | D141: JUPL550226MGTRTR07 | E141: LAURA JUAREZ PATIÑO | F141: 1 | G141: 831011714A0180700.000168 | H141: 83101 | I141: 7 | J141: 14 | K141: A01807 | L141: 0 | M141: 168 | N141: 81 | O141: 5 | P141: B | Q141: 2 | R141: 201521 | S141: 201521
B142: GUANAJUATO | C142: CAPS760203A30 | D142: CAPS760203HGTRXB01 | E142: SEBASTIAN CARRANCO PIÑON | F142: 1 | G142: 831011729T0382000.002462 | H142: 83101 | I142: 7 | J142: 29 | K142: T03820 | L142: 0 | M142: 2462 | N142: 82 | O142: 7 | P142: B | Q142: 2 | R142: 201521 | S142: 201521
B143: GUANAJUATO | C143: COJP700317TZ9 | D143: COJP700317HMNRMD06 | E143: PEDRO CORTES JIMENEZ | F143: 1 | G143: 83101113CF2186500.00002 | H143: 83101 | I143: 1 | J143: 3 | K143: CF21865 | L143: 0 | M143: 2 | N143: 1 | O143: QB | P143: B | Q143: 1 | R143: 201521 | S143: 201521
B144: GUANAJUATO | C144: COJP700317TZ9 | D144: COJP700317HMNRMD06 | E144: PEDRO CORTES JIMENEZ | F144: 1 | G144: 83101113CF2186500.00002 | H144: 83101 | I144: 1 | J144: 3 | K144: CF21865 | L144: 0 | M144: 2 | N144: 1 | O144: QB | P144: B | Q144: 3 | R144: 201521 | S144: 201521
B145: GUANAJUATO | C145: AUGF640316LK3 | D145: AUGF640316HGTGRR05 | E145: FRANCISCO JAVIER AGUIRRE GUERRERO | F145: 1 | G145: 831011719CF3601400.0000522 | H145: 83101 | I145: 7 | J145: 19 | K145: CF36014 | L145: 0 | M145: 522 | N145: 92 | O145: OA1 | P145: A | Q145: 1 | R145: 201521 | S145: 201521
B146: GUANAJUATO | C146: REGJ781111QG6 | D146: REGJ781111HGTYRN09 | E146: JUAN MANUEL REYES GUERRERO | F146: 1 | G146: 831011713CF3601400.000276 | H146: 83101 | I146: 7 | J146: 13 | K146: CF36014 | L146: 0 | M146: 276 | N146: 92 | O146: OA1 | P146: A | Q146: 1 | R146: 201522 | S146: 201522
B147: GUANAJUATO | C147: REGJ781111QG6 | D147: REGJ781111HGTYRN09 | E147: JUAN MANUEL REYES GUERRERO | F147: 1 | G147: 831011713CF3601400.000082 | H147: 83101 | I147: 7 | J147: 13 | K147: CF36014 | L147: 0 | M147: 82 | N147: 92 | O147: OA1 | P147: A | Q147: 3 | R147: 201522 | S147: 201522
B148: GUANAJUATO | C148: MAOG7603243PA | D148: MAOG760324MGTRCL00 | E148: GLORIA MARTINEZ OCHOA | F148: 1 | G148: 831011512CF2186500.00010 | H148: 83101 | I148: 5 | J148: 12 | K148: CF21865 | L148: 0 | M148: 10 | N148: 1 | O148: QB | P148: B | Q148: 2 | R148: 201522 | S148: 201522
B149: GUANAJUATO | C149: SARF551229BE0 | D149: SARF551229HMNNDR06 | E149: FRANCISCO SANCHEZ RODRIGUEZ | F149: 1 | G149: 831011718CF3601400.000084 | H149: 83101 | I149: 7 | J149: 18 | K149: CF36014 | L149: 0 | M149: 84 | N149: 92 | O149: OA1 | P149: A | Q149: 2 | R149: 201523 | S149: 201523
B150: GUANAJUATO | C150: ROMG6809143N6 | D150: ROMG680914MGTJLR05 | E150: GEORGINA ROJAS MELGOZA | F150: 1 | G150: 831011728T0382000.000176 | H150: 83101 | I150: 7 | J150: 28 | K150: T03820 | L150: 0 | M150: 176 | N150: 82 | O150: 7 | P150: B | Q150: 2 | R150: 201523 | S150: 201523
B151: GUANAJUATO | C151: HEAD9302028F6 | D151: HEAD930202HGTRLN05 | E151: DANIEL HERNANDEZ ALDACO | F151: 1 | G151: 831011846CF0105900.000021 | H151: 83101 | I151: 8 | J151: 46 | K151: CF01059 | L151: 0 | M151: 21 | N151: 93 | O151: OA1 | P151: A | Q151: 1 | R151: 201523 | S151: 201523
B152: GUANAJUATO | C152: ZARD580813557 | D152: ZARD580813MGTRQL01 | E152: DULCE MARIA ZARAGOZA Y ROQUE | F152: 1 | G152: 831011714T0382000.000892 | H152: 83101 | I152: 7 | J152: 14 | K152: T03820 | L152: 0 | M152: 892 | N152: 82 | O152: 7 | P152: B | Q152: 2 | R152: 201524 | S152: 201524
B153: GUANAJUATO | C153: LUCD570725LD8 | D153: LUCD570725MGTNNL07 | E153: MARIA DOLORES LUNA CONTRERAS | F153: 1 | G153: 831011714T0382000.0000118 | H153: 83101 | I153: 7 | J153: 14 | K153: T03820 | L153: 0 | M153: 118 | N153: 82 | O153: 7 | P153: B | Q153: 2 | R153: 201524 | S153: 201524
B154: GUANAJUATO | C154: AAMG6104186S7 | D154: AAMG610418MGTLRD01 | E154: MA. GUADALUPE ALVAREZ MORALES | F154: 1 | G154: 831011714A0180700.0000191 | H154: 83101 | I154: 7 | J154: 14 | K154: A01807 | L154: 0 | M154: 191 | N154: 81 | O154: 5 | P154: B | Q154: 2 | R154: 201524 | S154: 201524
B155: GUANAJUATO | C155: GUCF620610MM6 | D155: GUCF620610MGTZRL09 | E155: MARIA FELIX GUZMAN CORTES | F155: 1 | G155: 831011726A0180700.000066 | H155: 83101 | I155: 7 | J155: 26 | K155: A01807 | L155: 0 | M155: 66 | N155: 81 | O155: 5 | P155: B | Q155: 2 | R155: 201524 | S155: 201524
B156: GUANAJUATO | C156: CAHM560531ME5 | D156: CAHM560531HGTBRX03 | E156: MAXIMINO CABRERA HERNANDEZ | F156: 1 | G156: 831011951A0180300.0000471 | H156: 83101 | I156: 9 | J156: 51 | K156: A01803 | L156: 0 | M156: 471 | N156: 29 | O156: 2 | P156: B | Q156: 2 | R156: 201524 | S156: 201524
B157: GUANAJUATO | C157: MAJJ661027V24 | D157: MAJS661027HGTNML04 | E157: J. SALUD MANCERA JIMENEZ | F157: 1 | G157: 83101113A0180600.000008 | H157: 83101 | I157: 1 | J157: 3 | K157: A01806 | L157: 0 | M157: 8 | N157: 70 | O157: 3 | P157: B | Q157: 2 | R157: 201524 | S157: 201524
B158: GUANAJUATO | C158: PEMS581104EH2 | D158: PEMS581104MGTRRL01 | E158: SILVIA PEREZ MARTINEZ | F158: 1 | G158: 831011718A0180600.000252 | H158: 83101 | I158: 7 | J158: 18 | K158: A01806 | L158: 0 | M158: 252 | N158: 70 | O158: 3 | P158: B | Q158: 2 | R158: 201524 | S158: 201524
B159: GUANAJUATO | C159: MECA550721BGA | D159: MECA550721MGTNLN07 | E159: MA. DE LOS ANGELES MENDEZ CELESTIN | F159: 1 | G159: 83101124T0382300.000138 | H159: 83101 | I159: 2 | J159: 4 | K159: T03823 | L159: 0 | M159: 138 | N159: 85 | O159: 7 | P159: B | Q159: 2 | R159: 201524 | S159: 201524
B160: GUANAJUATO | C160: MEGD640702CJ9 | D160: MEGD640702HGTNMV07 | E160: DAVID MENDOZA GOMEZ | F160: 1 | G160: 831011714T0382000.000122 | H160: 83101 | I160: 7 | J160: 14 | K160: T03820 | L160: 0 | M160: 122 | N160: 82 | O160: 7 | P160: B | Q160: 2 | R160: 201524 | S160: 201524
B161: GUANAJUATO | C161: RICF590424FQ5 | D161: RICF590424HGTVSD03 | E161: FIDEL RIVERA CASTILLO | F161: 1 | G161: 831011720T0381000.000116 | H161: 83101 | I161: 7 | J161: 20 | K161: T03810 | L161: 0 | M161: 116 | N161: 39 | O161: 2 | P161: B | Q161: 2 | R161: 201524 | S161: 201524
B162: GUANAJUATO | C162: BASD650419PC6 | D162: BASD650419MGTRNL06 | E162: MA. DOLORES BARCENAS SANCHEZ | F162: 1 | G162: 83101126A0180700.000457 | H162: 83101 | I162: 2 | J162: 6 | K162: A01807 | L162: 0 | M162: 457 | N162: 81 | O162: 5 | P162: B | Q162: 2 | R162: 201524 | S162: 201524
B163: GUANAJUATO | C163: RORO630106MU5 | D163: ROXR630106MGTDXS03 | E163: MA. ROSALBA RODRIGUEZ | F163: 1 | G163: 831011714A0180700.000469 | H163: 83101 | I163: 7 | J163: 14 | K163: A01807 | L163: 0 | M163: 469 | N163: 81 | O163: 5 | P163: B | Q163: 2 | R163: 201524 | S163: 201524
B164: GUANAJUATO | C164: TORL440723TS8 | D164: TORL440723HDFRMB02 | E164: LIBORIO TORRES RAMIREZ | F164: 1 | G164: 831011951A0380400.000137 | H164: 83101 | I164: 9 | J164: 51 | K164: A03804 | L164: 0 | M164: 137 | N164: 43 | O164: 2 | P164: B | Q164: 2 | R164: 201524 | S164: 201524
B165: GUANAJUATO | C165: DESR580403369 | D165: DESR580403HMNLRB01 | E165: ROBERTO DELGADO SERRATO | F165: 1 | G165: 831011713T0382000.000367 | H165: 83101 | I165: 7 | J165: 13 | K165: T03820 | L165: 0 | M165: 367 | N165: 82 | O165: 7 | P165: B | Q165: 2 | R165: 201524 | S165: 201524
B166: GUANAJUATO | C166: PUHM710228MP4 | D166: PUHM710228MGTGRR04 | E166: MARTHA PATRICIA PUGA HUERTA | F166: 1 | G166: 831011950A0180700.000501 | H166: 83101 | I166: 9 | J166: 50 | K166: A01807 | L166: 0 | M166: 501 | N166: 81 | O166: 5 | P166: B | Q166: 2 | R166: 201524 | S166: 201524
B167: GUANAJUATO | C167: MESJ640111M38 | D167: MESJ640111HGTDNM00 | E167: JAIME MEDINA SANCHEZ | F167: 1 | G167: 831011844T0382300.0002232 | H167: 83101 | I167: 8 | J167: 44 | K167: T03823 | L167: 0 | M167: 2232 | N167: 85 | O167: 7 | P167: B | Q167: 2 | R167: 201524 | S167: 201524
B168: GUANAJUATO | C168: TEQJ7107275Z4 | D168: TEQJ710727MGTRND05 | E168: JUDITH TREJO QUINTERO | F168: 1 | G168: 831011951A0180700.000172 | H168: 83101 | I168: 9 | J168: 51 | K168: A01807 | L168: 0 | M168: 172 | N168: 81 | O168: 5 | P168: B | Q168: 2 | R168: 201524 | S168: 201524
B169: GUANAJUATO | C169: HEMR630129LH6 | D169: HEMR630129MGTRRY04 | E169: MA. DEL RAYO HERNANDEZ MORALES | F169: 1 | G169: 83101137T0381000.0004512 | H169: 83101 | I169: 3 | J169: 7 | K169: T03810 | L169: 0 | M169: 4512 | N169: 39 | O169: 2 | P169: B | Q169: 2 | R169: 201524 | S169: 201524
B170: GUANAJUATO | C170: PAVA730326G70 | D170: PAVA730326MGTZLL01 | E170: ALEJANDRA PAZ VILLANUEVA | F170: 1 | G170: 83101112A0180600.0001951 | H170: 83101 | I170: 1 | J170: 2 | K170: A01806 | L170: 0 | M170: 1951 | N170: 70 | O170: 3 | P170: B | Q170: 2 | R170: 201524 | S170: 201524
B171: GUANAJUATO | C171: MUFS691006FC3 | D171: MUFS691006HGTRLR09 | E171: SERGIO ALEJANDRO MURILLO FLORES | F171: 1 | G171: 831011844T0381000.000151 | H171: 83101 | I171: 8 | J171: 44 | K171: T03810 | L171: 0 | M171: 151 | N171: 39 | O171: 2 | P171: B | Q171: 2 | R171: 201524 | S171: 201524
B172: GUANAJUATO | C172: RAAB6501253K8 | D172: RAAB650125HGTYRN02 | E172: JOSE BONIFACIO RAYON ARANDA | F172: 1 | G172: 831011951T0380300.000029 | H172: 83101 | I172: 9 | J172: 51 | K172: T03803 | L172: 0 | M172: 29 | N172: 47 | O172: 2 | P172: B | Q172: 2 | R172: 201524 | S172: 201524
B173: GUANAJUATO | C173: MOVA660624EE4 | D173: MOVA660624HSPRLL01 | E173: ALEJANDRO MORALES VELASQUEZ | F173: 1 | G173: 831011718T0382300.000066 | H173: 83101 | I173: 7 | J173: 18 | K173: T03823 | L173: 0 | M173: 66 | N173: 85 | O173: 7 | P173: B | Q173: 2 | R173: 201524 | S173: 201524
B174: GUANAJUATO | C174: GAAM691031CP4 | D174: GAAM691031HGTRRR06 | E174: MARCELINO GARCIA ARAUJO | F174: 1 | G174: 831011741T0382000.00686 | H174: 83101 | I174: 7 | J174: 41 | K174: T03820 | L174: 0 | M174: 686 | N174: 82 | O174: 7 | P174: B | Q174: 2 | R174: 201524 | S174: 201524
B175: GUANAJUATO | C175: EEAL680616KE5 | D175: EEAL680616MGTSRZ04 | E175: LUZ MARIA ESTRELLA ARIAS | F175: 1 | G175: 83101126A0180600.000066 | H175: 83101 | I175: 2 | J175: 6 | K175: A01806 | L175: 0 | M175: 66 | N175: 70 | O175: 3 | P175: B | Q175: 2 | R175: 201524 | S175: 201524
B176: GUANAJUATO | C176: ROLE580119DM2 | D176: ROLE580119MGTJPL09 | E176: ELVIRA ROJAS LOPEZ | F176: 1 | G176: 831011844A0380400.000066 | H176: 83101 | I176: 8 | J176: 44 | K176: A03804 | L176: 0 | M176: 66 | N176: 43 | O176: 2 | P176: B | Q176: 2 | R176: 201524 | S176: 201524
B177: GUANAJUATO | C177: GOPR500214N78 | D177: GOPR500214HGTNNL05 | E177: RAUL GONZALEZ PANTOJA | F177: 1 | G177: 831011843A0180700.000312 | H177: 83101 | I177: 8 | J177: 43 | K177: A01807 | L177: 0 | M177: 312 | N177: 81 | O177: 5 | P177: B | Q177: 2 | R177: 201524 | S177: 201524
B178: GUANAJUATO | C178: GARR740115NHA | D178: GARR740115MGTLCC19 | E178: MA DEL ROCIO GALLARDO RICO | F178: 1 | G178: 831011733T0382000.000066 | H178: 83101 | I178: 7 | J178: 33 | K178: T03820 | L178: 0 | M178: 66 | N178: 82 | O178: 7 | P178: B | Q178: 2 | R178: 201524 | S178: 201524
B179: GUANAJUATO | C179: CACL710727SP5 | D179: CACL710727MGTSMR01 | E179: MARIA LAURA SAN JUAN CASTAÑEDA CAMPOS | F179: 1 | G179: 831011720A0380400.000371 | H179: 83101 | I179: 7 | J179: 20 | K179: A03804 | L179: 0 | M179: 371 | N179: 43 | O179: 2 | P179: B | Q179: 2 | R179: 201524 | S179: 201524
B180: GUANAJUATO | C180: GAES770928K33 | D180: GAES770928MGTRSS02 | E180: SUSANA GARCIA ESTRADA | F180: 1 | G180: 831011949A0180700.000066 | H180: 83101 | I180: 9 | J180: 49 | K180: A01807 | L180: 0 | M180: 66 | N180: 81 | O180: 5 | P180: B | Q180: 2 | R180: 201524 | S180: 201524
B181: GUANAJUATO | C181: TEAS630908BX9 | D181: TEAS630908MMNLVR08 | E181: SARA TELLEZ AVILA | F181: 1 | G181: 83101124T0381000.000066 | H181: 83101 | I181: 2 | J181: 4 | K181: T03810 | L181: 0 | M181: 66 | N181: 39 | O181: 2 | P181: B | Q181: 2 | R181: 201524 | S181: 201524
B182: GUANAJUATO | C182: SASM7509053E4 | D182: SASM750905MGTNLY05 | E182: MAYRA SANCHEZ SALINAS | F182: 1 | G182: 83101137A0380400.000066 | H182: 83101 | I182: 3 | J182: 7 | K182: A03804 | L182: 0 | M182: 66 | N182: 43 | O182: 2 | P182: B | Q182: 2 | R182: 201524 | S182: 201524
B183: GUANAJUATO | C183: MEOJ640619171 | D183: MEOJ640619HGTNLS12 | E183: J. JESUS MENDEZ OLIVA | F183: 1 | G183: 831011729T0382000.002916 | H183: 83101 | I183: 7 | J183: 29 | K183: T03820 | L183: 0 | M183: 2916 | N183: 82 | O183: 7 | P183: B | Q183: 2 | R183: 201524 | S183: 201524
B184: GUANAJUATO | C184: OEMA5308307K6 | D184: OEMA530830MMNRRL00 | E184: ALEJANDRA OREGEL MARTINEZ | F184: 1 | G184: 831011727CF3601400.000351 | H184: 83101 | I184: 7 | J184: 27 | K184: CF36014 | L184: 0 | M184: 351 | N184: 92 | O184: OA1 | P184: B | Q184: 2 | R184: 201524 | S184: 201524
B185: GUANAJUATO | C185: BAAL701128HC5 | D185: BAAL701128HTSRLN01 | E185: LEANDRO BARRON ALONSO | F185: 1 | G185: 831011718T0382000.002887 | H185: 83101 | I185: 7 | J185: 18 | K185: T03820 | L185: 0 | M185: 2887 | N185: 82 | O185: 7 | P185: B | Q185: 2 | R185: 201524 | S185: 201524
B186: GUANAJUATO | C186: SETG700331TM7 | D186: SETG700331MGTRRD01 | E186: MA. GUADALUPE SERRANO TREJO | F186: 1 | G186: 83101124CF3384900.000296 | H186: 83101 | I186: 2 | J186: 4 | K186: CF33849 | L186: 0 | M186: 296 | N186: 88 | O186: 8 | P186: B | Q186: 1 | R186: 201524 | S186: 201524
B187: GUANAJUATO | C187: QULJ710417B39 | D187: QULJ710417HDFRPN08 | E187: JUAN BERNARDO QUIROZ LOPEZ | F187: 1 | G187: 831011742T0382000.001530 | H187: 83101 | I187: 7 | J187: 42 | K187: T03820 | L187: 0 | M187: 1530 | N187: 82 | O187: 7 | P187: B | Q187: 3 | R187: 201524 | S187: 201524
B188: GUANAJUATO | C188: AARJ690708F16 | D188: AARJ690708HGTLDS05 | E188: JOSE ALVAREZ RODRIGUEZ | F188: 1 | G188: 831011722T0382000.000435 | H188: 83101 | I188: 7 | J188: 22 | K188: T03820 | L188: 0 | M188: 435 | N188: 82 | O188: 7 | P188: B | Q188: 2 | R188: 201524 | S188: 201524
B189: GUANAJUATO | C189: MACE770912412 | D189: MACE770912HQTRHC07 | E189: ECTOR JAVIER MARTINEZ CHAVEZ | F189: 1 | G189: 831011728CF3601400.000351 | H189: 83101 | I189: 7 | J189: 28 | K189: CF36014 | L189: 0 | M189: 351 | N189: 92 | O189: OA1 | P189: B | Q189: 3 | R189: 201524 | S189: 201524
B190: GUANAJUATO | C190: GARM791222RR9 | D190: GARM791222MGTLDR08 | E190: MARIA MAURA GALVAN RODRIGUEZ | F190: 1 | G190: 831011843A0180700.000066 | H190: 83101 | I190: 8 | J190: 43 | K190: A01807 | L190: 0 | M190: 66 | N190: 81 | O190: 5 | P190: B | Q190: 2 | R190: 201524 | S190: 201524
B191: GUANAJUATO | C191: COMC760615F26 | D191: COMC760615HGTRRR06 | E191: CRISTOBAL ARTURO CORTES MARTINEZ | F191: 1 | G191: 83101124T0380300.000066 | H191: 83101 | I191: 2 | J191: 4 | K191: T03803 | L191: 0 | M191: 66 | N191: 47 | O191: 2 | P191: B | Q191: 2 | R191: 201524 | S191: 201524
B192: GUANAJUATO | C192: OAGJ780602JQ7 | D192: OAGJ780602MVZCLR09 | E192: JERAMEEL OCAÑA GALINDO | F192: 1 | G192: 831011843S0180300.000066 | H192: 83101 | I192: 8 | J192: 43 | K192: S01803 | L192: 0 | M192: 66 | N192: 21 | O192: 2 | P192: B | Q192: 2 | R192: 201524 | S192: 201524
B193: GUANAJUATO | C193: GOSF780306TW7 | D193: GOSF780306MGTNLL09 | E193: MA. FELICITAS GONZALEZ SALAS | F193: 1 | G193: 831011722T0382000.000391 | H193: 83101 | I193: 7 | J193: 22 | K193: T03820 | L193: 0 | M193: 391 | N193: 82 | O193: 7 | P193: B | Q193: 2 | R193: 201524 | S193: 201524
B194: GUANAJUATO | C194: GAEF781007FQ9 | D194: GAEF781007HASRSR06 | E194: FRANCISCO JAVIER GARCIA ESQUIVEL | F194: 1 | G194: 831011729T0382000.000915 | H194: 83101 | I194: 7 | J194: 29 | K194: T03820 | L194: 0 | M194: 915 | N194: 82 | O194: 7 | P194: B | Q194: 2 | R194: 201524 | S194: 201524
B195: GUANAJUATO | C195: LUPI741127IZ3 | D195: LUPI741127MDFNRS02 | E195: MARIA ISABEL LUNA PEREZ | F195: 1 | G195: 831011310CF2186500.00009 | H195: 83101 | I195: 3 | J195: 10 | K195: CF21865 | L195: 0 | M195: 9 | N195: 1 | O195: QB | P195: B | Q195: 3 | R195: 201524 | S195: 201524
B196: GUANAJUATO | C196: VINM871130FV5 | D196: VINM871130MGTLVN04 | E196: MARIA MONTSERRAT VILLAFAÑA NAVA | F196: 1 | G196: 831011950CF3384900.000066 | H196: 83101 | I196: 9 | J196: 50 | K196: CF33849 | L196: 0 | M196: 66 | N196: 88 | O196: 8 | P196: B | Q196: 2 | R196: 201524 | S196: 201524
B197: GUANAJUATO | C197: CAAB610110HC5 | D197: CAAB610110MGTRRR07 | E197: BERTHA ANGELICA CARPIO ARAGON | F197: 1 | G197: 831011723T0382000.002463 | H197: 83101 | I197: 7 | J197: 23 | K197: T03820 | L197: 0 | M197: 2463 | N197: 82 | O197: 7 | P197: B | Q197: 1 | R197: 201524 | S197: 201524
B198: GUANAJUATO | C198: SAMM8709097V3 | D198: SAMM870909HGTNNR04 | E198: MARIO OSCAR SANCHEZ MANDUJANO | F198: 1 | G198: 831011951T0381000.000066 | H198: 83101 | I198: 9 | J198: 51 | K198: T03810 | L198: 0 | M198: 66 | N198: 39 | O198: 2 | P198: B | Q198: 2 | R198: 201524 | S198: 201524
B199: GUANAJUATO | C199: SAMM8709097V3 | D199: SAMM870909HGTNNR04 | E199: MARIO OSCAR SANCHEZ MANDUJANO | F199: 1 | G199: 831011951T0381000.000219 | H199: 83101 | I199: 9 | J199: 51 | K199: T03810 | L199: 0 | M199: 219 | N199: 39 | O199: 2 | P199: B | Q199: 3 | R199: 201524 | S199: 201524
B200: GUANAJUATO | C200: CUME820306JF6 | D200: CUME820306HPLRRS07 | E200: ESTEBAN DE LA CRUZ MORALES | F200: 1 | G200: 831011718A0380400.000143 | H200: 83101 | I200: 7 | J200: 18 | K200: A03804 | L200: 0 | M200: 143 | N200: 43 | O200: 2 | P200: B | Q200: 2 | R200: 201524 | S200: 201524
B201: GUANAJUATO | C201: NOSV840205QG9 | D201: NOSV840205HGTRLC08 | E201: VICTOR ALFONSO NORIEGA SILVA | F201: 1 | G201: 83101113CF3481000.0000031 | H201: 83101 | I201: 1 | J201: 3 | K201: CF34810 | L201: 0 | M201: 31 | N201: 70 | O201: 3 | P201: B | Q201: 3 | R201: 201524 | S201: 201524
B202: GUANAJUATO | C202: REML5601235F5 | D202: REML560123MGTYRT00 | E202: MARIA LETICIA REYNOSA MORENO | F202: 1 | G202: 831011844A0380400.000066 | H202: 83101 | I202: 8 | J202: 44 | K202: A03804 | L202: 0 | M202: 66 | N202: 43 | O202: 2 | P202: B | Q202: 2 | R202: 201524 | S202: 201524
B203: GUANAJUATO | C203: POML751010N61 | D203: POML751010MMCNRZ08 | E203: LUZ ALICIA PONCE DE LEON MIRELES | F203: 1 | G203: 831011512CF3384900.000066 | H203: 83101 | I203: 5 | J203: 12 | K203: CF33849 | L203: 0 | M203: 66 | N203: 88 | O203: 8 | P203: B | Q203: 2 | R203: 201524 | S203: 201524
B204: GUANAJUATO | C204: NACC800204L10 | D204: NACC800204MGTVHL05 | E204: CLAUDIA GABRIELA NAVARRO CHAVEZ | F204: 1 | G204: 831011951A0380400.000066 | H204: 83101 | I204: 9 | J204: 51 | K204: A03804 | L204: 0 | M204: 66 | N204: 43 | O204: 2 | P204: B | Q204: 2 | R204: 201524 | S204: 201524
B205: Total Personas : | C205: 189 | K205: Total Plazas : | M205: 189
B209: Fuente : Información proporcionada por las Entidades Federativas

Sheet II D) 4
B9: Formato: Trabajadores Jubilados en el Periodo
B10: =IF('Caratula Resumen'!D22="Elige el Periodo…","",'Caratula Resumen'!D22) -> Fondo de Aportaciones para la Educación Tecnológica y de Adultos/Instituto Nacional para la Educación de los Adultos (FAETA/INEA) | P10: =IF('Caratula Resumen'!D23="Elige el Periodo…","",'Caratula Resumen'!D23) -> 4to. Trimestre
B13: Entidad Federativa | C13: R.F.C. | D13: CURP | E13: NOMBRE | F13: Clave CT | G13: Última(s) ó Penultima(s) Plaza(s) Ocupada(s) (*) | H13: Clave Presupuestal de la Jubilación | O13: Periodo ocupado | Q13: Quincena de inicio de jubilación
H14: Partida Presupuestal | I14: Código de Pago | J14: Clave de Unidad | K14: Clave de Sub Unidad | L14: Clave de Categoría | M14: Horas Semana Mes | N14: Número de Plaza | O14: Inicio | P14: Conclusión
B16: Entidad Federativa | C16: R.F.C. | D16: CURP | E16: NOMBRE | F16: Clave Centro de Trabajo | G16: Última(s) ó Penultima(s) Plaza(s) Ocupada(s) (*) | H16: Partida Presupuestal | I16: Código de Pago | J16: Clave de Unidad | K16: Clave de Sub Unidad | L16: Clave de Categoría | M16: Horas Semana Mes | N16: Número de Plaza | O16: Periodo ocupado Inicio | P16: Periodo ocupado Conclusión | Q16: Quincena de inicio de jubilación
B22: Total Personas : | L22: Total Plazas :
B26: Fuente : Información proporcionada por las Entidades Federativas
B27: (*) Si el trabajador se jubila con más de una clave presupuestal, por cada plaza se debe llenar un registro hasta que se haya informado acerca de todas las plazas del trabajador.

Sheet II D) 4 A
B9: Formato: Trabajadores que Tramitaron Licencia Prejubilatoria en el Periodo
B10: =IF('Caratula Resumen'!D22="Elige el Periodo…","",'Caratula Resumen'!D22) -> Fondo de Aportaciones para la Educación Tecnológica y de Adultos/Instituto Nacional para la Educación de los Adultos (FAETA/INEA) | R10: =IF('Caratula Resumen'!D23="Elige el Periodo…","",'Caratula Resumen'!D23) -> 4to. Trimestre
B13: Entidad Federativa | C13: R.F.C. | D13: CURP | E13: NOMBRE | F13: Clave integrada | G13: Clave Presupuestal | N13: Periodo Licencia | P13: Percepciones pagadas con Presupuesto Federal en el Periodo reportado* | Q13: Percepciones pagadas con Presupuesto de otra Fuente en el Periodo reportado* | R13: Clave CT Origen
G14: Partida Presupuestal | H14: Código de Pago | I14: Clave de Unidad | J14: Clave de Sub Unidad | K14: Clave de Categoría | L14: Horas Semana Mes | M14: Número de Plaza | N14: Inicio | O14: Conclusión
B16: Entidad Federativa | C16: R.F.C. | D16: CURP | E16: NOMBRE | F16: Clave integrada | G16: Partida Presupuestal | H16: Código de Pago | I16: Clave de Unidad | J16: Clave de Sub Unidad | K16: Clave de Categoría | L16: Horas Semana Mes | M16: Número de Plaza | N16: Periodo Licencia Inicio | O16: Periodo Licencia Conclusión | P16: Percepciones pagadas con Presupuesto Federal en el Periodo reportado* | Q16: Percepciones pagadas con Presupuesto de otra Fuente en el Periodo reportado* | R16: Clave CT Origen
B22: Total Personas : | K22: Total Plazas : | N22: Total Pto. Federal
N24: Total Ppto. Otras Fuentes
B26: *Total de Percepciones reportadas por la Entidad Federativa como pagadas en el periodo
B27: Fuente : Información proporcionada por las Entidades Federativas

Sheet II D) 6
B10: Formato: Trabajadores Contratados por Honorarios en el Periodo
B11: =IF('Caratula Resumen'!D22="Elige el Periodo…","",'Caratula Resumen'!D22) -> Fondo de Aportaciones para la Educación Tecnológica y de Adultos/Instituto Nacional para la Educación de los Adultos (FAETA/INEA) | M11: =IF('Caratula Resumen'!D23="Elige el Periodo…","",'Caratula Resumen'!D23) -> 4to. Trimestre
B14: Entidad Federativa | C14: Clave Centro de Trabajo | D14: R.F.C. | E14: CURP | F14: Nombre | G14: Identificador del Contrato | H14: Equivalencia | J14: Periodo de Contratación | L14: Función | M14: Percepciones pagadas dentro del periodo reportado
H15: Clave de Categoría | I15: Horas Semana Mes | J15: Inicio | K15: Conclusión
B17: Entidad Federativa | C17: Clave Centro de Trabajo | D17: R.F.C. | E17: CURP | F17: Nombre | G17: Identificador del Contrato | H17: Clave de Categoría | I17: Horas Semana Mes | J17: Periodo de Contratación Inicio | K17: Periodo de Contratación Conclusión | L17: Función | M17: Percepciones pagadas dentro del periodo reportado
B18: GUANAJUATO | C18: 11EBS6627E | D18: BEGE910301GS3 | E18: BEGE910301MGTSTN05 | F18: MARIA ENRIQUETA BESOY GUTIERREZ | G18: 1 | H18: 2896863418 | I18: 0 | J18: 20150323 | K18: 20151215 | L18: TURNAR Y CONTESTAR OFICIOS PARA DAR SEGUIMIENTO OPORTUNO A LOS TRAMITES ASI COMO REALIZAR OTRAS ACTIVIDADES ADMINISTRATIVOAS | M18: =2750*9 -> 24750
B19: GUANAJUATO | C19: 11EBS6627E | D19: ROHS931122HC1 | E19: ROHS931122MGTDRL00 | F19: SILVIA RODRIGUEZ HERNANDEZ | G19: 1 | H19: 2896863426 | I19: 0 | J19: 20150416 | K19: 20151215 | L19: TURNAR Y CONTESTAR OFICIOS PARA DAR SEGUIMIENTO OPORTUNO A LOS TRAMITES ASI COMO REALIZAR OTRAS ACTIVIDADES ADMINISTRATIVOAS | M19: =2750*8 -> 22000
B20: GUANAJUATO | C20: 11EBS6627E | D20: ZAVL881022CS3 | E20: ZAVL881022MGTVRR05 | F20: LAURA ESTHELA ZAVALA VERA | G20: 1 | H20: 2896863434 | I20: 0 | J20: 20150413 | K20: 20151215 | L20: SUPERVISION SEGUIMIENTO Y CUMPLIMENTO DE LOS INDICADORES DE INDICADORES DE EFICIENCIA OPERATIVA DEFINIDOS POR LA DIRECCION REGIONAL PARA LAS COORDINACIONES DE LA REGION SUPERVISION | M20: =5500*8 -> 44000
B21: GUANAJUATO | C21: 11EBS6627E | D21: RIMJ951204211 | E21: RIMJ951204HGTNJR09 | F21: JAIRO RINCON MEJIA | G21: 1 | H21: 1469949240 | I21: 0 | J21: 20150406 | K21: 20151215 | L21: RECLUTAR ASESORES PARA LA IMPARTICION DE LAS ASESORIAS Y ASEGURAR LA ADECUADAOPERACION DE LOS PROGRMAS DEL INAEBA | M21: =3900*8 -> 31200
B22: GUANAJUATO | C22: 11EBS6627E | D22: GUMC861020514 | E22: GUMC861020HGTRNS04 | F22: CESAR GUERRERO MENDEZ | G22: 1 | H22: 2678754233 | I22: 0 | J22: 20150701 | K22: 20151215 | L22: SUPERVISION SEGUIMIENTO Y CUMPLIMENTO DE LOS INDICADORES DE INDICADORES DE EFICIENCIA OPERATIVA DEFINIDOS POR LA DIRECCION REGIONAL PARA LAS COORDINACIONES DE LA REGION SUPERVISION | M22: =5500*5 -> 27500
B23: GUANAJUATO | C23: 11EBS6627E | D23: ROBD731212SF4 | E23: ROBD731212MGTXRL08 | F23: DULCE MARIA GUADALUPE ROA BARRON | G23: 1 | H23: 2662756226 | I23: 0 | J23: 20150807 | K23: 20151215 | L23: TURNAR Y CONTESTAR OFICIOS PARA DAR SEGUIMIENTO OPORTUNO A LOS TRAMITES ASI COMO REALIZAR OTRAS ACTIVIDADES ADMINISTRATIVOAS | M23: =5500*4 -> 22000
B24: GUANAJUATO | C24: 11EBS6627E | D24: MEAX550223TH8 | E24: MXAR550223HGTNLF00 | F24: RAFAEL MENDEZ ALCANTAR | G24: 1 | H24: 1441181467 | I24: 0 | J24: 20150906 | K24: 20151215 | L24: DIRIGIR Y ASEGURAR QUE SE REALICEN ADECUADAMENTE LAS ACCIONES OPERATIVAS Y EDUCATIVAS QUE CONTRIBUYAN A DISMINUIR EL ANALFABETISMO Y EL REZAGO EDUCATIVO EN SU ZONA DE INFLUENCIA. | M24: =11259*3 -> 33777
B25: GUANAJUATO | C25: 11EBS6627E | D25: GAAL7606041B0 | E25: GAAL760604MGTRGL04 | F25: LILIANA GARCIDUEÑAS AGUILAR | G25: 1 | H25: 2896863396 | I25: 0 | J25: 20151001 | K25: 20151215 | L25: TURNAR Y CONTESTAR OFICIOS PARA DAR SEGUIMIENTO OPORTUNO A LOS TRAMITES ASI COMO REALIZAR OTRAS ACTIVIDADES ADMINISTRATIVOAS | M25: =5500*2 -> 11000
B26: GUANAJUATO | C26: 11EBS6627E | D26: RUMA951109CV5 | E26: RUMA951109MGTDXL00 | F26: ALMA ROSA RUEDA MUÑOZ | G26: 1 | H26: 2745119693 | I26: 0 | J26: 20151101 | K26: 20151215 | L26: TURNAR Y CONTESTAR OFICIOS PARA DAR SEGUIMIENTO OPORTUNO A LOS TRAMITES ASI COMO REALIZAR OTRAS ACTIVIDADES ADMINISTRATIVOAS | M26: =13750*2 -> 27500
B27: GUANAJUATO | C27: 11EBS6627E | D27: MAGA911123BP0 | E27: MAGA911123MGTRYL08 | F27: ALMA MARTINEZ GAYTAN | G27: 1 | H27: 0 | I27: 0 | J27: 20151101 | K27: 20151215 | L27: TURNAR Y CONTESTAR OFICIOS PARA DAR SEGUIMIENTO OPORTUNO A LOS TRAMITES ASI COMO REALIZAR OTRAS ACTIVIDADES ADMINISTRATIVOAS | M27: =8250*2 -> 16500
B28: GUANAJUATO | C28: 11EBS6627E | D28: HEOS861101KQ5 | E28: HEOS861101MGTRTR07 | F28: SARA HERNANDEZ OTERO | G28: 1 | H28: 2896863191 | I28: 0 | J28: 20151101 | K28: 20151215 | L28: TURNAR Y CONTESTAR OFICIOS PARA DAR SEGUIMIENTO OPORTUNO A LOS TRAMITES ASI COMO REALIZAR OTRAS ACTIVIDADES ADMINISTRATIVOAS | M28: =11700*2 -> 23400
B29: Total Entidad Federativa Personas : | D29: 11 | L29: Subtotal Monto Pagado en el Periodo: | M29: =SUBTOTAL(109,Tabla14[Percepciones pagadas dentro del periodo reportado]) -> 283627
J32: Total Percepciones : | L32: =M29 -> 283627
B34: Fuente : Información proporcionada por las Entidades Federativas

Sheet II D) 7 1
B9: Formato: Analítico de Categorías / Plazas Autorizadas con su Tabulador | Q9: Entidad Federativa: | R9: =IF('Caratula Resumen'!D21="Elige el Periodo…","",'Caratula Resumen'!D21) -> GUANAJUATO
B10: =IF('Caratula Resumen'!D22="Elige el Periodo…","",'Caratula Resumen'!D22) -> Fondo de Aportaciones para la Educación Tecnológica y de Adultos/Instituto Nacional para la Educación de los Adultos (FAETA/INEA) | S10: =IF('Caratula Resumen'!D23="Elige el Periodo…","",'Caratula Resumen'!D23) -> 4to. Trimestre
B13: Clave Tipo educativo | C13: Clave Nivel educativo | D13: Clave Subnivel educativo | E13: Descripción Nivel / Subnivel | F13: Tipo Financiamiento | G13: Partida Presupuestal | H13: CATEGORIA | K13: Zona Económica | L13: Nivel Puesto | M13: Nivel Sueldo | N13: Tipo Contratación | O13: Monto mensual por plaza jornada | P13: Monto mensual Por Plaza HSM | Q13: Número de Plazas Jornada | R13: Número de Plazas HSM | S13: Monto total autorizado
H14: Tipo de Categoría | I14: Categoría | J14: Descripción
B16: Clave Tipo educativo | C16: Clave Nivel educativo | D16: Clave Subnivel educativo | E16: Descripción Nivel / Subnivel | F16: Tipo Financiamiento | G16: Partida Presupestal | H16: Tipo de Categoría | I16: Categoría | J16: Descripción | K16: Zona Económica | L16: Nivel Puesto | M16: Nivel Sueldo | N16: Tipo Contratación | O16: Monto mensual por plaza jornada | P16: Monto mensual Por Plaza HSM | Q16: Número de Plazas Jornada | R16: Número de Plazas HSM | S16: Monto total autorizado
B17: 6 | C17: 61 | D17: 64 | E17: PRIMARIA, SECUNDARIA Y CAPACITACION PARA EL TRABAJO | F17: FAETA | G17: 83101 | H17: 5 | I17: CF36014 | J17: COORDINADOR DE ZONA | K17: A | L17: 92 | M17: OA1 | N17: P | O17: 4190.88 | P17: 0 | Q17: 10 | R17: 0 | S17: 41908.8
B18: 6 | C18: 61 | D18: 64 | E18: PRIMARIA, SECUNDARIA Y CAPACITACION PARA EL TRABAJO | F18: FAETA | G18: 83101 | H18: 5 | I18: CF01059 | J18: JEFE DE DEPARTAMENTO | K18: A | L18: 93 | M18: OA1 | N18: P | O18: 5164.51 | P18: 0 | Q18: 5 | R18: 0 | S18: 25822.55
B19: 6 | C19: 61 | D19: 64 | E19: PRIMARIA, SECUNDARIA Y CAPACITACION PARA EL TRABAJO | F19: FAETA | G19: 83101 | H19: 5 | I19: CF36014 | J19: COORDINADOR DE ZONA | K19: A | L19: 95 | M19: OA1 | N19: P | O19: 5164.52 | P19: 0 | Q19: 1 | R19: 0 | S19: 5164.52
B20: 6 | C20: 61 | D20: 64 | E20: PRIMARIA, SECUNDARIA Y CAPACITACION PARA EL TRABAJO | F20: FAETA | G20: 83101 | H20: 5 | I20: CF14070 | J20: DELEGADO | K20: A | L20: 97 | M20: MB2 | N20: P | O20: 14611.06 | P20: 0 | Q20: 1 | R20: 0 | S20: 14611.06
B21: 6 | C21: 61 | D21: 64 | E21: PRIMARIA, SECUNDARIA Y CAPACITACION PARA EL TRABAJO | F21: FAETA | G21: 83101 | H21: 5 | I21: CF21865 | J21: PROFESIONAL DICTAMINADOR | K21: B | L21: 1 | M21: QB | N21: P | O21: 6498.9 | P21: 0 | Q21: 12 | R21: 0 | S21: 77986.8
B22: 6 | C22: 61 | D22: 64 | E22: PRIMARIA, SECUNDARIA Y CAPACITACION PARA EL TRABAJO | F22: FAETA | G22: 83101 | H22: 2 | I22: S01803 | J22: OFICIAL DE SERVICIOS Y MANTENIMIENTO | K22: B | L22: 21 | M22: 2 | N22: P | O22: 5731 | P22: 0 | Q22: 3 | R22: 0 | S22: 17193
B23: 6 | C23: 61 | D23: 64 | E23: PRIMARIA, SECUNDARIA Y CAPACITACION PARA EL TRABAJO | F23: FAETA | G23: 83101 | H23: 2 | I23: A01803 | J23: ADMINSITRATIVO ESPECIALIZADO | K23: B | L23: 29 | M23: 2 | N23: P | O23: 5731 | P23: 0 | Q23: 3 | R23: 0 | S23: 17193
B24: 6 | C24: 61 | D24: 64 | E24: PRIMARIA, SECUNDARIA Y CAPACITACION PARA EL TRABAJO | F24: FAETA | G24: 83101 | H24: 2 | I24: T03810 | J24: ESPECIALISTA EN PROYECTOS TECNICOS | K24: B | L24: 39 | M24: 2 | N24: P | O24: 5731 | P24: 0 | Q24: 16 | R24: 0 | S24: 91696
B25: 6 | C25: 61 | D25: 64 | E25: PRIMARIA, SECUNDARIA Y CAPACITACION PARA EL TRABAJO | F25: FAETA | G25: 83101 | H25: 2 | I25: A03804 | J25: SECRETARIA C | K25: B | L25: 43 | M25: 2 | N25: P | O25: 5731 | P25: 0 | Q25: 18 | R25: 0 | S25: 103158
B26: 6 | C26: 61 | D26: 64 | E26: PRIMARIA, SECUNDARIA Y CAPACITACION PARA EL TRABAJO | F26: FAETA | G26: 83101 | H26: 2 | I26: T03803 | J26: TECNICO MEDIO | K26: B | L26: 47 | M26: 2 | N26: P | O26: 5731 | P26: 0 | Q26: 18 | R26: 0 | S26: 103158
B27: 6 | C27: 61 | D27: 64 | E27: PRIMARIA, SECUNDARIA Y CAPACITACION PARA EL TRABAJO | F27: FAETA | G27: 83101 | H27: 2 | I27: A01806 | J27: ANALISTA ADMINISTRATIVO | K27: B | L27: 70 | M27: 3 | N27: P | O27: 5883.93 | P27: 0 | Q27: 15 | R27: 0 | S27: 88258.95
B28: 6 | C28: 61 | D28: 64 | E28: PRIMARIA, SECUNDARIA Y CAPACITACION PARA EL TRABAJO | F28: FAETA | G28: 83101 | H28: 2 | I28: CF34810 | J28: ANALISTA ADMINISTRATIVO | K28: B | L28: 70 | M28: 3 | N28: P | O28: 5883.93 | P28: 0 | Q28: 1 | R28: 0 | S28: 5883.93
B29: 6 | C29: 61 | D29: 64 | E29: PRIMARIA, SECUNDARIA Y CAPACITACION PARA EL TRABAJO | F29: FAETA | G29: 83101 | H29: 2 | I29: A01807 | J29: JEFE DE OFICINA | K29: B | L29: 81 | M29: 5 | N29: P | O29: 6204.78 | P29: 0 | Q29: 17 | R29: 0 | S29: 105481.26
B30: 6 | C30: 61 | D30: 64 | E30: PRIMARIA, SECUNDARIA Y CAPACITACION PARA EL TRABAJO | F30: FAETA | G30: 83101 | H30: 2 | I30: T03820 | J30: TECNICO DOCENTE | K30: B | L30: 82 | M30: 7 | N30: P | O30: 6418.76 | P30: 0 | Q30: 144 | R30: 0 | S30: 924301.44
B31: 6 | C31: 61 | D31: 64 | E31: PRIMARIA, SECUNDARIA Y CAPACITACION PARA EL TRABAJO | F31: FAETA | G31: 83101 | H31: 2 | I31: T03823 | J31: TECNICO SUPERIOR | K31: B | L31: 85 | M31: 7 | N31: P | O31: 6418.76 | P31: 0 | Q31: 1 | R31: 0 | S31: 6418.76
B32: 6 | C32: 61 | D32: 64 | E32: PRIMARIA, SECUNDARIA Y CAPACITACION PARA EL TRABAJO | F32: FAETA | G32: 83101 | H32: 2 | I32: CF33849 | J32: COORD. DE SERVICIOS ESP. | K32: B | L32: 88 | M32: 8 | N32: P | O32: 6495.05 | P32: 0 | Q32: 2 | R32: 0 | S32: 12990.1
B33: 6 | C33: 61 | D33: 64 | E33: PRIMARIA, SECUNDARIA Y CAPACITACION PARA EL TRABAJO | F33: FAETA | G33: 83101 | H33: 2 | I33: CF36014 | J33: COORINADOR DE ZONA | K33: B | L33: 92 | M33: OA1 | N33: P | O33: 4328.85 | P33: 0 | Q33: 3 | R33: 0 | S33: 12986.55
N34: Total Jornada: | O34: =SUBTOTAL(109,Tabla15[Monto mensual por plaza jornada]) -> 105918.93 | Q34: Total Autorizado: | S34: =SUBTOTAL(109,Tabla15[Monto total autorizado]) -> 1654212.72
N35: Total HSM | P35: =SUM(O39) -> 0
B37: Fuente : Información proporcionada por las Entidades Federativas

Sheet II D) 7 2
B11: Formato: Catálogo de Categorías y Tabuladores | P11: Entidad Federativa: | Q11: =IF('Caratula Resumen'!D21="Elige el Periodo…","",'Caratula Resumen'!D21) -> GUANAJUATO
B12: =IF('Caratula Resumen'!D22="Elige el Periodo…","",'Caratula Resumen'!D22) -> Fondo de Aportaciones para la Educación Tecnológica y de Adultos/Instituto Nacional para la Educación de los Adultos (FAETA/INEA) | R12: =IF('Caratula Resumen'!D23="Elige el Periodo…","",'Caratula Resumen'!D23) -> 4to. Trimestre
B15: Identificador origen presupuestal de la plaza | C15: Clave de categoría | D15: Descripción de la categoría | E15: Tipo de contratación | F15: Tipo de categoría | G15: Clave de concepto de pago | H15: Clave de nivel de puesto | I15: Clave de nivel de sueldo | J15: Sueldo asignado por zona económica | O15: Datos adicionales de horas | R15: Fecha de actualización
J16: Inicio de vigencia del sueldo | K16: Fin de vigencia del sueldo | L16: Monto Mensual Jornada ó de HSM Zona A | M16: Monto Mensual Jornada ó de HSM Zona B | N16: Monto Mensual Jornada ó de HSM Zona C | O16: Horas de compatibilidad | P16: Horas de servicio (HSM) | Q16: Horas de docencia
B18: Identificador origen presupuestal de la plaza | C18: Clave de categoría | D18: Descripción de la categoría | E18: Tipo de contratación | F18: Tipo de categoría | G18: Clave de concepto de pago | H18: Clave de nivel de puesto | I18: Clave de nivel de sueldo | J18: Inicio de vigencia del sueldo | K18: Fin de vigencia del sueldo | L18: Monto Mensual Jornada ó de HSM Zona A | M18: Monto Mensual Jornada ó de HSM Zona B | N18: Monto Mensual Jornada ó de HSM Zona C | O18: Horas de compatibilidad | P18: Horas de servicio (HSM) | Q18: Horas de docencia | R18: Fecha de actualización
B19: 1 | C19: CF21865 | D19: PROFESIONAL DICTAMINADOR DE SERVICIOS ESPECIALIZADOS | E19: P | F19: 2 | G19: 1 | H19: 1 | I19: QB | J19: 201207 | K19: 999999 | L19: 0 | M19: 0 | N19: 6498.9 | O19: 35 | P19: 35 | Q19: 0 | R19: 20160112
B20: 1 | C20: CF21865 | D20: PROFESIONAL DICTAMINADOR DE SERVICIOS ESPECIALIZADOS | E20: P | F20: 2 | G20: 2 | H20: 1 | I20: QB | J20: 201207 | K20: 999999 | L20: 0 | M20: 0 | N20: 415 | O20: 35 | P20: 35 | Q20: 0 | R20: 20160112
B21: 1 | C21: CF21865 | D21: PROFESIONAL DICTAMINADOR DE SERVICIOS ESPECIALIZADOS | E21: P | F21: 2 | G21: 3 | H21: 1 | I21: QB | J21: 201207 | K21: 999999 | L21: 0 | M21: 0 | N21: 5866.4 | O21: 35 | P21: 35 | Q21: 0 | R21: 20160112
B22: 1 | C22: CF21865 | D22: PROFESIONAL DICTAMINADOR DE SERVICIOS ESPECIALIZADOS | E22: P | F22: 2 | G22: 9 | H22: 1 | I22: QB | J22: 201207 | K22: 999999 | L22: 0 | M22: 0 | N22: 465 | O22: 35 | P22: 35 | Q22: 0 | R22: 20160112
B23: 1 | C23: CF21865 | D23: PROFESIONAL DICTAMINADOR DE SERVICIOS ESPECIALIZADOS | E23: P | F23: 2 | G23: 12 | H23: 1 | I23: QB | J23: 201207 | K23: 999999 | L23: 0 | M23: 0 | N23: 385 | O23: 35 | P23: 35 | Q23: 0 | R23: 20160112
B24: 1 | C24: CF21865 | D24: PROFESIONAL DICTAMINADOR DE SERVICIOS ESPECIALIZADOS | E24: P | F24: 2 | G24: 20 | H24: 1 | I24: QB | J24: 201207 | K24: 999999 | L24: 0 | M24: 0 | N24: 1300 | O24: 35 | P24: 35 | Q24: 0 | R24: 20160112
B25: 1 | C25: CF21865 | D25: PROFESIONAL DICTAMINADOR DE SERVICIOS ESPECIALIZADOS | E25: P | F25: 2 | G25: 106 | H25: 1 | I25: QB | J25: 201207 | K25: 999999 | L25: 0 | M25: 0 | N25: 200 | O25: 35 | P25: 35 | Q25: 0 | R25: 20160112
B26: 1 | C26: S01803 | D26: OFICIAL DE SERVICIOS Y MANTEN. | E26: P | F26: 2 | G26: 1 | H26: 21 | I26: 2 | J26: 201207 | K26: 999999 | L26: 0 | M26: 0 | N26: 5731 | O26: 35 | P26: 35 | Q26: 0 | R26: 20160112
B27: 1 | C27: S01803 | D27: OFICIAL DE SERVICIOS Y MANTEN. | E27: P | F27: 2 | G27: 4 | H27: 21 | I27: 2 | J27: 201207 | K27: 999999 | L27: 0 | M27: 0 | N27: 100 | O27: 35 | P27: 35 | Q27: 0 | R27: 20160112
B28: 1 | C28: S01803 | D28: OFICIAL DE SERVICIOS Y MANTEN. | E28: P | F28: 2 | G28: 9 | H28: 21 | I28: 2 | J28: 201207 | K28: 999999 | L28: 0 | M28: 0 | N28: 365 | O28: 35 | P28: 35 | Q28: 0 | R28: 20160112
B29: 1 | C29: S01803 | D29: OFICIAL DE SERVICIOS Y MANTEN. | E29: P | F29: 2 | G29: 11 | H29: 21 | I29: 2 | J29: 201207 | K29: 999999 | L29: 0 | M29: 0 | N29: 365 | O29: 35 | P29: 35 | Q29: 0 | R29: 20160112
B30: 1 | C30: S01803 | D30: OFICIAL DE SERVICIOS Y MANTEN. | E30: P | F30: 2 | G30: 14 | H30: 21 | I30: 2 | J30: 201207 | K30: 999999 | L30: 0 | M30: 0 | N30: 335 | O30: 35 | P30: 35 | Q30: 0 | R30: 20160112
B31: 1 | C31: S01803 | D31: OFICIAL DE SERVICIOS Y MANTEN. | E31: P | F31: 2 | G31: 20 | H31: 21 | I31: 2 | J31: 201207 | K31: 999999 | L31: 0 | M31: 0 | N31: 1200 | O31: 35 | P31: 35 | Q31: 0 | R31: 20160112
B32: 1 | C32: S01803 | D32: OFICIAL DE SERVICIOS Y MANTEN. | E32: P | F32: 2 | G32: 50 | H32: 21 | I32: 2 | J32: 201207 | K32: 999999 | L32: 0 | M32: 0 | N32: 186.56 | O32: 35 | P32: 35 | Q32: 0 | R32: 20160112
B33: 1 | C33: S01803 | D33: OFICIAL DE SERVICIOS Y MANTEN. | E33: P | F33: 2 | G33: 63 | H33: 21 | I33: 2 | J33: 201207 | K33: 999999 | L33: 0 | M33: 0 | N33: 659.06 | O33: 35 | P33: 35 | Q33: 0 | R33: 20160112
B34: 1 | C34: S01803 | D34: OFICIAL DE SERVICIOS Y MANTEN. | E34: P | F34: 2 | G34: 68 | H34: 21 | I34: 2 | J34: 201207 | K34: 999999 | L34: 0 | M34: 0 | N34: 734.86 | O34: 35 | P34: 35 | Q34: 0 | R34: 20160112
B35: 1 | C35: A01803 | D35: ADMINISTRATIVO ESPECIALIZADO | E35: P | F35: 2 | G35: 1 | H35: 29 | I35: 2 | J35: 201207 | K35: 999999 | L35: 0 | M35: 0 | N35: 5731 | O35: 35 | P35: 35 | Q35: 0 | R35: 20160112
B36: 1 | C36: A01803 | D36: ADMINISTRATIVO ESPECIALIZADO | E36: P | F36: 2 | G36: 4 | H36: 29 | I36: 2 | J36: 201207 | K36: 999999 | L36: 0 | M36: 0 | N36: 225 | O36: 35 | P36: 35 | Q36: 0 | R36: 20160112
B37: 1 | C37: A01803 | D37: ADMINISTRATIVO ESPECIALIZADO | E37: P | F37: 2 | G37: 9 | H37: 29 | I37: 2 | J37: 201207 | K37: 999999 | L37: 0 | M37: 0 | N37: 365 | O37: 35 | P37: 35 | Q37: 0 | R37: 20160112
B38: 1 | C38: A01803 | D38: ADMINISTRATIVO ESPECIALIZADO | E38: P | F38: 2 | G38: 11 | H38: 29 | I38: 2 | J38: 201207 | K38: 999999 | L38: 0 | M38: 0 | N38: 365 | O38: 35 | P38: 35 | Q38: 0 | R38: 20160112
B39: 1 | C39: A01803 | D39: ADMINISTRATIVO ESPECIALIZADO | E39: P | F39: 2 | G39: 14 | H39: 29 | I39: 2 | J39: 201207 | K39: 999999 | L39: 0 | M39: 0 | N39: 335 | O39: 35 | P39: 35 | Q39: 0 | R39: 20160112
B40: 1 | C40: A01803 | D40: ADMINISTRATIVO ESPECIALIZADO | E40: P | F40: 2 | G40: 20 | H40: 29 | I40: 2 | J40: 201207 | K40: 999999 | L40: 0 | M40: 0 | N40: 1200 | O40: 35 | P40: 35 | Q40: 0 | R40: 20160112
B41: 1 | C41: A01803 | D41: ADMINISTRATIVO ESPECIALIZADO | E41: P | F41: 2 | G41: 50 | H41: 29 | I41: 2 | J41: 201207 | K41: 999999 | L41: 0 | M41: 0 | N41: 520.04 | O41: 35 | P41: 35 | Q41: 0 | R41: 20160112
B42: 1 | C42: A01803 | D42: ADMINISTRATIVO ESPECIALIZADO | E42: P | F42: 2 | G42: 63 | H42: 29 | I42: 2 | J42: 201207 | K42: 999999 | L42: 0 | M42: 0 | N42: 659.06 | O42: 35 | P42: 35 | Q42: 0 | R42: 20160112
B43: 1 | C43: A01803 | D43: ADMINISTRATIVO ESPECIALIZADO | E43: P | F43: 2 | G43: 68 | H43: 29 | I43: 2 | J43: 201207 | K43: 999999 | L43: 0 | M43: 0 | N43: 734.86 | O43: 35 | P43: 35 | Q43: 0 | R43: 20160112
B44: 1 | C44: T03810 | D44: ESPECIALISTA EN PROYECTOS TECNICOS | E44: P | F44: 2 | G44: 1 | H44: 39 | I44: 2 | J44: 201207 | K44: 999999 | L44: 0 | M44: 0 | N44: 5731 | O44: 35 | P44: 35 | Q44: 0 | R44: 20160112
B45: 1 | C45: T03810 | D45: ESPECIALISTA EN PROYECTOS TECNICOS | E45: P | F45: 2 | G45: 4 | H45: 39 | I45: 2 | J45: 201207 | K45: 999999 | L45: 0 | M45: 0 | N45: 200 | O45: 35 | P45: 35 | Q45: 0 | R45: 20160112
B46: 1 | C46: T03810 | D46: ESPECIALISTA EN PROYECTOS TECNICOS | E46: P | F46: 2 | G46: 9 | H46: 39 | I46: 2 | J46: 201207 | K46: 999999 | L46: 0 | M46: 0 | N46: 365 | O46: 35 | P46: 35 | Q46: 0 | R46: 20160112
B47: 1 | C47: T03810 | D47: ESPECIALISTA EN PROYECTOS TECNICOS | E47: P | F47: 2 | G47: 11 | H47: 39 | I47: 2 | J47: 201207 | K47: 999999 | L47: 0 | M47: 0 | N47: 365 | O47: 35 | P47: 35 | Q47: 0 | R47: 20160112
B48: 1 | C48: T03810 | D48: ESPECIALISTA EN PROYECTOS TECNICOS | E48: P | F48: 2 | G48: 14 | H48: 39 | I48: 2 | J48: 201207 | K48: 999999 | L48: 0 | M48: 0 | N48: 335 | O48: 35 | P48: 35 | Q48: 0 | R48: 20160112
B49: 1 | C49: T03810 | D49: ESPECIALISTA EN PROYECTOS TECNICOS | E49: P | F49: 2 | G49: 20 | H49: 39 | I49: 2 | J49: 201207 | K49: 999999 | L49: 0 | M49: 0 | N49: 1200 | O49: 35 | P49: 35 | Q49: 0 | R49: 20160112
B50: 1 | C50: T03810 | D50: ESPECIALISTA EN PROYECTOS TECNICOS | E50: P | F50: 2 | G50: 50 | H50: 39 | I50: 2 | J50: 201207 | K50: 999999 | L50: 0 | M50: 0 | N50: 1003.52 | O50: 35 | P50: 35 | Q50: 0 | R50: 20160112
B51: 1 | C51: T03810 | D51: ESPECIALISTA EN PROYECTOS TECNICOS | E51: P | F51: 2 | G51: 63 | H51: 39 | I51: 2 | J51: 201207 | K51: 999999 | L51: 0 | M51: 0 | N51: 659.06 | O51: 35 | P51: 35 | Q51: 0 | R51: 20160112
B52: 1 | C52: T03810 | D52: ESPECIALISTA EN PROYECTOS TECNICOS | E52: P | F52: 2 | G52: 68 | H52: 39 | I52: 2 | J52: 201207 | K52: 999999 | L52: 0 | M52: 0 | N52: 734.86 | O52: 35 | P52: 35 | Q52: 0 | R52: 20160112
B53: 1 | C53: T03810 | D53: ESPECIALISTA EN PROYECTOS TECNICOS | E53: P | F53: 2 | G53: 13 | H53: 39 | I53: 2 | J53: 201207 | K53: 999999 | L53: 0 | M53: 0 | N53: 60 | O53: 35 | P53: 35 | Q53: 0 | R53: 20160112
B54: 1 | C54: A03804 | D54: SECRETARIA C | E54: P | F54: 2 | G54: 1 | H54: 43 | I54: 2 | J54: 201207 | K54: 999999 | L54: 0 | M54: 0 | N54: 5731 | O54: 35 | P54: 35 | Q54: 0 | R54: 20160112
B55: 1 | C55: A03804 | D55: SECRETARIA C | E55: P | F55: 2 | G55: 4 | H55: 43 | I55: 2 | J55: 201207 | K55: 999999 | L55: 0 | M55: 0 | N55: 175 | O55: 35 | P55: 35 | Q55: 0 | R55: 20160112
B56: 1 | C56: A03804 | D56: SECRETARIA C | E56: P | F56: 2 | G56: 9 | H56: 43 | I56: 2 | J56: 201207 | K56: 999999 | L56: 0 | M56: 0 | N56: 365 | O56: 35 | P56: 35 | Q56: 0 | R56: 20160112
B57: 1 | C57: A03804 | D57: SECRETARIA C | E57: P | F57: 2 | G57: 11 | H57: 43 | I57: 2 | J57: 201207 | K57: 999999 | L57: 0 | M57: 0 | N57: 365 | O57: 35 | P57: 35 | Q57: 0 | R57: 20160112
B58: 1 | C58: A03804 | D58: SECRETARIA C | E58: P | F58: 2 | G58: 14 | H58: 43 | I58: 2 | J58: 201207 | K58: 999999 | L58: 0 | M58: 0 | N58: 335 | O58: 35 | P58: 35 | Q58: 0 | R58: 20160112
B59: 1 | C59: A03804 | D59: SECRETARIA C | E59: P | F59: 2 | G59: 20 | H59: 43 | I59: 2 | J59: 201207 | K59: 999999 | L59: 0 | M59: 0 | N59: 1200 | O59: 35 | P59: 35 | Q59: 0 | R59: 20160112
B60: 1 | C60: A03804 | D60: SECRETARIA C | E60: P | F60: 2 | G60: 50 | H60: 43 | I60: 2 | J60: 201207 | K60: 999999 | L60: 0 | M60: 0 | N60: 684.66 | O60: 35 | P60: 35 | Q60: 0 | R60: 20160112
B61: 1 | C61: A03804 | D61: SECRETARIA C | E61: P | F61: 2 | G61: 63 | H61: 43 | I61: 2 | J61: 201207 | K61: 999999 | L61: 0 | M61: 0 | N61: 659.06 | O61: 35 | P61: 35 | Q61: 0 | R61: 20160112
B62: 1 | C62: A03804 | D62: SECRETARIA C | E62: P | F62: 2 | G62: 68 | H62: 43 | I62: 2 | J62: 201207 | K62: 999999 | L62: 0 | M62: 0 | N62: 734.86 | O62: 35 | P62: 35 | Q62: 0 | R62: 20160112
B63: 1 | C63: A03804 | D63: SECRETARIA C | E63: P | F63: 2 | G63: 13 | H63: 43 | I63: 2 | J63: 201207 | K63: 999999 | L63: 0 | M63: 0 | N63: 80 | O63: 35 | P63: 35 | Q63: 0 | R63: 20160112
B64: 1 | C64: A03804 | D64: SECRETARIA C | E64: P | F64: 2 | G64: 17 | H64: 43 | I64: 2 | J64: 201207 | K64: 999999 | L64: 0 | M64: 0 | N64: 315.44 | O64: 35 | P64: 35 | Q64: 0 | R64: 20160112
B65: 1 | C65: T03803 | D65: TECNICO MEDIO | E65: P | F65: 2 | G65: 1 | H65: 47 | I65: 2 | J65: 201207 | K65: 999999 | L65: 0 | M65: 0 | N65: 5731 | O65: 35 | P65: 35 | Q65: 0 | R65: 20160112
B66: 1 | C66: T03803 | D66: TECNICO MEDIO | E66: P | F66: 2 | G66: 4 | H66: 47 | I66: 2 | J66: 201207 | K66: 999999 | L66: 0 | M66: 0 | N66: 175 | O66: 35 | P66: 35 | Q66: 0 | R66: 20160112
B67: 1 | C67: T03803 | D67: TECNICO MEDIO | E67: P | F67: 2 | G67: 9 | H67: 47 | I67: 2 | J67: 201207 | K67: 999999 | L67: 0 | M67: 0 | N67: 365 | O67: 35 | P67: 35 | Q67: 0 | R67: 20160112
B68: 1 | C68: T03803 | D68: TECNICO MEDIO | E68: P | F68: 2 | G68: 11 | H68: 47 | I68: 2 | J68: 201207 | K68: 999999 | L68: 0 | M68: 0 | N68: 365 | O68: 35 | P68: 35 | Q68: 0 | R68: 20160112
B69: 1 | C69: T03803 | D69: TECNICO MEDIO | E69: P | F69: 2 | G69: 14 | H69: 47 | I69: 2 | J69: 201207 | K69: 999999 | L69: 0 | M69: 0 | N69: 335 | O69: 35 | P69: 35 | Q69: 0 | R69: 20160112
B70: 1 | C70: T03803 | D70: TECNICO MEDIO | E70: P | F70: 2 | G70: 20 | H70: 47 | I70: 2 | J70: 201207 | K70: 999999 | L70: 0 | M70: 0 | N70: 1200 | O70: 35 | P70: 35 | Q70: 0 | R70: 20160112
B71: 1 | C71: T03803 | D71: TECNICO MEDIO | E71: P | F71: 2 | G71: 50 | H71: 47 | I71: 2 | J71: 201207 | K71: 999999 | L71: 0 | M71: 0 | N71: 1028.52 | O71: 35 | P71: 35 | Q71: 0 | R71: 20160112
B72: 1 | C72: T03803 | D72: TECNICO MEDIO | E72: P | F72: 2 | G72: 63 | H72: 47 | I72: 2 | J72: 201207 | K72: 999999 | L72: 0 | M72: 0 | N72: 659.06 | O72: 35 | P72: 35 | Q72: 0 | R72: 20160112
B73: 1 | C73: T03803 | D73: TECNICO MEDIO | E73: P | F73: 2 | G73: 13 | H73: 47 | I73: 2 | J73: 201207 | K73: 999999 | L73: 0 | M73: 0 | N73: 60 | O73: 35 | P73: 35 | Q73: 0 | R73: 20160112
B74: 1 | C74: T03803 | D74: TECNICO MEDIO | E74: P | F74: 2 | G74: 68 | H74: 47 | I74: 2 | J74: 201207 | K74: 999999 | L74: 0 | M74: 0 | N74: 734.86 | O74: 35 | P74: 35 | Q74: 0 | R74: 20160112
B75: 1 | C75: A01806 | D75: ANALISTA ADMINISTRATIVO | E75: P | F75: 2 | G75: 1 | H75: 70 | I75: 3 | J75: 201207 | K75: 999999 | L75: 0 | M75: 0 | N75: 5883.94 | O75: 35 | P75: 35 | Q75: 0 | R75: 20160112
B76: 1 | C76: A01806 | D76: ANALISTA ADMINISTRATIVO | E76: P | F76: 2 | G76: 4 | H76: 70 | I76: 3 | J76: 201207 | K76: 999999 | L76: 0 | M76: 0 | N76: 175 | O76: 35 | P76: 35 | Q76: 0 | R76: 20160112
B77: 1 | C77: A01806 | D77: ANALISTA ADMINISTRATIVO | E77: P | F77: 2 | G77: 9 | H77: 70 | I77: 3 | J77: 201207 | K77: 999999 | L77: 0 | M77: 0 | N77: 365 | O77: 35 | P77: 35 | Q77: 0 | R77: 20160112
B78: 1 | C78: A01806 | D78: ANALISTA ADMINISTRATIVO | E78: P | F78: 2 | G78: 11 | H78: 70 | I78: 3 | J78: 201207 | K78: 999999 | L78: 0 | M78: 0 | N78: 365 | O78: 35 | P78: 35 | Q78: 0 | R78: 20160112
B79: 1 | C79: A01806 | D79: ANALISTA ADMINISTRATIVO | E79: P | F79: 2 | G79: 14 | H79: 70 | I79: 3 | J79: 201207 | K79: 999999 | L79: 0 | M79: 0 | N79: 335 | O79: 35 | P79: 35 | Q79: 0 | R79: 20160112
B80: 1 | C80: A01806 | D80: ANALISTA ADMINISTRATIVO | E80: P | F80: 2 | G80: 20 | H80: 70 | I80: 3 | J80: 201207 | K80: 999999 | L80: 0 | M80: 0 | N80: 1200 | O80: 35 | P80: 35 | Q80: 0 | R80: 20160112
B81: 1 | C81: A01806 | D81: ANALISTA ADMINISTRATIVO | E81: P | F81: 2 | G81: 50 | H81: 70 | I81: 3 | J81: 201207 | K81: 999999 | L81: 0 | M81: 0 | N81: 825.28 | O81: 35 | P81: 35 | Q81: 0 | R81: 20160112
B82: 1 | C82: A01806 | D82: ANALISTA ADMINISTRATIVO | E82: P | F82: 2 | G82: 63 | H82: 70 | I82: 3 | J82: 201207 | K82: 999999 | L82: 0 | M82: 0 | N82: 676.66 | O82: 35 | P82: 35 | Q82: 0 | R82: 20160112
B83: 1 | C83: A01806 | D83: ANALISTA ADMINISTRATIVO | E83: P | F83: 2 | G83: 13 | H83: 70 | I83: 3 | J83: 201207 | K83: 999999 | L83: 0 | M83: 0 | N83: 60 | O83: 35 | P83: 35 | Q83: 0 | R83: 20160112
B84: 1 | C84: A01806 | D84: ANALISTA ADMINISTRATIVO | E84: P | F84: 2 | G84: 68 | H84: 70 | I84: 3 | J84: 201207 | K84: 999999 | L84: 0 | M84: 0 | N84: 754.48 | O84: 35 | P84: 35 | Q84: 0 | R84: 20160112
B85: 1 | C85: A01806 | D85: ANALISTA ADMINISTRATIVO | E85: P | F85: 2 | G85: 29 | H85: 70 | I85: 3 | J85: 201207 | K85: 999999 | L85: 0 | M85: 0 | N85: 2000 | O85: 35 | P85: 35 | Q85: 0 | R85: 20160112
B86: 1 | C86: A01806 | D86: ANALISTA ADMINISTRATIVO | E86: P | F86: 2 | G86: 2 | H86: 70 | I86: 3 | J86: 201207 | K86: 999999 | L86: 0 | M86: 0 | N86: 415 | O86: 35 | P86: 35 | Q86: 0 | R86: 20160112
B87: 1 | C87: A01806 | D87: ANALISTA ADMINISTRATIVO | E87: P | F87: 2 | G87: 12 | H87: 70 | I87: 3 | J87: 201207 | K87: 999999 | L87: 0 | M87: 0 | N87: 385 | O87: 35 | P87: 35 | Q87: 0 | R87: 20160112
B88: 1 | C88: CF34810 | D88: ANALISTA ADMINISTRATIVO | E88: P | F88: 2 | G88: 1 | H88: 70 | I88: 3 | J88: 201207 | K88: 999999 | L88: 0 | M88: 0 | N88: 5883.94 | O88: 35 | P88: 35 | Q88: 0 | R88: 20160112
B89: 1 | C89: CF34810 | D89: ANALISTA ADMINISTRATIVO | E89: P | F89: 2 | G89: 4 | H89: 70 | I89: 3 | J89: 201207 | K89: 999999 | L89: 0 | M89: 0 | N89: 175 | O89: 35 | P89: 35 | Q89: 0 | R89: 20160112
B90: 1 | C90: CF34810 | D90: ANALISTA ADMINISTRATIVO | E90: P | F90: 2 | G90: 9 | H90: 70 | I90: 3 | J90: 201207 | K90: 999999 | L90: 0 | M90: 0 | N90: 365 | O90: 35 | P90: 35 | Q90: 0 | R90: 20160112
B91: 1 | C91: CF34810 | D91: ANALISTA ADMINISTRATIVO | E91: P | F91: 2 | G91: 11 | H91: 70 | I91: 3 | J91: 201207 | K91: 999999 | L91: 0 | M91: 0 | N91: 365 | O91: 35 | P91: 35 | Q91: 0 | R91: 20160112
B92: 1 | C92: CF34810 | D92: ANALISTA ADMINISTRATIVO | E92: P | F92: 2 | G92: 14 | H92: 70 | I92: 3 | J92: 201207 | K92: 999999 | L92: 0 | M92: 0 | N92: 335 | O92: 35 | P92: 35 | Q92: 0 | R92: 20160112
B93: 1 | C93: CF34810 | D93: ANALISTA ADMINISTRATIVO | E93: P | F93: 2 | G93: 20 | H93: 70 | I93: 3 | J93: 201207 | K93: 999999 | L93: 0 | M93: 0 | N93: 1200 | O93: 35 | P93: 35 | Q93: 0 | R93: 20160112
B94: 1 | C94: CF34810 | D94: ANALISTA ADMINISTRATIVO | E94: P | F94: 2 | G94: 50 | H94: 70 | I94: 3 | J94: 201207 | K94: 999999 | L94: 0 | M94: 0 | N94: 825.28 | O94: 35 | P94: 35 | Q94: 0 | R94: 20160112
B95: 1 | C95: CF34810 | D95: ANALISTA ADMINISTRATIVO | E95: P | F95: 2 | G95: 63 | H95: 70 | I95: 3 | J95: 201207 | K95: 999999 | L95: 0 | M95: 0 | N95: 676.66 | O95: 35 | P95: 35 | Q95: 0 | R95: 20160112
B96: 1 | C96: CF34810 | D96: ANALISTA ADMINISTRATIVO | E96: P | F96: 2 | G96: 13 | H96: 70 | I96: 3 | J96: 201207 | K96: 999999 | L96: 0 | M96: 0 | N96: 60 | O96: 35 | P96: 35 | Q96: 0 | R96: 20160112
B97: 1 | C97: CF34810 | D97: ANALISTA ADMINISTRATIVO | E97: P | F97: 2 | G97: 68 | H97: 70 | I97: 3 | J97: 201207 | K97: 999999 | L97: 0 | M97: 0 | N97: 754.48 | O97: 35 | P97: 35 | Q97: 0 | R97: 20160112
B98: 1 | C98: CF34810 | D98: ANALISTA ADMINISTRATIVO | E98: P | F98: 2 | G98: 29 | H98: 70 | I98: 3 | J98: 201207 | K98: 999999 | L98: 0 | M98: 0 | N98: 2000 | O98: 35 | P98: 35 | Q98: 0 | R98: 20160112
B99: 1 | C99: CF34810 | D99: ANALISTA ADMINISTRATIVO | E99: P | F99: 2 | G99: 2 | H99: 70 | I99: 3 | J99: 201207 | K99: 999999 | L99: 0 | M99: 0 | N99: 415 | O99: 35 | P99: 35 | Q99: 0 | R99: 20160112
B100: 1 | C100: CF34810 | D100: ANALISTA ADMINISTRATIVO | E100: P | F100: 2 | G100: 12 | H100: 70 | I100: 3 | J100: 201207 | K100: 999999 | L100: 0 | M100: 0 | N100: 385 | O100: 35 | P100: 35 | Q100: 0 | R100: 20160112
B101: 1 | C101: A01807 | D101: JEFE DE OFICINA | E101: P | F101: 2 | G101: 1 | H101: 81 | I101: 5 | J101: 201207 | K101: 999999 | L101: 0 | M101: 0 | N101: 6204.78 | O101: 35 | P101: 35 | Q101: 0 | R101: 20160112
B102: 1 | C102: A01807 | D102: JEFE DE OFICINA | E102: P | F102: 2 | G102: 4 | H102: 81 | I102: 5 | J102: 201207 | K102: 999999 | L102: 0 | M102: 0 | N102: 175 | O102: 35 | P102: 35 | Q102: 0 | R102: 20160112
B103: 1 | C103: A01807 | D103: JEFE DE OFICINA | E103: P | F103: 2 | G103: 9 | H103: 81 | I103: 5 | J103: 201207 | K103: 999999 | L103: 0 | M103: 0 | N103: 365 | O103: 35 | P103: 35 | Q103: 0 | R103: 20160112
B104: 1 | C104: A01807 | D104: JEFE DE OFICINA | E104: P | F104: 2 | G104: 11 | H104: 81 | I104: 5 | J104: 201207 | K104: 999999 | L104: 0 | M104: 0 | N104: 365 | O104: 35 | P104: 35 | Q104: 0 | R104: 20160112
B105: 1 | C105: A01807 | D105: JEFE DE OFICINA | E105: P | F105: 2 | G105: 14 | H105: 81 | I105: 5 | J105: 201207 | K105: 999999 | L105: 0 | M105: 0 | N105: 335 | O105: 35 | P105: 35 | Q105: 0 | R105: 20160112
B106: 1 | C106: A01807 | D106: JEFE DE OFICINA | E106: P | F106: 2 | G106: 20 | H106: 81 | I106: 5 | J106: 201207 | K106: 999999 | L106: 0 | M106: 0 | N106: 1200 | O106: 35 | P106: 35 | Q106: 0 | R106: 20160112
B107: 1 | C107: A01807 | D107: JEFE DE OFICINA | E107: P | F107: 2 | G107: 50 | H107: 81 | I107: 5 | J107: 201207 | K107: 999999 | L107: 0 | M107: 0 | N107: 817.76 | O107: 35 | P107: 35 | Q107: 0 | R107: 20160112
B108: 1 | C108: A01807 | D108: JEFE DE OFICINA | E108: P | F108: 2 | G108: 63 | H108: 81 | I108: 5 | J108: 201207 | K108: 999999 | L108: 0 | M108: 0 | N108: 713.56 | O108: 35 | P108: 35 | Q108: 0 | R108: 20160112
B109: 1 | C109: A01807 | D109: JEFE DE OFICINA | E109: P | F109: 2 | G109: 68 | H109: 81 | I109: 5 | J109: 201207 | K109: 999999 | L109: 0 | M109: 0 | N109: 795.62 | O109: 35 | P109: 35 | Q109: 0 | R109: 20160112
B110: 1 | C110: A01807 | D110: JEFE DE OFICINA | E110: P | F110: 2 | G110: 13 | H110: 81 | I110: 5 | J110: 201207 | K110: 999999 | L110: 0 | M110: 0 | N110: 80 | O110: 35 | P110: 35 | Q110: 0 | R110: 20160112
B111: 1 | C111: A01807 | D111: JEFE DE OFICINA | E111: P | F111: 2 | G111: 29 | H111: 81 | I111: 5 | J111: 201207 | K111: 999999 | L111: 0 | M111: 0 | N111: 2000 | O111: 35 | P111: 35 | Q111: 0 | R111: 20160112
B112: 1 | C112: T03820 | D112: TECNICO DOCENTE | E112: P | F112: 2 | G112: 1 | H112: 82 | I112: 7 | J112: 201207 | K112: 999999 | L112: 0 | M112: 0 | N112: 6418.76 | O112: 35 | P112: 35 | Q112: 0 | R112: 20160112
B113: 1 | C113: T03820 | D113: TECNICO DOCENTE | E113: P | F113: 2 | G113: 3 | H113: 82 | I113: 7 | J113: 201207 | K113: 999999 | L113: 0 | M113: 0 | N113: 1228.76 | O113: 35 | P113: 35 | Q113: 0 | R113: 20160112
B114: 1 | C114: T03820 | D114: TECNICO DOCENTE | E114: P | F114: 2 | G114: 4 | H114: 82 | I114: 7 | J114: 201207 | K114: 999999 | L114: 0 | M114: 0 | N114: 175 | O114: 35 | P114: 35 | Q114: 0 | R114: 20160112
B115: 1 | C115: T03820 | D115: TECNICO DOCENTE | E115: P | F115: 2 | G115: 9 | H115: 82 | I115: 7 | J115: 201207 | K115: 999999 | L115: 0 | M115: 0 | N115: 365 | O115: 35 | P115: 35 | Q115: 0 | R115: 20160112
B116: 1 | C116: T03820 | D116: TECNICO DOCENTE | E116: P | F116: 2 | G116: 11 | H116: 82 | I116: 7 | J116: 201207 | K116: 999999 | L116: 0 | M116: 0 | N116: 365 | O116: 35 | P116: 35 | Q116: 0 | R116: 20160112
B117: 1 | C117: T03820 | D117: TECNICO DOCENTE | E117: P | F117: 2 | G117: 14 | H117: 82 | I117: 7 | J117: 201207 | K117: 999999 | L117: 0 | M117: 0 | N117: 335 | O117: 35 | P117: 35 | Q117: 0 | R117: 20160112
B118: 1 | C118: T03820 | D118: TECNICO DOCENTE | E118: P | F118: 2 | G118: 18 | H118: 82 | I118: 7 | J118: 201207 | K118: 999999 | L118: 0 | M118: 0 | N118: 855.84 | O118: 35 | P118: 35 | Q118: 0 | R118: 20160112
B119: 1 | C119: T03820 | D119: TECNICO DOCENTE | E119: P | F119: 2 | G119: 20 | H119: 82 | I119: 7 | J119: 201207 | K119: 999999 | L119: 0 | M119: 0 | N119: 1200 | O119: 35 | P119: 35 | Q119: 0 | R119: 20160112
B120: 1 | C120: T03820 | D120: TECNICO DOCENTE | E120: P | F120: 2 | G120: 50 | H120: 82 | I120: 7 | J120: 201207 | K120: 999999 | L120: 0 | M120: 0 | N120: 787.82 | O120: 35 | P120: 35 | Q120: 0 | R120: 20160112
B121: 1 | C121: T03820 | D121: TECNICO DOCENTE | E121: P | F121: 2 | G121: 63 | H121: 82 | I121: 7 | J121: 201207 | K121: 999999 | L121: 0 | M121: 0 | N121: 738.16 | O121: 35 | P121: 35 | Q121: 0 | R121: 20160112
B122: 1 | C122: T03820 | D122: TECNICO DOCENTE | E122: P | F122: 2 | G122: 68 | H122: 82 | I122: 7 | J122: 201207 | K122: 999999 | L122: 0 | M122: 0 | N122: 823.04 | O122: 35 | P122: 35 | Q122: 0 | R122: 20160112
B123: 1 | C123: T03820 | D123: TECNICO DOCENTE | E123: P | F123: 2 | G123: 13 | H123: 82 | I123: 7 | J123: 201207 | K123: 999999 | L123: 0 | M123: 0 | N123: 80 | O123: 35 | P123: 35 | Q123: 0 | R123: 20160112
B124: 1 | C124: T03820 | D124: TECNICO DOCENTE | E124: P | F124: 2 | G124: 70 | H124: 82 | I124: 7 | J124: 201207 | K124: 999999 | L124: 0 | M124: 0 | N124: 1283.76 | O124: 35 | P124: 35 | Q124: 0 | R124: 20160112
B125: 1 | C125: T03820 | D125: TECNICO DOCENTE | E125: P | F125: 2 | G125: 92 | H125: 82 | I125: 7 | J125: 201207 | K125: 999999 | L125: 0 | M125: 0 | N125: 5135 | O125: 35 | P125: 35 | Q125: 0 | R125: 20160112
B126: 1 | C126: T03820 | D126: TECNICO DOCENTE | E126: P | F126: 2 | G126: 29 | H126: 82 | I126: 7 | J126: 201207 | K126: 999999 | L126: 0 | M126: 0 | N126: 2000 | O126: 35 | P126: 35 | Q126: 0 | R126: 20160112
B127: 1 | C127: T03820 | D127: TECNICO DOCENTE | E127: P | F127: 2 | G127: 17 | H127: 82 | I127: 7 | J127: 201207 | K127: 999999 | L127: 0 | M127: 0 | N127: 315.44 | O127: 35 | P127: 35 | Q127: 0 | R127: 20160112
B128: 1 | C128: T03823 | D128: TECNICO SUPERIOR | E128: P | F128: 2 | G128: 1 | H128: 85 | I128: 7 | J128: 201207 | K128: 999999 | L128: 0 | M128: 0 | N128: 6418.76 | O128: 35 | P128: 35 | Q128: 0 | R128: 20160112
B129: 1 | C129: T03823 | D129: TECNICO SUPERIOR | E129: P | F129: 2 | G129: 3 | H129: 85 | I129: 7 | J129: 201207 | K129: 999999 | L129: 0 | M129: 0 | N129: 1228.76 | O129: 35 | P129: 35 | Q129: 0 | R129: 20160112
B130: 1 | C130: T03823 | D130: TECNICO SUPERIOR | E130: P | F130: 2 | G130: 4 | H130: 85 | I130: 7 | J130: 201207 | K130: 999999 | L130: 0 | M130: 0 | N130: 175 | O130: 35 | P130: 35 | Q130: 0 | R130: 20160112
B131: 1 | C131: T03823 | D131: TECNICO SUPERIOR | E131: P | F131: 2 | G131: 9 | H131: 85 | I131: 7 | J131: 201207 | K131: 999999 | L131: 0 | M131: 0 | N131: 365 | O131: 35 | P131: 35 | Q131: 0 | R131: 20160112
B132: 1 | C132: T03823 | D132: TECNICO SUPERIOR | E132: P | F132: 2 | G132: 11 | H132: 85 | I132: 7 | J132: 201207 | K132: 999999 | L132: 0 | M132: 0 | N132: 365 | O132: 35 | P132: 35 | Q132: 0 | R132: 20160112
B133: 1 | C133: T03823 | D133: TECNICO SUPERIOR | E133: P | F133: 2 | G133: 14 | H133: 85 | I133: 7 | J133: 201207 | K133: 999999 | L133: 0 | M133: 0 | N133: 335 | O133: 35 | P133: 35 | Q133: 0 | R133: 20160112
B134: 1 | C134: T03823 | D134: TECNICO SUPERIOR | E134: P | F134: 2 | G134: 20 | H134: 85 | I134: 7 | J134: 201207 | K134: 999999 | L134: 0 | M134: 0 | N134: 1200 | O134: 35 | P134: 35 | Q134: 0 | R134: 20160112
B135: 1 | C135: T03823 | D135: TECNICO SUPERIOR | E135: P | F135: 2 | G135: 50 | H135: 85 | I135: 7 | J135: 201207 | K135: 999999 | L135: 0 | M135: 0 | N135: 916.2 | O135: 35 | P135: 35 | Q135: 0 | R135: 20160112
B136: 1 | C136: T03823 | D136: TECNICO SUPERIOR | E136: P | F136: 2 | G136: 63 | H136: 85 | I136: 7 | J136: 201207 | K136: 999999 | L136: 0 | M136: 0 | N136: 738.16 | O136: 35 | P136: 35 | Q136: 0 | R136: 20160112
B137: 1 | C137: T03823 | D137: TECNICO SUPERIOR | E137: P | F137: 2 | G137: 68 | H137: 85 | I137: 7 | J137: 201207 | K137: 999999 | L137: 0 | M137: 0 | N137: 823.04 | O137: 35 | P137: 35 | Q137: 0 | R137: 20160112
B138: 1 | C138: CF33849 | D138: COORD. DE SERVICIOS ESP. | E138: P | F138: 2 | G138: 1 | H138: 88 | I138: 8 | J138: 201207 | K138: 999999 | L138: 0 | M138: 0 | N138: 6495.06 | O138: 35 | P138: 35 | Q138: 0 | R138: 20160112
B139: 1 | C139: CF33849 | D139: COORD. DE SERVICIOS ESP. | E139: P | F139: 2 | G139: 2 | H139: 88 | I139: 8 | J139: 201207 | K139: 999999 | L139: 0 | M139: 0 | N139: 415 | O139: 35 | P139: 35 | Q139: 0 | R139: 20160112
B140: 1 | C140: CF33849 | D140: COORD. DE SERVICIOS ESP. | E140: P | F140: 2 | G140: 3 | H140: 88 | I140: 8 | J140: 201207 | K140: 999999 | L140: 0 | M140: 0 | N140: 1737.16 | O140: 35 | P140: 35 | Q140: 0 | R140: 20160112
B141: 1 | C141: CF33849 | D141: COORD. DE SERVICIOS ESP. | E141: P | F141: 2 | G141: 9 | H141: 88 | I141: 8 | J141: 201207 | K141: 999999 | L141: 0 | M141: 0 | N141: 465 | O141: 35 | P141: 35 | Q141: 0 | R141: 20160112
B142: 1 | C142: CF33849 | D142: COORD. DE SERVICIOS ESP. | E142: P | F142: 2 | G142: 12 | H142: 88 | I142: 8 | J142: 201207 | K142: 999999 | L142: 0 | M142: 0 | N142: 385 | O142: 35 | P142: 35 | Q142: 0 | R142: 20160112
B143: 1 | C143: CF33849 | D143: COORD. DE SERVICIOS ESP. | E143: P | F143: 2 | G143: 20 | H143: 88 | I143: 8 | J143: 201207 | K143: 999999 | L143: 0 | M143: 0 | N143: 1300 | O143: 35 | P143: 35 | Q143: 0 | R143: 20160112
B144: 1 | C144: CF33849 | D144: COORD. DE SERVICIOS ESP. | E144: P | F144: 2 | G144: 106 | H144: 88 | I144: 8 | J144: 201207 | K144: 999999 | L144: 0 | M144: 0 | N144: 100 | O144: 35 | P144: 35 | Q144: 0 | R144: 20160112
B145: 1 | C145: CF36014 | D145: COORDINADOR DE ZONA | E145: P | F145: 5 | G145: 1 | H145: OA1 | I145: 92 | J145: 201207 | K145: 999999 | L145: 0 | M145: 0 | N145: 4190.88 | O145: 40 | P145: 40 | Q145: 0 | R145: 20160112
B146: 1 | C146: CF36014 | D146: COORDINADOR DE ZONA | E146: P | F146: 5 | G146: 8 | H146: OA1 | I146: 92 | J146: 201207 | K146: 999999 | L146: 0 | M146: 0 | N146: 17962.4 | O146: 40 | P146: 40 | Q146: 0 | R146: 20160112
B147: 1 | C147: CF36014 | D147: COORDINADOR DE ZONA | E147: P | F147: 5 | G147: 9 | H147: OA1 | I147: 92 | J147: 201207 | K147: 999999 | L147: 0 | M147: 0 | N147: 365 | O147: 40 | P147: 40 | Q147: 0 | R147: 20160112
B148: 1 | C148: CF36014 | D148: COORDINADOR DE ZONA | E148: P | F148: 5 | G148: 106 | H148: OA1 | I148: 92 | J148: 201207 | K148: 999999 | L148: 0 | M148: 0 | N148: 175 | O148: 40 | P148: 40 | Q148: 0 | R148: 20160112
B149: 1 | C149: CF36014 | D149: COORDINADOR DE ZONA | E149: P | F149: 5 | G149: 1 | H149: OA1 | I149: 92 | J149: 201207 | K149: 999999 | L149: 0 | M149: 0 | N149: 4328.86 | O149: 40 | P149: 40 | Q149: 0 | R149: 20160112
B150: 1 | C150: CF36014 | D150: COORDINADOR DE ZONA | E150: P | F150: 5 | G150: 8 | H150: OA1 | I150: 92 | J150: 201207 | K150: 999999 | L150: 0 | M150: 0 | N150: 17824.46 | O150: 40 | P150: 40 | Q150: 0 | R150: 20160112
B151: 1 | C151: CF36014 | D151: COORDINADOR DE ZONA | E151: P | F151: 5 | G151: 9 | H151: OA1 | I151: 92 | J151: 201207 | K151: 999999 | L151: 0 | M151: 0 | N151: 365 | O151: 40 | P151: 40 | Q151: 0 | R151: 20160112
B152: 1 | C152: CF36014 | D152: COORDINADOR DE ZONA | E152: P | F152: 5 | G152: 106 | H152: OA1 | I152: 92 | J152: 201207 | K152: 999999 | L152: 0 | M152: 0 | N152: 125 | O152: 40 | P152: 40 | Q152: 0 | R152: 20160112
B153: 1 | C153: CF36014 | D153: COORDINADOR DE ZONA | E153: P | F153: 5 | G153: 1 | H153: OA1 | I153: 92 | J153: 201207 | K153: 999999 | L153: 0 | M153: 0 | N153: 4190.88 | O153: 40 | P153: 40 | Q153: 0 | R153: 20160112
B154: 1 | C154: CF36014 | D154: COORDINADOR DE ZONA | E154: P | F154: 5 | G154: 8 | H154: OA1 | I154: 92 | J154: 201207 | K154: 999999 | L154: 0 | M154: 0 | N154: 17962.4 | O154: 40 | P154: 40 | Q154: 0 | R154: 20160112
B155: 1 | C155: CF36014 | D155: COORDINADOR DE ZONA | E155: P | F155: 5 | G155: 9 | H155: OA1 | I155: 92 | J155: 201207 | K155: 999999 | L155: 0 | M155: 0 | N155: 365 | O155: 40 | P155: 40 | Q155: 0 | R155: 20160112
B156: 1 | C156: CF36014 | D156: COORDINADOR DE ZONA | E156: P | F156: 5 | G156: 106 | H156: OA1 | I156: 92 | J156: 201207 | K156: 999999 | L156: 0 | M156: 0 | N156: 225 | O156: 40 | P156: 40 | Q156: 0 | R156: 20160112
B157: 1 | C157: CF36014 | D157: COORDINADOR DE ZONA | E157: P | F157: 5 | G157: 1 | H157: OA1 | I157: 92 | J157: 201207 | K157: 999999 | L157: 0 | M157: 0 | N157: 4190.88 | O157: 40 | P157: 40 | Q157: 0 | R157: 20160112
B158: 1 | C158: CF36014 | D158: COORDINADOR DE ZONA | E158: P | F158: 5 | G158: 8 | H158: OA1 | I158: 92 | J158: 201207 | K158: 999999 | L158: 0 | M158: 0 | N158: 17962.4 | O158: 40 | P158: 40 | Q158: 0 | R158: 20160112
B159: 1 | C159: CF36014 | D159: COORDINADOR DE ZONA | E159: P | F159: 5 | G159: 9 | H159: OA1 | I159: 92 | J159: 201207 | K159: 999999 | L159: 0 | M159: 0 | N159: 365 | O159: 40 | P159: 40 | Q159: 0 | R159: 20160112
B160: 1 | C160: CF36014 | D160: COORDINADOR DE ZONA | E160: P | F160: 5 | G160: 106 | H160: OA1 | I160: 92 | J160: 201207 | K160: 999999 | L160: 0 | M160: 0 | N160: 225 | O160: 40 | P160: 40 | Q160: 0 | R160: 20160112
B161: 1 | C161: CF36014 | D161: COORDINADOR DE ZONA | E161: P | F161: 5 | G161: 1 | H161: OA1 | I161: 92 | J161: 201207 | K161: 999999 | L161: 0 | M161: 0 | N161: 4328.86 | O161: 40 | P161: 40 | Q161: 0 | R161: 20160112
B162: 1 | C162: CF36014 | D162: COORDINADOR DE ZONA | E162: P | F162: 5 | G162: 8 | H162: OA1 | I162: 92 | J162: 201207 | K162: 999999 | L162: 0 | M162: 0 | N162: 17824.46 | O162: 40 | P162: 40 | Q162: 0 | R162: 20160112
B163: 1 | C163: CF36014 | D163: COORDINADOR DE ZONA | E163: P | F163: 5 | G163: 9 | H163: OA1 | I163: 92 | J163: 201207 | K163: 999999 | L163: 0 | M163: 0 | N163: 365 | O163: 40 | P163: 40 | Q163: 0 | R163: 20160112
B164: 1 | C164: CF36014 | D164: COORDINADOR DE ZONA | E164: P | F164: 5 | G164: 1 | H164: OA1 | I164: 92 | J164: 201207 | K164: 999999 | L164: 0 | M164: 0 | N164: 4190.88 | O164: 40 | P164: 40 | Q164: 0 | R164: 20160112
B165: 1 | C165: CF36014 | D165: COORDINADOR DE ZONA | E165: P | F165: 5 | G165: 8 | H165: OA1 | I165: 92 | J165: 201207 | K165: 999999 | L165: 0 | M165: 0 | N165: 16764.9 | O165: 40 | P165: 40 | Q165: 0 | R165: 20160112
B166: 1 | C166: CF36014 | D166: COORDINADOR DE ZONA | E166: P | F166: 5 | G166: 9 | H166: OA1 | I166: 92 | J166: 201207 | K166: 999999 | L166: 0 | M166: 0 | N166: 365 | O166: 40 | P166: 40 | Q166: 0 | R166: 20160112
B167: 1 | C167: CF36014 | D167: COORDINADOR DE ZONA | E167: P | F167: 5 | G167: 106 | H167: OA1 | I167: 92 | J167: 201207 | K167: 999999 | L167: 0 | M167: 0 | N167: 100 | O167: 40 | P167: 40 | Q167: 0 | R167: 20160112
B168: 1 | C168: CF36014 | D168: COORDINADOR DE ZONA | E168: P | F168: 5 | G168: 1 | H168: OA1 | I168: 92 | J168: 201207 | K168: 999999 | L168: 0 | M168: 0 | N168: 4190.88 | O168: 40 | P168: 40 | Q168: 0 | R168: 20160112
B169: 1 | C169: CF36014 | D169: COORDINADOR DE ZONA | E169: P | F169: 5 | G169: 8 | H169: OA1 | I169: 92 | J169: 201207 | K169: 999999 | L169: 0 | M169: 0 | N169: 17962.4 | O169: 40 | P169: 40 | Q169: 0 | R169: 20160112
B170: 1 | C170: CF36014 | D170: COORDINADOR DE ZONA | E170: P | F170: 5 | G170: 9 | H170: OA1 | I170: 92 | J170: 201207 | K170: 999999 | L170: 0 | M170: 0 | N170: 365 | O170: 40 | P170: 40 | Q170: 0 | R170: 20160112
B171: 1 | C171: CF36014 | D171: COORDINADOR DE ZONA | E171: P | F171: 5 | G171: 1 | H171: OA1 | I171: 92 | J171: 201207 | K171: 999999 | L171: 0 | M171: 0 | N171: 4190.88 | O171: 40 | P171: 40 | Q171: 0 | R171: 20160112
B172: 1 | C172: CF36014 | D172: COORDINADOR DE ZONA | E172: P | F172: 5 | G172: 8 | H172: OA1 | I172: 92 | J172: 201207 | K172: 999999 | L172: 0 | M172: 0 | N172: 17962.4 | O172: 40 | P172: 40 | Q172: 0 | R172: 20160112
B173: 1 | C173: CF36014 | D173: COORDINADOR DE ZONA | E173: P | F173: 5 | G173: 9 | H173: OA1 | I173: 92 | J173: 201207 | K173: 999999 | L173: 0 | M173: 0 | N173: 365 | O173: 40 | P173: 40 | Q173: 0 | R173: 20160112
B174: 1 | C174: CF36014 | D174: COORDINADOR DE ZONA | E174: P | F174: 5 | G174: 1 | H174: OA1 | I174: 92 | J174: 201207 | K174: 999999 | L174: 0 | M174: 0 | N174: 4190.88 | O174: 40 | P174: 40 | Q174: 0 | R174: 20160112
B175: 1 | C175: CF36014 | D175: COORDINADOR DE ZONA | E175: P | F175: 5 | G175: 8 | H175: OA1 | I175: 92 | J175: 201207 | K175: 999999 | L175: 0 | M175: 0 | N175: 17962.4 | O175: 40 | P175: 40 | Q175: 0 | R175: 20160112
B176: 1 | C176: CF36014 | D176: COORDINADOR DE ZONA | E176: P | F176: 5 | G176: 9 | H176: OA1 | I176: 92 | J176: 201207 | K176: 999999 | L176: 0 | M176: 0 | N176: 365 | O176: 40 | P176: 40 | Q176: 0 | R176: 20160112
B177: 1 | C177: CF36014 | D177: COORDINADOR DE ZONA | E177: P | F177: 5 | G177: 1 | H177: OA1 | I177: 92 | J177: 201207 | K177: 999999 | L177: 0 | M177: 0 | N177: 4190.88 | O177: 40 | P177: 40 | Q177: 0 | R177: 20160112
B178: 1 | C178: CF36014 | D178: COORDINADOR DE ZONA | E178: P | F178: 5 | G178: 8 | H178: OA1 | I178: 92 | J178: 201207 | K178: 999999 | L178: 0 | M178: 0 | N178: 17962.4 | O178: 40 | P178: 40 | Q178: 0 | R178: 20160112
B179: 1 | C179: CF36014 | D179: COORDINADOR DE ZONA | E179: P | F179: 5 | G179: 9 | H179: OA1 | I179: 92 | J179: 201207 | K179: 999999 | L179: 0 | M179: 0 | N179: 365 | O179: 40 | P179: 40 | Q179: 0 | R179: 20160112
B180: 1 | C180: CF36014 | D180: COORDINADOR DE ZONA | E180: P | F180: 5 | G180: 1 | H180: OA1 | I180: 92 | J180: 201207 | K180: 999999 | L180: 0 | M180: 0 | N180: 4190.88 | O180: 40 | P180: 40 | Q180: 0 | R180: 20160112
B181: 1 | C181: CF36014 | D181: COORDINADOR DE ZONA | E181: P | F181: 5 | G181: 8 | H181: OA1 | I181: 92 | J181: 201207 | K181: 999999 | L181: 0 | M181: 0 | N181: 17962.4 | O181: 40 | P181: 40 | Q181: 0 | R181: 20160112
B182: 1 | C182: CF36014 | D182: COORDINADOR DE ZONA | E182: P | F182: 5 | G182: 9 | H182: OA1 | I182: 92 | J182: 201207 | K182: 999999 | L182: 0 | M182: 0 | N182: 365 | O182: 40 | P182: 40 | Q182: 0 | R182: 20160112
B183: 1 | C183: CF36014 | D183: COORDINADOR DE ZONA | E183: P | F183: 5 | G183: 1 | H183: OA1 | I183: 92 | J183: 201207 | K183: 999999 | L183: 0 | M183: 0 | N183: 4328.86 | O183: 40 | P183: 40 | Q183: 0 | R183: 20160112
B184: 1 | C184: CF36014 | D184: COORDINADOR DE ZONA | E184: P | F184: 5 | G184: 8 | H184: OA1 | I184: 92 | J184: 201207 | K184: 999999 | L184: 0 | M184: 0 | N184: 17824.46 | O184: 40 | P184: 40 | Q184: 0 | R184: 20160112
B185: 1 | C185: CF36014 | D185: COORDINADOR DE ZONA | E185: P | F185: 5 | G185: 9 | H185: OA1 | I185: 92 | J185: 201207 | K185: 999999 | L185: 0 | M185: 0 | N185: 365 | O185: 40 | P185: 40 | Q185: 0 | R185: 20160112
B186: 1 | C186: CF36014 | D186: COORDINADOR DE ZONA | E186: P | F186: 5 | G186: 1 | H186: OA1 | I186: 92 | J186: 201207 | K186: 999999 | L186: 0 | M186: 0 | N186: 4190.88 | O186: 40 | P186: 40 | Q186: 0 | R186: 20160112
B187: 1 | C187: CF36014 | D187: COORDINADOR DE ZONA | E187: P | F187: 5 | G187: 8 | H187: OA1 | I187: 92 | J187: 201207 | K187: 999999 | L187: 0 | M187: 0 | N187: 17962.4 | O187: 40 | P187: 40 | Q187: 0 | R187: 20160112
B188: 1 | C188: CF36014 | D188: COORDINADOR DE ZONA | E188: P | F188: 5 | G188: 9 | H188: OA1 | I188: 92 | J188: 201207 | K188: 999999 | L188: 0 | M188: 0 | N188: 365 | O188: 40 | P188: 40 | Q188: 0 | R188: 20160112
B189: 1 | C189: CF01059 | D189: JEFE DE DEPARTAMENTO | E189: P | F189: 5 | G189: 1 | H189: OA1 | I189: 93 | J189: 201207 | K189: 999999 | L189: 0 | M189: 0 | N189: 5164.52 | O189: 40 | P189: 40 | Q189: 0 | R189: 20160112
B190: 1 | C190: CF01059 | D190: JEFE DE DEPARTAMENTO | E190: P | F190: 5 | G190: 8 | H190: OA1 | I190: 93 | J190: 201207 | K190: 999999 | L190: 0 | M190: 0 | N190: 20090.24 | O190: 40 | P190: 40 | Q190: 0 | R190: 20160112
B191: 1 | C191: CF01059 | D191: JEFE DE DEPARTAMENTO | E191: P | F191: 5 | G191: 9 | H191: OA1 | I191: 93 | J191: 201207 | K191: 999999 | L191: 0 | M191: 0 | N191: 365 | O191: 40 | P191: 40 | Q191: 0 | R191: 20160112
B192: 1 | C192: CF01059 | D192: JEFE DE DEPARTAMENTO | E192: P | F192: 5 | G192: 1 | H192: OA1 | I192: 93 | J192: 201207 | K192: 999999 | L192: 0 | M192: 0 | N192: 5164.52 | O192: 40 | P192: 40 | Q192: 0 | R192: 20160112
B193: 1 | C193: CF01059 | D193: JEFE DE DEPARTAMENTO | E193: P | F193: 5 | G193: 8 | H193: OA1 | I193: 93 | J193: 201207 | K193: 999999 | L193: 0 | M193: 0 | N193: 20090.24 | O193: 40 | P193: 40 | Q193: 0 | R193: 20160112
B194: 1 | C194: CF01059 | D194: JEFE DE DEPARTAMENTO | E194: P | F194: 5 | G194: 9 | H194: OA1 | I194: 93 | J194: 201207 | K194: 999999 | L194: 0 | M194: 0 | N194: 365 | O194: 40 | P194: 40 | Q194: 0 | R194: 20160112
B195: 1 | C195: CF01059 | D195: JEFE DE DEPARTAMENTO | E195: P | F195: 5 | G195: 1 | H195: OA1 | I195: 93 | J195: 201207 | K195: 999999 | L195: 0 | M195: 0 | N195: 5164.52 | O195: 40 | P195: 40 | Q195: 0 | R195: 20160112
B196: 1 | C196: CF01059 | D196: JEFE DE DEPARTAMENTO | E196: P | F196: 5 | G196: 8 | H196: OA1 | I196: 93 | J196: 201207 | K196: 999999 | L196: 0 | M196: 0 | N196: 20090.24 | O196: 40 | P196: 40 | Q196: 0 | R196: 20160112
B197: 1 | C197: CF01059 | D197: JEFE DE DEPARTAMENTO | E197: P | F197: 5 | G197: 9 | H197: OA1 | I197: 93 | J197: 201207 | K197: 999999 | L197: 0 | M197: 0 | N197: 365 | O197: 40 | P197: 40 | Q197: 0 | R197: 20160112
B198: 1 | C198: CF01059 | D198: JEFE DE DEPARTAMENTO | E198: P | F198: 5 | G198: 1 | H198: OA1 | I198: 93 | J198: 201207 | K198: 999999 | L198: 0 | M198: 0 | N198: 5164.52 | O198: 40 | P198: 40 | Q198: 0 | R198: 20160112
B199: 1 | C199: CF01059 | D199: JEFE DE DEPARTAMENTO | E199: P | F199: 5 | G199: 8 | H199: OA1 | I199: 93 | J199: 201207 | K199: 999999 | L199: 0 | M199: 0 | N199: 20090.24 | O199: 40 | P199: 40 | Q199: 0 | R199: 20160112
B200: 1 | C200: CF01059 | D200: JEFE DE DEPARTAMENTO | E200: P | F200: 5 | G200: 9 | H200: OA1 | I200: 93 | J200: 201207 | K200: 999999 | L200: 0 | M200: 0 | N200: 365 | O200: 40 | P200: 40 | Q200: 0 | R200: 20160112
B201: 1 | C201: CF01059 | D201: JEFE DE DEPARTAMENTO | E201: P | F201: 5 | G201: 1 | H201: OA1 | I201: 93 | J201: 201207 | K201: 999999 | L201: 0 | M201: 0 | N201: 5164.52 | O201: 40 | P201: 40 | Q201: 0 | R201: 20160112
B202: 1 | C202: CF01059 | D202: JEFE DE DEPARTAMENTO | E202: P | F202: 5 | G202: 8 | H202: OA1 | I202: 93 | J202: 201207 | K202: 999999 | L202: 0 | M202: 0 | N202: 20090.24 | O202: 40 | P202: 40 | Q202: 0 | R202: 20160112
B203: 1 | C203: CF01059 | D203: JEFE DE DEPARTAMENTO | E203: P | F203: 5 | G203: 9 | H203: OA1 | I203: 93 | J203: 201207 | K203: 999999 | L203: 0 | M203: 0 | N203: 365 | O203: 40 | P203: 40 | Q203: 0 | R203: 20160112
B204: 1 | C204: CF36014 | D204: COORDINADOR REGIONAL | E204: P | F204: 5 | G204: 1 | H204: OA1 | I204: 95 | J204: 201207 | K204: 999999 | L204: 0 | M204: 0 | N204: 5164.52 | O204: 40 | P204: 40 | Q204: 0 | R204: 20160112
B205: 1 | C205: CF36014 | D205: COORDINADOR REGIONAL | E205: P | F205: 5 | G205: 8 | H205: OA1 | I205: 95 | J205: 201207 | K205: 999999 | L205: 0 | M205: 0 | N205: 23499.64 | O205: 40 | P205: 40 | Q205: 0 | R205: 20160112
B206: 1 | C206: CF36014 | D206: COORDINADOR REGIONAL | E206: P | F206: 5 | G206: 9 | H206: OA1 | I206: 95 | J206: 201207 | K206: 999999 | L206: 0 | M206: 0 | N206: 365 | O206: 40 | P206: 40 | Q206: 0 | R206: 20160112
B207: 1 | C207: CF14070 | D207: DELEGADO | E207: P | F207: 5 | G207: 1 | H207: MB2 | I207: 97 | J207: 201207 | K207: 999999 | L207: 0 | M207: 0 | N207: 14611.06 | O207: 40 | P207: 40 | Q207: 0 | R207: 20160112
B208: 1 | C208: CF14070 | D208: DELEGADO | E208: P | F208: 5 | G208: 8 | H208: MB2 | I208: 97 | J208: 201207 | K208: 999999 | L208: 0 | M208: 0 | N208: 64194.38 | O208: 40 | P208: 40 | Q208: 0 | R208: 20160112
B209: 1 | C209: CF14070 | D209: DELEGADO | E209: P | F209: 5 | G209: 9 | H209: MB2 | I209: 97 | J209: 201207 | K209: 999999 | L209: 0 | M209: 0 | N209: 365 | O209: 40 | P209: 40 | Q209: 0 | R209: 20160112
K210: Total Zona A: | L210: =SUBTOTAL(109,Tabla16[Monto Mensual Jornada ó de HSM Zona A]) -> 0
L211: Total Zona B: | M211: =SUM(M19:M210) -> 0
M212: Total Zona C: | N212: =SUM(N19:N211) -> 681083.46
B214: Fuente : Información proporcionada por las Entidades Federativas

Sheet II D) 7 3
B9: Formato: Catálogo de Percepciones y Deducciones | I9: Entidad Federativa: | J9: =IF('Caratula Resumen'!D21="Elige el Periodo…","",'Caratula Resumen'!D21) -> GUANAJUATO
B10: =IF('Caratula Resumen'!D22="Elige el Periodo…","",'Caratula Resumen'!D22) -> Fondo de Aportaciones para la Educación Tecnológica y de Adultos/Instituto Nacional para la Educación de los Adultos (FAETA/INEA) | K10: =IF('Caratula Resumen'!D23="Elige el Periodo…","",'Caratula Resumen'!D23) -> 4to. Trimestre
B13: Identificador origen presupuestal de la plaza | C13: Tipo de concepto de pago | D13: Origen de financiamiento del concepto de percepciones. | E13: Porcentaje de participación federal por fuente de recursos | F13: Grupo al que pertenece concepto de pago (Percepción y/o Deducción) | G13: Clave de concepto de pago | H13: Descripción del concepto de pago | I13: Partida presupuestal | J13: Fecha del | K13: Fecha al
B15: Identificador origen presupuestal de la plaza | C15: Tipo de concepto de pago | D15: Origen de financiamiento del concepto de percepciones. | E15: Porcentaje de participación federal por fuente de recursos | F15: Grupo al que pertenece concepto de pago (Percepción y/o Deducción) | G15: Clave de concepto de pago | H15: Descripción del concepto de pago | I15: Partida presupuestal | J15: Fecha del | K15: Fecha al
B16: 1 | C16: P | D16: F | E16: 100 | F16: P2 | G16: 1 | H16: SUELDOS | I16: 83101 | J16: 20160012 | K16: 20160012
B17: 1 | C17: P | D17: F | E17: 100 | F17: P2 | G17: 2 | H17: PREVISION SOCIAL MUL.CONF | I17: 83101 | J17: 20160012 | K17: 20160012
B18: 1 | C18: P | D18: F | E18: 100 | F18: P2 | G18: 3 | H18: COMPENSACION GARANTIZADA | I18: 83101 | J18: 20160012 | K18: 20160012
B19: 1 | C19: P | D19: F | E19: 100 | F19: P2 | G19: 4 | H19: COMP. POR ANTI.(QUINQ. B) | I19: 83101 | J19: 20160012 | K19: 20160012
B20: 1 | C20: P | D20: F | E20: 100 | F20: P2 | G20: 5 | H20: PRIMA VACACIONAL | I20: 83101 | J20: 20160012 | K20: 20160012
B21: 1 | C21: P | D21: F | E21: 100 | F21: P2 | G21: 6 | H21: AGUINALDO | I21: 83101 | J21: 20160012 | K21: 20160012
B22: 1 | C22: P | D22: F | E22: 100 | F22: P2 | G22: 7 | H22: COMPENSACION SEDENA | I22: 83101 | J22: 20160012 | K22: 20160012
B23: 1 | C23: P | D23: F | E23: 100 | F23: P2 | G23: 8 | H23: COMPENSACION GARANT. | I23: 83101 | J23: 20160012 | K23: 20160012
B24: 1 | C24: P | D24: F | E24: 100 | F24: P2 | G24: 9 | H24: DESPENSA | I24: 83101 | J24: 20160012 | K24: 20160012
B25: 1 | C25: P | D25: F | E25: 100 | F25: P2 | G25: 10 | H25: OTRAS PRESTACIONES | I25: 83101 | J25: 20160012 | K25: 20160012
B26: 1 | C26: P | D26: F | E26: 100 | F26: P2 | G26: 11 | H26: PREVISION SOCIAL MULTIPLE | I26: 83101 | J26: 20160012 | K26: 20160012
B27: 1 | C27: P | D27: F | E27: 100 | F27: P2 | G27: 12 | H27: AYUDA PARA SERVICIOS | I27: 83101 | J27: 20160012 | K27: 20160012
B28: 1 | C28: P | D28: F | E28: 100 | F28: P2 | G28: 13 | H28: BECAS | I28: 83101 | J28: 20160012 | K28: 20160012
B29: 1 | C29: P | D29: F | E29: 100 | F29: P2 | G29: 14 | H29: AYUDA PARA SERVICIOS B | I29: 83101 | J29: 20160012 | K29: 20160012
B30: 1 | C30: P | D30: F | E30: 100 | F30: P2 | G30: 15 | H30: DIAS DE PUNTUALIDAD | I30: 83101 | J30: 20160012 | K30: 20160012
B31: 1 | C31: P | D31: F | E31: 100 | F31: P2 | G31: 16 | H31: HORARIO DISCONTINUO | I31: 83101 | J31: 20160012 | K31: 20160012
B32: 1 | C32: P | D32: F | E32: 100 | F32: P2 | G32: 17 | H32: AYUDA DE GUARDERIA | I32: 83101 | J32: 20160012 | K32: 20160012
B33: 1 | C33: P | D33: F | E33: 100 | F33: P2 | G33: 18 | H33: DIAS ECONOMICOS | I33: 83101 | J33: 20160012 | K33: 20160012
B34: 1 | C34: P | D34: F | E34: 100 | F34: P2 | G34: 19 | H34: CREDITO AL SALARIO | I34: 83101 | J34: 20160012 | K34: 20160012
B35: 1 | C35: P | D35: F | E35: 100 | F35: P2 | G35: 20 | H35: CAPACITACION Y DESARROLLO | I35: 83101 | J35: 20160012 | K35: 20160012
B36: 1 | C36: P | D36: F | E36: 100 | F36: P2 | G36: 21 | H36: AYUDA PARA ANTEOJOS | I36: 83101 | J36: 20160012 | K36: 20160012
B37: 1 | C37: P | D37: F | E37: 100 | F37: P2 | G37: 22 | H37: CREDITO SALARIO ANUAL | I37: 83101 | J37: 20160012 | K37: 20160012
B38: 1 | C38: P | D38: F | E38: 100 | F38: P2 | G38: 23 | H38: SALARIO RETROACTIVO | I38: 83101 | J38: 20160012 | K38: 20160012
B39: 1 | C39: P | D39: F | E39: 100 | F39: P2 | G39: 24 | H39: HOMOLOGACION | I39: 83101 | J39: 20160012 | K39: 20160012
B40: 1 | C40: P | D40: F | E40: 100 | F40: P2 | G40: 25 | H40: CANASTA MATERNAL | I40: 83101 | J40: 20160012 | K40: 20160012
B41: 1 | C41: P | D41: F | E41: 100 | F41: P2 | G41: 26 | H41: REMANENTE ESTIMULO | I41: 83101 | J41: 20160012 | K41: 20160012
B42: 1 | C42: P | D42: F | E42: 100 | F42: P2 | G42: 27 | H42: COMPENSACION | I42: 83101 | J42: 20160012 | K42: 20160012
B43: 1 | C43: P | D43: F | E43: 100 | F43: P2 | G43: 28 | H43: DEVOLUCION FONAC | I43: 83101 | J43: 20160012 | K43: 20160012
B44: 1 | C44: P | D44: F | E44: 100 | F44: P2 | G44: 29 | H44: AYUDA PARA ANTEOJOS | I44: 83101 | J44: 20160012 | K44: 20160012
B45: 1 | C45: P | D45: F | E45: 100 | F45: P2 | G45: 30 | H45: PARTE EXCENTA AGUINALDO | I45: 83101 | J45: 20160012 | K45: 20160012
B46: 1 | C46: P | D46: F | E46: 100 | F46: P2 | G46: 31 | H46: PARTE EXCENTA PRIMA VAC. | I46: 83101 | J46: 20160012 | K46: 20160012
B47: 1 | C47: P | D47: F | E47: 100 | F47: P2 | G47: 32 | H47: RECOMPENSA | I47: 83101 | J47: 20160012 | K47: 20160012
B48: 1 | C48: P | D48: F | E48: 100 | F48: P2 | G48: 33 | H48: AYUDA POR DEFUNCION | I48: 83101 | J48: 20160012 | K48: 20160012
B49: 1 | C49: P | D49: F | E49: 100 | F49: P2 | G49: 34 | H49: HORAS EXTRAORDINARIAS | I49: 83101 | J49: 20160012 | K49: 20160012
B50: 1 | C50: P | D50: F | E50: 100 | F50: P2 | G50: 35 | H50: CAPACITACION Y DESARROLLO | I50: 83101 | J50: 20160012 | K50: 20160012
B51: 1 | C51: P | D51: F | E51: 100 | F51: P2 | G51: 36 | H51: DEVOLUCION CREDINOMINA | I51: 83101 | J51: 20160012 | K51: 20160012
B52: 1 | C52: P | D52: F | E52: 100 | F52: P2 | G52: 37 | H52: DEVOLUCION I.S.R. | I52: 83101 | J52: 20160012 | K52: 20160012
B53: 1 | C53: P | D53: F | E53: 100 | F53: P2 | G53: 38 | H53: HORAS EXT. EXCENTAS | I53: 83101 | J53: 20160012 | K53: 20160012
B54: 1 | C54: P | D54: F | E54: 100 | F54: P2 | G54: 39 | H54: DESPENSA MANDOS MEDIOS | I54: 83101 | J54: 20160012 | K54: 20160012
B55: 1 | C55: P | D55: F | E55: 100 | F55: P2 | G55: 40 | H55: DIF.PROFES. B1 2004 | I55: 83101 | J55: 20160012 | K55: 20160012
B56: 1 | C56: P | D56: F | E56: 100 | F56: P2 | G56: 41 | H56: DIF.PROFES.B2 2004 | I56: 83101 | J56: 20160012 | K56: 20160012
B57: 1 | C57: P | D57: F | E57: 100 | F57: P2 | G57: 42 | H57: DIF.PROFES. C 2004 | I57: 83101 | J57: 20160012 | K57: 20160012
B58: 1 | C58: P | D58: F | E58: 100 | F58: P2 | G58: 43 | H58: DIF.COMP. POR ANTIGUEDAD | I58: 83101 | J58: 20160012 | K58: 20160012
B59: 1 | C59: P | D59: F | E59: 100 | F59: P2 | G59: 44 | H59: DIF.PROFES. B1 2005 | I59: 83101 | J59: 20160012 | K59: 20160012
B60: 1 | C60: P | D60: F | E60: 100 | F60: P2 | G60: 45 | H60: DEVOLUCION DESPENSA | I60: 83101 | J60: 20160012 | K60: 20160012
B61: 1 | C61: P | D61: F | E61: 100 | F61: P2 | G61: 46 | H61: DIF.PROFES. B2 2005 | I61: 83101 | J61: 20160012 | K61: 20160012
B62: 1 | C62: P | D62: F | E62: 100 | F62: P2 | G62: 47 | H62: DIF.PROFES. C 2005 | I62: 83101 | J62: 20160012 | K62: 20160012
B63: 1 | C63: P | D63: F | E63: 100 | F63: P2 | G63: 48 | H63: DIF.PROFES. C 2007 | I63: 83101 | J63: 20160012 | K63: 20160012
B64: 1 | C64: P | D64: F | E64: 100 | F64: P2 | G64: 49 | H64: DIF.PRI.ANT.07 | I64: 83101 | J64: 20160012 | K64: 20160012
B65: 1 | C65: P | D65: F | E65: 100 | F65: P2 | G65: 50 | H65: COMPENSACION POR ANTIGUED | I65: 83101 | J65: 20160012 | K65: 20160012
B66: 1 | C66: P | D66: F | E66: 100 | F66: P2 | G66: 51 | H66: APARATOS ORTOPEDICOS | I66: 83101 | J66: 20160012 | K66: 20160012
B67: 1 | C67: P | D67: F | E67: 100 | F67: P2 | G67: 52 | H67: AYUDA TITULACION | I67: 83101 | J67: 20160012 | K67: 20160012
B68: 1 | C68: P | D68: F | E68: 100 | F68: P2 | G68: 53 | H68: RETROACTIVO QUINQUENIO | I68: 83101 | J68: 20160012 | K68: 20160012
B69: 1 | C69: P | D69: F | E69: 100 | F69: P2 | G69: 54 | H69: APARATOS ORTOPEDICOS | I69: 83101 | J69: 20160012 | K69: 20160012
B70: 1 | C70: P | D70: F | E70: 100 | F70: P2 | G70: 55 | H70: AYUDA TITULACION | I70: 83101 | J70: 20160012 | K70: 20160012
B71: 1 | C71: P | D71: F | E71: 100 | F71: P2 | G71: 56 | H71: DIF.PRF.B107 | I71: 83101 | J71: 20160012 | K71: 20160012
B72: 1 | C72: P | D72: F | E72: 100 | F72: P2 | G72: 57 | H72: DIF.PER.SOC.MUL.07 | I72: 83101 | J72: 20160012 | K72: 20160012
B73: 1 | C73: P | D73: F | E73: 100 | F73: P2 | G73: 58 | H73: DIF. DIAS ECONOMICOS | I73: 83101 | J73: 20160012 | K73: 20160012
B74: 1 | C74: P | D74: F | E74: 100 | F74: P2 | G74: 59 | H74: AGUINALDO EXCENTO | I74: 83101 | J74: 20160012 | K74: 20160012
B75: 1 | C75: P | D75: F | E75: 100 | F75: P2 | G75: 60 | H75: GRATIFICACIﾓN POR RENUNCI | I75: 83101 | J75: 20160012 | K75: 20160012
B76: 1 | C76: P | D76: F | E76: 100 | F76: P2 | G76: 61 | H76: PRIMA L.F.T. | I76: 83101 | J76: 20160012 | K76: 20160012
B77: 1 | C77: P | D77: F | E77: 100 | F77: P2 | G77: 62 | H77: 10, 15 Y 20 AﾑOS | I77: 83101 | J77: 20160012 | K77: 20160012
B78: 1 | C78: P | D78: F | E78: 100 | F78: P2 | G78: 63 | H78: PROFESIONALIZACION B | I78: 83101 | J78: 20160012 | K78: 20160012
B79: 1 | C79: P | D79: F | E79: 100 | F79: P2 | G79: 64 | H79: DIFERENCIA PENSION ALIMEN | I79: 83101 | J79: 20160012 | K79: 20160012
B80: 1 | C80: P | D80: F | E80: 100 | F80: P2 | G80: 65 | H80: PROFESIONALIZACION B2 | I80: 83101 | J80: 20160012 | K80: 20160012
B81: 1 | C81: P | D81: F | E81: 100 | F81: P2 | G81: 66 | H81: COMP.C.C.T.10,15 Y20 AﾑOS | I81: 83101 | J81: 20160012 | K81: 20160012
B82: 1 | C82: P | D82: F | E82: 100 | F82: P2 | G82: 67 | H82: AYUDA DEFUNCION | I82: 83101 | J82: 20160012 | K82: 20160012
B83: 1 | C83: P | D83: F | E83: 100 | F83: P2 | G83: 68 | H83: PROFESIONALIZACION C | I83: 83101 | J83: 20160012 | K83: 20160012
B84: 1 | C84: P | D84: F | E84: 100 | F84: P2 | G84: 69 | H84: RETRO. PROF B 2008 | I84: 83101 | J84: 20160012 | K84: 20160012
B85: 1 | C85: P | D85: F | E85: 100 | F85: P2 | G85: 70 | H85: ESTIMULO PRODUCTIVIDAD | I85: 83101 | J85: 20160012 | K85: 20160012
B86: 1 | C86: P | D86: F | E86: 100 | F86: P2 | G86: 71 | H86: VIATICOS | I86: 83101 | J86: 20160012 | K86: 20160012
B87: 1 | C87: P | D87: F | E87: 100 | F87: P2 | G87: 72 | H87: DEVOLUCION PRES C.P. | I87: 83101 | J87: 20160012 | K87: 20160012
B88: 1 | C88: P | D88: F | E88: 100 | F88: P2 | G88: 73 | H88: DEVOLUCION SEG. COL. RET | I88: 83101 | J88: 20160012 | K88: 20160012
B89: 1 | C89: P | D89: F | E89: 100 | F89: P2 | G89: 74 | H89: DEVOLUCION SEG. SEG AHISA | I89: 83101 | J89: 20160012 | K89: 20160012
B90: 1 | C90: P | D90: F | E90: 100 | F90: P2 | G90: 75 | H90: RETRO. PROF C 2008 | I90: 83101 | J90: 20160012 | K90: 20160012
B91: 1 | C91: P | D91: F | E91: 100 | F91: P2 | G91: 76 | H91: RETRO. CAP Y DES CONF | I91: 83101 | J91: 20160012 | K91: 20160012
B92: 1 | C92: P | D92: F | E92: 100 | F92: P2 | G92: 77 | H92: RETRO. PRE. SOC. MUL. CF | I92: 83101 | J92: 20160012 | K92: 20160012
B93: 1 | C93: P | D93: F | E93: 100 | F93: P2 | G93: 78 | H93: PRMA VAC. DIA ADICIONAL | I93: 83101 | J93: 20160012 | K93: 20160012
B94: 1 | C94: P | D94: F | E94: 100 | F94: P2 | G94: 79 | H94: DIF.COMP.POR ANTI. 2008 | I94: 83101 | J94: 20160012 | K94: 20160012
B95: 1 | C95: P | D95: F | E95: 100 | F95: P2 | G95: 80 | H95: CUOTA SINDICAL FONAC | I95: 83101 | J95: 20160012 | K95: 20160012
B96: 1 | C96: P | D96: F | E96: 100 | F96: P2 | G96: 81 | H96: DIF.COMP. POR ANT. 2009 | I96: 83101 | J96: 20160012 | K96: 20160012
B97: 1 | C97: P | D97: F | E97: 100 | F97: P2 | G97: 82 | H97: DIF. PROFB2. 2008 | I97: 83101 | J97: 20160012 | K97: 20160012
B98: 1 | C98: P | D98: F | E98: 100 | F98: P2 | G98: 83 | H98: DIAS POR AJUSTE ANUAL | I98: 83101 | J98: 20160012 | K98: 20160012
B99: 1 | C99: P | D99: F | E99: 100 | F99: P2 | G99: 84 | H99: DEVOL. ADEUDO POR PRESTA | I99: 83101 | J99: 20160012 | K99: 20160012
B100: 1 | C100: P | D100: F | E100: 100 | F100: P2 | G100: 85 | H100: RETRO. CAN. ADIC. CONFIAN | I100: 83101 | J100: 20160012 | K100: 20160012
B101: 1 | C101: P | D101: F | E101: 100 | F101: P2 | G101: 86 | H101: RETROACTIVO PROFB1 2009 | I101: 83101 | J101: 20160012 | K101: 20160012
B102: 1 | C102: P | D102: F | E102: 100 | F102: P2 | G102: 87 | H102: RETROACTIVO PROF.C 2009 | I102: 83101 | J102: 20160012 | K102: 20160012
B103: 1 | C103: P | D103: F | E103: 100 | F103: P2 | G103: 88 | H103: RETRO. C Y D 2008 | I103: 83101 | J103: 20160012 | K103: 20160012
B104: 1 | C104: P | D104: F | E104: 100 | F104: P2 | G104: 89 | H104: RETRO. C.ADIC 2008 | I104: 83101 | J104: 20160012 | K104: 20160012
B105: 1 | C105: P | D105: F | E105: 100 | F105: P2 | G105: 90 | H105: IMPUESTO ANUAL | I105: 83101 | J105: 20160012 | K105: 20160012
B106: 1 | C106: P | D106: F | E106: 100 | F106: P2 | G106: 91 | H106: CANTIDAD POR UNICA VEZ | I106: 83101 | J106: 20160012 | K106: 20160012
B107: 1 | C107: P | D107: F | E107: 100 | F107: P2 | G107: 92 | H107: PUNTUALIDAD PERFECTA | I107: 83101 | J107: 20160012 | K107: 20160012
B108: 1 | C108: P | D108: F | E108: 100 | F108: P2 | G108: 93 | H108: RETRO. PSM 2008 | I108: 83101 | J108: 20160012 | K108: 20160012
B109: 1 | C109: P | D109: F | E109: 100 | F109: P2 | G109: 94 | H109: RETRO. DESP 2008 | I109: 83101 | J109: 20160012 | K109: 20160012
B110: 1 | C110: P | D110: F | E110: 100 | F110: P2 | G110: 95 | H110: DEVOLUCION POTECIACION | I110: 83101 | J110: 20160012 | K110: 20160012
B111: 1 | C111: P | D111: F | E111: 100 | F111: P2 | G111: 96 | H111: DIF.PROFES. B1 2009 | I111: 83101 | J111: 20160012 | K111: 20160012
B112: 1 | C112: P | D112: F | E112: 100 | F112: P2 | G112: 97 | H112: DIF.PROFES. C 2009 | I112: 83101 | J112: 20160012 | K112: 20160012
B113: 1 | C113: P | D113: F | E113: 100 | F113: P2 | G113: 98 | H113: RETROACTIVO PROFB1 | I113: 83101 | J113: 20160012 | K113: 20160012
B114: 1 | C114: P | D114: F | E114: 100 | F114: P2 | G114: 99 | H114: RETROACTIVO PROFC | I114: 83101 | J114: 20160012 | K114: 20160012
B115: 1 | C115: P | D115: F | E115: 100 | F115: P2 | G115: 100 | H115: PAGO EX. UNICO FSTSE-SHCP | I115: 83101 | J115: 20160012 | K115: 20160012
B116: 1 | C116: P | D116: F | E116: 100 | F116: P2 | G116: 101 | H116: VALES DE DESPENSA | I116: 83101 | J116: 20160012 | K116: 20160012
B117: 1 | C117: P | D117: F | E117: 100 | F117: P2 | G117: 102 | H117: VALES PRODUCTIVIDAD | I117: 83101 | J117: 20160012 | K117: 20160012
B118: 1 | C118: P | D118: F | E118: 100 | F118: P2 | G118: 103 | H118: VALES BONO SEXENAL | I118: 83101 | J118: 20160012 | K118: 20160012
B119: 1 | C119: P | D119: F | E119: 100 | F119: P2 | G119: 104 | H119: DEV. DIAS ECONOMINCOS | I119: 83101 | J119: 20160012 | K119: 20160012
B120: 1 | C120: P | D120: F | E120: 100 | F120: P2 | G120: 105 | H120: PRIMA VACACIONAL MM | I120: 83101 | J120: 20160012 | K120: 20160012
B121: 1 | C121: P | D121: F | E121: 100 | F121: P2 | G121: 106 | H121: QUINQUENIO C Y MM | I121: 83101 | J121: 20160012 | K121: 20160012
B122: 1 | C122: P | D122: F | E122: 100 | F122: P2 | G122: 107 | H122: AJUSTE POR FALTAS | I122: 83101 | J122: 20160012 | K122: 20160012
B123: 1 | C123: P | D123: F | E123: 100 | F123: P2 | G123: 108 | H123: RETROACTIVO QUINC Y MM | I123: 83101 | J123: 20160012 | K123: 20160012
B124: 1 | C124: P | D124: F | E124: 100 | F124: P2 | G124: 109 | H124: LIQUIDACIONES | I124: 83101 | J124: 20160012 | K124: 20160012
B125: 1 | C125: P | D125: F | E125: 100 | F125: P2 | G125: 110 | H125: DEVOLUCION AHORRO SOLIDAR | I125: 83101 | J125: 20160012 | K125: 20160012
B126: 1 | C126: P | D126: F | E126: 100 | F126: P2 | G126: 119 | H126: SUBSIDIO PARA EL EMPLEO | I126: 83101 | J126: 20160012 | K126: 20160012
B127: 1 | C127: P | D127: F | E127: 100 | F127: P2 | G127: 120 | H127: DIF.COM.GARN.2010 MM | I127: 83101 | J127: 20160012 | K127: 20160012
B128: 1 | C128: P | D128: F | E128: 100 | F128: P2 | G128: 121 | H128: COMP.LENTES 2010 EXC | I128: 83101 | J128: 20160012 | K128: 20160012
B129: 1 | C129: P | D129: F | E129: 100 | F129: P2 | G129: 122 | H129: COMP.LENTES 2010 GRAV | I129: 83101 | J129: 20160012 | K129: 20160012
B130: 1 | C130: P | D130: F | E130: 100 | F130: P2 | G130: 123 | H130: DIFERENCIA DESPENSA 2010 | I130: 83101 | J130: 20160012 | K130: 20160012
B131: 1 | C131: P | D131: F | E131: 100 | F131: P2 | G131: 124 | H131: DIF PREV. SOLCIAL 2010 | I131: 83101 | J131: 20160012 | K131: 20160012
B132: 1 | C132: P | D132: F | E132: 100 | F132: P2 | G132: 125 | H132: DIF CANTIDAD ADIC. 2010 | I132: 83101 | J132: 20160012 | K132: 20160012
B133: 1 | C133: P | D133: F | E133: 100 | F133: P2 | G133: 126 | H133: DIF CANTIDAD ADIC. 2009 | I133: 83101 | J133: 20160012 | K133: 20160012
B134: 1 | C134: P | D134: F | E134: 100 | F134: P2 | G134: 127 | H134: DIF PREV. SOCIAL | I134: 83101 | J134: 20160012 | K134: 20160012
B135: 1 | C135: P | D135: F | E135: 100 | F135: P2 | G135: 128 | H135: DIA DEL TRABAJOR DEL INEA | I135: 83101 | J135: 20160012 | K135: 20160012
B136: 1 | C136: P | D136: F | E136: 100 | F136: P2 | G136: 130 | H136: VACACIONES | I136: 83101 | J136: 20160012 | K136: 20160012
B137: 1 | C137: P | D137: F | E137: 100 | F137: P2 | G137: 206 | H137: AGUINALDO COMP. | I137: 83101 | J137: 20160012 | K137: 20160012
B138: 1 | C138: P | D138: F | E138: 100 | F138: P2 | G138: 400 | H138: DIF. AYUDA POR SERV. B | I138: 83101 | J138: 20160012 | K138: 20160012
B139: 1 | C139: P | D139: F | E139: 100 | F139: P2 | G139: 401 | H139: DIFERENCIA DE SUELDO | I139: 83101 | J139: 20160012 | K139: 20160012
B140: 1 | C140: P | D140: F | E140: 100 | F140: P2 | G140: 402 | H140: DIV.ABRIL2005MAYO2006 POT | I140: 83101 | J140: 20160012 | K140: 20160012
B141: 1 | C141: P | D141: F | E141: 100 | F141: P2 | G141: 403 | H141: DIF. COMPENSACION GARANTI | I141: 83101 | J141: 20160012 | K141: 20160012
B142: 1 | C142: P | D142: F | E142: 100 | F142: P2 | G142: 404 | H142: DIVIDENDOS POTEN 2007 | I142: 83101 | J142: 20160012 | K142: 20160012
B143: 1 | C143: P | D143: F | E143: 100 | F143: P2 | G143: 405 | H143: DIF. PRIMA VACACIONAL | I143: 83101 | J143: 20160012 | K143: 20160012
B144: 1 | C144: P | D144: F | E144: 100 | F144: P2 | G144: 408 | H144: DIF.COMP. GARANT. | I144: 83101 | J144: 20160012 | K144: 20160012
B145: 1 | C145: P | D145: F | E145: 100 | F145: P2 | G145: 409 | H145: DIF DESPENSA | I145: 83101 | J145: 20160012 | K145: 20160012
B146: 1 | C146: P | D146: F | E146: 100 | F146: P2 | G146: 414 | H146: DIF AYUDA SERVICIOS | I146: 83101 | J146: 20160012 | K146: 20160012
B147: 1 | C147: P | D147: F | E147: 100 | F147: P2 | G147: 415 | H147: DIF. DIAS DE PUNTUALIDAD | I147: 83101 | J147: 20160012 | K147: 20160012
B148: 1 | C148: P | D148: F | E148: 100 | F148: P2 | G148: 418 | H148: DIF. DIAS ECONOMICOS | I148: 83101 | J148: 20160012 | K148: 20160012
B149: 1 | C149: P | D149: F | E149: 100 | F149: P2 | G149: 420 | H149: DIF CAPACITACION Y DESARR | I149: 83101 | J149: 20160012 | K149: 20160012
B150: 1 | C150: P | D150: F | E150: 100 | F150: P2 | G150: 450 | H150: DIF COMP. POR ANTIG. | I150: 83101 | J150: 20160012 | K150: 20160012
B151: 1 | C151: P | D151: F | E151: 100 | F151: P2 | G151: 455 | H151: DEVOLUCION FALTA | I151: 83101 | J151: 20160012 | K151: 20160012
B152: 1 | C152: P | D152: F | E152: 100 | F152: P2 | G152: 463 | H152: RETROAC. PROFESIONALIZA | I152: 83101 | J152: 20160012 | K152: 20160012
B153: 1 | C153: P | D153: F | E153: 100 | F153: P2 | G153: 464 | H153: DIF. PROF B1 | I153: 83101 | J153: 20160012 | K153: 20160012
B154: 1 | C154: P | D154: F | E154: 100 | F154: P2 | G154: 466 | H154: CONTINGENCIA LABORAL | I154: 83101 | J154: 20160012 | K154: 20160012
B155: 1 | C155: P | D155: F | E155: 100 | F155: P2 | G155: 467 | H155: DEV. POR AYUDA EN DEFUNC | I155: 83101 | J155: 20160012 | K155: 20160012
B156: 1 | C156: D | E156: 100 | F156: D2 | G156: 500 | H156: SUSPENSIONES | I156: 83101 | J156: 20160012 | K156: 20160012
B157: 1 | C157: D | E157: 100 | F157: D2 | G157: 501 | H157: FALTAS | I157: 83101 | J157: 20160012 | K157: 20160012
B158: 1 | C158: D | E158: 100 | F158: D2 | G158: 502 | H158: COMPENSACION GARANT. | I158: 83101 | J158: 20160012 | K158: 20160012
B159: 1 | C159: D | E159: 100 | F159: D2 | G159: 503 | H159: HORARIO DISCONTINUO | I159: 83101 | J159: 20160012 | K159: 20160012
B160: 1 | C160: D | E160: 100 | F160: D2 | G160: 504 | H160: DONATIVOS | I160: 83101 | J160: 20160012 | K160: 20160012
B161: 1 | C161: D | E161: 100 | F161: D2 | G161: 505 | H161: CUOTA SINDICAL RETIRO | I161: 83101 | J161: 20160012 | K161: 20160012
B162: 1 | C162: D | E162: 100 | F162: D2 | G162: 506 | H162: AHORRO SOLIDARIO | I162: 83101 | J162: 20160012 | K162: 20160012
B163: 1 | C163: D | E163: 100 | F163: D2 | G163: 507 | H163: DEV. PREST. CAJA DE AHORR | I163: 83101 | J163: 20160012 | K163: 20160012
B164: 1 | C164: D | E164: 100 | F164: D2 | G164: 508 | H164: DEV. GUARDERIA | I164: 83101 | J164: 20160012 | K164: 20160012
B165: 1 | C165: D | E165: 100 | F165: D2 | G165: 518 | H165: DEV. DIAS ECONOMICOS | I165: 83101 | J165: 20160012 | K165: 20160012
B166: 1 | C166: D | E166: 100 | F166: D2 | G166: 519 | H166: DEV. QUINQUENIOS | I166: 83101 | J166: 20160012 | K166: 20160012
B167: 1 | C167: D | E167: 100 | F167: D2 | G167: 520 | H167: DEV. PRIM VAC | I167: 83101 | J167: 20160012 | K167: 20160012
B168: 1 | C168: D | E168: 100 | F168: D2 | G168: 521 | H168: DEV. DESPENSA | I168: 83101 | J168: 20160012 | K168: 20160012
B169: 1 | C169: D | E169: 100 | F169: D2 | G169: 522 | H169: DEV. AYUDA OARA SERV. B | I169: 83101 | J169: 20160012 | K169: 20160012
B170: 1 | C170: D | E170: 100 | F170: D2 | G170: 529 | H170: CREDITO DINAMO | I170: 83101 | J170: 20160012 | K170: 20160012
B171: 1 | C171: D | E171: 100 | F171: D2 | G171: 530 | H171: ISR | I171: 83101 | J171: 20160012 | K171: 20160012
B172: 1 | C172: D | E172: 100 | F172: D2 | G172: 531 | H172: DIFERENCIA ISR | I172: 83101 | J172: 20160012 | K172: 20160012
B173: 1 | C173: D | E173: 100 | F173: D2 | G173: 532 | H173: IMPUESTO ANUAL | I173: 83101 | J173: 20160012 | K173: 20160012
B174: 1 | C174: D | E174: 100 | F174: D2 | G174: 533 | H174: I.S.R.ESTIMULO 10 15 Y 20 | I174: 83101 | J174: 20160012 | K174: 20160012
B175: 1 | C175: D | E175: 100 | F175: D2 | G175: 534 | H175: AJUSTE ESTIMULO 10 AﾑOS | I175: 83101 | J175: 20160012 | K175: 20160012
B176: 1 | C176: D | E176: 100 | F176: D2 | G176: 535 | H176: IMPUESTO AGUINALDO | I176: 83101 | J176: 20160012 | K176: 20160012
B177: 1 | C177: D | E177: 100 | F177: D2 | G177: 536 | H177: AJUSTE BONIFICACION | I177: 83101 | J177: 20160012 | K177: 20160012
B178: 1 | C178: D | E178: 100 | F178: D2 | G178: 537 | H178: CREDITO SALARIO ANUAL | I178: 83101 | J178: 20160012 | K178: 20160012
B179: 1 | C179: D | E179: 100 | F179: D2 | G179: 538 | H179: DEVOLUCION PUNTUALIDAD | I179: 83101 | J179: 20160012 | K179: 20160012
B180: 1 | C180: D | E180: 100 | F180: D2 | G180: 539 | H180: GASTOS FUNERARIOS | I180: 83101 | J180: 20160012 | K180: 20160012
B181: 1 | C181: D | E181: 100 | F181: D2 | G181: 540 | H181: SERV.MED/MAT.ISSSTE | I181: 83101 | J181: 20160012 | K181: 20160012
B182: 1 | C182: D | E182: 100 | F182: D2 | G182: 541 | H182: FONDO/PENSION ISSSTE | I182: 83101 | J182: 20160012 | K182: 20160012
B183: 1 | C183: D | E183: 100 | F183: D2 | G183: 542 | H183: PRESTAMO C.P. ISSSTE | I183: 83101 | J183: 20160012 | K183: 20160012
B184: 1 | C184: D | E184: 100 | F184: D2 | G184: 543 | H184: PRESTAMO COMPLEM. ISSSTE | I184: 83101 | J184: 20160012 | K184: 20160012
B185: 1 | C185: D | E185: 100 | F185: D2 | G185: 544 | H185: PRES. HIP. FOVISSSTE | I185: 83101 | J185: 20160012 | K185: 20160012
B186: 1 | C186: D | E186: 100 | F186: D2 | G186: 545 | H186: DIF. 8% ISSSTE | I186: 83101 | J186: 20160012 | K186: 20160012
B187: 1 | C187: D | E187: 100 | F187: D2 | G187: 546 | H187: DEVOLUCIONES VARIAS | I187: 83101 | J187: 20160012 | K187: 20160012
B188: 1 | C188: D | E188: 100 | F188: D2 | G188: 547 | H188: DEVOLUCION VIATICOS | I188: 83101 | J188: 20160012 | K188: 20160012
B189: 1 | C189: D | E189: 100 | F189: D2 | G189: 548 | H189: AYUDA CRUZ ROJA | I189: 83101 | J189: 20160012 | K189: 20160012
B190: 1 | C190: D | E190: 100 | F190: D2 | G190: 549 | H190: ADEUDO POR PRESTAMO | I190: 83101 | J190: 20160012 | K190: 20160012
B191: 1 | C191: D | E191: 100 | F191: D2 | G191: 550 | H191: CUOTA SINDICAL | I191: 83101 | J191: 20160012 | K191: 20160012
B192: 1 | C192: D | E192: 100 | F192: D2 | G192: 551 | H192: PENSION ALIMENTICIA | I192: 83101 | J192: 20160012 | K192: 20160012
B193: 1 | C193: D | E193: 100 | F193: D2 | G193: 552 | H193: DIFERENCIA ANTEOJOS | I193: 83101 | J193: 20160012 | K193: 20160012
B194: 1 | C194: D | E194: 100 | F194: D2 | G194: 553 | H194: DEVOLUCION ANTEOJOS | I194: 83101 | J194: 20160012 | K194: 20160012
B195: 1 | C195: D | E195: 100 | F195: D2 | G195: 554 | H195: DIF PENSION ALIMENTICIA | I195: 83101 | J195: 20160012 | K195: 20160012
B196: 1 | C196: D | E196: 100 | F196: D2 | G196: 555 | H196: DEV.CAN.ADIC.2010 T.S.T.D | I196: 83101 | J196: 20160012 | K196: 20160012
B197: 1 | C197: D | E197: 100 | F197: D2 | G197: 556 | H197: GTOS. FUNER. SAN RAFAEL | I197: 83101 | J197: 20160012 | K197: 20160012
B198: 1 | C198: D | E198: 100 | F198: D2 | G198: 558 | H198: AJUSTE POR AYUDA DE LENTE | I198: 83101 | J198: 20160012 | K198: 20160012
B199: 1 | C199: D | E199: 100 | F199: D2 | G199: 560 | H199: MULTISEGURO | I199: 83101 | J199: 20160012 | K199: 20160012
B200: 1 | C200: D | E200: 100 | F200: D2 | G200: 561 | H200: GPO.SEG. DIVERSOS | I200: 83101 | J200: 20160012 | K200: 20160012
B201: 1 | C201: D | E201: 100 | F201: D2 | G201: 562 | H201: SEG. VIDA IND AHISA | I201: 83101 | J201: 20160012 | K201: 20160012
B202: 1 | C202: D | E202: 100 | F202: D2 | G202: 563 | H202: SEGURO COL. DE RETIRO | I202: 83101 | J202: 20160012 | K202: 20160012
B203: 1 | C203: D | E203: 100 | F203: D2 | G203: 564 | H203: POT. SEGURO DE VIDA | I203: 83101 | J203: 20160012 | K203: 20160012
B204: 1 | C204: D | E204: 100 | F204: D2 | G204: 565 | H204: DEV. SEGURO CAP. | I204: 83101 | J204: 20160012 | K204: 20160012
B205: 1 | C205: D | E205: 100 | F205: D2 | G205: 566 | H205: CAJA DE AHORRO | I205: 83101 | J205: 20160012 | K205: 20160012
B206: 1 | C206: D | E206: 100 | F206: D2 | G206: 567 | H206: PRESTAMO CAJA DE AHORRO | I206: 83101 | J206: 20160012 | K206: 20160012
B207: 1 | C207: D | E207: 100 | F207: D2 | G207: 569 | H207: DEVOLUCION FONAC | I207: 83101 | J207: 20160012 | K207: 20160012
B208: 1 | C208: D | E208: 100 | F208: D2 | G208: 570 | H208: ANTICIPO DE SUELDO | I208: 83101 | J208: 20160012 | K208: 20160012
B209: 1 | C209: D | E209: 100 | F209: D2 | G209: 571 | H209: FONDO DE AHORRO CAP. | I209: 83101 | J209: 20160012 | K209: 20160012
B210: 1 | C210: D | E210: 100 | F210: D2 | G210: 572 | H210: CAJA DE AHORRO CUOTA | I210: 83101 | J210: 20160012 | K210: 20160012
B211: 1 | C211: D | E211: 100 | F211: D2 | G211: 573 | H211: PRESTAMO CAJA AHORROS | I211: 83101 | J211: 20160012 | K211: 20160012
... 25 more rows

Sheet E)
B9: Formato: Trabajadores que Cobran con RFC / CURP con Formato Incorrecto
B10: =IF('Caratula Resumen'!D22="Elige el Periodo…","",'Caratula Resumen'!D22) -> Fondo de Aportaciones para la Educación Tecnológica y de Adultos/Instituto Nacional para la Educación de los Adultos (FAETA/INEA) | H10: =IF('Caratula Resumen'!D23="Elige el Periodo…","",'Caratula Resumen'!D23) -> 4to. Trimestre
B13: Entidad Federativa | C13: RFC | D13: CURP | E13: NOMBRE TRABAJADOR | F13: Motivo
F14: Sin RFC o erroneo | G14: RFC Sin Homoclave | H14: Sin CURP o Erronea
B17: Entidad Federativa | C17: RFC | D17: CURP | E17: NOMBRE TRABAJADOR | F17: Sin RFC o erroneo | G17: RFC Sin Homoclave | H17: Sin CURP o Erronea
B23: Total Personas : | E23: Total Sin RFC o Erroneo:
F24: Total RFC Sin Homoclave:
G25: Total Sin CURP o Erroneo:
B26: Fuente : Información proporcionada por las Entidades Federativas

Sheet F) 1
B9: Formato: Trabajadores con Doble Asignación Salarial en Municipios no Colindantes Geográficamente
B10: =IF('Caratula Resumen'!D22="Elige el Periodo…","",'Caratula Resumen'!D22) -> Fondo de Aportaciones para la Educación Tecnológica y de Adultos/Instituto Nacional para la Educación de los Adultos (FAETA/INEA) | S10: =IF('Caratula Resumen'!D23="Elige el Periodo…","",'Caratula Resumen'!D23) -> 4to. Trimestre
B13: Entidad Federativa | C13: Municipio | D13: Localidad | E13: RFC | F13: CURP | G13: Nombre del Trabajador | H13: Clave integrada | I13: Clave Presupuestal | P13: Clave CT | Q13: Nombre CT | R13: Periodo en el CT
I14: Partida Presupuestal | J14: Código de Pago | K14: Clave de Unidad | L14: Clave de Sub Unidad | M14: Clave de Categoría | N14: Horas Semana Mes | O14: Número de Plaza | R14: Desde | S14: Hasta
B16: Entidad Federativa | C16: Municipio | D16: Localidad | E16: RFC | F16: CURP | G16: Nombre del Trabajador | H16: Clave integrada | I16: Partida Presupuestal | J16: Código de Pago | K16: Clave de Unidad | L16: Clave de Sub Unidad | M16: Clave de Categoría | N16: Horas semana mes | O16: Número de Plaza | P16: Clave CT | Q16: Nombre CT | R16: Periodo en el CT Desde | S16: Periodo en el CTH asta
B22: Total Personas : | M22: Total Plazas :
B25: Fuente : Información proporcionada por las Entidades Federativas
B26: Importante: Listar Sólo los Municipios no Colindantes

Sheet F) 2
B10: Formato: Trabajadores Ocupando Plazas que Superan el Número de Horas de Compatibilidad Autorizadas
B11: =IF('Caratula Resumen'!D22="Elige el Periodo…","",'Caratula Resumen'!D22) -> Fondo de Aportaciones para la Educación Tecnológica y de Adultos/Instituto Nacional para la Educación de los Adultos (FAETA/INEA) | S11: =IF('Caratula Resumen'!D23="Elige el Periodo…","",'Caratula Resumen'!D23) -> 4to. Trimestre
B14: Entidad Federativa | C14: RFC | D14: CURP | E14: Nombre | F14: Clave integrada | G14: Clave Presupuestal | N14: CT | O14: Nombre CT | P14: Turno CT | Q14: Periodo | S14: Total de Horas en el CT | T14: Horas de compatibilidad de la categoría
G15: Partida Presupuestal | H15: Código de Pago | I15: Clave de Unidad | J15: Clave de Sub Unidad | K15: Clave de Categoría | L15: Horas Semana Mes | M15: Número de Plaza | Q15: Desde | R15: Hasta
B17: Entidad Federativa | C17: RFC | D17: CURP | E17: Nombre | F17: Clave integrada | G17: Partida Presupuestal | H17: Código de Pago | I17: Clave de Unidad | J17: Clave de Sub Unidad | K17: Clave de Categoría | L17: Horas semana mes | M17: Número de plaza | N17: CT | O17: Nombre CT | P17: Turno CT | Q17: Periodo Desde | R17: Periodo Hasta | S17: Total de Horas en el CT | T17: Horas de compatibilidad de la categoría
B18: GUANAJUATO | C18: GOGR650725KF1 | D18: GOGR650725HGTNRB02 | E18: ROBERTO GONZALEZ GARCIA | F18: 831011721T0382000.0 | G18: 83101 | H18: 1 | I18: 7 | J18: 21 | K18: T03820 | L18: 0 | M18: 235 | N18: 0 | O18: 0 | P18: 100 | Q18: 0 | R18: 0 | S18: 0 | T18: 0
B19: Total Personas : | C19: 1 | K19: Total Plazas : | M19: 1
B22: Fuente : Información proporcionada por las Entidades Federativas

Sheet G)
B10: Formato: Trabajadores Cuyo Salario Básico Supere los Ingresos Promedio de un Docente en la Categoría más Alta del Tabulador Salarial Correspondiente a Cada Entidad
B11: =IF('Caratula Resumen'!D22="Elige el Periodo…","",'Caratula Resumen'!D22) -> Fondo de Aportaciones para la Educación Tecnológica y de Adultos/Instituto Nacional para la Educación de los Adultos (FAETA/INEA) | T11: =IF('Caratula Resumen'!D23="Elige el Periodo…","",'Caratula Resumen'!D23) -> 4to. Trimestre
B14: Entidad Federativa | C14: R.F.C. | D14: CURP | E14: Nombre | F14: Clave integrada | G14: Clave Presupuestal Integrada y Categoria aparte | N14: Clave CT Origen | O14: Nombre CT | P14: Periodo | R14: Monto de Remuneraciones Mensuales | S14: Monto de referencia | T14: Diferencia (R-S)
G15: Partida Presupuestal | H15: Código de Pago | I15: Clave de Unidad | J15: Clave de Sub Unidad | K15: Clave de Categoría | L15: Horas Semana Mes | M15: Número de Plaza | P15: Desde | Q15: Hasta
B17: Entidad Federativa | C17: R.F.C. | D17: CURP | E17: Nombre | F17: Clave integrada | G17: Partida Presupuestal | H17: Código de Pago | I17: Clave de Unidad | J17: Clave de Sub Unidad | K17: Clave de Categoría | L17: Horas Semana Mes | M17: No. de plaza | N17: CT | O17: Nombre CT | P17: Periodo Desde | Q17: Periodo Hasta | R17: Monto de Remuneraciones Mensuales | S17: Monto de referencia | T17: Diferencia (R-S)
B23: Total Personas : | O23: Total Remuneraciones Mensuales:
R25: Total Diferencia:
B27: Fuente : Información proporcionada por las Entidades Federativas

Sheet Listas (hidden)
B4: Elige un Fondo…
B5: Fondo de Aportaciones para la Educación Básica y Normal (FAEB)
B6: Fondo de Aportaciones para la Educación Tecnológica y de Adultos/Colegio Nacional de Educación Profesional Técnica (FAETA/CONALEP)
B7: Fondo de Aportaciones para la Educación Tecnológica y de Adultos/Instituto Nacional para la Educación de los Adultos (FAETA/INEA)
H10: Elige la Entidad Federativa…
B11: Elige el Periodo… | H11: AGUASCALIENTES
B12: 1er. Trimestre | H12: BAJA CALIFORNIA
B13: 2do. Trimestre | H13: BAJA CALIFORNIA SUR
B14: 3er. Trimestre | H14: CAMPECHE
B15: 4to. Trimestre | H15: COAHUILA
D16: Elige el Año… | H16: COLIMA
D17: 2013 | H17: CHIAPAS
D18: 2014 | H18: CHIHUAHUA
D19: 2015 | H19: DISTRITO FEDERAL
D20: 2016 | H20: DURANGO
D21: 2017 | H21: GUANAJUATO
D22: 2018 | H22: GUERRERO
H23: HIDALGO
H24: JALISCO
H25: MEXICO
H26: MICHOACAN
H27: MORELOS
H28: NAYARIT
H29: NUEVO LEON
H30: OAXACA
H31: PUEBLA
H32: QUERETARO
H33: QUINTANA ROO
H34: SAN LUIS
H35: SINALOA
H36: SONORA
H37: TABASCO
H38: TAMAULIPAS
H39: TLAXCALA
H40: VERACRUZ
H41: YUCATÁN
H42: ZACATECAS
